Workbook

Sheet Disclaimer
B3: FDOT D1
B4: =BCAInputs!B6 -> FDOT D1 - Rural - SR 29 Improvements
B5: US DOT Rural Grant Application
B6: April 27, 2022
B9: Disclaimer
B10: ="The Model is provided to "&Client.Name&" on the basis that it is private and confidential. The Recipients agree to not disclose that information to any person or third party except with the prior written consent of HDR Inc. (HDR) or as required by law." -> The Model is provided to FDOT D1 on the basis that it is private and confidential. The Recipients agree to not disclose that information to any person or third party except with the prior written consent of HDR Inc. (HDR) or as required by law.
B13: ="HDR retains all intellectual property with respect to this Model. The Recipients agree to use this Model only for the purpose of performing analysis in support of the "&Grant.Name&" for the "&Project.Name&" project. The Model must not be used for any other purpose. " -> HDR retains all intellectual property with respect to this Model. The Recipients agree to use this Model only for the purpose of performing analysis in support of the US DOT Rural Grant Application for the FDOT D1 - Rural - SR 29 Improvements project. The Model must not be used for any other purpose.
B16: By retaining and using this Model, the Recipients represent to HDR that they are capable of making their own independent assessment as to the validity of the assumptions, data and results contained in this Model.
B18: The Model may be a development version and may not be complete or, in the event that development of the Model has concluded, material events may have occurred since completion which are not reflected in the Model. In consultation with the client, HDR used what was deemed the best available data at the time of analysis and makes no warranties as to the accuracy of this information or completeness of the Model.

Sheet Contents
A1: Table of Contents
B3: # | C3: WORKSHEET NAME | D3: DESCRIPTION
B4: 1 | C4: Disclaimer | D4: Title Worksheet, with Disclaimer
B5: 2 | C5: Contents | D5: This Worksheet - Workbook Contents
B6: 3 | C6: BCAResults | D6: Benefit-Cost Analysis - Summary Results
B7: 4 | C7: BCAResultsAdd | D7: Benefit-Cost Analysis Results - Additional Tables
B8: 5 | C8: Parameters | D8: Model Parameter Values Used in Analyses
B9: 6 | C9: BCAInputs | D9: Project-Specific Inputs for Benefit-Cost Analysis
B10: 7 | C10: TDMData | D10: Travel Demand Model Outputs as Inputs into BCA
B11: 8 | C11: CapExResidualValue | D11: Capital Expenditures and Residual Value Input
B12: 9 | C12: OMCosts | D12: Operating and Maintenance Costs
B13: 10 | C13: BCACalculations | D13: Benefit-Cost Analysis Calculations
B14: 11 | C14: VMTVHT | D14: VMT and VHT Calculations
B15: 12 | C15: SafetyCalcs | D15: Safety - External Calculations
B16: 13 | C16: Flooding Events | D16: Roadway flooding events
B17: 14 | C17: PriceIndices | D17: Price Indices
B18: 15 | C18: EmissionCost | D18: Unit Values of Emission Costs
B19: 16 | C19: HERSLookup | D19: Selected HERS Relationships and Parameter Values
B20: 17 | C20: EmissionLookup | D20: Emission Rates Lookup Tables
B21: 18 | C21: EmissionCalcs | D21: Calculation of Emission Volumes by Speed Bin
B22: 19 | C22: EmissionRates | D22: MOVES Emission Rates by County, Mode, Speed Bin, and Pollutant
B23: 13 | C23: CrashData | D23: Florida Crash Data and Other Related Data
B26: TAB LEGEND:
C27: Guiding Information
C28: Results/Outputs
C29: Inputs and Assumptions
C30: Calculations
C31: Supporting Data

Sheet BCAResults
A1: Benefit-Cost Analysis Results
A2: Summary Tables
F4: 1000000
C5: Overall Benefit Cost Analysis Results (in millions of 2020$)
C7: Merit Criteria | D7: Benefit Category | E7: Results (7% Discount Rate)* | L7: Results (7% Discount Rate)
C8: State of Good Repair | D8: Residual value of capital investment | E8: =BCACalculations!C106/$F$4 -> 0.4354971383 | K8: Total Discounted Benefits | L8: =BCACalculations!C139/F4 -> 27.95676415
C9: Economic Impacts, Freight Movement, and Job Creation | D9: Travel time savings to roadway users, incl. freight trucks | E9: =BCACalculations!C133/$F$4 -> 0.4260937919 | K9: Total Discounted Costs | L9: =BCACalculations!C120/F4 -> 22.13397093
D10: Vehicle operating cost savings to roadway users, incl. freight trucks | E10: =BCACalculations!C134/BCAResults!$F$4 -> 0.302717506 | K10: Net Present Value | L10: =BCACalculations!C144/BCAResults!F4 -> 5.822793221
C11: Safety | D11: Accident cost savings | E11: =BCACalculations!C137/BCAResults!$F$4 -> 26.75374172 | K11: Benefit-Cost Ratio | L11: =BCACalculations!C142 -> 1.253856546
C12: Climate Change, Resiliency, and the Environment | D12: Emission cost savings | E12: =(BCACalculations!C135+BCACalculations!C136)/BCAResults!$F$4 -> 0.03871399533 | K12: Real Internal Rate of Return | L12: =BCACalculations!C147 -> 0.09603342287
C13: Total Project Benefits | E13: =SUM(E8:E12) -> 27.95676415
C15: * CO2 emissions are discounted at the annual rate of 3%.
G17: Benefit-Cost Analysis Results (in millions of 2020$)*
G19: Benefit and Cost Metrics | H19: 2022-2049 Totals
H20: Discounted at 7% *** | I20: Before Discounting
G21: Project Benefits
G22: Travel Time Savings | H22: =BCACalculations!C133/BCAResults!$F$4 -> 0.4260937919 | I22: =BCACalculations!C123/BCAResults!$F$4 -> 1.350694866 | K22: =SUM(I22:I23) -> 2.3099367
G23: Vehicle Operating Cost Savings | H23: =BCACalculations!C134/BCAResults!$F$4 -> 0.302717506 | I23: =BCACalculations!C124/BCAResults!$F$4 -> 0.9592418344
G24: Emission Savings (Carbon) | H24: =BCACalculations!C135/BCAResults!$F$4 -> 0.03171312784 | I24: =BCACalculations!C125/BCAResults!$F$4 -> 0.05417069047
G25: Emission Savings (non-Carbon) | H25: =BCACalculations!C136/BCAResults!$F$4 -> 0.007000867497 | I25: =BCACalculations!C126/BCAResults!$F$4 -> 0.02181416503
G26: Safety | H26: =BCACalculations!C137/BCAResults!$F$4 -> 26.75374172 | I26: =BCACalculations!C127/BCAResults!$F$4 -> 79.94012017
G27: Residual Value | H27: =BCACalculations!C138/BCAResults!$F$4 -> 0.4354971383 | I27: =BCACalculations!C128/BCAResults!$F$4 -> 2.70612157
G28: Total Benefits | H28: =BCACalculations!C139/BCAResults!$F$4 -> 27.95676415 | I28: =BCACalculations!C129/BCAResults!$F$4 -> 85.0321633
G29: Project Costs
G30: Capital | H30: =BCACalculations!C118/$F$4 -> 22.93733731 | I30: =BCACalculations!C112/$F$4 -> 33.38979202
G31: O&M Costs | H31: =BCACalculations!C119/$F$4 -> -0.8033663747 | I31: =BCACalculations!C113/$F$4 -> -2.400456923
G32: Total Project Costs | H32: =BCACalculations!C120/$F$4 -> 22.13397093 | I32: =BCACalculations!C114/$F$4 -> 30.9893351
G33: Total Benefits less Total Costs (NPV) | H33: =BCACalculations!C144/BCAResults!F4 -> 5.822793221 | I33: =BCACalculations!C143/BCAResults!F4 -> 54.0428282
G34: Benefit-Cost Ratio** | H34: =BCACalculations!C142 -> 1.253856546
G35: Internal Rate of Return | H35: =BCACalculations!C147 -> 0.09603342287
G36: Breakeven Year | H36: =BCACalculations!C146 -> 2043
G37: * Unless specified otherwise. **Note that the Benefit-Cost Ratio was calculated as: (Benefits – O&M Costs) / Capital Costs, in compliance with the latest Benefit-Cost Guidance for Discretionary Grant Programs. *** CO2 emissions are discounted at the annual rate of 3%.
N39: Annual Projections of Total Project Benefits and Costs (millions of 2020$) | U39: Annual Projections of Total Project Monetized Benefits (millions of 2020$)
N41: Calendar Year | O41: Project Year | P41: Total Benefits | Q41: Total Costs | R41: Net Benefits Before Discounting | S41: Net Benefits Discounted at 7% | U41: Calendar Year | V41: Project Year | W41: State of Good Repair | X41: Economic Impacts, Freight Movement, and Job Creation | Y41: Climate Change, Resiliency, and the Environment | Z41: Safety | AA41: Total Monetized Benefits
N42: 2022 | O42: 1 | P42: =TRANSPOSE(BCACalculations!D129:AE129)/BCAResults!$F$4 -> 0 | Q42: =TRANSPOSE(BCACalculations!D114:AE114)/BCAResults!$F$4 -> 0.1680175043 | R42: =P42-Q42 -> -0.1680175043 | S42: =TRANSPOSE(BCACalculations!D144:AE144)/BCAResults!$F$4 -> -0.1680175043 | U42: 2022 | V42: 1 | W42: =TRANSPOSE(BCACalculations!D128:AE128)/BCAResults!$F$4 -> 0 | X42: =TRANSPOSE(BCACalculations!D123:AE123+BCACalculations!D124:AE124)/BCAResults!$F$4 -> 0 | Y42: =TRANSPOSE(BCACalculations!D125:AE125+BCACalculations!D126:AE126)/BCAResults!$F$4 -> 0 | Z42: =TRANSPOSE(BCACalculations!D127:AE127)/BCAResults!$F$4 -> 0 | AA42: =SUM(W42:Z42) -> 0
N43: 2023 | O43: 2 | P43: 0 | Q43: 0.2880300073 | R43: =P43-Q43 -> -0.2880300073 | S43: -0.2691869228 | U43: 2023 | V43: 2 | W43: 0 | X43: 0 | Y43: 0 | Z43: 0 | AA43: =SUM(W43:Z43) -> 0
N44: 2024 | O44: 3 | P44: 0 | Q44: 0.279512991 | R44: =P44-Q44 -> -0.279512991 | S44: -0.2441374714 | U44: 2024 | V44: 3 | W44: 0 | X44: 0 | Y44: 0 | Z44: 0 | AA44: =SUM(W44:Z44) -> 0
N45: 2025 | O45: 4 | P45: 0 | Q45: 0.2787387168 | R45: -0.2787387168 | S45: -0.2275338227 | U45: 2025 | V45: 4 | W45: 0 | X45: 0 | Y45: 0 | Z45: 0 | AA45: =SUM(W45:Z45) -> 0
N46: 2026 | O46: 5 | P46: 0 | Q46: 1.85777287 | R46: -1.85777287 | S46: -1.417286027 | U46: 2026 | V46: 5 | W46: 0 | X46: 0 | Y46: 0 | Z46: 0 | AA46: =SUM(W46:Z46) -> 0
N47: 2027 | O47: 6 | P47: 0 | Q47: 12.79211557 | R47: =P47-Q47 -> -12.79211557 | S47: -9.120601608 | U47: 2027 | V47: 6 | W47: 0 | X47: 0 | Y47: 0 | Z47: 0 | AA47: 0
N48: 2028 | O48: 7 | P48: 0 | Q48: 10.36780632 | R48: =P48-Q48 -> -10.36780632 | S48: -6.908507122 | U48: 2028 | V48: 7 | W48: 0 | X48: 0 | Y48: 0 | Z48: 0 | AA48: 0
N49: 2029 | O49: 8 | P49: 1.339978012 | Q49: 7.318446284 | R49: -5.978468271 | S49: -3.722977733 | U49: 2029 | V49: 8 | W49: 0 | X49: 0.02855497295 | Y49: 0.0009292661389 | Z49: 1.310493773 | AA49: 1.339978012
N50: 2030 | O50: 9 | P50: 4.022203313 | Q50: -0.1180552585 | R50: 4.140258572 | S50: 2.410041864 | U50: 2030 | V50: 9 | W50: 0 | X50: 0.08804300031 | Y50: 0.00267899299 | Z50: 3.93148132 | AA50: 4.022203313
N51: 2031 | O51: 10 | P51: 4.024724367 | Q51: -0.1180552585 | R51: 4.142779626 | S51: 2.253815455 | U51: 2031 | V51: 10 | W51: 0 | X51: 0.09046658854 | Y51: 0.002776458617 | Z51: 3.93148132 | AA51: 4.024724367
N52: 2032 | O52: 11 | P52: 4.027293872 | Q52: -0.1180552585 | R52: 4.14534913 | S52: 2.107746436 | U52: 2032 | V52: 11 | W52: 0 | X52: 0.09293694336 | Y52: 0.002875608136 | Z52: 3.93148132 | AA52: 4.027293872
N53: 2033 | O53: 12 | P53: 4.029913151 | Q53: -0.1180552585 | R53: 4.14796841 | S53: 1.97117347 | U53: 2033 | V53: 12 | W53: 0 | X53: 0.09545535335 | Y53: 0.002976477726 | Z53: 3.93148132 | AA53: =SUM(W53:Z53) -> 4.029913151
N54: 2034 | O54: 13 | P54: 4.032583562 | Q54: -0.1180552585 | R54: 4.15063882 | S54: 1.843478314 | U54: 2034 | V54: 13 | W54: 0 | X54: 0.09802313642 | Y54: 0.003079105099 | Z54: 3.93148132 | AA54: 4.032583562
N55: 2035 | O55: 14 | P55: 4.03530649 | Q55: -0.1180552585 | R55: 4.153361749 | S55: 1.724083003 | U55: 2035 | V55: 14 | W55: 0 | X55: 0.1006416405 | Y55: 0.003183529537 | Z55: 3.93148132 | AA55: 4.03530649
N56: 2036 | O56: 15 | P56: 4.038116988 | Q56: -0.1180552585 | R56: 4.156172246 | S56: 1.612469468 | U56: 2036 | V56: 15 | W56: 0 | X56: 0.1033122444 | Y56: 0.003323423419 | Z56: 3.93148132 | AA56: 4.038116988
N57: 2037 | O57: 16 | P57: 4.040950025 | Q57: -0.1180552585 | R57: 4.159005284 | S57: 1.508087989 | U57: 2037 | V57: 16 | W57: 0 | X57: 0.1060363581 | Y57: 0.003432347348 | Z57: 3.93148132 | AA57: 4.040950025
N58: 2038 | O58: 17 | P58: 4.043839946 | Q58: -0.1180552585 | R58: 4.161895205 | S58: 1.410488748 | U58: 2038 | V58: 17 | W58: 0 | X58: 0.1088154242 | Y58: 0.003543202286 | Z58: 3.93148132 | AA58: 4.043839946
N59: 2039 | O59: 18 | P59: 4.046788272 | Q59: -0.1180552585 | R59: 4.164843531 | S59: 1.319230314 | U59: 2039 | V59: 18 | W59: 0 | X59: 0.1116509179 | Y59: 0.003656034519 | Z59: 3.93148132 | AA59: 4.046788272
N60: 2040 | O60: 19 | P60: 4.04979656 | Q60: -0.1180552585 | R60: 4.167851819 | S60: 1.233900014 | U60: 2040 | V60: 19 | W60: 0 | X60: 0.1145443481 | Y60: 0.003770892116 | Z60: 3.93148132 | AA60: 4.04979656
N61: 2041 | O61: 20 | P61: 4.052866403 | Q61: -0.1180552585 | R61: 4.170921662 | S61: 1.15411206 | U61: 2041 | V61: 20 | W61: 0 | X61: 0.1174972584 | Y61: 0.00388782498 | Z61: 3.93148132 | AA61: 4.052866403
N62: 2042 | O62: 21 | P62: 4.055999433 | Q62: -0.1180552585 | R62: 4.174054691 | S62: 1.079505795 | U62: 2042 | V62: 21 | W62: 0 | X62: 0.1205112276 | Y62: 0.004006884893 | Z62: 3.93148132 | AA62: 4.055999433
N63: 2043 | O63: 22 | P63: 4.059236558 | Q63: -0.1180552585 | R63: 4.177291816 | S63: 1.00976515 | U63: 2043 | V63: 22 | W63: 0 | X63: 0.1235878705 | Y63: 0.004167367399 | Z63: 3.93148132 | AA63: 4.059236558
N64: 2044 | O64: 23 | P64: 4.062501835 | Q64: -0.1180552585 | R64: 4.180557094 | S64: 0.9445325551 | U64: 2044 | V64: 23 | W64: 0 | X64: 0.126728839 | Y64: 0.004291676336 | Z64: 3.93148132 | AA64: 4.062501835
N65: 2045 | O65: 24 | P65: 4.065835431 | Q65: -0.1180552585 | R65: 4.183890689 | S65: 0.8835346119 | U65: 2045 | V65: 24 | W65: 0 | X65: 0.1299358225 | Y65: 0.004418288053 | Z65: 3.93148132 | AA65: 4.065835431
N66: 2046 | O66: 25 | P66: 4.069239132 | Q66: -0.1180552585 | R66: 4.187294391 | S66: 0.826495844 | U66: 2046 | V66: 25 | W66: 0 | X66: 0.1332105495 | Y66: 0.004547262708 | Z66: 3.93148132 | AA66: 4.069239132
N67: 2047 | O67: 26 | P67: 4.07271477 | Q67: -0.1180552585 | R67: 4.190770029 | S67: 0.7731587169 | U67: 2047 | V67: 26 | W67: 0 | X67: 0.1365547876 | Y67: 0.004678662602 | Z67: 3.93148132 | AA67: 4.07271477
N68: 2048 | O68: 27 | P68: 4.076264217 | Q68: -0.1180552585 | R68: 4.194319476 | S68: 0.7232824687 | U68: 2048 | V68: 27 | W68: 0 | X68: 0.1399703451 | Y68: 0.004812552233 | Z68: 3.93148132 | AA68: 4.076264217
N69: 2049 | O69: 28 | P69: 6.78601096 | Q69: -0.1180552585 | R69: 6.904066219 | S69: 1.112139156 | U69: 2049 | V69: 28 | W69: 2.70612157 | X69: 0.1434590718 | Y69: 0.004948998356 | Z69: 3.93148132 | AA69: 6.78601096
N70: Totals (2022-2049) | P70: =SUM(P42:P69) -> 85.0321633 | Q70: =SUM(Q42:Q69) -> 30.9893351 | R70: =SUM(R42:R69) -> 54.0428282 | S70: =SUM(S42:S69) -> 5.822793221 | U70: Totals (2022-2049) | W70: =SUM(W42:W69) -> 2.70612157 | X70: =SUM(X42:X69) -> 2.3099367 | Y70: 0.07598485549 | Z70: 79.94012017 | AA70: =SUM(AA42:AA69) -> 85.0321633

Sheet BCAResultsAdd
A1: Benefit-Cost Analysis Results
A2: Additional Tables for Report
H3: Year 1 | I3: 2030 | J3: =10^6 -> 1000000
B4: Travel Time Savings in Millions of Constant Dollars of 2020 | H4: Year 2 | I4: 2049
C5: 2030 | D5: 2049 | E5: 20-year Total Before Discounting | F5: 20-year Total Discounted at 7%
B6: Automobiles | C6: =BCACalculations!L48/$J$3 -> 0.04284853899 | D6: =BCACalculations!AE48/$J$3 -> 0.07175609974 | E6: =BCACalculations!C48/$J$3 -> 1.138573019 | F6: =BCACalculations!C52/BCAResultsAdd!$J$3 -> 0.3580325774 | G6: =F6/F8 -> 0.840267059
B7: Trucks | C7: =BCACalculations!L50/$J$3 -> 0.008628086612 | D7: =BCACalculations!AE50/$J$3 -> 0.01222281479 | E7: =BCACalculations!C50/BCAResultsAdd!$J$3 -> 0.2121218464 | F7: =(BCACalculations!C133-BCACalculations!C52)/BCAResultsAdd!$J$3 -> 0.06806121455 | G7: =F7/F8 -> 0.159732941
B8: Total | C8: =SUM(C6:C7) -> 0.0514766256 | D8: =SUM(D6:D7) -> 0.08397891452 | E8: =SUM(E6:E7) -> 1.350694866 | F8: =BCACalculations!C133/BCAResultsAdd!$J$3 -> 0.4260937919 | G8: =F8/F8 -> 1 | H8: =F8=BCAResults!E9 -> TRUE
B11: Vehicle Operating Cost (dis)Savings in Millions of Constant Dollars of 2020
C12: 2030 | D12: 2049 | E12: 20-year Total Before Discounting | F12: 20-year Total Discounted at 7%
B13: Automobiles | C13: =BCACalculations!L63/$J$3 -> 0.02593402289 | D13: =BCACalculations!AE63/$J$3 -> 0.04465066151 | E13: =BCACalculations!C63/BCAResultsAdd!$J$3 -> 0.699588429 | F13: =BCACalculations!C66/BCAResultsAdd!J3 -> 0.2192499953 | G13: =F13/F15 -> 0.7242726004
B14: Trucks | C14: =BCACalculations!L64/$J$3 -> 0.01063235182 | D14: =BCACalculations!AE64/$J$3 -> 0.01482949578 | E14: =BCACalculations!C64/BCAResultsAdd!$J$3 -> 0.2596534055 | F14: =(BCACalculations!C134-BCACalculations!C66)/BCAResultsAdd!J3 -> 0.08346751074 | G14: =F14/F15 -> 0.2757273996
B15: Total | C15: =SUM(C13:C14) -> 0.03656637471 | D15: =SUM(D13:D14) -> 0.0594801573 | E15: =SUM(E13:E14) -> 0.9592418344 | F15: 0.302717506 | G15: =F15/F15 -> 1 | H15: =F15=BCAResults!E10 -> TRUE
B18: Emission Cost (dis)Savings in Millions of Constant Dollars of 2020
B19: Pollutant | C19: 2030 | D19: 2049 | E19: 20-year Total Before Discounting | F19: 20-year Total Discounted at 7%*
B20: NOX | C20: =BCACalculations!L81/$J$3 -> 0.0003270618791 | D20: =BCACalculations!AE81/BCAResultsAdd!$J$3 -> 0.0004651575965 | E20: =BCACalculations!C81/BCAResultsAdd!$J$3 -> 0.008074856014 | F20: =BCACalculations!B81/BCAResultsAdd!$J$3 -> 0.002594998717 | G20: =F20/$F$24 -> 0.06702998993
B21: CO2 | C21: =BCACalculations!L82/$J$3 -> 0.001801735383 | D21: =BCACalculations!AE82/BCAResultsAdd!$J$3 -> 0.003682666291 | E21: =BCACalculations!C82/BCAResultsAdd!$J$3 -> 0.05417069047 | F21: =BCACalculations!B82/BCAResultsAdd!$J$3 -> 0.03171312784 | G21: =F21/$F$24 -> 0.8191644278
B22: PM | C22: =BCACalculations!L83/BCAResultsAdd!$J$3 -> 0.0005390159968 | D22: =BCACalculations!AE83/BCAResultsAdd!$J$3 -> 0.0007843251574 | E22: =BCACalculations!C83/BCAResultsAdd!$J$3 -> 0.01345646852 | F22: =BCACalculations!B83/BCAResultsAdd!$J$3 -> 0.004315782091 | G22: =F22/$F$24 -> 0.1114786024
B23: SO2 | C23: =BCACalculations!L84/BCAResultsAdd!$J$3 -> 1.117973086e-05 | D23: =BCACalculations!AE84/BCAResultsAdd!$J$3 -> 1.68493105e-05 | E23: =BCACalculations!C84/BCAResultsAdd!$J$3 -> 0.0002828404946 | F23: =BCACalculations!B84/BCAResultsAdd!$J$3 -> 9.008668844e-05 | G23: =F23/$F$24 -> 0.002326979886
B24: Total | C24: =SUM(C20:C23) -> 0.00267899299 | D24: =SUM(D20:D23) -> 0.004948998356 | E24: =SUM(E20:E23) -> 0.07598485549 | F24: =SUM(F20:F23) -> 0.03871399533 | G24: =F24/$F$24 -> 1 | H24: =F24=BCAResults!E12 -> TRUE
B25: * CO2 is discounted at the annual rate of 3%.
B27: Savings of Fatality, Injury, and Damaged Vehicle Costs, in Millions of Constant Dollars of 2020
B28: Type | C28: 2030 | D28: 2049 | E28: 20-year Total Before Discounting | F28: 20-year Total Discounted at 7%
B29: Fatalities | C29: =BCACalculations!L97/$J$3 -> 3.75832 | D29: =BCACalculations!AE97/$J$3 -> 3.75832 | E29: =BCACalculations!C97/BCAResultsAdd!$J$3 -> 76.41917333 | F29: =BCACalculations!AN97/BCAResultsAdd!$J$3 -> 25.57537844 | G29: =F29/$F$32 -> 0.9559551971
B30: Injuries | C30: =BCACalculations!L98/$J$3 -> 0.16596876 | D30: =BCACalculations!AE98/$J$3 -> 0.16596876 | E30: =BCACalculations!C98/BCAResultsAdd!J3 -> 3.37469812 | F30: =BCACalculations!AN98/BCAResultsAdd!$J$3 -> 1.12941789
B31: PDO | C31: =BCACalculations!L99/$J$3 -> 0.00719256 | D31: =BCACalculations!AE99/$J$3 -> 0.00719256 | E31: =BCACalculations!C99/BCAResultsAdd!J3 -> 0.14624872 | F31: =BCACalculations!AN99/BCAResultsAdd!$J$3 -> 0.04894539154
B32: Total | C32: =SUM(C29:C31) -> 3.93148132 | D32: =SUM(D29:D31) -> 3.93148132 | E32: =SUM(E29:E31) -> 79.94012017 | F32: =SUM(F29:F31) -> 26.75374172 | G32: =F32/$F$32 -> 1 | H32: =F32=BCAResults!C137 -> FALSE

Sheet Parameters
A1: Model Parameter Values Used in Analyses
A2: ="All Monetized Estimates are in Constant Dollars of "&B6 -> All Monetized Estimates are in Constant Dollars of 2020
A3: PARAMETER NAME | B3: VALUE USED IN CALCULATIONS | C3: RECOMMENDED VALUE | D3: UNIT OF MEASUREMENT | E3: REFERENCES & COMMENTS
A4: OPTIONS FOR ANALYSIS
A5: First Year of Analysis | B5: =C5 -> 2022 | C5: 2022 | D5: year | E5: Present year (Discounting base)
A6: Base Year for all Monetization Assumptions | B6: =C6 -> 2020 | C6: 2020 | D6: year | E6: US DOT Benefit-Cost Analysis Guidance for Discretionary Grant Programs, March 2022
A7: Real Discount Rate | B7: =C7 -> 0.07 | C7: 0.07 | D7: % per year | E7: US DOT Benefit-Cost Analysis Guidance for Discretionary Grant Programs, March 2022
A8: Real Discount Rate Implicit in Social Cost of Carbon | B8: 0.03 | C8: 0.03 | D8: % per year | E8: ibid
A9: Annualization Factor | B9: 1.1 | C9: =FloodingEvents!C14 -> 1.1 | D9: days | E9: Tied to the hisory of flooding events causing roadway closures
A11: UNIT CONVERSIONS
A12: Kilograms per Short U.S. Ton | B12: =C12 -> 907.185 | C12: 907.185 | D12: kg | E12: n/a
A13: Kilograms per Metric Ton | B13: =C13 -> 1000 | C13: 1000 | D13: kg | E13: n/a
A15: VALUATION OF TRAVEL TIME SAVING
A16: Value of Time Estimates
A17: Personal Travel, all modes except Bike/Ped | B17: =C17 -> 16.2 | C17: 16.2 | D17: $ per person-hour | E17: US DOT Benefit-Cost Analysis Guidance for Discretionary Grant Programs, March 2022
A18: Business Travel, all modes except Bike/Ped | B18: =C18 -> 29.4 | C18: 29.4 | D18: $ per person-hour | E18: ibid
A19: All Purposes | B19: =C19 -> 17.8 | C19: 17.8 | D19: $ per person-hour | E19: ibid
C20: =SUMPRODUCT(C22:C23,C17:C18) -> 17.7576
A21: Personal vs. Business Travel
A22: Share of Personal Travel in Total Travel | B22: =C22 -> 0.882 | C22: 0.882 | D22: percent of total | E22: US DOT Benefit-Cost Analysis Guidance for Discretionary Grant Programs, March 2022
A23: Share of Business Travel in Total Travel | B23: =C23 -> 0.118 | C23: =1-C22 -> 0.118 | D23: percent of total | E23: ibid
A25: Hourly Earnings of Vehicle Operators
A26: Truck Drivers | B26: =C26 -> 32 | C26: 32 | D26: $ per person-hour | E26: US DOT Benefit-Cost Analysis Guidance for Discretionary Grant Programs, March 2022
A28: Year of Value of Time Estimates | B28: =C28 -> 2020 | C28: =$C$6 -> 2020 | D28: year | E28: n/a
A29: Annual Growth in Real Value of Time | B29: =C29 -> 0 | C29: 0 | D29: % per year | E29: US DOT Guidance, March 2022
A31: Average Daily Vehicle Occupancy
A32: Auto | B32: =C32 -> 1.67 | C32: 1.67 | D32: persons per vehicle | E32: US DOT Benefit-Cost Analysis Guidance for Discretionary Grant Programs, March 2022
A33: Trucks | B33: =C33 -> 1 | C33: 1 | D33: persons per vehicle | E33: ibid
A35: VEHICLE OPERATING COSTS
A36: Automobiles | B36: =C36 -> 0.45 | C36: 0.45 | D36: $ per mile | E36: US DOT Benefit-Cost Analysis Guidance for Discretionary Grant Programs, March 2022
A37: Trucks | B37: =C37 -> 0.94 | C37: 0.94 | D37: $ per mile | E37: ibid
A39: ACCIDENT COSTS
A40: Average Injury Cost by Severity Level
A41: MAIS 1 - Minor injury | B41: =C41 -> 32700 | C41: 32700 | D41: $ per injury | E41: US DOT, Guidance on Treatment of the Economic Value of a Statistical Life in U.S. Department of Transportation Analyses (2016); as in the US DOT Benefit-Cost Analysis Guidance for Discretionary Grant Programs, February 2021; MAIS = Maximum Abbreviated Injury Scale
A42: MAIS 2 - Moderate injury | B42: 512300 | C42: 512300 | D42: $ per injury
A43: MAIS 3 - Serious injury | B43: 1144500 | C43: 1144500 | D43: $ per injury
A44: MAIS 4 - Severe injury | B44: 2899400 | C44: 2899400 | D44: $ per injury
A45: MAIS 5 - Critical injury | B45: 6463700 | C45: 6463700 | D45: $ per injury
A46: MAIS 6 - Fatality | B46: 10900000 | C46: 10900000 | D46: $ per fatality
A48: O - No Injury | B48: =C48 -> 3900 | C48: 3900 | D48: $ per injury | E48: US DOT Benefit-Cost Analysis Guidance for Discretionary Grant Programs, March 2022; KABCO Scale
A49: C - Possible Injury | B49: =C49 -> 77200 | C49: 77200 | D49: $ per injury
A50: B - Non-incapacitating | B50: 151100 | C50: 151100 | D50: $ per injury
A51: A - Incapacitating | B51: 554800 | C51: 554800 | D51: $ per injury
A52: K - Killed | B52: 11600000 | C52: 11600000 | D52: $ per fatality
A53: U - Injured (Severity Unknown) | B53: 210300 | C53: 210300 | D53: $ per injury
A55: Average Cost of a Property Damage Only (PDO) Accident | B55: =C55 -> 4600 | C55: 4600 | D55: $ per damaged vehicle | E55: US DOT Benefit-Cost Analysis Guidance for Discretionary Grant Programs, March 2022
A57: Year of Accident Cost Estimates | B57: =C57 -> 2021 | C57: 2021 | D57: year | E57: n/a
A58: Annual Growth in Real Injury Costs | B58: =C58 -> 0 | C58: 0 | D58: % per year | E58: US DOT Guidance, September 2017
A60: EMISSION COSTS
A61: Nitrogen Oxides (NOx) | B61: =C61 -> Time-dependent | C61: Time-dependent | D61: $ per metric ton | E61: US DOT Benefit-Cost Analysis Guidance for Discretionary Grant Programs, March 2022
A62: Particulate Matter (PM) | B62: =C62 -> Time-dependent | C62: Time-dependent | D62: $ per metric ton | E62: ibid
A63: Sulfur Dioxide (SO2) | B63: =C63 -> Time-dependent | C63: Time-dependent | D63: $ per metric ton | E63: ibid
A64: Carbon Dioxide (CO2) | B64: =C64 -> Time-dependent | C64: Time-dependent | D64: $ per metric ton | E64: ibid

Sheet BCAInputs
A1: Transportation Inputs for BCA
A5: A - PROJECT INFORMATION
A6: Project / alternative name | B6: FDOT D1 - Rural - SR 29 Improvements
A7: Initial Investment start year | B7: 2022
A8: Construction end year | B8: 2029
A9: Analysis period (benefits and operations) | B9: 20
A10: Capital useful life | B10: 75 | C10: For bridges, while 20 years for roadway components
A11: Base model year | B11: 2015
A12: Forecast model year | B12: 2045
A13: Project opening year | B13: 2030 | C13: Partial opening in 2029 (Sept. 2029, 4/12 months in 2029); first full year in 2030
A14: Scenario # | B14: 1
A15: Select county or district | B15: District 1
A16: Select area type | B16: Rural | BV16: Rural | BW16: Urban
A17: Select roadway access type | B17: Unrestricted | BV17: Restricted | BW17: Unrestricted
A18: Project type | B18: Roadway | I18: To be Opened from September 2029 onwards (4/12 months - part of the year in 2029) | J18: First Full Year of Operations/Benefits (2030) | BV18: Roadway
I19: =4/12 -> 0.3333333333
A20: B - COST INFORMATION, FILL-IN COST ESTIMATES FOR ALL YEARS | B20: 1 | C20: 2 | D20: 3 | E20: 4 | F20: 5 | G20: 6 | H20: 7 | I20: 8 | J20: 9 | K20: 10 | L20: 11 | M20: 12 | N20: 13 | O20: 14 | P20: 15 | Q20: 16 | R20: 17 | S20: 18 | T20: 19 | U20: 20 | V20: 21 | W20: 22 | X20: 23 | Y20: 24 | Z20: 25 | AA20: 26 | AB20: 27 | AC20: 28 | AD20: 29 | AE20: 30 | AF20: 31 | AG20: 32 | AH20: 33 | AI20: 34 | AJ20: 35 | AK20: 36 | AL20: 37 | AM20: 38 | AN20: 39 | AO20: 40 | AP20: 41 | AQ20: 42 | AR20: 43 | AS20: 44 | AT20: 45 | AU20: 46 | AV20: 47 | AW20: 48 | AX20: 49 | AY20: 50 | AZ20: 51 | BA20: 52 | BB20: 53 | BC20: 54 | BD20: 55 | BE20: 56 | BF20: 57 | BG20: 58 | BH20: 59 | BI20: 60 | BJ20: 61 | BK20: 62 | BL20: 63 | BM20: 64 | BN20: 65 | BO20: 66 | BP20: 67 | BQ20: 68 | BR20: 69 | BS20: 70
B21: =Parameters!B5 -> 2022 | C21: =IF(B21="","",IF(B21+1>$B$13+$B$9-1,"",B21+1)) -> 2023 | D21: =IF(C21="","",IF(C21+1>$B$13+$B$9-1,"",C21+1)) -> 2024 | E21: =IF(D21="","",IF(D21+1>$B$13+$B$9-1,"",D21+1)) -> 2025 | F21: 2026 | G21: 2027 | H21: 2028 | I21: 2029 | J21: 2030 | K21: 2031 | L21: 2032 | M21: 2033 | N21: 2034 | O21: 2035 | P21: 2036 | Q21: 2037 | R21: 2038 | S21: 2039 | T21: 2040 | U21: 2041 | V21: 2042 | W21: 2043 | X21: 2044 | Y21: 2045 | Z21: 2046 | AA21: 2047 | AB21: =IF(AA21="","",IF(AA21+1>$B$13+$B$9-1,"",AA21+1)) -> 2048 | AC21: 2049 | BP21: =IF(BO21="","",IF(BO21+1>$B$13+$B$9-1,"",BO21+1)) -> 
A22: Capital costs | B22: =CapExResidualValue!B4 -> 168017.5043 | C22: =CapExResidualValue!B5 -> 288030.0073 | D22: =CapExResidualValue!B6 -> 279512.991 | E22: =CapExResidualValue!B7 -> 278738.7168 | F22: =CapExResidualValue!B8 -> 1857772.87 | G22: =CapExResidualValue!B9 -> 12792115.57 | H22: =CapExResidualValue!B10 -> 10367806.32 | I22: =CapExResidualValue!B11 -> 7357798.036
A23: Incremental Operating & Maintenance costs | I23: =OMCosts!$B$7*I19 -> -39351.75284 | J23: =OMCosts!$B$7 -> -118055.2585 | K23: =OMCosts!$B$7 -> -118055.2585 | L23: =OMCosts!$B$7 -> -118055.2585 | M23: =OMCosts!$B$7 -> -118055.2585 | N23: =OMCosts!$B$7 -> -118055.2585 | O23: =OMCosts!$B$7 -> -118055.2585 | P23: =OMCosts!$B$7 -> -118055.2585 | Q23: =OMCosts!$B$7 -> -118055.2585 | R23: =OMCosts!$B$7 -> -118055.2585 | S23: =OMCosts!$B$7 -> -118055.2585 | T23: =OMCosts!$B$7 -> -118055.2585 | U23: =OMCosts!$B$7 -> -118055.2585 | V23: =OMCosts!$B$7 -> -118055.2585 | W23: =OMCosts!$B$7 -> -118055.2585 | X23: =OMCosts!$B$7 -> -118055.2585 | Y23: =OMCosts!$B$7 -> -118055.2585 | Z23: =OMCosts!$B$7 -> -118055.2585 | AA23: =OMCosts!$B$7 -> -118055.2585 | AB23: =OMCosts!$B$7 -> -118055.2585 | AC23: =OMCosts!$B$7 -> -118055.2585
A24: Total capital costs, $ | B24: =SUM(B22:BS22) -> 33389792.02
A25: Total incremental O&M costs, $ | B25: =SUM(B23:BS23) -> -2400456.923
A27: C1 - ROADWAY TRANSPORTATION DATA | B27: No-Build | C27: Build | D27: No-Build | E27: Build | BW27: AVERAGE VEHICLE SPEED, MILES PER HOUR | CA27: AVERAGE ANNUAL GROWTH, PERCENT
B28: WITHOUT PROJECT Base Year | C28: WITH PROJECT Base Year | D28: WITHOUT PROJECT Forecast Year | E28: WITH PROJECT Forecast Year | BW28: =B28 -> WITHOUT PROJECT Base Year | BX28: =D28 -> WITHOUT PROJECT Forecast Year | BY28: =E28 -> WITH PROJECT Forecast Year | CA28: =D28 -> WITHOUT PROJECT Forecast Year | CB28: =E28 -> WITH PROJECT Forecast Year
B29: =$B$11 -> 2015 | C29: 2015 | D29: =$B$12 -> 2045 | E29: =$B$12 -> 2045
A30: Automobiles
A31: Daily Vehicle Miles Traveled | B31: =TDMData!B4 -> 602790.97 | C31: =TDMData!C4 -> 569350.26 | D31: =TDMData!D4 -> 1119754.75 | E31: =TDMData!E4 -> 1039141.68 | F31: =E31-D31 -> -80613.07 | BW31: =IF(B32=0,"n/a",B31/B32) -> 40.75905547 | BX31: =IF(D32=0,"n/a",D31/D32) -> 42.35136144 | BY31: =IF(E32=0,"n/a",E31/E32) -> 42.47903441 | CA31: =(D31/$B31)^(1/(D$29-$B$29))-1 -> 0.0208576929 | CB31: =(E31/$B31)^(1/(E$29-$B$29))-1 -> 0.01831842295
A32: Daily Vehicle Hours Traveled | B32: =TDMData!B8 -> 14789.13 | C32: =TDMData!C8 -> 13931.4 | D32: =TDMData!D8 -> 26439.64 | E32: =TDMData!E8 -> 24462.46 | F32: =E32-D32 -> -1977.18 | CA32: =(D32/$B32)^(1/(D$29-$B$29))-1 -> 0.01955446371 | CB32: =(E32/$B32)^(1/(E$29-$B$29))-1 -> 0.01691639702
A33: Trucks
A34: Daily Vehicle Miles Traveled | B34: =TDMData!B5 -> 98266.54 | C34: =TDMData!C5 -> 91920.5 | D34: =TDMData!D5 -> 87729.46 | E34: =TDMData!E5 -> 74163.31 | BW34: =IF(B35=0,"n/a",B34/B35) -> 47.58163295 | BX34: =IF(D35=0,"n/a",D34/D35) -> 44.74303579 | BY34: =IF(E35=0,"n/a",E34/E35) -> 45.39286086 | CA34: =(D34/$B34)^(1/(D$29-$B$29))-1 -> -0.003773722271 | CB34: =(E34/$B34)^(1/(E$29-$B$29))-1 -> -0.009336608299
A35: Daily Vehicle Hours Traveled | B35: =TDMData!B9 -> 2065.22 | C35: =TDMData!C9 -> 1911.45 | D35: =TDMData!D9 -> 1960.74 | E35: =TDMData!E9 -> 1633.81 | F35: =BW34 -> 47.58163295 | CA35: =(D35/$B35)^(1/(D$29-$B$29))-1 -> -0.001728997068 | CB35: =(E35/$B35)^(1/(E$29-$B$29))-1 -> -0.007780310396
A36: Additional Roadway Parameters
A37: Roadway type | B37: Arterial | BW37: Freeway | BX37: Arterial
A38: Free-flow speed, mph | B38: 60
A39: Do O&M costs (Row 23) include pavement maintenance costs? | B39: Yes | BW39: Yes | BX39: No
A41: C2 - BICYCLE & PEDESTRIAN TRANSPORTATION DATA
A42: PROJECT INFORMATION
A43: Bike/Ped project component opening year
A44: Are bike/ped-induced changes in auto VMT reflected in roadway data? | B44: No | BV44: Yes | BW44: No | BX44: =IF(B44=BV44,1,0) -> 0
A46: BICYCLE TRIPS | B46: WITHOUT PROJECT | C46: WITH PROJECT
A47: Daily Usage in Project Opening Year
A48: Number of bicycle trips, # per day
A49: Number of NEW trips (calculated), # per day | C49: =C48-B48 -> 0 | BV49: New Trips | BW49: =C49 -> 0
A50: Percent of two-way trips in total trips, % | BV50: Two-way trips | BW50: =BW49*C50 -> 0
A51: Number of NEW users (calculated), # | C51: =IFERROR(C49/2*C50+C49*(1-C50),"n/a") -> 0 | BV51: One-way trips | BW51: =BW49-BW50 -> 0
A52: Percent of NEW Trips for Recreation Purpose, %
A53: Annual Growth in Number of Trips, % per year | BV53: Two-way users | BW53: =BW50/2 -> 0
A54: Average Trip Length, miles | BV54: One-way users | BW54: =BW51 -> 0
A55: Portion of Trip Length on Improved Facility, %
A56: Sources of New Trips (non-recreation trips only) | BV56: % two-way users | BW56: =IFERROR(BW53/SUM(BW$53:BW$54),0) -> 0
A57: Percent of trips diverted from auto, % | BV57: % one-way users | BW57: =IFERROR(BW54/SUM(BW$53:BW$54),0) -> 0
A58: Percent of trips diverted from other modes, %
A59: Time Saving to Existing Users, minutes per trip
A60: Trip Quality - Change in Facility Type | B60: Select one facility type in each case
A61: No bicycle facility | B61: Yes | C61: No | BV61: Yes | BW61: No | BX61: Without | BY61: =IFERROR(MATCH("Yes",B61:B67,0),1) -> 1 | BZ61: =OFFSET($A$60,BY61,0) -> No bicycle facility
A62: Off-road segregated bicycle track | B62: No | C62: No | BV62: Yes | BW62: No | BX62: With | BY62: =IFERROR(MATCH("Yes",C61:C67,0),1) -> 1 | BZ62: =OFFSET($A$60,BY62,0) -> No bicycle facility
A63: On-road segregated bicycle lane | B63: No | C63: No | BV63: Yes | BW63: No
A64: On-road non-segregated bicycle lane | B64: No | C64: No | BV64: Yes | BW64: No
A65: Wider lane | B65: No | C65: No | BV65: Yes | BW65: No
A66: Shared bus lane | B66: No | C66: No | BV66: Yes | BW66: No
A67: Other | B67: No | C67: No | BV67: Yes | BW67: No
A69: PEDESTRIAN TRIPS | B69: WITHOUT PROJECT | C69: WITH PROJECT
A70: Daily Usage in Project Opening Year
A71: Number of pedestrian trips, # per day
A72: Number of NEW trips (calculated), # per day | C72: =C71-B71 -> 0 | BV72: New Trips | BW72: =C72 -> 0
A73: Percent of two-way trips in total trips, % | BV73: Two-way trips | BW73: =BW72*C73 -> 0
A74: Number of NEW users (calculated), # | C74: =IFERROR(C72/2*C73+C72*(1-C73),"n/a") -> 0 | BV74: One-way trips | BW74: =BW72-BW73 -> 0
A75: Percent of NEW Trips for Recreation Purpose, %
A76: Annual Growth in Number of Trips, % per year | BV76: Two-way users | BW76: =BW73/2 -> 0
A77: Average Trip Length, miles | BV77: One-way users | BW77: =BW74 -> 0
A78: Portion of Trip Length on Improved Facility, %
A79: Sources of New Trips (non-recreation trips only) | BV79: % two-way users | BW79: =IFERROR(BW76/SUM(BW$76:BW$77),0) -> 0
A80: Percent of trips diverted from auto, % | BV80: % one-way users | BW80: =IFERROR(BW77/SUM(BW$76:BW$77),0) -> 0
A81: Percent of trips diverted from other modes, %
A82: Time Saving to Existing Users, minutes per trip
A83: Trip Quality - Pedestrian Amenities ADDED by Project | C83: Select all that apply
A84: Street Lighting | C84: No | BV84: Yes | BW84: No | BX84: =IF(C84=$BV84,1,0) -> 0
A85: Curb Level | C85: No | BV85: Yes | BW85: No | BX85: 0
A86: Information Panel | C86: No | BV86: Yes | BW86: No | BX86: 0
A87: Pavement Evenness | C87: No | BV87: Yes | BW87: No | BX87: 0
A88: Directional Signage | C88: No | BV88: Yes | BW88: No | BX88: 0
A89: Benches | C89: No | BV89: Yes | BW89: No | BX89: 0
A91: C3 - PUBLIC TRANSPORTATION DATA
A92: PROJECT INFORMATION
A93: Transit investment type | B93: Investment in new mode | D93: =IF(B93=BV93,"Select an EXISTING mode. NEW mode must be set to NONE.",IF(B93=BW93,"Select an EXISTING mode and a NEW mode.","Select a NEW mode. EXISTING mode must be set to NONE.")) -> Select an EXISTING mode and a NEW mode. | BV93: Improvements to existing mode | BW93: Investment in new mode | BX93: Investment in new service
A94: EXISTING transit mode | B94: Bus
A95: NEW transit mode or service | B95: Express Bus | D95: =IF(AND(B94<>"None",B94=B95),"NEW mode cannot be same as EXISTING.","") -> 
A96: Transit project opening year or base year | BV96: =B96 -> 0 | BW96: Base Year - In this version of TransValU, BASE YEAR = PROJECT OPENING YEAR
A97: Transit data forecast year
A98: Are transit-induced changes in auto VMT reflected in roadway data? | B98: No | BV98: Yes | BW98: No | BX98: =IF(B98=BV98,1,0) -> 0
A100: EXISTING MODE | B100: Base Year | C100: WITHOUT PROJECT Forecast Year | D100: WITH PROJECT Forecast Year
A101: =UPPER($B$94) -> BUS | B101: =B96 -> 0 | C101: =B$97 -> 0 | D101: =B$97 -> 0 | BV101: =B93 -> Investment in new mode
A102: Average Daily Ridership, trips per day | BV102: None
A103: Average Trip Length, miles per trip | BV103: Bus | BW103: =IF($B$94=$BV103,1,0) -> 1 | BX103: =MIN(1,BW103+IF($B$95=$BV103,1,0)) -> 1
A104: Percent of Trips Occurring in Peak Period, % | BV104: Express Bus | BW104: 0 | BX104: 1
A105: Percent of Trips for Business Purposes, % | BV105: Bus Rapid Transit (BRT) | BW105: 0 | BX105: 0
A106: Percent of NEW Trips Diverted from Autos, % | BV106: Heavy Rail | BW106: =IF($B$94=$BV106,1,0) -> 0 | BX106: =MIN(1,BW106+IF($B$95=$BV106,1,0)) -> 0
A107: Percent of NEW Trips in Opening Year, % | BV107: Light Rail / Streetcar | BW107: =IF($B$94=$BV107,1,0) -> 0 | BX107: =MIN(1,BW107+IF($B$95=$BV107,1,0)) -> 0
A108: Percent of Service Improvements* in Opening Year, % | BV108: Commuter Rail | BW108: =IF($B$94=$BV108,1,0) -> 0 | BX108: =MIN(1,BW108+IF($B$95=$BV108,1,0)) -> 0
A109: Daily Transit Vehicle Miles Traveled, miles
A110: Average In-Vehicle Transit Time, Peak Period, minutes per trip
A111: Average Out-of-Vehicle Transit Time, Peak Period, minutes per trip
A112: Average In-Vehicle Transit Time, Off-Peak, minutes per trip
A113: Average Out-of-Vehicle Transit Time, Off-Peak, minutes per trip
A114: Average Fare, $ per trip
A115: Average Parking Fee at Park&Ride Lots, $ per day
A116: Percent of Riders Paying for Parking at Park&Ride Lots, %
A117: Notes: all trips defined as ONE-WAY trips; * including changes in transit VMT, time, fare and parking fees
A118: NEW MODE OR SERVICE | B118: Opening Year | C118: WITH PROJECT Forecast Year
A119: =UPPER($B$95) -> EXPRESS BUS | B119: =B$96 -> 0 | C119: =B$97 -> 0
A120: Average Daily Ridership, trips per day
A121: Average Trip Length, miles per trip
A122: Percent of Trips Occurring in Peak Period, %
A123: Percent of Trips for Business Purposes, %
A124: Percent of NEW Trips in Opening Year, %
A125: Percent of NEW Trips Diverted from Autos, %
A126: Daily Transit Vehicle Miles Traveled, miles
A127: Average In-Vehicle Transit Time, Peak Period, minutes per trip
A128: Average Out-of-Vehicle Transit Time, Peak Period, minutes per trip
A129: Average In-Vehicle Transit Time, Off-Peak, minutes per trip
A130: Average Out-of-Vehicle Transit Time, Off-Peak, minutes per trip
A131: Average Fare, $ per trip
A132: Average Parking Fee at Destination, $ per day
A133: Average Parking Fee at Park&Ride Lots, $ per day
A134: Percent of NEW Riders Paying for Parking at Destination WITHOUT Project, %
A135: Percent of Riders Paying for Parking at Park&Ride Lots, %
A136: Note: all trips defined as ONE-WAY trips
A137: ADDITIONAL INFORMATION FOR NEW MODE OR SERVICE | B137: Opening Year | C137: WITH PROJECT Forecast Year
A138: =UPPER($B$95) -> EXPRESS BUS | B138: =B$96 -> 0 | C138: =B$97 -> 0
A139: Distribution of NEW Transit Trips Diverted from Non-Auto Modes or Induced, %
A140: Percent Diverted from Taxis
A141: Percent Diverted from Other Modes
A142: Percent Induced (calculated) | B142: =1-B140-B141 -> 1
A143: Average Vehicle Speed prior to Diversion, miles per hour
A144: Automobiles & Taxis
A145: Other Modes
A146: Average Out-of-Pocket Costs, $ per mile
A147: Taxis
A148: Other Modes
A149: Distribution of NEW Transit Trips by Trip Purpose, %
A150: Work / Job Search
A151: Health Care / Medical
A152: Other Purposes (calculated) | B152: =1-B150-B151 -> 1
A154: TRANSIT VEHICLE FLEET | B154: WITHOUT PROJECT | C154: WITH PROJECT
A155: Buses | B155: =SUM(B156:B159) -> 0 | C155: =SUM(C156:C159) -> 0
A156: Diesel Bus
A157: Hybrid Bus
A158: CNG Bus
A159: Electric Bus
A160: Commuter Trains | B160: =SUM(B161:B163) -> 0 | C160: =SUM(C161:C163) -> 0
A161: New Diesel Locomotive or DMU
A162: Used Diesel Locomotive
A163: Electric or EMU
A164: Note: changes in transit vehicle fleet are assumed to occur fully in project opening year (i.e., no ramp-up)
A165: REAL ESTATE PROPERTY DATA - RAIL TRANSIT ONLY
A166: Total cumulative RESIDENTIAL property value*, $million
A167: Total cumulative COMMERCIAL property value*, $million
A168: RESIDENTIAL property value premium | B168: Medium | BV168: Low | BW168: Medium | BX168: High
A169: COMMERCIAL property value premium | B169: Medium | BV169: Low | BW169: Medium | BX169: High
A170: * Within 1/4 mile of NEW rail transit stations, in millions of Base Year dollars
A172: D - OPTIONAL CRASH REDUCTION ESTIMATES, OVERRIDE PARAMETERS
A173: FDOT CRASH SEVERITY LEVELS | B173: Annual Change in Number of Crashes WITH PROJECT
A174: 1 = No Injury
A175: 2 = Possible Injury
A176: 3 = Non-Incapacitating Injury
A177: 4 = Incapacitating Injury
A178: 5 = Fatality
A179: 6 = Non-Traffic Fatality
A180: Year for which safety analysis was conducted
A181: Annual growth in number of avoided crashes, % per year
A185: E - (OPTIONAL) DAILY VEHICLE MILES TRAVELED, BY SPEED BIN
A186: Base Year
A187: =B$11 -> 2015 | B187: Auto | C187: Truck
A188: <= 2.5 mph
A189: 02.5-7.5 mph
A190: 07.5-12.5 mph
A191: 12.5-17.5 mph
A192: 17.5-22.5 mph
A193: 22.5-27.5 mph
A194: 27.5-32.5 mph
A195: 32.5-37.5 mph
A196: 37.5-42.5 mph
A197: 42.5-47.5 mph
A198: 47.5-52.5 mph
A199: 52.5-57.5 mph
A200: 57.5-62.5 mph
A201: 62.5-67.5 mph
A202: 67.5-72.5 mph
A203: >72.5 mph
A204: Total | B204: =SUM(B188:B203) -> 0 | C204: =SUM(C188:C203) -> 0
A206: WITHOUT PROJECT- Forecast Year
A207: =B$12 -> 2045 | B207: Auto | C207: Truck
A208: <= 2.5 mph
A209: 02.5-7.5 mph
A210: 07.5-12.5 mph
A211: 12.5-17.5 mph
A212: 17.5-22.5 mph
A213: 22.5-27.5 mph
A214: 27.5-32.5 mph
A215: 32.5-37.5 mph
... 28 more rows

Sheet TDMData
A1: Travel Demand Model Output
A2: Daily | J2: Selected Sub-Area Network (US-29 broken at star for No Build)
B3: 2015 No-Build | C3: 2015 Bulid | D3: 2045 No-Build | E3: 2045 Bulid
A4: Auto VMT | B4: 602790.97 | C4: 569350.26 | D4: 1119754.75 | E4: 1039141.68
A5: Truck VMT | B5: 98266.54 | C5: 91920.5 | D5: 87729.46 | E5: 74163.31
A6: Total VMT | B6: =SUM(B4:B5) -> 701057.51 | C6: =SUM(C4:C5) -> 661270.76 | D6: =SUM(D4:D5) -> 1207484.21 | E6: =SUM(E4:E5) -> 1113304.99
A8: Auto VHT | B8: 14789.13 | C8: 13931.4 | D8: 26439.64 | E8: 24462.46
A9: Truck VHT | B9: 2065.22 | C9: 1911.45 | D9: 1960.74 | E9: 1633.81
A10: Total VHT | B10: =SUM(B8:B9) -> 16854.35 | C10: =SUM(C8:C9) -> 15842.85 | D10: =SUM(D8:D9) -> 28400.38 | E10: =SUM(E8:E9) -> 26096.27
A11: Source: Extracted from District One Regional Planning Model, version 2.0

Sheet CapExResidualValue
A1: Capital Expenditures and Residual Value Calculation
A3: Capital Costs | B3: Dollars of 2020 | M3: SR 29 Capital Expenditures
A4: 2022 | B4: =N9*PriceIndices!$AG$51 -> 168017.5043 | M4: Item | N4: 2022 | O4: 2023 | P4: 2024 | Q4: 2025 | R4: 2026 | S4: 2027 | T4: 2028 | U4: 2029 | V4: Total
A5: 2023 | B5: =O9*PriceIndices!$AG$51 -> 288030.0073 | M5: PD&E | N5: =$X$5*(7/20) -> 175000 | O5: =$X$5*(12/20) -> 300000 | P5: =$X$5*(1/20) -> 25000 | Q5: 0 | R5: 0 | S5: 0 | T5: 0 | U5: 0 | V5: =SUM(N5:U5) -> 500000 | X5: 500000
A6: 2024 | B6: =P9*PriceIndices!$AG$51 -> 279512.991 | M6: RFP and Concept Plans Development | N6: 0 | O6: 0 | P6: =$X$6*(11/31) -> 266129.0323 | Q6: =$X$6*(12/31) -> 290322.5806 | R6: =$X$6*(8/31) -> 193548.3871 | S6: 0 | T6: 0 | U6: 0 | V6: =SUM(N6:U6) -> 750000 | X6: 750000
A7: 2025 | B7: =Q9*PriceIndices!$AG$51 -> 278738.7168 | M7: Design | N7: 0 | O7: 0 | P7: 0 | Q7: 0 | R7: =$X$7*(4/10) -> 1741430.076 | S7: =$X$7*(6/10) -> 2612145.114 | T7: 0 | U7: 0 | V7: =SUM(N7:U7) -> 4353575.19 | X7: 4353575.19
A8: 2026 | B8: =R9*PriceIndices!$AG$51 -> 1857772.87 | M8: Construction Costs (including CEI) | N8: 0 | O8: 0 | P8: 0 | Q8: 0 | R8: 0 | S8: =$X$8*S12 -> 10711587.04 | T8: =$X$8*T12 -> 10798673.12 | U8: 7663574.47 | V8: =SUM(N8:U8) -> 29173834.63 | X8: =33527409.82-X7 -> 29173834.63
A9: 2027 | B9: =S9*PriceIndices!$AG$51 -> 12792115.57 | M9: Total | N9: =SUM(N5:N8) -> 175000 | O9: =SUM(O5:O8) -> 300000 | P9: =SUM(P5:P8) -> 291129.0323 | Q9: =SUM(Q5:Q8) -> 290322.5806 | R9: =SUM(R5:R8) -> 1934978.463 | S9: =SUM(S5:S8) -> 13323732.16 | T9: 10798673.12 | U9: 7663574.47 | V9: =SUM(V5:V8) -> 34777409.82
A10: 2028 | B10: =T9*PriceIndices!$AG$51 -> 10367806.32 | M10: Source: FDOT D1, April 2022; in 2021$
A11: 2029 | B11: =U9*PriceIndices!$AG$51 -> 7357798.036
A12: Total | B12: =SUM(B4:B11) -> 33389792.02 | S12: =12.3/33.5 -> 0.3671641791 | T12: =12.4/33.5 -> 0.3701492537 | U12: =8.8/33.5 -> 0.2626865672
A14: Assumed Bridges Asset Depreciable Amount | B14: =3843522.22*PriceIndices!$AG$51 -> 3690165.778
A15: Assumed Asset Useful lifetime (in years) | B15: =BCAInputs!B10 -> 75 | C15: (trhough 2084) | E15: Source: FDOT D1, April 2022
A16: Annual depreciation | B16: =B14/B15 -> 49202.21037
E17: Last Year of Analysis | F17: =BCAInputs!B8+BCAInputs!B9 -> 2049 | H17: Opening Year | I17: =BCAInputs!B8+1 -> 2030 | J17: =F17-I17+1 -> 20 | K17: =J17=BCAInputs!B9 -> TRUE
A18: Assumed Roadway Asset Depreciable Amount | B18: =(V8*PriceIndices!$AG$51)-CapExResidualValue!B14 -> 24319633.57
A19: Assumed Asset Useful lifetime (in years) | B19: 20 | C19: (trhough 2049) | E19: Source: FDOT D1, April 2022
A20: Annual depreciation | B20: =B18/B19 -> 1215981.678
A22: ="Residual value in "&F17 -> Residual value in 2049 | B22: =(B14-(B16*J17))+(B18-(B20*J17)) -> 2706121.57

Sheet OMCosts
A1: Operations and Maintenance Costs (O&M)
A3: Annual O&M Costs of the SR 29 Segment | B3: In 2020$ | D3: Annual O&M Costs of the SR 29 Segment | E3: In 2021$
A4: Roadway Component | B4: =((E4*PriceIndices!$AG$51)/3)*Parameters!$B$9 -> -121948.7713 | D4: Roadway Component | E4: =-(3224.28+121900*2+99385) -> -346409.28 | G4: Includes avoidence of road closure from flooding + sod/shoulder rework (double-sided) + asphalt repair; all per flooding incident/event
A5: Bridges Component | B5: =E5*PriceIndices!$AG$51 -> 3893.512831 | D5: Bridges Component | E5: =(K19-K18)+(K22-K21)+(K25-K24)+(K28-K27) -> 4055.32 | G5: Annual
A7: Change in Annual O&M Costs | B7: =B4+B5 -> -118055.2585
D9: Source: FDOT, D1, April 26, 2022
I17: Deck Area | K17: Annual O&M Cost
H18: Bridge 1 Existing | I18: 2505 | J18: SF | K18: 976.95
H19: Bridge 1 Proposed | I19: 7278.96 | J19: SF | K19: 2838.79
H21: Bridge 2 Existing | I21: 7078 | J21: SF | K21: 2760.42
H22: Bridge 2 Proposed | I22: 10265.2 | J22: SF | K22: 4003.43
H24: Bridge 3 Existing | I24: 2470 | J24: SF | K24: 963.3
H25: Bridge 3 Proposed | I25: 3499.5 | J25: SF | K25: 1364.81
H27: Bridge 4 Existing | I27: 1392 | J27: SF | K27: 542.88
H28: Bridge 4 Proposed | I28: 2799.6 | J28: SF | K28: 1091.84
H30: Source: FDOT, D1, April 26, 2022

Sheet BCACalculations
A1: Benefit-Cost Analysis Calculations | K1: Opened from September onwards (4/12 months in 2029) | L1: First Full Year of Operations/Benefits (2030)
C2: Year | D2: =Parameters!B5 -> 2022 | E2: =D2+1 -> 2023 | F2: 2024 | G2: 2025 | H2: 2026 | I2: =H2+1 -> 2027 | J2: =I2+1 -> 2028 | K2: =J2+1 -> 2029 | L2: =K2+1 -> 2030 | M2: 2031 | N2: 2032 | O2: 2033 | P2: 2034 | Q2: 2035 | R2: 2036 | S2: 2037 | T2: 2038 | U2: 2039 | V2: 2040 | W2: 2041 | X2: 2042 | Y2: 2043 | Z2: 2044 | AA2: 2045 | AB2: 2046 | AC2: 2047 | AD2: 2048 | AE2: 2049 | AF2: 2050 | AG2: 2051 | AH2: 2052 | AI2: 2053 | AJ2: 2054
C3: Year Index | D3: 1 | E3: =D3+1 -> 2 | F3: 3 | G3: 4 | H3: 5 | I3: 6 | J3: 7 | K3: 8 | L3: 9 | M3: 10 | N3: 11 | O3: 12 | P3: 13 | Q3: 14 | R3: 15 | S3: 16 | T3: 17 | U3: 18 | V3: 19 | W3: 20 | X3: 21 | Y3: 22 | Z3: 23 | AA3: 24 | AB3: 25 | AC3: 26 | AD3: 27 | AE3: 28 | AF3: 29 | AG3: 30 | AH3: 31 | AI3: 32 | AJ3: 33
B4: =SUM(D4:AJ4) -> 20 | C4: Operations Index | D4: =IF(AND(D2>=BCAInputs!$B$13,D2<=BCAInputs!$B$13+BCAInputs!$B$9-1),1,0) -> 0 | E4: =IF(AND(E2>=BCAInputs!$B$13,E2<=BCAInputs!$B$13+BCAInputs!$B$9-1),1,0) -> 0 | F4: =IF(AND(F2>=BCAInputs!$B$13,F2<=BCAInputs!$B$13+BCAInputs!$B$9-1),1,0) -> 0 | G4: =IF(AND(G2>=BCAInputs!$B$13,G2<=BCAInputs!$B$13+BCAInputs!$B$9-1),1,0) -> 0 | H4: =IF(AND(H2>=BCAInputs!$B$13,H2<=BCAInputs!$B$13+BCAInputs!$B$9-1),1,0) -> 0 | I4: =IF(AND(I2>=BCAInputs!$B$13,I2<=BCAInputs!$B$13+BCAInputs!$B$9-1),1,0) -> 0 | J4: =IF(AND(J2>=BCAInputs!$B$13,J2<=BCAInputs!$B$13+BCAInputs!$B$9-1),1,0) -> 0 | K4: =IF(AND(K2>=BCAInputs!$B$13,K2<=BCAInputs!$B$13+BCAInputs!$B$9-1),1,0) -> 0 | L4: =IF(AND(L2>=BCAInputs!$B$13,L2<=BCAInputs!$B$13+BCAInputs!$B$9-1),1,0) -> 1 | M4: =IF(AND(M2>=BCAInputs!$B$13,M2<=BCAInputs!$B$13+BCAInputs!$B$9-1),1,0) -> 1 | N4: =IF(AND(N2>=BCAInputs!$B$13,N2<=BCAInputs!$B$13+BCAInputs!$B$9-1),1,0) -> 1 | O4: =IF(AND(O2>=BCAInputs!$B$13,O2<=BCAInputs!$B$13+BCAInputs!$B$9-1),1,0) -> 1 | P4: =IF(AND(P2>=BCAInputs!$B$13,P2<=BCAInputs!$B$13+BCAInputs!$B$9-1),1,0) -> 1 | Q4: =IF(AND(Q2>=BCAInputs!$B$13,Q2<=BCAInputs!$B$13+BCAInputs!$B$9-1),1,0) -> 1 | R4: =IF(AND(R2>=BCAInputs!$B$13,R2<=BCAInputs!$B$13+BCAInputs!$B$9-1),1,0) -> 1 | S4: =IF(AND(S2>=BCAInputs!$B$13,S2<=BCAInputs!$B$13+BCAInputs!$B$9-1),1,0) -> 1 | T4: =IF(AND(T2>=BCAInputs!$B$13,T2<=BCAInputs!$B$13+BCAInputs!$B$9-1),1,0) -> 1 | U4: =IF(AND(U2>=BCAInputs!$B$13,U2<=BCAInputs!$B$13+BCAInputs!$B$9-1),1,0) -> 1 | V4: =IF(AND(V2>=BCAInputs!$B$13,V2<=BCAInputs!$B$13+BCAInputs!$B$9-1),1,0) -> 1 | W4: =IF(AND(W2>=BCAInputs!$B$13,W2<=BCAInputs!$B$13+BCAInputs!$B$9-1),1,0) -> 1 | X4: =IF(AND(X2>=BCAInputs!$B$13,X2<=BCAInputs!$B$13+BCAInputs!$B$9-1),1,0) -> 1 | Y4: =IF(AND(Y2>=BCAInputs!$B$13,Y2<=BCAInputs!$B$13+BCAInputs!$B$9-1),1,0) -> 1 | Z4: =IF(AND(Z2>=BCAInputs!$B$13,Z2<=BCAInputs!$B$13+BCAInputs!$B$9-1),1,0) -> 1 | AA4: =IF(AND(AA2>=BCAInputs!$B$13,AA2<=BCAInputs!$B$13+BCAInputs!$B$9-1),1,0) -> 1 | AB4: =IF(AND(AB2>=BCAInputs!$B$13,AB2<=BCAInputs!$B$13+BCAInputs!$B$9-1),1,0) -> 1 | AC4: =IF(AND(AC2>=BCAInputs!$B$13,AC2<=BCAInputs!$B$13+BCAInputs!$B$9-1),1,0) -> 1 | AD4: =IF(AND(AD2>=BCAInputs!$B$13,AD2<=BCAInputs!$B$13+BCAInputs!$B$9-1),1,0) -> 1 | AE4: =IF(AND(AE2>=BCAInputs!$B$13,AE2<=BCAInputs!$B$13+BCAInputs!$B$9-1),1,0) -> 1 | AF4: =IF(AND(AF2>=BCAInputs!$B$13,AF2<=BCAInputs!$B$13+BCAInputs!$B$9-1),1,0) -> 0 | AG4: =IF(AND(AG2>=BCAInputs!$B$13,AG2<=BCAInputs!$B$13+BCAInputs!$B$9-1),1,0) -> 0 | AH4: =IF(AND(AH2>=BCAInputs!$B$13,AH2<=BCAInputs!$B$13+BCAInputs!$B$9-1),1,0) -> 0 | AI4: =IF(AND(AI2>=BCAInputs!$B$13,AI2<=BCAInputs!$B$13+BCAInputs!$B$9-1),1,0) -> 0 | AJ4: =IF(AND(AJ2>=BCAInputs!$B$13,AJ2<=BCAInputs!$B$13+BCAInputs!$B$9-1),1,0) -> 0
B5: Discount Rate: | C5: =Parameters!$B$7 -> 0.07 | D5: =(1+$C5)^($D$2-D$2) -> 1 | E5: =(1+$C5)^($D$2-E$2) -> 0.9345794393 | F5: =(1+$C5)^($D$2-F$2) -> 0.8734387283 | G5: 0.8162978769 | H5: 0.762895212 | I5: 0.7129861795 | J5: 0.6663422238 | K5: 0.6227497419 | L5: 0.5820091046 | M5: 0.5439337426 | N5: 0.5083492921 | O5: 0.4750927964 | P5: 0.4440119592 | Q5: 0.4149644479 | R5: 0.387817241 | S5: 0.3624460196 | T5: 0.3387345978 | U5: 0.3165743905 | V5: 0.2958639163 | W5: 0.276508333 | X5: 0.2584190028 | Y5: 0.2415130867 | Z5: 0.2257131652 | AA5: 0.2109468833 | AB5: 0.1971466199 | AC5: 0.1842491775 | AD5: 0.172195493 | AE5: 0.1609303673 | AF5: 0.1504022124 | AG5: 0.1405628154 | AH5: 0.1313671172 | AI5: 0.1227730067 | AJ5: 0.1147411277
B6: Discount Rate for CO2: | C6: =Parameters!$B$8 -> 0.03 | D6: =(1+$C$6)^($D$2-D2) -> 1 | E6: =(1+$C$6)^($D$2-E2) -> 0.9708737864 | F6: =(1+$C$6)^($D$2-F2) -> 0.9425959091 | G6: 0.9151416594 | H6: 0.8884870479 | I6: 0.8626087844 | J6: 0.8374842567 | K6: 0.8130915113 | L6: 0.7894092343 | M6: 0.7664167323 | N6: =(1+$C$6)^($D$2-N2) -> 0.7440939149 | O6: 0.7224212766 | P6: 0.7013798802 | Q6: 0.68095134 | R6: 0.6611178058 | S6: 0.6418619474 | T6: 0.6231669392 | U6: 0.6050164458 | V6: 0.5873946076 | W6: 0.5702860268 | X6: 0.5536757542 | Y6: 0.5375492759 | Z6: 0.5218925009 | AA6: 0.5066917484 | AB6: 0.4919337363 | AC6: 0.4776055693 | AD6: 0.4636947274 | AE6: 0.4501890558 | AF6: 0.4370767532 | AG6: 0.4243463623 | AH6: 0.4119867595 | AI6: 0.3999871452 | AJ6: 0.3883370341
A7: KEY ASSUMPTIONS FROM DASHBOARD
A8: Project name | B8: =IF(BCAInputs!B6=0," ",BCAInputs!B6) -> FDOT D1 - Rural - SR 29 Improvements
A9: County or district average | B9: =BCAInputs!B15 -> District 1
A10: Region type | B10: =BCAInputs!B16 -> Rural
A11: Roadway type | B11: =BCAInputs!B17 -> Unrestricted
A12: Average vehicle occupancy | B12: =Parameters!B32 -> 1.67
A14: INVESTMENT COSTS
A15: Project Cost Estimates
A16: Total capital costs | C16: =SUM(D16:AJ16) -> 33389792.02 | D16: =IF(D$2<=BCAInputs!$B$13+BCAInputs!$B$9-1,BCAInputs!B22,0) -> 168017.5043 | E16: =IF(E$2<=BCAInputs!$B$13+BCAInputs!$B$9-1,BCAInputs!C22,0) -> 288030.0073 | F16: =IF(F$2<=BCAInputs!$B$13+BCAInputs!$B$9-1,BCAInputs!D22,0) -> 279512.991 | G16: =IF(G$2<=BCAInputs!$B$13+BCAInputs!$B$9-1,BCAInputs!E22,0) -> 278738.7168 | H16: =IF(H$2<=BCAInputs!$B$13+BCAInputs!$B$9-1,BCAInputs!F22,0) -> 1857772.87 | I16: =IF(I$2<=BCAInputs!$B$13+BCAInputs!$B$9-1,BCAInputs!G22,0) -> 12792115.57 | J16: =IF(J$2<=BCAInputs!$B$13+BCAInputs!$B$9-1,BCAInputs!H22,0) -> 10367806.32 | K16: =IF(K$2<=BCAInputs!$B$13+BCAInputs!$B$9-1,BCAInputs!I22,0) -> 7357798.036 | L16: =IF(L$2<=BCAInputs!$B$13+BCAInputs!$B$9-1,BCAInputs!J22,0) -> 0 | M16: =IF(M$2<=BCAInputs!$B$13+BCAInputs!$B$9-1,BCAInputs!K22,0) -> 0 | N16: =IF(N$2<=BCAInputs!$B$13+BCAInputs!$B$9-1,BCAInputs!L22,0) -> 0 | O16: =IF(O$2<=BCAInputs!$B$13+BCAInputs!$B$9-1,BCAInputs!M22,0) -> 0 | P16: =IF(P$2<=BCAInputs!$B$13+BCAInputs!$B$9-1,BCAInputs!N22,0) -> 0 | Q16: =IF(Q$2<=BCAInputs!$B$13+BCAInputs!$B$9-1,BCAInputs!O22,0) -> 0 | R16: =IF(R$2<=BCAInputs!$B$13+BCAInputs!$B$9-1,BCAInputs!P22,0) -> 0 | S16: =IF(S$2<=BCAInputs!$B$13+BCAInputs!$B$9-1,BCAInputs!Q22,0) -> 0 | T16: =IF(T$2<=BCAInputs!$B$13+BCAInputs!$B$9-1,BCAInputs!R22,0) -> 0 | U16: =IF(U$2<=BCAInputs!$B$13+BCAInputs!$B$9-1,BCAInputs!S22,0) -> 0 | V16: =IF(V$2<=BCAInputs!$B$13+BCAInputs!$B$9-1,BCAInputs!T22,0) -> 0 | W16: =IF(W$2<=BCAInputs!$B$13+BCAInputs!$B$9-1,BCAInputs!U22,0) -> 0 | X16: =IF(X$2<=BCAInputs!$B$13+BCAInputs!$B$9-1,BCAInputs!V22,0) -> 0 | Y16: =IF(Y$2<=BCAInputs!$B$13+BCAInputs!$B$9-1,BCAInputs!W22,0) -> 0 | Z16: =IF(Z$2<=BCAInputs!$B$13+BCAInputs!$B$9-1,BCAInputs!X22,0) -> 0 | AA16: =IF(AA$2<=BCAInputs!$B$13+BCAInputs!$B$9-1,BCAInputs!Y22,0) -> 0 | AB16: =IF(AB$2<=BCAInputs!$B$13+BCAInputs!$B$9-1,BCAInputs!Z22,0) -> 0 | AC16: =IF(AC$2<=BCAInputs!$B$13+BCAInputs!$B$9-1,BCAInputs!AA22,0) -> 0 | AD16: =IF(AD$2<=BCAInputs!$B$13+BCAInputs!$B$9-1,BCAInputs!AB22,0) -> 0 | AE16: =IF(AE$2<=BCAInputs!$B$13+BCAInputs!$B$9-1,BCAInputs!AC22,0) -> 0 | AF16: =IF(AF$2<=BCAInputs!$B$13+BCAInputs!$B$9-1,BCAInputs!AD22,0) -> 0 | AG16: =IF(AG$2<=BCAInputs!$B$13+BCAInputs!$B$9-1,BCAInputs!AE22,0) -> 0 | AH16: =IF(AH$2<=BCAInputs!$B$13+BCAInputs!$B$9-1,BCAInputs!AF22,0) -> 0 | AI16: =IF(AI$2<=BCAInputs!$B$13+BCAInputs!$B$9-1,BCAInputs!AG22,0) -> 0 | AJ16: =IF(AJ$2<=BCAInputs!$B$13+BCAInputs!$B$9-1,BCAInputs!AH22,0) -> 0
A17: Total incremental O&M costs | C17: =SUM(D17:AJ17) -> -2400456.923 | D17: =IF(D$2<=BCAInputs!$B$13+BCAInputs!$B$9-1,BCAInputs!B23,0) -> 0 | E17: =IF(E$2<=BCAInputs!$B$13+BCAInputs!$B$9-1,BCAInputs!C23,0) -> 0 | F17: =IF(F$2<=BCAInputs!$B$13+BCAInputs!$B$9-1,BCAInputs!D23,0) -> 0 | G17: =IF(G$2<=BCAInputs!$B$13+BCAInputs!$B$9-1,BCAInputs!E23,0) -> 0 | H17: =IF(H$2<=BCAInputs!$B$13+BCAInputs!$B$9-1,BCAInputs!F23,0) -> 0 | I17: =IF(I$2<=BCAInputs!$B$13+BCAInputs!$B$9-1,BCAInputs!G23,0) -> 0 | J17: =IF(J$2<=BCAInputs!$B$13+BCAInputs!$B$9-1,BCAInputs!H23,0) -> 0 | K17: =IF(K$2<=BCAInputs!$B$13+BCAInputs!$B$9-1,BCAInputs!I23,0) -> -39351.75284 | L17: =IF(L$2<=BCAInputs!$B$13+BCAInputs!$B$9-1,BCAInputs!J23,0) -> -118055.2585 | M17: =IF(M$2<=BCAInputs!$B$13+BCAInputs!$B$9-1,BCAInputs!K23,0) -> -118055.2585 | N17: =IF(N$2<=BCAInputs!$B$13+BCAInputs!$B$9-1,BCAInputs!L23,0) -> -118055.2585 | O17: =IF(O$2<=BCAInputs!$B$13+BCAInputs!$B$9-1,BCAInputs!M23,0) -> -118055.2585 | P17: =IF(P$2<=BCAInputs!$B$13+BCAInputs!$B$9-1,BCAInputs!N23,0) -> -118055.2585 | Q17: =IF(Q$2<=BCAInputs!$B$13+BCAInputs!$B$9-1,BCAInputs!O23,0) -> -118055.2585 | R17: =IF(R$2<=BCAInputs!$B$13+BCAInputs!$B$9-1,BCAInputs!P23,0) -> -118055.2585 | S17: =IF(S$2<=BCAInputs!$B$13+BCAInputs!$B$9-1,BCAInputs!Q23,0) -> -118055.2585 | T17: =IF(T$2<=BCAInputs!$B$13+BCAInputs!$B$9-1,BCAInputs!R23,0) -> -118055.2585 | U17: =IF(U$2<=BCAInputs!$B$13+BCAInputs!$B$9-1,BCAInputs!S23,0) -> -118055.2585 | V17: =IF(V$2<=BCAInputs!$B$13+BCAInputs!$B$9-1,BCAInputs!T23,0) -> -118055.2585 | W17: =IF(W$2<=BCAInputs!$B$13+BCAInputs!$B$9-1,BCAInputs!U23,0) -> -118055.2585 | X17: =IF(X$2<=BCAInputs!$B$13+BCAInputs!$B$9-1,BCAInputs!V23,0) -> -118055.2585 | Y17: =IF(Y$2<=BCAInputs!$B$13+BCAInputs!$B$9-1,BCAInputs!W23,0) -> -118055.2585 | Z17: =IF(Z$2<=BCAInputs!$B$13+BCAInputs!$B$9-1,BCAInputs!X23,0) -> -118055.2585 | AA17: =IF(AA$2<=BCAInputs!$B$13+BCAInputs!$B$9-1,BCAInputs!Y23,0) -> -118055.2585 | AB17: =IF(AB$2<=BCAInputs!$B$13+BCAInputs!$B$9-1,BCAInputs!Z23,0) -> -118055.2585 | AC17: =IF(AC$2<=BCAInputs!$B$13+BCAInputs!$B$9-1,BCAInputs!AA23,0) -> -118055.2585 | AD17: =IF(AD$2<=BCAInputs!$B$13+BCAInputs!$B$9-1,BCAInputs!AB23,0) -> -118055.2585 | AE17: =IF(AE$2<=BCAInputs!$B$13+BCAInputs!$B$9-1,BCAInputs!AC23,0) -> -118055.2585 | AF17: =IF(AF$2<=BCAInputs!$B$13+BCAInputs!$B$9-1,BCAInputs!AD23,0) -> 0 | AG17: =IF(AG$2<=BCAInputs!$B$13+BCAInputs!$B$9-1,BCAInputs!AE23,0) -> 0 | AH17: =IF(AH$2<=BCAInputs!$B$13+BCAInputs!$B$9-1,BCAInputs!AF23,0) -> 0 | AI17: =IF(AI$2<=BCAInputs!$B$13+BCAInputs!$B$9-1,BCAInputs!AG23,0) -> 0 | AJ17: =IF(AJ$2<=BCAInputs!$B$13+BCAInputs!$B$9-1,BCAInputs!AH23,0) -> 0
A19: TRANSPORTATION DATA BY MODE
A20: Roadway Users
A21: Changes in Vehicle Miles Traveled | K21: from September onwards (4/12 months in 2029) | L21: First Full Year of Operations/Benefits (2030)
A22: Automobiles | C22: =SUM(D22:AJ22) -> -1554640.953 | D22: =VMTVHT!F19*D$4 -> 0 | E22: =VMTVHT!G19*E$4 -> 0 | F22: =VMTVHT!H19*F$4 -> 0 | G22: =VMTVHT!I19*G$4 -> 0 | H22: =VMTVHT!J19*H$4 -> 0 | I22: =VMTVHT!K19*BCAInputs!I19 -> 0 | J22: =VMTVHT!L19*J$4 -> 0 | K22: =VMTVHT!M19*BCAInputs!$I$19 -> -18655.39561 | L22: =VMTVHT!N19*L$4 -> -57631.16198 | M22: =VMTVHT!O19*M$4 -> -59340.94587 | N22: =VMTVHT!P19*N$4 -> -61096.67732 | O22: =VMTVHT!Q19*O$4 -> -62899.52305 | P22: =VMTVHT!R19*P$4 -> -64750.67833 | Q22: =VMTVHT!S19*Q$4 -> -66651.36767 | R22: =VMTVHT!T19*R$4 -> -68602.84551 | S22: =VMTVHT!U19*S$4 -> -70606.39696 | T22: =VMTVHT!V19*T$4 -> -72663.33847 | U22: =VMTVHT!W19*U$4 -> -74775.01864 | V22: =VMTVHT!X19*V$4 -> -76942.81896 | W22: =VMTVHT!Y19*W$4 -> -79168.15457 | X22: =VMTVHT!Z19*X$4 -> -81452.47511 | Y22: =VMTVHT!AA19*Y$4 -> -83797.2655 | Z22: =VMTVHT!AB19*Z$4 -> -86204.04679 | AA22: =VMTVHT!AC19*AA$4 -> -88674.377 | AB22: =VMTVHT!AD19*AB$4 -> -91209.85205 | AC22: =VMTVHT!AE19*AC$4 -> -93812.1066 | AD22: =VMTVHT!AF19*AD$4 -> -96482.81501 | AE22: =VMTVHT!AG19*AE$4 -> -99223.69225 | AF22: =VMTVHT!AH19*AF$4 -> 0 | AG22: =VMTVHT!AI19*AG$4 -> 0 | AH22: =VMTVHT!AJ19*AH$4 -> 0 | AI22: =VMTVHT!AK19*AI$4 -> 0 | AJ22: =VMTVHT!AL19*AJ$4 -> 0
A23: Trucks | C23: =SUM(D23:AJ23) -> -276227.0271 | D23: =VMTVHT!F20*D$4 -> 0 | E23: =VMTVHT!G20*E$4 -> 0 | F23: =VMTVHT!H20*F$4 -> 0 | G23: =VMTVHT!I20*G$4 -> 0 | H23: =VMTVHT!J20*H$4 -> 0 | I23: =VMTVHT!K20*BCAInputs!I19 -> 0 | J23: =VMTVHT!L20*J$4 -> 0 | K23: =VMTVHT!M20*BCAInputs!$I$19 -> -3681.905664 | L23: =VMTVHT!N20*L$4 -> -11311.01258 | M23: =VMTVHT!O20*M$4 -> -11573.11837 | N23: =VMTVHT!P20*N$4 -> -11832.06201 | O23: =VMTVHT!Q20*O$4 -> -12087.87093 | P23: =VMTVHT!R20*P$4 -> -12340.57233 | Q23: =VMTVHT!S20*Q$4 -> -12590.19321 | R23: =VMTVHT!T20*R$4 -> -12836.76037 | S23: =VMTVHT!U20*S$4 -> -13080.30039 | T23: =VMTVHT!V20*T$4 -> -13320.83963 | U23: =VMTVHT!W20*U$4 -> -13558.40426 | V23: =VMTVHT!X20*V$4 -> -13793.02025 | W23: =VMTVHT!Y20*W$4 -> -14024.71335 | X23: =VMTVHT!Z20*X$4 -> -14253.50911 | Y23: =VMTVHT!AA20*Y$4 -> -14479.4329 | Z23: =VMTVHT!AB20*Z$4 -> -14702.50988 | AA23: =VMTVHT!AC20*AA$4 -> -14922.765 | AB23: =VMTVHT!AD20*AB$4 -> -15140.22303 | AC23: =VMTVHT!AE20*AC$4 -> -15354.90855 | AD23: =VMTVHT!AF20*AD$4 -> -15566.84592 | AE23: =VMTVHT!AG20*AE$4 -> -15776.05934 | AF23: =VMTVHT!AH20*AF$4 -> 0 | AG23: =VMTVHT!AI20*AG$4 -> 0 | AH23: =VMTVHT!AJ20*AH$4 -> 0 | AI23: =VMTVHT!AK20*AI$4 -> 0 | AJ23: =VMTVHT!AL20*AJ$4 -> 0
A24: Changes in Vehicle Hours Traveled
A25: Automobiles | C25: =SUM(D25:AJ25) -> -38393.71599 | D25: =VMTVHT!F35*D$4 -> 0 | E25: =VMTVHT!G35*E$4 -> 0 | F25: =VMTVHT!H35*F$4 -> 0 | G25: =VMTVHT!I35*G$4 -> 0 | H25: =VMTVHT!J35*H$4 -> 0 | I25: =VMTVHT!K35*BCAInputs!I19 -> 0 | J25: =VMTVHT!L35*J$4 -> 0 | K25: =VMTVHT!M35*BCAInputs!$I$19 -> -468.413478 | L25: =VMTVHT!N35*L$4 -> -1444.891639 | M25: =VMTVHT!O35*M$4 -> -1485.548795 | N25: =VMTVHT!P35*N$4 -> -1527.235939 | O25: =VMTVHT!Q35*O$4 -> -1569.977663 | P25: =VMTVHT!R35*P$4 -> -1613.799125 | Q25: =VMTVHT!S35*Q$4 -> -1658.72606 | R25: =VMTVHT!T35*R$4 -> -1704.784793 | S25: =VMTVHT!U35*S$4 -> -1752.002254 | T25: =VMTVHT!V35*T$4 -> -1800.405991 | U25: =VMTVHT!W35*U$4 -> -1850.02418 | V25: =VMTVHT!X35*V$4 -> -1900.885648 | W25: =VMTVHT!Y35*W$4 -> -1953.019876 | X25: =VMTVHT!Z35*X$4 -> -2006.457024 | Y25: =VMTVHT!AA35*Y$4 -> -2061.227939 | Z25: =VMTVHT!AB35*Z$4 -> -2117.364173 | AA25: =VMTVHT!AC35*AA$4 -> -2174.898 | AB25: =VMTVHT!AD35*AB$4 -> -2233.86243 | AC25: =VMTVHT!AE35*AC$4 -> -2294.291226 | AD25: =VMTVHT!AF35*AD$4 -> -2356.218921 | AE25: =VMTVHT!AG35*AE$4 -> -2419.680835 | AF25: =VMTVHT!AH35*AF$4 -> 0 | AG25: =VMTVHT!AI35*AG$4 -> 0 | AH25: =VMTVHT!AJ35*AH$4 -> 0 | AI25: =VMTVHT!AK35*AI$4 -> 0 | AJ25: =VMTVHT!AL35*AJ$4 -> 0
A26: Trucks | C26: =SUM(D26:AJ26) -> -6628.807702 | D26: =VMTVHT!F36*D$4 -> 0 | E26: =VMTVHT!G36*E$4 -> 0 | F26: =VMTVHT!H36*F$4 -> 0 | G26: =VMTVHT!I36*G$4 -> 0 | H26: =VMTVHT!J36*H$4 -> 0 | I26: =VMTVHT!K36*BCAInputs!I19 -> 0 | J26: =VMTVHT!L36*J$4 -> 0 | K26: =VMTVHT!M36*BCAInputs!$I$19 -> -87.7550618 | L26: =VMTVHT!N36*L$4 -> -269.6277066 | M26: =VMTVHT!O36*M$4 -> -275.9436529 | N26: =VMTVHT!P36*N$4 -> -282.2132902 | O26: =VMTVHT!Q36*O$4 -> -288.4368834 | P26: =VMTVHT!R36*P$4 -> -294.6146958 | Q26: =VMTVHT!S36*Q$4 -> -300.7469892 | R26: =VMTVHT!T36*R$4 -> -306.8340241 | S26: =VMTVHT!U36*S$4 -> -312.8760597 | T26: =VMTVHT!V36*T$4 -> -318.8733535 | U26: =VMTVHT!W36*U$4 -> -324.826162 | V26: =VMTVHT!X36*V$4 -> -330.73474 | W26: =VMTVHT!Y36*W$4 -> -336.599341 | X26: =VMTVHT!Z36*X$4 -> -342.4202174 | Y26: =VMTVHT!AA36*Y$4 -> -348.1976199 | Z26: =VMTVHT!AB36*Z$4 -> -353.9317981 | AA26: =VMTVHT!AC36*AA$4 -> -359.623 | AB26: =VMTVHT!AD36*AB$4 -> -365.2714725 | AC26: =VMTVHT!AE36*AC$4 -> -370.8774612 | AD26: =VMTVHT!AF36*AD$4 -> -376.4412101 | AE26: =VMTVHT!AG36*AE$4 -> -381.9629621 | AF26: =VMTVHT!AH36*AF$4 -> 0 | AG26: =VMTVHT!AI36*AG$4 -> 0 | AH26: =VMTVHT!AJ36*AH$4 -> 0 | AI26: =VMTVHT!AK36*AI$4 -> 0 | AJ26: =VMTVHT!AL36*AJ$4 -> 0
A28: ESTIMATION OF BENEFITS
A29: Select Method for Estimating Roadway Travel Time Savings:
A30: Method 2 - Change in Total Vehicle Hours Traveled | AM30: Method 1 - Change in Consumer Surplus
AM31: Method 2 - Change in Total Vehicle Hours Traveled
A32: Travel Time Savings
A33: Travel Time Savings in Hours
A34: =BCACalculations!AM30 -> Method 1 - Change in Consumer Surplus
A35: Existing auto, hours | C35: =SUM(D35:AJ35) -> 1463.816204 | D35: =IF(BCAInputs!$D$31<BCAInputs!$E$31,VMTVHT!F7,VMTVHT!F15)*VMTVHT!F46*D$4 -> 0 | E35: =IF(BCAInputs!$D$31<BCAInputs!$E$31,VMTVHT!G7,VMTVHT!G15)*VMTVHT!G46*E$4 -> 0 | F35: =IF(BCAInputs!$D$31<BCAInputs!$E$31,VMTVHT!H7,VMTVHT!H15)*VMTVHT!H46*F$4 -> 0 | G35: =IF(BCAInputs!$D$31<BCAInputs!$E$31,VMTVHT!I7,VMTVHT!I15)*VMTVHT!I46*G$4 -> 0 | H35: =IF(BCAInputs!$D$31<BCAInputs!$E$31,VMTVHT!J7,VMTVHT!J15)*VMTVHT!J46*H$4 -> 0 | I35: =IF(BCAInputs!$D$31<BCAInputs!$E$31,VMTVHT!K7,VMTVHT!K15)*VMTVHT!K46*I$4 -> 0 | J35: =IF(BCAInputs!$D$31<BCAInputs!$E$31,VMTVHT!L7,VMTVHT!L15)*VMTVHT!L46*J$4 -> 0 | K35: =IF(BCAInputs!$D$31<BCAInputs!$E$31,VMTVHT!M7,VMTVHT!M15)*VMTVHT!M46*BCAInputs!$I$19 -> 18.82673669 | L35: =IF(BCAInputs!$D$31<BCAInputs!$E$31,VMTVHT!N7,VMTVHT!N15)*VMTVHT!N46*L$4 -> 57.77930855 | M35: =IF(BCAInputs!$D$31<BCAInputs!$E$31,VMTVHT!O7,VMTVHT!O15)*VMTVHT!O46*M$4 -> 59.1073604 | N35: =IF(BCAInputs!$D$31<BCAInputs!$E$31,VMTVHT!P7,VMTVHT!P15)*VMTVHT!P46*N$4 -> 60.46499645 | O35: =IF(BCAInputs!$D$31<BCAInputs!$E$31,VMTVHT!Q7,VMTVHT!Q15)*VMTVHT!Q46*O$4 -> 61.85286103 | P35: =IF(BCAInputs!$D$31<BCAInputs!$E$31,VMTVHT!R7,VMTVHT!R15)*VMTVHT!R46*P$4 -> 63.27161226 | Q35: =IF(BCAInputs!$D$31<BCAInputs!$E$31,VMTVHT!S7,VMTVHT!S15)*VMTVHT!S46*Q$4 -> 64.72192235 | R35: =IF(BCAInputs!$D$31<BCAInputs!$E$31,VMTVHT!T7,VMTVHT!T15)*VMTVHT!T46*R$4 -> 66.20447791 | S35: =IF(BCAInputs!$D$31<BCAInputs!$E$31,VMTVHT!U7,VMTVHT!U15)*VMTVHT!U46*S$4 -> 67.71998022 | T35: =IF(BCAInputs!$D$31<BCAInputs!$E$31,VMTVHT!V7,VMTVHT!V15)*VMTVHT!V46*T$4 -> 69.26914557 | U35: =IF(BCAInputs!$D$31<BCAInputs!$E$31,VMTVHT!W7,VMTVHT!W15)*VMTVHT!W46*U$4 -> 70.85270556 | V35: =IF(BCAInputs!$D$31<BCAInputs!$E$31,VMTVHT!X7,VMTVHT!X15)*VMTVHT!X46*V$4 -> 72.47140744 | W35: =IF(BCAInputs!$D$31<BCAInputs!$E$31,VMTVHT!Y7,VMTVHT!Y15)*VMTVHT!Y46*W$4 -> 74.12601441 | X35: =IF(BCAInputs!$D$31<BCAInputs!$E$31,VMTVHT!Z7,VMTVHT!Z15)*VMTVHT!Z46*X$4 -> 75.81730599 | Y35: =IF(BCAInputs!$D$31<BCAInputs!$E$31,VMTVHT!AA7,VMTVHT!AA15)*VMTVHT!AA46*Y$4 -> 77.54607834 | Z35: =IF(BCAInputs!$D$31<BCAInputs!$E$31,VMTVHT!AB7,VMTVHT!AB15)*VMTVHT!AB46*Z$4 -> 79.31314465 | AA35: =IF(BCAInputs!$D$31<BCAInputs!$E$31,VMTVHT!AC7,VMTVHT!AC15)*VMTVHT!AC46*AA$4 -> 81.11933543 | AB35: =IF(BCAInputs!$D$31<BCAInputs!$E$31,VMTVHT!AD7,VMTVHT!AD15)*VMTVHT!AD46*AB$4 -> 82.96549893 | AC35: =IF(BCAInputs!$D$31<BCAInputs!$E$31,VMTVHT!AE7,VMTVHT!AE15)*VMTVHT!AE46*AC$4 -> 84.85250152 | AD35: =IF(BCAInputs!$D$31<BCAInputs!$E$31,VMTVHT!AF7,VMTVHT!AF15)*VMTVHT!AF46*AD$4 -> 86.78122801 | AE35: =IF(BCAInputs!$D$31<BCAInputs!$E$31,VMTVHT!AG7,VMTVHT!AG15)*VMTVHT!AG46*AE$4 -> 88.75258212 | AF35: =IF(BCAInputs!$D$31<BCAInputs!$E$31,VMTVHT!AH7,VMTVHT!AH15)*VMTVHT!AH46*AF$4 -> 0 | AG35: =IF(BCAInputs!$D$31<BCAInputs!$E$31,VMTVHT!AI7,VMTVHT!AI15)*VMTVHT!AI46*AG$4 -> 0 | AH35: =IF(BCAInputs!$D$31<BCAInputs!$E$31,VMTVHT!AJ7,VMTVHT!AJ15)*VMTVHT!AJ46*AH$4 -> 0 | AI35: =IF(BCAInputs!$D$31<BCAInputs!$E$31,VMTVHT!AK7,VMTVHT!AK15)*VMTVHT!AK46*AI$4 -> 0 | AJ35: =IF(BCAInputs!$D$31<BCAInputs!$E$31,VMTVHT!AL7,VMTVHT!AL15)*VMTVHT!AL46*AJ$4 -> 0
A36: New auto, hours | C36: =SUM(D36:AJ36) -> 0 | D36: =IF(BCAInputs!$E$31<BCAInputs!$D$31,0,1)*VMTVHT!F19*VMTVHT!F46*D$4 -> 0 | E36: =IF(BCAInputs!$E$31<BCAInputs!$D$31,0,1)*VMTVHT!G19*VMTVHT!G46*E$4 -> 0 | F36: =IF(BCAInputs!$E$31<BCAInputs!$D$31,0,1)*VMTVHT!H19*VMTVHT!H46*F$4 -> 0 | G36: =IF(BCAInputs!$E$31<BCAInputs!$D$31,0,1)*VMTVHT!I19*VMTVHT!I46*G$4 -> 0 | H36: =IF(BCAInputs!$E$31<BCAInputs!$D$31,0,1)*VMTVHT!J19*VMTVHT!J46*H$4 -> 0 | I36: =IF(BCAInputs!$E$31<BCAInputs!$D$31,0,1)*VMTVHT!K19*VMTVHT!K46*I$4 -> 0 | J36: =IF(BCAInputs!$E$31<BCAInputs!$D$31,0,1)*VMTVHT!L19*VMTVHT!L46*J$4 -> 0 | K36: =IF(BCAInputs!$E$31<BCAInputs!$D$31,0,1)*VMTVHT!M19*VMTVHT!M46*BCAInputs!$I$19 -> 0 | L36: =IF(BCAInputs!$E$31<BCAInputs!$D$31,0,1)*VMTVHT!N19*VMTVHT!N46*L$4 -> 0 | M36: =IF(BCAInputs!$E$31<BCAInputs!$D$31,0,1)*VMTVHT!O19*VMTVHT!O46*M$4 -> 0 | N36: =IF(BCAInputs!$E$31<BCAInputs!$D$31,0,1)*VMTVHT!P19*VMTVHT!P46*N$4 -> 0 | O36: =IF(BCAInputs!$E$31<BCAInputs!$D$31,0,1)*VMTVHT!Q19*VMTVHT!Q46*O$4 -> 0 | P36: =IF(BCAInputs!$E$31<BCAInputs!$D$31,0,1)*VMTVHT!R19*VMTVHT!R46*P$4 -> 0 | Q36: =IF(BCAInputs!$E$31<BCAInputs!$D$31,0,1)*VMTVHT!S19*VMTVHT!S46*Q$4 -> 0 | R36: =IF(BCAInputs!$E$31<BCAInputs!$D$31,0,1)*VMTVHT!T19*VMTVHT!T46*R$4 -> 0 | S36: =IF(BCAInputs!$E$31<BCAInputs!$D$31,0,1)*VMTVHT!U19*VMTVHT!U46*S$4 -> 0 | T36: =IF(BCAInputs!$E$31<BCAInputs!$D$31,0,1)*VMTVHT!V19*VMTVHT!V46*T$4 -> 0 | U36: =IF(BCAInputs!$E$31<BCAInputs!$D$31,0,1)*VMTVHT!W19*VMTVHT!W46*U$4 -> 0 | V36: =IF(BCAInputs!$E$31<BCAInputs!$D$31,0,1)*VMTVHT!X19*VMTVHT!X46*V$4 -> 0 | W36: =IF(BCAInputs!$E$31<BCAInputs!$D$31,0,1)*VMTVHT!Y19*VMTVHT!Y46*W$4 -> 0 | X36: =IF(BCAInputs!$E$31<BCAInputs!$D$31,0,1)*VMTVHT!Z19*VMTVHT!Z46*X$4 -> 0 | Y36: =IF(BCAInputs!$E$31<BCAInputs!$D$31,0,1)*VMTVHT!AA19*VMTVHT!AA46*Y$4 -> 0 | Z36: =IF(BCAInputs!$E$31<BCAInputs!$D$31,0,1)*VMTVHT!AB19*VMTVHT!AB46*Z$4 -> 0 | AA36: =IF(BCAInputs!$E$31<BCAInputs!$D$31,0,1)*VMTVHT!AC19*VMTVHT!AC46*AA$4 -> 0 | AB36: =IF(BCAInputs!$E$31<BCAInputs!$D$31,0,1)*VMTVHT!AD19*VMTVHT!AD46*AB$4 -> 0 | AC36: =IF(BCAInputs!$E$31<BCAInputs!$D$31,0,1)*VMTVHT!AE19*VMTVHT!AE46*AC$4 -> 0 | AD36: =IF(BCAInputs!$E$31<BCAInputs!$D$31,0,1)*VMTVHT!AF19*VMTVHT!AF46*AD$4 -> 0 | AE36: =IF(BCAInputs!$E$31<BCAInputs!$D$31,0,1)*VMTVHT!AG19*VMTVHT!AG46*AE$4 -> 0 | AF36: =IF(BCAInputs!$E$31<BCAInputs!$D$31,0,1)*VMTVHT!AH19*VMTVHT!AH46*AF$4 -> 0 | AG36: =IF(BCAInputs!$E$31<BCAInputs!$D$31,0,1)*VMTVHT!AI19*VMTVHT!AI46*AG$4 -> 0 | AH36: =IF(BCAInputs!$E$31<BCAInputs!$D$31,0,1)*VMTVHT!AJ19*VMTVHT!AJ46*AH$4 -> 0 | AI36: =IF(BCAInputs!$E$31<BCAInputs!$D$31,0,1)*VMTVHT!AK19*VMTVHT!AK46*AI$4 -> 0 | AJ36: =IF(BCAInputs!$E$31<BCAInputs!$D$31,0,1)*VMTVHT!AL19*VMTVHT!AL46*AJ$4 -> 0
A37: Existing truck, hours | C37: =SUM(D37:AJ37) -> 518.6408029 | D37: =IF(BCAInputs!$D$34<BCAInputs!$E$34,VMTVHT!F8,VMTVHT!F16)*VMTVHT!F47*D$4 -> 0 | E37: =IF(BCAInputs!$D$34<BCAInputs!$E$34,VMTVHT!G8,VMTVHT!G16)*VMTVHT!G47*E$4 -> 0 | F37: =IF(BCAInputs!$D$34<BCAInputs!$E$34,VMTVHT!H8,VMTVHT!H16)*VMTVHT!H47*F$4 -> 0 | G37: =IF(BCAInputs!$D$34<BCAInputs!$E$34,VMTVHT!I8,VMTVHT!I16)*VMTVHT!I47*G$4 -> 0 | H37: =IF(BCAInputs!$D$34<BCAInputs!$E$34,VMTVHT!J8,VMTVHT!J16)*VMTVHT!J47*H$4 -> 0 | I37: =IF(BCAInputs!$D$34<BCAInputs!$E$34,VMTVHT!K8,VMTVHT!K16)*VMTVHT!K47*I$4 -> 0 | J37: =IF(BCAInputs!$D$34<BCAInputs!$E$34,VMTVHT!L8,VMTVHT!L16)*VMTVHT!L47*J$4 -> 0 | K37: =IF(BCAInputs!$D$34<BCAInputs!$E$34,VMTVHT!M8,VMTVHT!M16)*VMTVHT!M47*BCAInputs!$I$19 -> 8.120829281 | L37: =IF(BCAInputs!$D$34<BCAInputs!$E$34,VMTVHT!N8,VMTVHT!N16)*VMTVHT!N47*L$4 -> 24.48493592 | M37: =IF(BCAInputs!$D$34<BCAInputs!$E$34,VMTVHT!O8,VMTVHT!O16)*VMTVHT!O47*M$4 -> 24.60547433 | N37: =IF(BCAInputs!$D$34<BCAInputs!$E$34,VMTVHT!P8,VMTVHT!P16)*VMTVHT!P47*N$4 -> 24.72411949 | O37: =IF(BCAInputs!$D$34<BCAInputs!$E$34,VMTVHT!Q8,VMTVHT!Q16)*VMTVHT!Q47*O$4 -> 24.84088773 | P37: =IF(BCAInputs!$D$34<BCAInputs!$E$34,VMTVHT!R8,VMTVHT!R16)*VMTVHT!R47*P$4 -> 24.95579524 | Q37: =IF(BCAInputs!$D$34<BCAInputs!$E$34,VMTVHT!S8,VMTVHT!S16)*VMTVHT!S47*Q$4 -> 25.0688581 | R37: =IF(BCAInputs!$D$34<BCAInputs!$E$34,VMTVHT!T8,VMTVHT!T16)*VMTVHT!T47*R$4 -> 25.18009228 | S37: =IF(BCAInputs!$D$34<BCAInputs!$E$34,VMTVHT!U8,VMTVHT!U16)*VMTVHT!U47*S$4 -> 25.28951364 | T37: =IF(BCAInputs!$D$34<BCAInputs!$E$34,VMTVHT!V8,VMTVHT!V16)*VMTVHT!V47*T$4 -> 25.39713789 | U37: =IF(BCAInputs!$D$34<BCAInputs!$E$34,VMTVHT!W8,VMTVHT!W16)*VMTVHT!W47*U$4 -> 25.50298066 | V37: =IF(BCAInputs!$D$34<BCAInputs!$E$34,VMTVHT!X8,VMTVHT!X16)*VMTVHT!X47*V$4 -> 25.60705747 | W37: =IF(BCAInputs!$D$34<BCAInputs!$E$34,VMTVHT!Y8,VMTVHT!Y16)*VMTVHT!Y47*W$4 -> 25.7093837 | X37: =IF(BCAInputs!$D$34<BCAInputs!$E$34,VMTVHT!Z8,VMTVHT!Z16)*VMTVHT!Z47*X$4 -> 25.80997464 | Y37: =IF(BCAInputs!$D$34<BCAInputs!$E$34,VMTVHT!AA8,VMTVHT!AA16)*VMTVHT!AA47*Y$4 -> 25.90884546 | Z37: =IF(BCAInputs!$D$34<BCAInputs!$E$34,VMTVHT!AB8,VMTVHT!AB16)*VMTVHT!AB47*Z$4 -> 26.00601121 | AA37: =IF(BCAInputs!$D$34<BCAInputs!$E$34,VMTVHT!AC8,VMTVHT!AC16)*VMTVHT!AC47*AA$4 -> 26.10148686 | AB37: =IF(BCAInputs!$D$34<BCAInputs!$E$34,VMTVHT!AD8,VMTVHT!AD16)*VMTVHT!AD47*AB$4 -> 26.19528724 | AC37: =IF(BCAInputs!$D$34<BCAInputs!$E$34,VMTVHT!AE8,VMTVHT!AE16)*VMTVHT!AE47*AC$4 -> 26.2874271 | AD37: =IF(BCAInputs!$D$34<BCAInputs!$E$34,VMTVHT!AF8,VMTVHT!AF16)*VMTVHT!AF47*AD$4 -> 26.37792105 | AE37: =IF(BCAInputs!$D$34<BCAInputs!$E$34,VMTVHT!AG8,VMTVHT!AG16)*VMTVHT!AG47*AE$4 -> 26.46678362 | AF37: =IF(BCAInputs!$D$34<BCAInputs!$E$34,VMTVHT!AH8,VMTVHT!AH16)*VMTVHT!AH47*AF$4 -> 0 | AG37: =IF(BCAInputs!$D$34<BCAInputs!$E$34,VMTVHT!AI8,VMTVHT!AI16)*VMTVHT!AI47*AG$4 -> 0 | AH37: =IF(BCAInputs!$D$34<BCAInputs!$E$34,VMTVHT!AJ8,VMTVHT!AJ16)*VMTVHT!AJ47*AH$4 -> 0 | AI37: =IF(BCAInputs!$D$34<BCAInputs!$E$34,VMTVHT!AK8,VMTVHT!AK16)*VMTVHT!AK47*AI$4 -> 0 | AJ37: =IF(BCAInputs!$D$34<BCAInputs!$E$34,VMTVHT!AL8,VMTVHT!AL16)*VMTVHT!AL47*AJ$4 -> 0
A38: New truck, hours | C38: =SUM(D38:AJ38) -> 0 | D38: =IF(BCAInputs!$E$34<BCAInputs!$D$34,0,1)*VMTVHT!F20*VMTVHT!F47*D$4 -> 0 | E38: =IF(BCAInputs!$E$34<BCAInputs!$D$34,0,1)*VMTVHT!G20*VMTVHT!G47*E$4 -> 0 | F38: =IF(BCAInputs!$E$34<BCAInputs!$D$34,0,1)*VMTVHT!H20*VMTVHT!H47*F$4 -> 0 | G38: =IF(BCAInputs!$E$34<BCAInputs!$D$34,0,1)*VMTVHT!I20*VMTVHT!I47*G$4 -> 0 | H38: =IF(BCAInputs!$E$34<BCAInputs!$D$34,0,1)*VMTVHT!J20*VMTVHT!J47*H$4 -> 0 | I38: =IF(BCAInputs!$E$34<BCAInputs!$D$34,0,1)*VMTVHT!K20*VMTVHT!K47*I$4 -> 0 | J38: =IF(BCAInputs!$E$34<BCAInputs!$D$34,0,1)*VMTVHT!L20*VMTVHT!L47*J$4 -> 0 | K38: =IF(BCAInputs!$E$34<BCAInputs!$D$34,0,1)*VMTVHT!M20*VMTVHT!M47*BCAInputs!$I$19 -> 0 | L38: =IF(BCAInputs!$E$34<BCAInputs!$D$34,0,1)*VMTVHT!N20*VMTVHT!N47*L$4 -> 0 | M38: =IF(BCAInputs!$E$34<BCAInputs!$D$34,0,1)*VMTVHT!O20*VMTVHT!O47*M$4 -> 0 | N38: =IF(BCAInputs!$E$34<BCAInputs!$D$34,0,1)*VMTVHT!P20*VMTVHT!P47*N$4 -> 0 | O38: =IF(BCAInputs!$E$34<BCAInputs!$D$34,0,1)*VMTVHT!Q20*VMTVHT!Q47*O$4 -> 0 | P38: =IF(BCAInputs!$E$34<BCAInputs!$D$34,0,1)*VMTVHT!R20*VMTVHT!R47*P$4 -> 0 | Q38: =IF(BCAInputs!$E$34<BCAInputs!$D$34,0,1)*VMTVHT!S20*VMTVHT!S47*Q$4 -> 0 | R38: =IF(BCAInputs!$E$34<BCAInputs!$D$34,0,1)*VMTVHT!T20*VMTVHT!T47*R$4 -> 0 | S38: =IF(BCAInputs!$E$34<BCAInputs!$D$34,0,1)*VMTVHT!U20*VMTVHT!U47*S$4 -> 0 | T38: =IF(BCAInputs!$E$34<BCAInputs!$D$34,0,1)*VMTVHT!V20*VMTVHT!V47*T$4 -> 0 | U38: =IF(BCAInputs!$E$34<BCAInputs!$D$34,0,1)*VMTVHT!W20*VMTVHT!W47*U$4 -> 0 | V38: =IF(BCAInputs!$E$34<BCAInputs!$D$34,0,1)*VMTVHT!X20*VMTVHT!X47*V$4 -> 0 | W38: =IF(BCAInputs!$E$34<BCAInputs!$D$34,0,1)*VMTVHT!Y20*VMTVHT!Y47*W$4 -> 0 | X38: =IF(BCAInputs!$E$34<BCAInputs!$D$34,0,1)*VMTVHT!Z20*VMTVHT!Z47*X$4 -> 0 | Y38: =IF(BCAInputs!$E$34<BCAInputs!$D$34,0,1)*VMTVHT!AA20*VMTVHT!AA47*Y$4 -> 0 | Z38: =IF(BCAInputs!$E$34<BCAInputs!$D$34,0,1)*VMTVHT!AB20*VMTVHT!AB47*Z$4 -> 0 | AA38: =IF(BCAInputs!$E$34<BCAInputs!$D$34,0,1)*VMTVHT!AC20*VMTVHT!AC47*AA$4 -> 0 | AB38: =IF(BCAInputs!$E$34<BCAInputs!$D$34,0,1)*VMTVHT!AD20*VMTVHT!AD47*AB$4 -> 0 | AC38: =IF(BCAInputs!$E$34<BCAInputs!$D$34,0,1)*VMTVHT!AE20*VMTVHT!AE47*AC$4 -> 0 | AD38: =IF(BCAInputs!$E$34<BCAInputs!$D$34,0,1)*VMTVHT!AF20*VMTVHT!AF47*AD$4 -> 0 | AE38: =IF(BCAInputs!$E$34<BCAInputs!$D$34,0,1)*VMTVHT!AG20*VMTVHT!AG47*AE$4 -> 0 | AF38: =IF(BCAInputs!$E$34<BCAInputs!$D$34,0,1)*VMTVHT!AH20*VMTVHT!AH47*AF$4 -> 0 | AG38: =IF(BCAInputs!$E$34<BCAInputs!$D$34,0,1)*VMTVHT!AI20*VMTVHT!AI47*AG$4 -> 0 | AH38: =IF(BCAInputs!$E$34<BCAInputs!$D$34,0,1)*VMTVHT!AJ20*VMTVHT!AJ47*AH$4 -> 0 | AI38: =IF(BCAInputs!$E$34<BCAInputs!$D$34,0,1)*VMTVHT!AK20*VMTVHT!AK47*AI$4 -> 0 | AJ38: =IF(BCAInputs!$E$34<BCAInputs!$D$34,0,1)*VMTVHT!AL20*VMTVHT!AL47*AJ$4 -> 0
A39: =BCACalculations!AM31 -> Method 2 - Change in Total Vehicle Hours Traveled
A40: Auto, VHT per day | C40: =SUM(D40:AJ40) -> 38393.71599 | D40: =-VMTVHT!F35*D$4 -> 0 | E40: =-VMTVHT!G35*E$4 -> 0 | F40: =-VMTVHT!H35*F$4 -> 0 | G40: =-VMTVHT!I35*G$4 -> 0 | H40: =-VMTVHT!J35*H$4 -> 0 | I40: =-VMTVHT!K35*BCAInputs!I19 -> 0 | J40: =-VMTVHT!L35*J$4 -> 0 | K40: =-VMTVHT!M35*BCAInputs!$I$19 -> 468.413478 | L40: =-VMTVHT!N35*L$4 -> 1444.891639 | M40: =-VMTVHT!O35*M$4 -> 1485.548795 | N40: =-VMTVHT!P35*N$4 -> 1527.235939 | O40: =-VMTVHT!Q35*O$4 -> 1569.977663 | P40: =-VMTVHT!R35*P$4 -> 1613.799125 | Q40: =-VMTVHT!S35*Q$4 -> 1658.72606 | R40: =-VMTVHT!T35*R$4 -> 1704.784793 | S40: =-VMTVHT!U35*S$4 -> 1752.002254 | T40: =-VMTVHT!V35*T$4 -> 1800.405991 | U40: =-VMTVHT!W35*U$4 -> 1850.02418 | V40: =-VMTVHT!X35*V$4 -> 1900.885648 | W40: =-VMTVHT!Y35*W$4 -> 1953.019876 | X40: =-VMTVHT!Z35*X$4 -> 2006.457024 | Y40: =-VMTVHT!AA35*Y$4 -> 2061.227939 | Z40: =-VMTVHT!AB35*Z$4 -> 2117.364173 | AA40: =-VMTVHT!AC35*AA$4 -> 2174.898 | AB40: =-VMTVHT!AD35*AB$4 -> 2233.86243 | AC40: =-VMTVHT!AE35*AC$4 -> 2294.291226 | AD40: =-VMTVHT!AF35*AD$4 -> 2356.218921 | AE40: =-VMTVHT!AG35*AE$4 -> 2419.680835 | AF40: =-VMTVHT!AH35*AF$4 -> 0 | AG40: =-VMTVHT!AI35*AG$4 -> 0 | AH40: =-VMTVHT!AJ35*AH$4 -> 0 | AI40: =-VMTVHT!AK35*AI$4 -> 0 | AJ40: =-VMTVHT!AL35*AJ$4 -> 0
A41: Truck, VHT per day | C41: =SUM(D41:AJ41) -> 6628.807702 | D41: =-VMTVHT!F36*D$4 -> 0 | E41: =-VMTVHT!G36*E$4 -> 0 | F41: =-VMTVHT!H36*F$4 -> 0 | G41: =-VMTVHT!I36*G$4 -> 0 | H41: =-VMTVHT!J36*H$4 -> 0 | I41: =-VMTVHT!K36*BCAInputs!I19 -> 0 | J41: =-VMTVHT!L36*J$4 -> 0 | K41: =-VMTVHT!M36*BCAInputs!$I$19 -> 87.7550618 | L41: =-VMTVHT!N36*L$4 -> 269.6277066 | M41: =-VMTVHT!O36*M$4 -> 275.9436529 | N41: =-VMTVHT!P36*N$4 -> 282.2132902 | O41: =-VMTVHT!Q36*O$4 -> 288.4368834 | P41: =-VMTVHT!R36*P$4 -> 294.6146958 | Q41: =-VMTVHT!S36*Q$4 -> 300.7469892 | R41: =-VMTVHT!T36*R$4 -> 306.8340241 | S41: =-VMTVHT!U36*S$4 -> 312.8760597 | T41: =-VMTVHT!V36*T$4 -> 318.8733535 | U41: =-VMTVHT!W36*U$4 -> 324.826162 | V41: =-VMTVHT!X36*V$4 -> 330.73474 | W41: =-VMTVHT!Y36*W$4 -> 336.599341 | X41: =-VMTVHT!Z36*X$4 -> 342.4202174 | Y41: =-VMTVHT!AA36*Y$4 -> 348.1976199 | Z41: =-VMTVHT!AB36*Z$4 -> 353.9317981 | AA41: =-VMTVHT!AC36*AA$4 -> 359.623 | AB41: =-VMTVHT!AD36*AB$4 -> 365.2714725 | AC41: =-VMTVHT!AE36*AC$4 -> 370.8774612 | AD41: =-VMTVHT!AF36*AD$4 -> 376.4412101 | AE41: =-VMTVHT!AG36*AE$4 -> 381.9629621 | AF41: =-VMTVHT!AH36*AF$4 -> 0 | AG41: =-VMTVHT!AI36*AG$4 -> 0 | AH41: =-VMTVHT!AJ36*AH$4 -> 0 | AI41: =-VMTVHT!AK36*AI$4 -> 0 | AJ41: =-VMTVHT!AL36*AJ$4 -> 0
A42: Method in Use
A43: =IF(A$30=A$34,A35,A40) -> Auto, VHT per day | C43: =SUM(D43:AJ43) -> 38393.71599 | D43: =IF($A$30=$A$34,D35,D40) -> 0 | E43: 0 | F43: 0 | G43: 0 | H43: 0 | I43: 0 | J43: =IF($A$30=$A$34,J35,J40) -> 0 | K43: =IF($A$30=$A$34,K35,K40) -> 468.413478 | L43: =IF($A$30=$A$34,L35,L40) -> 1444.891639 | M43: 1485.548795 | N43: 1527.235939 | O43: 1569.977663 | P43: 1613.799125 | Q43: 1658.72606 | R43: 1704.784793 | S43: 1752.002254 | T43: 1800.405991 | U43: 1850.02418 | V43: 1900.885648 | W43: 1953.019876 | X43: 2006.457024 | Y43: 2061.227939 | Z43: 2117.364173 | AA43: 2174.898 | AB43: 2233.86243 | AC43: 2294.291226 | AD43: 2356.218921 | AE43: 2419.680835 | AF43: 0 | AG43: 0 | AH43: 0 | AI43: 0 | AJ43: =IF($A$30=$A$34,AJ35,AJ40) -> 0
A44: =IF(A$30=A$34,A36,"") ->  | C44: =SUM(D44:AJ44) -> 0 | D44: =IF($A$30=$A$34,D36,0) -> 0 | E44: 0 | F44: 0 | G44: 0 | H44: 0 | I44: 0 | J44: 0 | K44: =IF($A$30=$A$34,K36,0) -> 0 | L44: 0 | M44: 0 | N44: 0 | O44: 0 | P44: 0 | Q44: 0 | R44: 0 | S44: 0 | T44: 0 | U44: 0 | V44: 0 | W44: 0 | X44: 0 | Y44: 0 | Z44: 0 | AA44: 0 | AB44: 0 | AC44: 0 | AD44: 0 | AE44: 0 | AF44: 0 | AG44: 0 | AH44: 0 | AI44: 0 | AJ44: =IF($A$30=$A$34,AJ36,0) -> 0
A45: =IF(A$30=A$34,A37,A41) -> Truck, VHT per day | C45: =SUM(D45:AJ45) -> 6628.807702 | D45: =IF($A$30=$A$34,D37,D41) -> 0 | E45: 0 | F45: 0 | G45: 0 | H45: 0 | I45: 0 | J45: =IF($A$30=$A$34,J37,J41) -> 0 | K45: =IF($A$30=$A$34,K37,K41) -> 87.7550618 | L45: 269.6277066 | M45: 275.9436529 | N45: 282.2132902 | O45: 288.4368834 | P45: 294.6146958 | Q45: 300.7469892 | R45: 306.8340241 | S45: 312.8760597 | T45: 318.8733535 | U45: 324.826162 | V45: 330.73474 | W45: 336.599341 | X45: 342.4202174 | Y45: 348.1976199 | Z45: 353.9317981 | AA45: 359.623 | AB45: 365.2714725 | AC45: 370.8774612 | AD45: 376.4412101 | AE45: 381.9629621 | AF45: 0 | AG45: 0 | AH45: 0 | AI45: 0 | AJ45: =IF($A$30=$A$34,AJ37,AJ41) -> 0
A46: =IF(A$30=A$34,A38,"") ->  | C46: =SUM(D46:AJ46) -> 0 | D46: =IF($A$30=$A$34,D38,0) -> 0 | E46: 0 | F46: 0 | G46: 0 | H46: 0 | I46: 0 | J46: 0 | K46: 0 | L46: 0 | M46: 0 | N46: 0 | O46: 0 | P46: 0 | Q46: 0 | R46: 0 | S46: 0 | T46: 0 | U46: 0 | V46: 0 | W46: 0 | X46: 0 | Y46: 0 | Z46: 0 | AA46: 0 | AB46: 0 | AC46: 0 | AD46: 0 | AE46: 0 | AF46: 0 | AG46: 0 | AH46: 0 | AI46: 0 | AJ46: =IF($A$30=$A$34,AJ38,0) -> 0
A47: Travel Time Savings in Dollars | C47: =SUM(C48:C51) -> 1350694.866
A48: Existing auto, $ | C48: =SUM(D48:AJ48) -> 1138573.019 | D48: =(D43*$B$12)*((Parameters!$B$22*Parameters!$B$17*(1+Parameters!$B$29)^(D2-$D$2))+(Parameters!$B$23*Parameters!$B$18*(1+Parameters!$B$29)^(D2-$D$2))) -> 0 | E48: =(E43*$B$12)*((Parameters!$B$22*Parameters!$B$17*(1+Parameters!$B$29)^(E2-$D$2))+(Parameters!$B$23*Parameters!$B$18*(1+Parameters!$B$29)^(E2-$D$2))) -> 0 | F48: =(F43*$B$12)*((Parameters!$B$22*Parameters!$B$17*(1+Parameters!$B$29)^(F2-$D$2))+(Parameters!$B$23*Parameters!$B$18*(1+Parameters!$B$29)^(F2-$D$2))) -> 0 | G48: =(G43*$B$12)*((Parameters!$B$22*Parameters!$B$17*(1+Parameters!$B$29)^(G2-$D$2))+(Parameters!$B$23*Parameters!$B$18*(1+Parameters!$B$29)^(G2-$D$2))) -> 0 | H48: =(H43*$B$12)*((Parameters!$B$22*Parameters!$B$17*(1+Parameters!$B$29)^(H2-$D$2))+(Parameters!$B$23*Parameters!$B$18*(1+Parameters!$B$29)^(H2-$D$2))) -> 0 | I48: =(I43*$B$12)*((Parameters!$B$22*Parameters!$B$17*(1+Parameters!$B$29)^(I2-$D$2))+(Parameters!$B$23*Parameters!$B$18*(1+Parameters!$B$29)^(I2-$D$2))) -> 0 | J48: =(J43*$B$12)*((Parameters!$B$22*Parameters!$B$17*(1+Parameters!$B$29)^(J2-$D$2))+(Parameters!$B$23*Parameters!$B$18*(1+Parameters!$B$29)^(J2-$D$2))) -> 0 | K48: =(K43*$B$12)*((Parameters!$B$22*Parameters!$B$17*(1+Parameters!$B$29)^(K2-$D$2))+(Parameters!$B$23*Parameters!$B$18*(1+Parameters!$B$29)^(K2-$D$2))) -> 13890.89162 | L48: =(L43*$B$12)*((Parameters!$B$22*Parameters!$B$17*(1+Parameters!$B$29)^(L2-$D$2))+(Parameters!$B$23*Parameters!$B$18*(1+Parameters!$B$29)^(L2-$D$2))) -> 42848.53899 | M48: =(M43*$B$12)*((Parameters!$B$22*Parameters!$B$17*(1+Parameters!$B$29)^(M2-$D$2))+(Parameters!$B$23*Parameters!$B$18*(1+Parameters!$B$29)^(M2-$D$2))) -> 44054.23473 | N48: =(N43*$B$12)*((Parameters!$B$22*Parameters!$B$17*(1+Parameters!$B$29)^(N2-$D$2))+(Parameters!$B$23*Parameters!$B$18*(1+Parameters!$B$29)^(N2-$D$2))) -> 45290.47499 | O48: =(O43*$B$12)*((Parameters!$B$22*Parameters!$B$17*(1+Parameters!$B$29)^(O2-$D$2))+(Parameters!$B$23*Parameters!$B$18*(1+Parameters!$B$29)^(O2-$D$2))) -> 46557.98904 | P48: =(P43*$B$12)*((Parameters!$B$22*Parameters!$B$17*(1+Parameters!$B$29)^(P2-$D$2))+(Parameters!$B$23*Parameters!$B$18*(1+Parameters!$B$29)^(P2-$D$2))) -> 47857.52291 | Q48: =(Q43*$B$12)*((Parameters!$B$22*Parameters!$B$17*(1+Parameters!$B$29)^(Q2-$D$2))+(Parameters!$B$23*Parameters!$B$18*(1+Parameters!$B$29)^(Q2-$D$2))) -> 49189.83979 | R48: =(R43*$B$12)*((Parameters!$B$22*Parameters!$B$17*(1+Parameters!$B$29)^(R2-$D$2))+(Parameters!$B$23*Parameters!$B$18*(1+Parameters!$B$29)^(R2-$D$2))) -> 50555.72036 | S48: =(S43*$B$12)*((Parameters!$B$22*Parameters!$B$17*(1+Parameters!$B$29)^(S2-$D$2))+(Parameters!$B$23*Parameters!$B$18*(1+Parameters!$B$29)^(S2-$D$2))) -> 51955.96324 | T48: =(T43*$B$12)*((Parameters!$B$22*Parameters!$B$17*(1+Parameters!$B$29)^(T2-$D$2))+(Parameters!$B$23*Parameters!$B$18*(1+Parameters!$B$29)^(T2-$D$2))) -> 53391.38533 | U48: =(U43*$B$12)*((Parameters!$B$22*Parameters!$B$17*(1+Parameters!$B$29)^(U2-$D$2))+(Parameters!$B$23*Parameters!$B$18*(1+Parameters!$B$29)^(U2-$D$2))) -> 54862.82228 | V48: =(V43*$B$12)*((Parameters!$B$22*Parameters!$B$17*(1+Parameters!$B$29)^(V2-$D$2))+(Parameters!$B$23*Parameters!$B$18*(1+Parameters!$B$29)^(V2-$D$2))) -> 56371.12886 | W48: =(W43*$B$12)*((Parameters!$B$22*Parameters!$B$17*(1+Parameters!$B$29)^(W2-$D$2))+(Parameters!$B$23*Parameters!$B$18*(1+Parameters!$B$29)^(W2-$D$2))) -> 57917.17941 | X48: =(X43*$B$12)*((Parameters!$B$22*Parameters!$B$17*(1+Parameters!$B$29)^(X2-$D$2))+(Parameters!$B$23*Parameters!$B$18*(1+Parameters!$B$29)^(X2-$D$2))) -> 59501.86828 | Y48: =(Y43*$B$12)*((Parameters!$B$22*Parameters!$B$17*(1+Parameters!$B$29)^(Y2-$D$2))+(Parameters!$B$23*Parameters!$B$18*(1+Parameters!$B$29)^(Y2-$D$2))) -> 61126.11028 | Z48: =(Z43*$B$12)*((Parameters!$B$22*Parameters!$B$17*(1+Parameters!$B$29)^(Z2-$D$2))+(Parameters!$B$23*Parameters!$B$18*(1+Parameters!$B$29)^(Z2-$D$2))) -> 62790.84108 | AA48: =(AA43*$B$12)*((Parameters!$B$22*Parameters!$B$17*(1+Parameters!$B$29)^(AA2-$D$2))+(Parameters!$B$23*Parameters!$B$18*(1+Parameters!$B$29)^(AA2-$D$2))) -> 64497.01777 | AB48: =(AB43*$B$12)*((Parameters!$B$22*Parameters!$B$17*(1+Parameters!$B$29)^(AB2-$D$2))+(Parameters!$B$23*Parameters!$B$18*(1+Parameters!$B$29)^(AB2-$D$2))) -> 66245.61926 | AC48: =(AC43*$B$12)*((Parameters!$B$22*Parameters!$B$17*(1+Parameters!$B$29)^(AC2-$D$2))+(Parameters!$B$23*Parameters!$B$18*(1+Parameters!$B$29)^(AC2-$D$2))) -> 68037.64681 | AD48: =(AD43*$B$12)*((Parameters!$B$22*Parameters!$B$17*(1+Parameters!$B$29)^(AD2-$D$2))+(Parameters!$B$23*Parameters!$B$18*(1+Parameters!$B$29)^(AD2-$D$2))) -> 69874.1245 | AE48: =(AE43*$B$12)*((Parameters!$B$22*Parameters!$B$17*(1+Parameters!$B$29)^(AE2-$D$2))+(Parameters!$B$23*Parameters!$B$18*(1+Parameters!$B$29)^(AE2-$D$2))) -> 71756.09974 | AF48: =(AF43*$B$12)*((Parameters!$B$22*Parameters!$B$17*(1+Parameters!$B$29)^(AF2-$D$2))+(Parameters!$B$23*Parameters!$B$18*(1+Parameters!$B$29)^(AF2-$D$2))) -> 0 | AG48: =(AG43*$B$12)*((Parameters!$B$22*Parameters!$B$17*(1+Parameters!$B$29)^(AG2-$D$2))+(Parameters!$B$23*Parameters!$B$18*(1+Parameters!$B$29)^(AG2-$D$2))) -> 0 | AH48: =(AH43*$B$12)*((Parameters!$B$22*Parameters!$B$17*(1+Parameters!$B$29)^(AH2-$D$2))+(Parameters!$B$23*Parameters!$B$18*(1+Parameters!$B$29)^(AH2-$D$2))) -> 0 | AI48: =(AI43*$B$12)*((Parameters!$B$22*Parameters!$B$17*(1+Parameters!$B$29)^(AI2-$D$2))+(Parameters!$B$23*Parameters!$B$18*(1+Parameters!$B$29)^(AI2-$D$2))) -> 0 | AJ48: =(AJ43*$B$12)*((Parameters!$B$22*Parameters!$B$17*(1+Parameters!$B$29)^(AJ2-$D$2))+(Parameters!$B$23*Parameters!$B$18*(1+Parameters!$B$29)^(AJ2-$D$2))) -> 0
A49: New auto, $ | C49: =SUM(D49:AJ49) -> 0 | D49: =(D44*$B$12*0.5)*((Parameters!$B$22*Parameters!$B$17*(1+Parameters!$B$29)^(D2-$D$2))+(Parameters!$B$23*Parameters!$B$18*(1+Parameters!$B$29)^(D2-$D$2))) -> 0 | E49: =(E44*$B$12*0.5)*((Parameters!$B$22*Parameters!$B$17*(1+Parameters!$B$29)^(E2-$D$2))+(Parameters!$B$23*Parameters!$B$18*(1+Parameters!$B$29)^(E2-$D$2))) -> 0 | F49: =(F44*$B$12*0.5)*((Parameters!$B$22*Parameters!$B$17*(1+Parameters!$B$29)^(F2-$D$2))+(Parameters!$B$23*Parameters!$B$18*(1+Parameters!$B$29)^(F2-$D$2))) -> 0 | G49: =(G44*$B$12*0.5)*((Parameters!$B$22*Parameters!$B$17*(1+Parameters!$B$29)^(G2-$D$2))+(Parameters!$B$23*Parameters!$B$18*(1+Parameters!$B$29)^(G2-$D$2))) -> 0 | H49: =(H44*$B$12*0.5)*((Parameters!$B$22*Parameters!$B$17*(1+Parameters!$B$29)^(H2-$D$2))+(Parameters!$B$23*Parameters!$B$18*(1+Parameters!$B$29)^(H2-$D$2))) -> 0 | I49: =(I44*$B$12*0.5)*((Parameters!$B$22*Parameters!$B$17*(1+Parameters!$B$29)^(I2-$D$2))+(Parameters!$B$23*Parameters!$B$18*(1+Parameters!$B$29)^(I2-$D$2))) -> 0 | J49: =(J44*$B$12*0.5)*((Parameters!$B$22*Parameters!$B$17*(1+Parameters!$B$29)^(J2-$D$2))+(Parameters!$B$23*Parameters!$B$18*(1+Parameters!$B$29)^(J2-$D$2))) -> 0 | K49: =(K44*$B$12*0.5)*((Parameters!$B$22*Parameters!$B$17*(1+Parameters!$B$29)^(K2-$D$2))+(Parameters!$B$23*Parameters!$B$18*(1+Parameters!$B$29)^(K2-$D$2))) -> 0 | L49: =(L44*$B$12*0.5)*((Parameters!$B$22*Parameters!$B$17*(1+Parameters!$B$29)^(L2-$D$2))+(Parameters!$B$23*Parameters!$B$18*(1+Parameters!$B$29)^(L2-$D$2))) -> 0 | M49: =(M44*$B$12*0.5)*((Parameters!$B$22*Parameters!$B$17*(1+Parameters!$B$29)^(M2-$D$2))+(Parameters!$B$23*Parameters!$B$18*(1+Parameters!$B$29)^(M2-$D$2))) -> 0 | N49: =(N44*$B$12*0.5)*((Parameters!$B$22*Parameters!$B$17*(1+Parameters!$B$29)^(N2-$D$2))+(Parameters!$B$23*Parameters!$B$18*(1+Parameters!$B$29)^(N2-$D$2))) -> 0 | O49: =(O44*$B$12*0.5)*((Parameters!$B$22*Parameters!$B$17*(1+Parameters!$B$29)^(O2-$D$2))+(Parameters!$B$23*Parameters!$B$18*(1+Parameters!$B$29)^(O2-$D$2))) -> 0 | P49: =(P44*$B$12*0.5)*((Parameters!$B$22*Parameters!$B$17*(1+Parameters!$B$29)^(P2-$D$2))+(Parameters!$B$23*Parameters!$B$18*(1+Parameters!$B$29)^(P2-$D$2))) -> 0 | Q49: =(Q44*$B$12*0.5)*((Parameters!$B$22*Parameters!$B$17*(1+Parameters!$B$29)^(Q2-$D$2))+(Parameters!$B$23*Parameters!$B$18*(1+Parameters!$B$29)^(Q2-$D$2))) -> 0 | R49: =(R44*$B$12*0.5)*((Parameters!$B$22*Parameters!$B$17*(1+Parameters!$B$29)^(R2-$D$2))+(Parameters!$B$23*Parameters!$B$18*(1+Parameters!$B$29)^(R2-$D$2))) -> 0 | S49: =(S44*$B$12*0.5)*((Parameters!$B$22*Parameters!$B$17*(1+Parameters!$B$29)^(S2-$D$2))+(Parameters!$B$23*Parameters!$B$18*(1+Parameters!$B$29)^(S2-$D$2))) -> 0 | T49: =(T44*$B$12*0.5)*((Parameters!$B$22*Parameters!$B$17*(1+Parameters!$B$29)^(T2-$D$2))+(Parameters!$B$23*Parameters!$B$18*(1+Parameters!$B$29)^(T2-$D$2))) -> 0 | U49: =(U44*$B$12*0.5)*((Parameters!$B$22*Parameters!$B$17*(1+Parameters!$B$29)^(U2-$D$2))+(Parameters!$B$23*Parameters!$B$18*(1+Parameters!$B$29)^(U2-$D$2))) -> 0 | V49: =(V44*$B$12*0.5)*((Parameters!$B$22*Parameters!$B$17*(1+Parameters!$B$29)^(V2-$D$2))+(Parameters!$B$23*Parameters!$B$18*(1+Parameters!$B$29)^(V2-$D$2))) -> 0 | W49: =(W44*$B$12*0.5)*((Parameters!$B$22*Parameters!$B$17*(1+Parameters!$B$29)^(W2-$D$2))+(Parameters!$B$23*Parameters!$B$18*(1+Parameters!$B$29)^(W2-$D$2))) -> 0 | X49: =(X44*$B$12*0.5)*((Parameters!$B$22*Parameters!$B$17*(1+Parameters!$B$29)^(X2-$D$2))+(Parameters!$B$23*Parameters!$B$18*(1+Parameters!$B$29)^(X2-$D$2))) -> 0 | Y49: =(Y44*$B$12*0.5)*((Parameters!$B$22*Parameters!$B$17*(1+Parameters!$B$29)^(Y2-$D$2))+(Parameters!$B$23*Parameters!$B$18*(1+Parameters!$B$29)^(Y2-$D$2))) -> 0 | Z49: =(Z44*$B$12*0.5)*((Parameters!$B$22*Parameters!$B$17*(1+Parameters!$B$29)^(Z2-$D$2))+(Parameters!$B$23*Parameters!$B$18*(1+Parameters!$B$29)^(Z2-$D$2))) -> 0 | AA49: =(AA44*$B$12*0.5)*((Parameters!$B$22*Parameters!$B$17*(1+Parameters!$B$29)^(AA2-$D$2))+(Parameters!$B$23*Parameters!$B$18*(1+Parameters!$B$29)^(AA2-$D$2))) -> 0 | AB49: =(AB44*$B$12*0.5)*((Parameters!$B$22*Parameters!$B$17*(1+Parameters!$B$29)^(AB2-$D$2))+(Parameters!$B$23*Parameters!$B$18*(1+Parameters!$B$29)^(AB2-$D$2))) -> 0 | AC49: =(AC44*$B$12*0.5)*((Parameters!$B$22*Parameters!$B$17*(1+Parameters!$B$29)^(AC2-$D$2))+(Parameters!$B$23*Parameters!$B$18*(1+Parameters!$B$29)^(AC2-$D$2))) -> 0 | AD49: =(AD44*$B$12*0.5)*((Parameters!$B$22*Parameters!$B$17*(1+Parameters!$B$29)^(AD2-$D$2))+(Parameters!$B$23*Parameters!$B$18*(1+Parameters!$B$29)^(AD2-$D$2))) -> 0 | AE49: =(AE44*$B$12*0.5)*((Parameters!$B$22*Parameters!$B$17*(1+Parameters!$B$29)^(AE2-$D$2))+(Parameters!$B$23*Parameters!$B$18*(1+Parameters!$B$29)^(AE2-$D$2))) -> 0 | AF49: =(AF44*$B$12*0.5)*((Parameters!$B$22*Parameters!$B$17*(1+Parameters!$B$29)^(AF2-$D$2))+(Parameters!$B$23*Parameters!$B$18*(1+Parameters!$B$29)^(AF2-$D$2))) -> 0 | AG49: =(AG44*$B$12*0.5)*((Parameters!$B$22*Parameters!$B$17*(1+Parameters!$B$29)^(AG2-$D$2))+(Parameters!$B$23*Parameters!$B$18*(1+Parameters!$B$29)^(AG2-$D$2))) -> 0 | AH49: =(AH44*$B$12*0.5)*((Parameters!$B$22*Parameters!$B$17*(1+Parameters!$B$29)^(AH2-$D$2))+(Parameters!$B$23*Parameters!$B$18*(1+Parameters!$B$29)^(AH2-$D$2))) -> 0 | AI49: =(AI44*$B$12*0.5)*((Parameters!$B$22*Parameters!$B$17*(1+Parameters!$B$29)^(AI2-$D$2))+(Parameters!$B$23*Parameters!$B$18*(1+Parameters!$B$29)^(AI2-$D$2))) -> 0 | AJ49: =(AJ44*$B$12*0.5)*((Parameters!$B$22*Parameters!$B$17*(1+Parameters!$B$29)^(AJ2-$D$2))+(Parameters!$B$23*Parameters!$B$18*(1+Parameters!$B$29)^(AJ2-$D$2))) -> 0
A50: Existing truck, $ | C50: =SUM(D50:AJ50) -> 212121.8464 | D50: =(D45*Parameters!$B$26*Parameters!$B$33*(1+Parameters!$B$29)^(D2-$D$2)) -> 0 | E50: =(E45*Parameters!$B$26*Parameters!$B$33*(1+Parameters!$B$29)^(E2-$D$2)) -> 0 | F50: =(F45*Parameters!$B$26*Parameters!$B$33*(1+Parameters!$B$29)^(F2-$D$2)) -> 0 | G50: =(G45*Parameters!$B$26*Parameters!$B$33*(1+Parameters!$B$29)^(G2-$D$2)) -> 0 | H50: =(H45*Parameters!$B$26*Parameters!$B$33*(1+Parameters!$B$29)^(H2-$D$2)) -> 0 | I50: =(I45*Parameters!$B$26*Parameters!$B$33*(1+Parameters!$B$29)^(I2-$D$2)) -> 0 | J50: =(J45*Parameters!$B$26*Parameters!$B$33*(1+Parameters!$B$29)^(J2-$D$2)) -> 0 | K50: =(K45*Parameters!$B$26*Parameters!$B$33*(1+Parameters!$B$29)^(K2-$D$2)) -> 2808.161978 | L50: =(L45*Parameters!$B$26*Parameters!$B$33*(1+Parameters!$B$29)^(L2-$D$2)) -> 8628.086612 | M50: =(M45*Parameters!$B$26*Parameters!$B$33*(1+Parameters!$B$29)^(M2-$D$2)) -> 8830.196892 | N50: =(N45*Parameters!$B$26*Parameters!$B$33*(1+Parameters!$B$29)^(N2-$D$2)) -> 9030.825287 | O50: =(O45*Parameters!$B$26*Parameters!$B$33*(1+Parameters!$B$29)^(O2-$D$2)) -> 9229.98027 | P50: =(P45*Parameters!$B$26*Parameters!$B$33*(1+Parameters!$B$29)^(P2-$D$2)) -> 9427.670265 | Q50: =(Q45*Parameters!$B$26*Parameters!$B$33*(1+Parameters!$B$29)^(Q2-$D$2)) -> 9623.903654 | R50: =(R45*Parameters!$B$26*Parameters!$B$33*(1+Parameters!$B$29)^(R2-$D$2)) -> 9818.688772 | S50: =(S45*Parameters!$B$26*Parameters!$B$33*(1+Parameters!$B$29)^(S2-$D$2)) -> 10012.03391 | T50: =(T45*Parameters!$B$26*Parameters!$B$33*(1+Parameters!$B$29)^(T2-$D$2)) -> 10203.94731 | U50: =(U45*Parameters!$B$26*Parameters!$B$33*(1+Parameters!$B$29)^(U2-$D$2)) -> 10394.43718 | V50: =(V45*Parameters!$B$26*Parameters!$B$33*(1+Parameters!$B$29)^(V2-$D$2)) -> 10583.51168 | W50: =(W45*Parameters!$B$26*Parameters!$B$33*(1+Parameters!$B$29)^(W2-$D$2)) -> 10771.17891 | X50: =(X45*Parameters!$B$26*Parameters!$B$33*(1+Parameters!$B$29)^(X2-$D$2)) -> 10957.44696 | Y50: =(Y45*Parameters!$B$26*Parameters!$B$33*(1+Parameters!$B$29)^(Y2-$D$2)) -> 11142.32384 | Z50: =(Z45*Parameters!$B$26*Parameters!$B$33*(1+Parameters!$B$29)^(Z2-$D$2)) -> 11325.81754 | AA50: =(AA45*Parameters!$B$26*Parameters!$B$33*(1+Parameters!$B$29)^(AA2-$D$2)) -> 11507.936 | AB50: =(AB45*Parameters!$B$26*Parameters!$B$33*(1+Parameters!$B$29)^(AB2-$D$2)) -> 11688.68712 | AC50: =(AC45*Parameters!$B$26*Parameters!$B$33*(1+Parameters!$B$29)^(AC2-$D$2)) -> 11868.07876 | AD50: =(AD45*Parameters!$B$26*Parameters!$B$33*(1+Parameters!$B$29)^(AD2-$D$2)) -> 12046.11872 | AE50: =(AE45*Parameters!$B$26*Parameters!$B$33*(1+Parameters!$B$29)^(AE2-$D$2)) -> 12222.81479 | AF50: =(AF45*Parameters!$B$26*Parameters!$B$33*(1+Parameters!$B$29)^(AF2-$D$2)) -> 0 | AG50: =(AG45*Parameters!$B$26*Parameters!$B$33*(1+Parameters!$B$29)^(AG2-$D$2)) -> 0 | AH50: =(AH45*Parameters!$B$26*Parameters!$B$33*(1+Parameters!$B$29)^(AH2-$D$2)) -> 0 | AI50: =(AI45*Parameters!$B$26*Parameters!$B$33*(1+Parameters!$B$29)^(AI2-$D$2)) -> 0 | AJ50: =(AJ45*Parameters!$B$26*Parameters!$B$33*(1+Parameters!$B$29)^(AJ2-$D$2)) -> 0
A51: New truck, $ | C51: =SUM(D51:AJ51) -> 0 | D51: =(D46*Parameters!$B$26*0.5*(1+Parameters!$B$29)^(D2-$D$2)) -> 0 | E51: =(E46*Parameters!$B$26*0.5*(1+Parameters!$B$29)^(E2-$D$2)) -> 0 | F51: =(F46*Parameters!$B$26*0.5*(1+Parameters!$B$29)^(F2-$D$2)) -> 0 | G51: =(G46*Parameters!$B$26*0.5*(1+Parameters!$B$29)^(G2-$D$2)) -> 0 | H51: =(H46*Parameters!$B$26*0.5*(1+Parameters!$B$29)^(H2-$D$2)) -> 0 | I51: =(I46*Parameters!$B$26*0.5*(1+Parameters!$B$29)^(I2-$D$2)) -> 0 | J51: =(J46*Parameters!$B$26*0.5*(1+Parameters!$B$29)^(J2-$D$2)) -> 0 | K51: =(K46*Parameters!$B$26*0.5*(1+Parameters!$B$29)^(K2-$D$2)) -> 0 | L51: =(L46*Parameters!$B$26*0.5*(1+Parameters!$B$29)^(L2-$D$2)) -> 0 | M51: =(M46*Parameters!$B$26*0.5*(1+Parameters!$B$29)^(M2-$D$2)) -> 0 | N51: =(N46*Parameters!$B$26*0.5*(1+Parameters!$B$29)^(N2-$D$2)) -> 0 | O51: =(O46*Parameters!$B$26*0.5*(1+Parameters!$B$29)^(O2-$D$2)) -> 0 | P51: =(P46*Parameters!$B$26*0.5*(1+Parameters!$B$29)^(P2-$D$2)) -> 0 | Q51: =(Q46*Parameters!$B$26*0.5*(1+Parameters!$B$29)^(Q2-$D$2)) -> 0 | R51: =(R46*Parameters!$B$26*0.5*(1+Parameters!$B$29)^(R2-$D$2)) -> 0 | S51: =(S46*Parameters!$B$26*0.5*(1+Parameters!$B$29)^(S2-$D$2)) -> 0 | T51: =(T46*Parameters!$B$26*0.5*(1+Parameters!$B$29)^(T2-$D$2)) -> 0 | U51: =(U46*Parameters!$B$26*0.5*(1+Parameters!$B$29)^(U2-$D$2)) -> 0 | V51: =(V46*Parameters!$B$26*0.5*(1+Parameters!$B$29)^(V2-$D$2)) -> 0 | W51: =(W46*Parameters!$B$26*0.5*(1+Parameters!$B$29)^(W2-$D$2)) -> 0 | X51: =(X46*Parameters!$B$26*0.5*(1+Parameters!$B$29)^(X2-$D$2)) -> 0 | Y51: =(Y46*Parameters!$B$26*0.5*(1+Parameters!$B$29)^(Y2-$D$2)) -> 0 | Z51: =(Z46*Parameters!$B$26*0.5*(1+Parameters!$B$29)^(Z2-$D$2)) -> 0 | AA51: =(AA46*Parameters!$B$26*0.5*(1+Parameters!$B$29)^(AA2-$D$2)) -> 0 | AB51: =(AB46*Parameters!$B$26*0.5*(1+Parameters!$B$29)^(AB2-$D$2)) -> 0 | AC51: =(AC46*Parameters!$B$26*0.5*(1+Parameters!$B$29)^(AC2-$D$2)) -> 0 | AD51: =(AD46*Parameters!$B$26*0.5*(1+Parameters!$B$29)^(AD2-$D$2)) -> 0 | AE51: =(AE46*Parameters!$B$26*0.5*(1+Parameters!$B$29)^(AE2-$D$2)) -> 0 | AF51: =(AF46*Parameters!$B$26*0.5*(1+Parameters!$B$29)^(AF2-$D$2)) -> 0 | AG51: =(AG46*Parameters!$B$26*0.5*(1+Parameters!$B$29)^(AG2-$D$2)) -> 0 | AH51: =(AH46*Parameters!$B$26*0.5*(1+Parameters!$B$29)^(AH2-$D$2)) -> 0 | AI51: =(AI46*Parameters!$B$26*0.5*(1+Parameters!$B$29)^(AI2-$D$2)) -> 0 | AJ51: =(AJ46*Parameters!$B$26*0.5*(1+Parameters!$B$29)^(AJ2-$D$2)) -> 0
A52: Auto in PV | C52: =SUM(D52:AJ52) -> 358032.5774 | D52: =(D48+D49)*D5 -> 0 | E52: =(E48+E49)*E5 -> 0 | F52: =(F48+F49)*F5 -> 0 | G52: 0 | H52: 0 | I52: =(I48+I49)*I5 -> 0 | J52: =(J48+J49)*J5 -> 0 | K52: 8650.549173 | L52: 24938.23981 | M52: 23962.58477 | N52: 23023.3809 | O52: 22119.36521 | P52: 21249.31251 | Q52: 20412.03471 | R52: 19606.37999 | S52: 18831.23207 | T52: 18085.50944 | U52: 17368.16452 | V52: 16678.18295 | W52: 16014.58273 | X52: 15376.41347 | Y52: 14762.75557 | Z52: 14172.71948 | AA52: 13605.44488 | AB52: 13060.09992 | AC52: 12535.88047 | AD52: 12032.00932 | AE52: 11547.73549 | AF52: 0 | AG52: 0 | AH52: 0 | AI52: 0 | AJ52: 0
A53: Out-of-Pocket Cost Savings
A56: Vehicle Operating Cost Savings
A57: Change in VMT
A58: Automobiles | C58: =SUM(D58:AJ58) -> -1554640.953 | D58: =VMTVHT!F19*D$4 -> 0 | E58: =VMTVHT!G19*E$4 -> 0 | F58: =VMTVHT!H19*F$4 -> 0 | G58: =VMTVHT!I19*G$4 -> 0 | H58: =VMTVHT!J19*H$4 -> 0 | I58: =VMTVHT!K19*BCAInputs!I19 -> 0 | J58: =VMTVHT!L19*J$4 -> 0 | K58: =VMTVHT!M19*BCAInputs!$I$19 -> -18655.39561 | L58: =VMTVHT!N19*L$4 -> -57631.16198 | M58: =VMTVHT!O19*M$4 -> -59340.94587 | N58: =VMTVHT!P19*N$4 -> -61096.67732 | O58: =VMTVHT!Q19*O$4 -> -62899.52305 | P58: =VMTVHT!R19*P$4 -> -64750.67833 | Q58: =VMTVHT!S19*Q$4 -> -66651.36767 | R58: =VMTVHT!T19*R$4 -> -68602.84551 | S58: =VMTVHT!U19*S$4 -> -70606.39696 | T58: =VMTVHT!V19*T$4 -> -72663.33847 | U58: =VMTVHT!W19*U$4 -> -74775.01864 | V58: =VMTVHT!X19*V$4 -> -76942.81896 | W58: =VMTVHT!Y19*W$4 -> -79168.15457 | X58: =VMTVHT!Z19*X$4 -> -81452.47511 | Y58: =VMTVHT!AA19*Y$4 -> -83797.2655 | Z58: =VMTVHT!AB19*Z$4 -> -86204.04679 | AA58: =VMTVHT!AC19*AA$4 -> -88674.377 | AB58: =VMTVHT!AD19*AB$4 -> -91209.85205 | AC58: =VMTVHT!AE19*AC$4 -> -93812.1066 | AD58: =VMTVHT!AF19*AD$4 -> -96482.81501 | AE58: =VMTVHT!AG19*AE$4 -> -99223.69225 | AF58: =VMTVHT!AH19*AF$4 -> 0 | AG58: =VMTVHT!AI19*AG$4 -> 0 | AH58: =VMTVHT!AJ19*AH$4 -> 0 | AI58: =VMTVHT!AK19*AI$4 -> 0 | AJ58: =VMTVHT!AL19*AJ$4 -> 0
A59: Trucks | C59: =SUM(D59:AJ59) -> -276227.0271 | D59: =VMTVHT!F20*D$4 -> 0 | E59: =VMTVHT!G20*E$4 -> 0 | F59: =VMTVHT!H20*F$4 -> 0 | G59: =VMTVHT!I20*G$4 -> 0 | H59: =VMTVHT!J20*H$4 -> 0 | I59: =VMTVHT!K20*BCAInputs!I19 -> 0 | J59: =VMTVHT!L20*J$4 -> 0 | K59: =VMTVHT!M20*BCAInputs!$I$19 -> -3681.905664 | L59: =VMTVHT!N20*L$4 -> -11311.01258 | M59: =VMTVHT!O20*M$4 -> -11573.11837 | N59: =VMTVHT!P20*N$4 -> -11832.06201 | O59: =VMTVHT!Q20*O$4 -> -12087.87093 | P59: =VMTVHT!R20*P$4 -> -12340.57233 | Q59: =VMTVHT!S20*Q$4 -> -12590.19321 | R59: =VMTVHT!T20*R$4 -> -12836.76037 | S59: =VMTVHT!U20*S$4 -> -13080.30039 | T59: =VMTVHT!V20*T$4 -> -13320.83963 | U59: =VMTVHT!W20*U$4 -> -13558.40426 | V59: =VMTVHT!X20*V$4 -> -13793.02025 | W59: =VMTVHT!Y20*W$4 -> -14024.71335 | X59: =VMTVHT!Z20*X$4 -> -14253.50911 | Y59: =VMTVHT!AA20*Y$4 -> -14479.4329 | Z59: =VMTVHT!AB20*Z$4 -> -14702.50988 | AA59: =VMTVHT!AC20*AA$4 -> -14922.765 | AB59: =VMTVHT!AD20*AB$4 -> -15140.22303 | AC59: =VMTVHT!AE20*AC$4 -> -15354.90855 | AD59: =VMTVHT!AF20*AD$4 -> -15566.84592 | AE59: =VMTVHT!AG20*AE$4 -> -15776.05934 | AF59: =VMTVHT!AH20*AF$4 -> 0 | AG59: =VMTVHT!AI20*AG$4 -> 0 | AH59: =VMTVHT!AJ20*AH$4 -> 0 | AI59: =VMTVHT!AK20*AI$4 -> 0 | AJ59: =VMTVHT!AL20*AJ$4 -> 0
A61: Vehicle Operating Cost Savings in Dollars
A63: Automobiles | B63: =Parameters!$B$36 -> 0.45 | C63: =SUM(D63:AJ63) -> 699588.429 | D63: =-D58*$B63*D$4 -> 0 | E63: =-E58*$B63*E$4 -> 0 | F63: 0 | G63: 0 | H63: 0 | I63: =-I58*$B63 -> 0 | J63: =-J58*$B63*J$4 -> 0 | K63: =-K58*$B63 -> 8394.928022 | L63: =-L58*$B63*L$4 -> 25934.02289 | M63: 26703.42564 | N63: 27493.5048 | O63: 28304.78537 | P63: 29137.80525 | Q63: 29993.11545 | R63: 30871.28048 | S63: 31772.87863 | T63: 32698.50231 | U63: 33648.75839 | V63: 34624.26853 | W63: 35625.66956 | X63: 36653.6138 | Y63: 37708.76948 | Z63: 38791.82105 | AA63: 39903.46965 | AB63: 41044.43342 | AC63: 42215.44797 | AD63: 43417.26675 | AE63: 44650.66151 | AF63: 0 | AG63: 0 | AH63: 0 | AI63: 0 | AJ63: 0
A64: Trucks | B64: =Parameters!$B$37 -> 0.94 | C64: =SUM(D64:AJ64) -> 259653.4055 | D64: =-D59*$B64*D$4 -> 0 | E64: =-E59*$B64*E$4 -> 0 | F64: 0 | G64: 0 | H64: 0 | I64: =-I59*$B64 -> 0 | J64: =-J59*$B64*J$4 -> 0 | K64: =-K59*$B64 -> 3460.991324 | L64: 10632.35182 | M64: 10878.73127 | N64: 11122.13829 | O64: 11362.59867 | P64: 11600.13799 | Q64: 11834.78162 | R64: 12066.55475 | S64: 12295.48237 | T64: 12521.58925 | U64: 12744.90001 | V64: 12965.43903 | W64: 13183.23054 | X64: 13398.29857 | Y64: 13610.66693 | Z64: 13820.35929 | AA64: 14027.3991 | AB64: 14231.80965 | AC64: 14433.61403 | AD64: 14632.83517 | AE64: 14829.49578 | AF64: 0 | AG64: 0 | AH64: 0 | AI64: 0 | AJ64: 0
A65: Total Vehicle Operating Cost Savings | C65: =SUM(D65:AJ65) -> 959241.8344 | D65: =SUM(D63:D64) -> 0 | E65: =SUM(E63:E64) -> 0 | F65: 0 | G65: 0 | H65: 0 | I65: =SUM(I63:I64) -> 0 | J65: 0 | K65: 11855.91935 | L65: 36566.37471 | M65: 37582.15691 | N65: 38615.64309 | O65: 39667.38404 | P65: 40737.94324 | Q65: 41827.89707 | R65: 42937.83523 | S65: 44068.361 | T65: 45220.09156 | U65: 46393.65839 | V65: 47589.70756 | W65: 48808.9001 | X65: 50051.91237 | Y65: 51319.43641 | Z65: 52612.18034 | AA65: 53930.86875 | AB65: 55276.24307 | AC65: 56649.062 | AD65: 58050.10192 | AE65: 59480.1573 | AF65: 0 | AG65: 0 | AH65: 0 | AI65: 0 | AJ65: 0
A66: Automobiles in PV | C66: =SUM(D66:AJ66) -> 219249.9953 | D66: =D63*D5 -> 0 | E66: =E63*E5 -> 0 | F66: 0 | G66: 0 | H66: 0 | I66: 0 | J66: =J63*J5 -> 0 | K66: 5227.939259 | L66: 15093.83744 | M66: 14524.89425 | N66: 13976.3037 | O66: 13447.39963 | P66: 12937.534 | Q66: 12446.07659 | R66: 11972.41482 | S66: 11515.95339 | T66: 11076.11403 | U66: 10652.33518 | V66: 10244.07169 | W66: 9850.794502 | X66: 9471.990328 | Y66: 9107.161313 | Z66: 8755.824713 | AA66: 8417.512557 | AB66: 8091.771317 | AC66: 7778.161567 | AD66: 7476.257654 | AE66: 7185.647357 | AF66: 0 | AG66: 0 | AH66: 0 | AI66: 0 | AJ66: 0
A67: Emission Cost Savings
A68: Changes in Emissions from Automobiles*
A69: NOX, tons (short) | C69: =SUM(D69:AJ69) -> -0.04531685145 | D69: =IF($B$86=1,IFERROR(D$22/(Parameters!$B$12*1000)*EmissionLookup!I14,0),EmissionCalcs!I278) -> 0 | E69: =IF($B$86=1,IFERROR(E$22/(Parameters!$B$12*1000)*EmissionLookup!J14,0),EmissionCalcs!J278) -> 0 | F69: =IF($B$86=1,IFERROR(F$22/(Parameters!$B$12*1000)*EmissionLookup!K14,0),EmissionCalcs!K278) -> 0 | G69: =IF($B$86=1,IFERROR(G$22/(Parameters!$B$12*1000)*EmissionLookup!L14,0),EmissionCalcs!L278) -> 0 | H69: =IF($B$86=1,IFERROR(H$22/(Parameters!$B$12*1000)*EmissionLookup!M14,0),EmissionCalcs!M278) -> 0 | I69: =IF($B$86=1,IFERROR(I$22/(Parameters!$B$12*1000)*EmissionLookup!N14,0),EmissionCalcs!N278) -> 0 | J69: =IF($B$86=1,IFERROR(J$22/(Parameters!$B$12*1000)*EmissionLookup!O14,0),EmissionCalcs!O278) -> 0 | K69: =IF($B$86=1,IFERROR(K$22/(Parameters!$B$12*1000)*EmissionLookup!P14,0),EmissionCalcs!P278) -> -0.0006993957912 | L69: =IF($B$86=1,IFERROR(L$22/(Parameters!$B$12*1000)*EmissionLookup!Q14,0),EmissionCalcs!Q278) -> -0.001674075515 | M69: =IF($B$86=1,IFERROR(M$22/(Parameters!$B$12*1000)*EmissionLookup!R14,0),EmissionCalcs!R278) -> -0.001723741482 | N69: =IF($B$86=1,IFERROR(N$22/(Parameters!$B$12*1000)*EmissionLookup!S14,0),EmissionCalcs!S278) -> -0.001774742137 | O69: =IF($B$86=1,IFERROR(O$22/(Parameters!$B$12*1000)*EmissionLookup!T14,0),EmissionCalcs!T278) -> -0.001827111373 | P69: =IF($B$86=1,IFERROR(P$22/(Parameters!$B$12*1000)*EmissionLookup!U14,0),EmissionCalcs!U278) -> -0.001880883909 | Q69: =IF($B$86=1,IFERROR(Q$22/(Parameters!$B$12*1000)*EmissionLookup!V14,0),EmissionCalcs!V278) -> -0.001936095315 | R69: =IF($B$86=1,IFERROR(R$22/(Parameters!$B$12*1000)*EmissionLookup!W14,0),EmissionCalcs!W278) -> -0.00199278203 | S69: =IF($B$86=1,IFERROR(S$22/(Parameters!$B$12*1000)*EmissionLookup!X14,0),EmissionCalcs!X278) -> -0.002050981384 | T69: =IF($B$86=1,IFERROR(T$22/(Parameters!$B$12*1000)*EmissionLookup!Y14,0),EmissionCalcs!Y278) -> -0.002110731619 | U69: =IF($B$86=1,IFERROR(U$22/(Parameters!$B$12*1000)*EmissionLookup!Z14,0),EmissionCalcs!Z278) -> -0.002172071906 | V69: =IF($B$86=1,IFERROR(V$22/(Parameters!$B$12*1000)*EmissionLookup!AA14,0),EmissionCalcs!AA278) -> -0.002235042378 | W69: =IF($B$86=1,IFERROR(W$22/(Parameters!$B$12*1000)*EmissionLookup!AB14,0),EmissionCalcs!AB278) -> -0.00229968414 | X69: =IF($B$86=1,IFERROR(X$22/(Parameters!$B$12*1000)*EmissionLookup!AC14,0),EmissionCalcs!AC278) -> -0.002366039302 | Y69: =IF($B$86=1,IFERROR(Y$22/(Parameters!$B$12*1000)*EmissionLookup!AD14,0),EmissionCalcs!AD278) -> -0.002434150998 | Z69: =IF($B$86=1,IFERROR(Z$22/(Parameters!$B$12*1000)*EmissionLookup!AE14,0),EmissionCalcs!AE278) -> -0.002504063411 | AA69: =IF($B$86=1,IFERROR(AA$22/(Parameters!$B$12*1000)*EmissionLookup!AF14,0),EmissionCalcs!AF278) -> -0.0025758218 | AB69: =IF($B$86=1,IFERROR(AB$22/(Parameters!$B$12*1000)*EmissionLookup!AG14,0),EmissionCalcs!AG278) -> -0.002649472522 | AC69: =IF($B$86=1,IFERROR(AC$22/(Parameters!$B$12*1000)*EmissionLookup!AH14,0),EmissionCalcs!AH278) -> -0.002725063062 | AD69: =IF($B$86=1,IFERROR(AD$22/(Parameters!$B$12*1000)*EmissionLookup!AI14,0),EmissionCalcs!AI278) -> -0.002802642056 | AE69: =IF($B$86=1,IFERROR(AE$22/(Parameters!$B$12*1000)*EmissionLookup!AJ14,0),EmissionCalcs!AJ278) -> -0.00288225932 | AF69: =IF($B$86=1,IFERROR(AF$22/(Parameters!$B$12*1000)*EmissionLookup!AK14,0),EmissionCalcs!AK278) -> 0 | AG69: =IF($B$86=1,IFERROR(AG$22/(Parameters!$B$12*1000)*EmissionLookup!AL14,0),EmissionCalcs!AL278) -> 0 | AH69: =IF($B$86=1,IFERROR(AH$22/(Parameters!$B$12*1000)*EmissionLookup!AM14,0),EmissionCalcs!AM278) -> 0 | AI69: =IF($B$86=1,IFERROR(AI$22/(Parameters!$B$12*1000)*EmissionLookup!AN14,0),EmissionCalcs!AN278) -> 0 | AJ69: =IF($B$86=1,IFERROR(AJ$22/(Parameters!$B$12*1000)*EmissionLookup!AO14,0),EmissionCalcs!AO278) -> 0
A70: CO2, tons (short) | C70: =SUM(D70:AJ70) -> -349.1978559 | D70: =IF($B$86=1,IFERROR(D$22/(Parameters!$B$12*1000)*EmissionLookup!I15,0),EmissionCalcs!I279) -> 0 | E70: =IF($B$86=1,IFERROR(E$22/(Parameters!$B$12*1000)*EmissionLookup!J15,0),EmissionCalcs!J279) -> 0 | F70: =IF($B$86=1,IFERROR(F$22/(Parameters!$B$12*1000)*EmissionLookup!K15,0),EmissionCalcs!K279) -> 0 | G70: =IF($B$86=1,IFERROR(G$22/(Parameters!$B$12*1000)*EmissionLookup!L15,0),EmissionCalcs!L279) -> 0 | H70: =IF($B$86=1,IFERROR(H$22/(Parameters!$B$12*1000)*EmissionLookup!M15,0),EmissionCalcs!M279) -> 0 | I70: =IF($B$86=1,IFERROR(I$22/(Parameters!$B$12*1000)*EmissionLookup!N15,0),EmissionCalcs!N279) -> 0 | J70: =IF($B$86=1,IFERROR(J$22/(Parameters!$B$12*1000)*EmissionLookup!O15,0),EmissionCalcs!O279) -> 0 | K70: =IF($B$86=1,IFERROR(K$22/(Parameters!$B$12*1000)*EmissionLookup!P15,0),EmissionCalcs!P279) -> -4.359416456 | L70: =IF($B$86=1,IFERROR(L$22/(Parameters!$B$12*1000)*EmissionLookup!Q15,0),EmissionCalcs!Q279) -> -12.93855913 | M70: =IF($B$86=1,IFERROR(M$22/(Parameters!$B$12*1000)*EmissionLookup!R15,0),EmissionCalcs!R279) -> -13.32241639 | N70: =IF($B$86=1,IFERROR(N$22/(Parameters!$B$12*1000)*EmissionLookup!S15,0),EmissionCalcs!S279) -> -13.71658917 | O70: =IF($B$86=1,IFERROR(O$22/(Parameters!$B$12*1000)*EmissionLookup!T15,0),EmissionCalcs!T279) -> -14.1213394 | P70: =IF($B$86=1,IFERROR(P$22/(Parameters!$B$12*1000)*EmissionLookup!U15,0),EmissionCalcs!U279) -> -14.53693543 | Q70: =IF($B$86=1,IFERROR(Q$22/(Parameters!$B$12*1000)*EmissionLookup!V15,0),EmissionCalcs!V279) -> -14.96365217 | R70: =IF($B$86=1,IFERROR(R$22/(Parameters!$B$12*1000)*EmissionLookup!W15,0),EmissionCalcs!W279) -> -15.40177124 | S70: =IF($B$86=1,IFERROR(S$22/(Parameters!$B$12*1000)*EmissionLookup!X15,0),EmissionCalcs!X279) -> -15.85158117 | T70: =IF($B$86=1,IFERROR(T$22/(Parameters!$B$12*1000)*EmissionLookup!Y15,0),EmissionCalcs!Y279) -> -16.3133775 | U70: =IF($B$86=1,IFERROR(U$22/(Parameters!$B$12*1000)*EmissionLookup!Z15,0),EmissionCalcs!Z279) -> -16.78746301 | V70: =IF($B$86=1,IFERROR(V$22/(Parameters!$B$12*1000)*EmissionLookup!AA15,0),EmissionCalcs!AA279) -> -17.27414785 | W70: =IF($B$86=1,IFERROR(W$22/(Parameters!$B$12*1000)*EmissionLookup!AB15,0),EmissionCalcs!AB279) -> -17.77374972 | X70: =IF($B$86=1,IFERROR(X$22/(Parameters!$B$12*1000)*EmissionLookup!AC15,0),EmissionCalcs!AC279) -> -18.28659408 | Y70: =IF($B$86=1,IFERROR(Y$22/(Parameters!$B$12*1000)*EmissionLookup!AD15,0),EmissionCalcs!AD279) -> -18.81301431 | Z70: =IF($B$86=1,IFERROR(Z$22/(Parameters!$B$12*1000)*EmissionLookup!AE15,0),EmissionCalcs!AE279) -> -19.35335187 | AA70: =IF($B$86=1,IFERROR(AA$22/(Parameters!$B$12*1000)*EmissionLookup!AF15,0),EmissionCalcs!AF279) -> -19.90795658 | AB70: =IF($B$86=1,IFERROR(AB$22/(Parameters!$B$12*1000)*EmissionLookup!AG15,0),EmissionCalcs!AG279) -> -20.47718671 | AC70: =IF($B$86=1,IFERROR(AC$22/(Parameters!$B$12*1000)*EmissionLookup!AH15,0),EmissionCalcs!AH279) -> -21.06140926 | AD70: =IF($B$86=1,IFERROR(AD$22/(Parameters!$B$12*1000)*EmissionLookup!AI15,0),EmissionCalcs!AI279) -> -21.66100013 | AE70: =IF($B$86=1,IFERROR(AE$22/(Parameters!$B$12*1000)*EmissionLookup!AJ15,0),EmissionCalcs!AJ279) -> -22.27634435 | AF70: =IF($B$86=1,IFERROR(AF$22/(Parameters!$B$12*1000)*EmissionLookup!AK15,0),EmissionCalcs!AK279) -> 0 | AG70: =IF($B$86=1,IFERROR(AG$22/(Parameters!$B$12*1000)*EmissionLookup!AL15,0),EmissionCalcs!AL279) -> 0 | AH70: =IF($B$86=1,IFERROR(AH$22/(Parameters!$B$12*1000)*EmissionLookup!AM15,0),EmissionCalcs!AM279) -> 0 | AI70: =IF($B$86=1,IFERROR(AI$22/(Parameters!$B$12*1000)*EmissionLookup!AN15,0),EmissionCalcs!AN279) -> 0 | AJ70: =IF($B$86=1,IFERROR(AJ$22/(Parameters!$B$12*1000)*EmissionLookup!AO15,0),EmissionCalcs!AO279) -> 0
A71: PM, tons (short) | C71: =SUM(D71:AJ71) -> -0.003412607929 | D71: =IF($B$86=1,IFERROR(D$22/(Parameters!$B$12*1000)*EmissionLookup!I17,0),EmissionCalcs!I281) -> 0 | E71: =IF($B$86=1,IFERROR(E$22/(Parameters!$B$12*1000)*EmissionLookup!J17,0),EmissionCalcs!J281) -> 0 | F71: =IF($B$86=1,IFERROR(F$22/(Parameters!$B$12*1000)*EmissionLookup!K17,0),EmissionCalcs!K281) -> 0 | G71: =IF($B$86=1,IFERROR(G$22/(Parameters!$B$12*1000)*EmissionLookup!L17,0),EmissionCalcs!L281) -> 0 | H71: =IF($B$86=1,IFERROR(H$22/(Parameters!$B$12*1000)*EmissionLookup!M17,0),EmissionCalcs!M281) -> 0 | I71: =IF($B$86=1,IFERROR(I$22/(Parameters!$B$12*1000)*EmissionLookup!N17,0),EmissionCalcs!N281) -> 0 | J71: =IF($B$86=1,IFERROR(J$22/(Parameters!$B$12*1000)*EmissionLookup!O17,0),EmissionCalcs!O281) -> 0 | K71: =IF($B$86=1,IFERROR(K$22/(Parameters!$B$12*1000)*EmissionLookup!P17,0),EmissionCalcs!P281) -> -4.333484642e-05 | L71: =IF($B$86=1,IFERROR(L$22/(Parameters!$B$12*1000)*EmissionLookup!Q17,0),EmissionCalcs!Q281) -> -0.0001264172842 | M71: =IF($B$86=1,IFERROR(M$22/(Parameters!$B$12*1000)*EmissionLookup!R17,0),EmissionCalcs!R281) -> -0.000130167794 | N71: =IF($B$86=1,IFERROR(N$22/(Parameters!$B$12*1000)*EmissionLookup!S17,0),EmissionCalcs!S281) -> -0.0001340190924 | O71: =IF($B$86=1,IFERROR(O$22/(Parameters!$B$12*1000)*EmissionLookup!T17,0),EmissionCalcs!T281) -> -0.0001379737387 | P71: =IF($B$86=1,IFERROR(P$22/(Parameters!$B$12*1000)*EmissionLookup!U17,0),EmissionCalcs!U281) -> -0.0001420343547 | Q71: =IF($B$86=1,IFERROR(Q$22/(Parameters!$B$12*1000)*EmissionLookup!V17,0),EmissionCalcs!V281) -> -0.0001462036266 | R71: =IF($B$86=1,IFERROR(R$22/(Parameters!$B$12*1000)*EmissionLookup!W17,0),EmissionCalcs!W281) -> -0.0001504843061 | S71: =IF($B$86=1,IFERROR(S$22/(Parameters!$B$12*1000)*EmissionLookup!X17,0),EmissionCalcs!X281) -> -0.0001548792119 | T71: =IF($B$86=1,IFERROR(T$22/(Parameters!$B$12*1000)*EmissionLookup!Y17,0),EmissionCalcs!Y281) -> -0.000159391232 | U71: =IF($B$86=1,IFERROR(U$22/(Parameters!$B$12*1000)*EmissionLookup!Z17,0),EmissionCalcs!Z281) -> -0.0001640233245 | V71: =IF($B$86=1,IFERROR(V$22/(Parameters!$B$12*1000)*EmissionLookup!AA17,0),EmissionCalcs!AA281) -> -0.0001687785198 | W71: =IF($B$86=1,IFERROR(W$22/(Parameters!$B$12*1000)*EmissionLookup!AB17,0),EmissionCalcs!AB281) -> -0.000173659922 | X71: =IF($B$86=1,IFERROR(X$22/(Parameters!$B$12*1000)*EmissionLookup!AC17,0),EmissionCalcs!AC281) -> -0.0001786707111 | Y71: =IF($B$86=1,IFERROR(Y$22/(Parameters!$B$12*1000)*EmissionLookup!AD17,0),EmissionCalcs!AD281) -> -0.0001838141444 | Z71: =IF($B$86=1,IFERROR(Z$22/(Parameters!$B$12*1000)*EmissionLookup!AE17,0),EmissionCalcs!AE281) -> -0.0001890935582 | AA71: =IF($B$86=1,IFERROR(AA$22/(Parameters!$B$12*1000)*EmissionLookup!AF17,0),EmissionCalcs!AF281) -> -0.0001945123703 | AB71: =IF($B$86=1,IFERROR(AB$22/(Parameters!$B$12*1000)*EmissionLookup!AG17,0),EmissionCalcs!AG281) -> -0.0002000740813 | AC71: =IF($B$86=1,IFERROR(AC$22/(Parameters!$B$12*1000)*EmissionLookup!AH17,0),EmissionCalcs!AH281) -> -0.000205782277 | AD71: =IF($B$86=1,IFERROR(AD$22/(Parameters!$B$12*1000)*EmissionLookup!AI17,0),EmissionCalcs!AI281) -> -0.0002116406303 | AE71: =IF($B$86=1,IFERROR(AE$22/(Parameters!$B$12*1000)*EmissionLookup!AJ17,0),EmissionCalcs!AJ281) -> -0.0002176529029 | AF71: =IF($B$86=1,IFERROR(AF$22/(Parameters!$B$12*1000)*EmissionLookup!AK17,0),EmissionCalcs!AK281) -> 0 | AG71: =IF($B$86=1,IFERROR(AG$22/(Parameters!$B$12*1000)*EmissionLookup!AL17,0),EmissionCalcs!AL281) -> 0 | AH71: =IF($B$86=1,IFERROR(AH$22/(Parameters!$B$12*1000)*EmissionLookup!AM17,0),EmissionCalcs!AM281) -> 0 | AI71: =IF($B$86=1,IFERROR(AI$22/(Parameters!$B$12*1000)*EmissionLookup!AN17,0),EmissionCalcs!AN281) -> 0 | AJ71: =IF($B$86=1,IFERROR(AJ$22/(Parameters!$B$12*1000)*EmissionLookup!AO17,0),EmissionCalcs!AO281) -> 0
A72: SO2, tons (short) | C72: =SUM(D72:AJ72) -> -0.002328297237 | D72: =IF($B$86=1,IFERROR(D$22/(Parameters!$B$12*1000)*EmissionLookup!I18,0),EmissionCalcs!I282) -> 0 | E72: =IF($B$86=1,IFERROR(E$22/(Parameters!$B$12*1000)*EmissionLookup!J18,0),EmissionCalcs!J282) -> 0 | F72: =IF($B$86=1,IFERROR(F$22/(Parameters!$B$12*1000)*EmissionLookup!K18,0),EmissionCalcs!K282) -> 0 | G72: =IF($B$86=1,IFERROR(G$22/(Parameters!$B$12*1000)*EmissionLookup!L18,0),EmissionCalcs!L282) -> 0 | H72: =IF($B$86=1,IFERROR(H$22/(Parameters!$B$12*1000)*EmissionLookup!M18,0),EmissionCalcs!M282) -> 0 | I72: =IF($B$86=1,IFERROR(I$22/(Parameters!$B$12*1000)*EmissionLookup!N18,0),EmissionCalcs!N282) -> 0 | J72: =IF($B$86=1,IFERROR(J$22/(Parameters!$B$12*1000)*EmissionLookup!O18,0),EmissionCalcs!O282) -> 0 | K72: =IF($B$86=1,IFERROR(K$22/(Parameters!$B$12*1000)*EmissionLookup!P18,0),EmissionCalcs!P282) -> -2.905833771e-05 | L72: =IF($B$86=1,IFERROR(L$22/(Parameters!$B$12*1000)*EmissionLookup!Q18,0),EmissionCalcs!Q282) -> -8.626891625e-05 | M72: =IF($B$86=1,IFERROR(M$22/(Parameters!$B$12*1000)*EmissionLookup!R18,0),EmissionCalcs!R282) -> -8.882831638e-05 | N72: =IF($B$86=1,IFERROR(N$22/(Parameters!$B$12*1000)*EmissionLookup!S18,0),EmissionCalcs!S282) -> -9.145649607e-05 | O72: =IF($B$86=1,IFERROR(O$22/(Parameters!$B$12*1000)*EmissionLookup!T18,0),EmissionCalcs!T282) -> -9.41552018e-05 | P72: =IF($B$86=1,IFERROR(P$22/(Parameters!$B$12*1000)*EmissionLookup!U18,0),EmissionCalcs!U282) -> -9.69262228e-05 | Q72: =IF($B$86=1,IFERROR(Q$22/(Parameters!$B$12*1000)*EmissionLookup!V18,0),EmissionCalcs!V282) -> -9.977139204e-05 | R72: =IF($B$86=1,IFERROR(R$22/(Parameters!$B$12*1000)*EmissionLookup!W18,0),EmissionCalcs!W282) -> -0.0001026925873 | S72: =IF($B$86=1,IFERROR(S$22/(Parameters!$B$12*1000)*EmissionLookup!X18,0),EmissionCalcs!X282) -> -0.0001056917323 | T72: =IF($B$86=1,IFERROR(T$22/(Parameters!$B$12*1000)*EmissionLookup!Y18,0),EmissionCalcs!Y282) -> -0.0001087707977 | U72: =IF($B$86=1,IFERROR(U$22/(Parameters!$B$12*1000)*EmissionLookup!Z18,0),EmissionCalcs!Z282) -> -0.0001119318022 | V72: =IF($B$86=1,IFERROR(V$22/(Parameters!$B$12*1000)*EmissionLookup!AA18,0),EmissionCalcs!AA282) -> -0.0001151768137 | W72: =IF($B$86=1,IFERROR(W$22/(Parameters!$B$12*1000)*EmissionLookup!AB18,0),EmissionCalcs!AB282) -> -0.0001185079506 | X72: =IF($B$86=1,IFERROR(X$22/(Parameters!$B$12*1000)*EmissionLookup!AC18,0),EmissionCalcs!AC282) -> -0.0001219273829 | Y72: =IF($B$86=1,IFERROR(Y$22/(Parameters!$B$12*1000)*EmissionLookup!AD18,0),EmissionCalcs!AD282) -> -0.0001254373334 | Z72: =IF($B$86=1,IFERROR(Z$22/(Parameters!$B$12*1000)*EmissionLookup!AE18,0),EmissionCalcs!AE282) -> -0.000129040079 | AA72: =IF($B$86=1,IFERROR(AA$22/(Parameters!$B$12*1000)*EmissionLookup!AF18,0),EmissionCalcs!AF282) -> -0.0001327379518 | AB72: =IF($B$86=1,IFERROR(AB$22/(Parameters!$B$12*1000)*EmissionLookup!AG18,0),EmissionCalcs!AG282) -> -0.0001365333409 | AC72: =IF($B$86=1,IFERROR(AC$22/(Parameters!$B$12*1000)*EmissionLookup!AH18,0),EmissionCalcs!AH282) -> -0.0001404286933 | AD72: =IF($B$86=1,IFERROR(AD$22/(Parameters!$B$12*1000)*EmissionLookup!AI18,0),EmissionCalcs!AI282) -> -0.0001444265151 | AE72: =IF($B$86=1,IFERROR(AE$22/(Parameters!$B$12*1000)*EmissionLookup!AJ18,0),EmissionCalcs!AJ282) -> -0.0001485293737 | AF72: =IF($B$86=1,IFERROR(AF$22/(Parameters!$B$12*1000)*EmissionLookup!AK18,0),EmissionCalcs!AK282) -> 0 | AG72: =IF($B$86=1,IFERROR(AG$22/(Parameters!$B$12*1000)*EmissionLookup!AL18,0),EmissionCalcs!AL282) -> 0 | AH72: =IF($B$86=1,IFERROR(AH$22/(Parameters!$B$12*1000)*EmissionLookup!AM18,0),EmissionCalcs!AM282) -> 0 | AI72: =IF($B$86=1,IFERROR(AI$22/(Parameters!$B$12*1000)*EmissionLookup!AN18,0),EmissionCalcs!AN282) -> 0 | AJ72: =IF($B$86=1,IFERROR(AJ$22/(Parameters!$B$12*1000)*EmissionLookup!AO18,0),EmissionCalcs!AO282) -> 0
A74: Changes in Emissions from Trucks*
A75: NOX, tons (short) | C75: =SUM(D75:AJ75) -> -0.4466216953 | D75: =IF($B$86=1,IFERROR(D$23/(Parameters!$B$12*1000)*EmissionLookup!I24,0),EmissionCalcs!I284) -> 0 | E75: =IF($B$86=1,IFERROR(E$23/(Parameters!$B$12*1000)*EmissionLookup!J24,0),EmissionCalcs!J284) -> 0 | F75: =IF($B$86=1,IFERROR(F$23/(Parameters!$B$12*1000)*EmissionLookup!K24,0),EmissionCalcs!K284) -> 0 | G75: =IF($B$86=1,IFERROR(G$23/(Parameters!$B$12*1000)*EmissionLookup!L24,0),EmissionCalcs!L284) -> 0 | H75: =IF($B$86=1,IFERROR(H$23/(Parameters!$B$12*1000)*EmissionLookup!M24,0),EmissionCalcs!M284) -> 0 | I75: =IF($B$86=1,IFERROR(I$23/(Parameters!$B$12*1000)*EmissionLookup!N24,0),EmissionCalcs!N284) -> 0 | J75: =IF($B$86=1,IFERROR(J$23/(Parameters!$B$12*1000)*EmissionLookup!O24,0),EmissionCalcs!O284) -> 0 | K75: =IF($B$86=1,IFERROR(K$23/(Parameters!$B$12*1000)*EmissionLookup!P24,0),EmissionCalcs!P284) -> -0.007013426024 | L75: =IF($B$86=1,IFERROR(L$23/(Parameters!$B$12*1000)*EmissionLookup!Q24,0),EmissionCalcs!Q284) -> -0.0182443723 | M75: =IF($B$86=1,IFERROR(M$23/(Parameters!$B$12*1000)*EmissionLookup!R24,0),EmissionCalcs!R284) -> -0.0186671422 | N75: =IF($B$86=1,IFERROR(N$23/(Parameters!$B$12*1000)*EmissionLookup!S24,0),EmissionCalcs!S284) -> -0.01908481163 | O75: =IF($B$86=1,IFERROR(O$23/(Parameters!$B$12*1000)*EmissionLookup!T24,0),EmissionCalcs!T284) -> -0.01949742483 | P75: =IF($B$86=1,IFERROR(P$23/(Parameters!$B$12*1000)*EmissionLookup!U24,0),EmissionCalcs!U284) -> -0.01990502569 | Q75: =IF($B$86=1,IFERROR(Q$23/(Parameters!$B$12*1000)*EmissionLookup!V24,0),EmissionCalcs!V284) -> -0.02030765776 | R75: =IF($B$86=1,IFERROR(R$23/(Parameters!$B$12*1000)*EmissionLookup!W24,0),EmissionCalcs!W284) -> -0.02070536424 | S75: =IF($B$86=1,IFERROR(S$23/(Parameters!$B$12*1000)*EmissionLookup!X24,0),EmissionCalcs!X284) -> -0.02109818802 | T75: =IF($B$86=1,IFERROR(T$23/(Parameters!$B$12*1000)*EmissionLookup!Y24,0),EmissionCalcs!Y284) -> -0.02148617163 | U75: =IF($B$86=1,IFERROR(U$23/(Parameters!$B$12*1000)*EmissionLookup!Z24,0),EmissionCalcs!Z284) -> -0.02186935727 | V75: =IF($B$86=1,IFERROR(V$23/(Parameters!$B$12*1000)*EmissionLookup!AA24,0),EmissionCalcs!AA284) -> -0.02224778682 | W75: =IF($B$86=1,IFERROR(W$23/(Parameters!$B$12*1000)*EmissionLookup!AB24,0),EmissionCalcs!AB284) -> -0.02262150182 | X75: =IF($B$86=1,IFERROR(X$23/(Parameters!$B$12*1000)*EmissionLookup!AC24,0),EmissionCalcs!AC284) -> -0.02299054351 | Y75: =IF($B$86=1,IFERROR(Y$23/(Parameters!$B$12*1000)*EmissionLookup!AD24,0),EmissionCalcs!AD284) -> -0.02335495277 | Z75: =IF($B$86=1,IFERROR(Z$23/(Parameters!$B$12*1000)*EmissionLookup!AE24,0),EmissionCalcs!AE284) -> -0.02371477019 | AA75: =IF($B$86=1,IFERROR(AA$23/(Parameters!$B$12*1000)*EmissionLookup!AF24,0),EmissionCalcs!AF284) -> -0.02407003604 | AB75: =IF($B$86=1,IFERROR(AB$23/(Parameters!$B$12*1000)*EmissionLookup!AG24,0),EmissionCalcs!AG284) -> -0.02442079025 | AC75: =IF($B$86=1,IFERROR(AC$23/(Parameters!$B$12*1000)*EmissionLookup!AH24,0),EmissionCalcs!AH284) -> -0.02476707246 | AD75: =IF($B$86=1,IFERROR(AD$23/(Parameters!$B$12*1000)*EmissionLookup!AI24,0),EmissionCalcs!AI284) -> -0.02510892199 | AE75: =IF($B$86=1,IFERROR(AE$23/(Parameters!$B$12*1000)*EmissionLookup!AJ24,0),EmissionCalcs!AJ284) -> -0.02544637786 | AF75: =IF($B$86=1,IFERROR(AF$23/(Parameters!$B$12*1000)*EmissionLookup!AK24,0),EmissionCalcs!AK284) -> 0 | AG75: =IF($B$86=1,IFERROR(AG$23/(Parameters!$B$12*1000)*EmissionLookup!AL24,0),EmissionCalcs!AL284) -> 0 | AH75: =IF($B$86=1,IFERROR(AH$23/(Parameters!$B$12*1000)*EmissionLookup!AM24,0),EmissionCalcs!AM284) -> 0 | AI75: =IF($B$86=1,IFERROR(AI$23/(Parameters!$B$12*1000)*EmissionLookup!AN24,0),EmissionCalcs!AN284) -> 0 | AJ75: =IF($B$86=1,IFERROR(AJ$23/(Parameters!$B$12*1000)*EmissionLookup!AO24,0),EmissionCalcs!AO284) -> 0
A76: CO2, tons (short) | C76: =SUM(D76:AJ76) -> -466.3599158 | D76: =IF($B$86=1,IFERROR(D$23/(Parameters!$B$12*1000)*EmissionLookup!I25,0),EmissionCalcs!I285) -> 0 | E76: =IF($B$86=1,IFERROR(E$23/(Parameters!$B$12*1000)*EmissionLookup!J25,0),EmissionCalcs!J285) -> 0 | F76: =IF($B$86=1,IFERROR(F$23/(Parameters!$B$12*1000)*EmissionLookup!K25,0),EmissionCalcs!K285) -> 0 | G76: =IF($B$86=1,IFERROR(G$23/(Parameters!$B$12*1000)*EmissionLookup!L25,0),EmissionCalcs!L285) -> 0 | H76: =IF($B$86=1,IFERROR(H$23/(Parameters!$B$12*1000)*EmissionLookup!M25,0),EmissionCalcs!M285) -> 0 | I76: =IF($B$86=1,IFERROR(I$23/(Parameters!$B$12*1000)*EmissionLookup!N25,0),EmissionCalcs!N285) -> 0 | J76: =IF($B$86=1,IFERROR(J$23/(Parameters!$B$12*1000)*EmissionLookup!O25,0),EmissionCalcs!O285) -> 0 | K76: =IF($B$86=1,IFERROR(K$23/(Parameters!$B$12*1000)*EmissionLookup!P25,0),EmissionCalcs!P285) -> -6.258387238 | L76: =IF($B$86=1,IFERROR(L$23/(Parameters!$B$12*1000)*EmissionLookup!Q25,0),EmissionCalcs!Q285) -> -19.09487189 | M76: =IF($B$86=1,IFERROR(M$23/(Parameters!$B$12*1000)*EmissionLookup!R25,0),EmissionCalcs!R285) -> -19.53735009 | N76: =IF($B$86=1,IFERROR(N$23/(Parameters!$B$12*1000)*EmissionLookup!S25,0),EmissionCalcs!S285) -> -19.97449006 | O76: =IF($B$86=1,IFERROR(O$23/(Parameters!$B$12*1000)*EmissionLookup!T25,0),EmissionCalcs!T285) -> -20.40633809 | P76: =IF($B$86=1,IFERROR(P$23/(Parameters!$B$12*1000)*EmissionLookup!U25,0),EmissionCalcs!U285) -> -20.83294011 | Q76: =IF($B$86=1,IFERROR(Q$23/(Parameters!$B$12*1000)*EmissionLookup!V25,0),EmissionCalcs!V285) -> -21.25434171 | R76: =IF($B$86=1,IFERROR(R$23/(Parameters!$B$12*1000)*EmissionLookup!W25,0),EmissionCalcs!W285) -> -21.67058812 | S76: =IF($B$86=1,IFERROR(S$23/(Parameters!$B$12*1000)*EmissionLookup!X25,0),EmissionCalcs!X285) -> -22.0817242 | T76: =IF($B$86=1,IFERROR(T$23/(Parameters!$B$12*1000)*EmissionLookup!Y25,0),EmissionCalcs!Y285) -> -22.48779448 | U76: =IF($B$86=1,IFERROR(U$23/(Parameters!$B$12*1000)*EmissionLookup!Z25,0),EmissionCalcs!Z285) -> -22.88884312 | V76: =IF($B$86=1,IFERROR(V$23/(Parameters!$B$12*1000)*EmissionLookup!AA25,0),EmissionCalcs!AA285) -> -23.28491395 | W76: =IF($B$86=1,IFERROR(W$23/(Parameters!$B$12*1000)*EmissionLookup!AB25,0),EmissionCalcs!AB285) -> -23.67605046 | X76: =IF($B$86=1,IFERROR(X$23/(Parameters!$B$12*1000)*EmissionLookup!AC25,0),EmissionCalcs!AC285) -> -24.0622958 | Y76: =IF($B$86=1,IFERROR(Y$23/(Parameters!$B$12*1000)*EmissionLookup!AD25,0),EmissionCalcs!AD285) -> -24.44369276 | Z76: =IF($B$86=1,IFERROR(Z$23/(Parameters!$B$12*1000)*EmissionLookup!AE25,0),EmissionCalcs!AE285) -> -24.82028383 | AA76: =IF($B$86=1,IFERROR(AA$23/(Parameters!$B$12*1000)*EmissionLookup!AF25,0),EmissionCalcs!AF285) -> -25.19211113 | AB76: =IF($B$86=1,IFERROR(AB$23/(Parameters!$B$12*1000)*EmissionLookup!AG25,0),EmissionCalcs!AG285) -> -25.55921649 | AC76: =IF($B$86=1,IFERROR(AC$23/(Parameters!$B$12*1000)*EmissionLookup!AH25,0),EmissionCalcs!AH285) -> -25.92164137 | AD76: =IF($B$86=1,IFERROR(AD$23/(Parameters!$B$12*1000)*EmissionLookup!AI25,0),EmissionCalcs!AI285) -> -26.27942693 | AE76: =IF($B$86=1,IFERROR(AE$23/(Parameters!$B$12*1000)*EmissionLookup!AJ25,0),EmissionCalcs!AJ285) -> -26.63261401 | AF76: =IF($B$86=1,IFERROR(AF$23/(Parameters!$B$12*1000)*EmissionLookup!AK25,0),EmissionCalcs!AK285) -> 0 | AG76: =IF($B$86=1,IFERROR(AG$23/(Parameters!$B$12*1000)*EmissionLookup!AL25,0),EmissionCalcs!AL285) -> 0 | AH76: =IF($B$86=1,IFERROR(AH$23/(Parameters!$B$12*1000)*EmissionLookup!AM25,0),EmissionCalcs!AM285) -> 0 | AI76: =IF($B$86=1,IFERROR(AI$23/(Parameters!$B$12*1000)*EmissionLookup!AN25,0),EmissionCalcs!AN285) -> 0 | AJ76: =IF($B$86=1,IFERROR(AJ$23/(Parameters!$B$12*1000)*EmissionLookup!AO25,0),EmissionCalcs!AO285) -> 0
A77: PM, tons (short) | C77: =SUM(D77:AJ77) -> -0.01368856034 | D77: =IF($B$86=1,IFERROR(D$23/(Parameters!$B$12*1000)*EmissionLookup!I27,0),EmissionCalcs!I287) -> 0 | E77: =IF($B$86=1,IFERROR(E$23/(Parameters!$B$12*1000)*EmissionLookup!J27,0),EmissionCalcs!J287) -> 0 | F77: =IF($B$86=1,IFERROR(F$23/(Parameters!$B$12*1000)*EmissionLookup!K27,0),EmissionCalcs!K287) -> 0 | G77: =IF($B$86=1,IFERROR(G$23/(Parameters!$B$12*1000)*EmissionLookup!L27,0),EmissionCalcs!L287) -> 0 | H77: =IF($B$86=1,IFERROR(H$23/(Parameters!$B$12*1000)*EmissionLookup!M27,0),EmissionCalcs!M287) -> 0 | I77: =IF($B$86=1,IFERROR(I$23/(Parameters!$B$12*1000)*EmissionLookup!N27,0),EmissionCalcs!N287) -> 0 | J77: =IF($B$86=1,IFERROR(J$23/(Parameters!$B$12*1000)*EmissionLookup!O27,0),EmissionCalcs!O287) -> 0 | K77: =IF($B$86=1,IFERROR(K$23/(Parameters!$B$12*1000)*EmissionLookup!P27,0),EmissionCalcs!P287) -> -0.0002331642744 | L77: =IF($B$86=1,IFERROR(L$23/(Parameters!$B$12*1000)*EmissionLookup!Q27,0),EmissionCalcs!Q287) -> -0.0005584181927 | M77: =IF($B$86=1,IFERROR(M$23/(Parameters!$B$12*1000)*EmissionLookup!R27,0),EmissionCalcs!R287) -> -0.0005713582051 | N77: =IF($B$86=1,IFERROR(N$23/(Parameters!$B$12*1000)*EmissionLookup!S27,0),EmissionCalcs!S287) -> -0.0005841421039 | O77: =IF($B$86=1,IFERROR(O$23/(Parameters!$B$12*1000)*EmissionLookup!T27,0),EmissionCalcs!T287) -> -0.0005967712431 | P77: =IF($B$86=1,IFERROR(P$23/(Parameters!$B$12*1000)*EmissionLookup!U27,0),EmissionCalcs!U287) -> -0.0006092469661 | Q77: =IF($B$86=1,IFERROR(Q$23/(Parameters!$B$12*1000)*EmissionLookup!V27,0),EmissionCalcs!V287) -> -0.0006215706058 | R77: =IF($B$86=1,IFERROR(R$23/(Parameters!$B$12*1000)*EmissionLookup!W27,0),EmissionCalcs!W287) -> -0.0006337434848 | S77: =IF($B$86=1,IFERROR(S$23/(Parameters!$B$12*1000)*EmissionLookup!X27,0),EmissionCalcs!X287) -> -0.0006457669154 | T77: =IF($B$86=1,IFERROR(T$23/(Parameters!$B$12*1000)*EmissionLookup!Y27,0),EmissionCalcs!Y287) -> -0.0006576421995 | U77: =IF($B$86=1,IFERROR(U$23/(Parameters!$B$12*1000)*EmissionLookup!Z27,0),EmissionCalcs!Z287) -> -0.000669370629 | V77: =IF($B$86=1,IFERROR(V$23/(Parameters!$B$12*1000)*EmissionLookup!AA27,0),EmissionCalcs!AA287) -> -0.0006809534854 | W77: =IF($B$86=1,IFERROR(W$23/(Parameters!$B$12*1000)*EmissionLookup!AB27,0),EmissionCalcs!AB287) -> -0.0006923920405 | X77: =IF($B$86=1,IFERROR(X$23/(Parameters!$B$12*1000)*EmissionLookup!AC27,0),EmissionCalcs!AC287) -> -0.0007036875561 | Y77: =IF($B$86=1,IFERROR(Y$23/(Parameters!$B$12*1000)*EmissionLookup!AD27,0),EmissionCalcs!AD287) -> -0.0007148412839 | Z77: =IF($B$86=1,IFERROR(Z$23/(Parameters!$B$12*1000)*EmissionLookup!AE27,0),EmissionCalcs!AE287) -> -0.000725854466 | AA77: =IF($B$86=1,IFERROR(AA$23/(Parameters!$B$12*1000)*EmissionLookup!AF27,0),EmissionCalcs!AF287) -> -0.0007367283348 | AB77: =IF($B$86=1,IFERROR(AB$23/(Parameters!$B$12*1000)*EmissionLookup!AG27,0),EmissionCalcs!AG287) -> -0.0007474641129 | AC77: =IF($B$86=1,IFERROR(AC$23/(Parameters!$B$12*1000)*EmissionLookup!AH27,0),EmissionCalcs!AH287) -> -0.0007580630133 | AD77: =IF($B$86=1,IFERROR(AD$23/(Parameters!$B$12*1000)*EmissionLookup!AI27,0),EmissionCalcs!AI287) -> -0.0007685262398 | AE77: =IF($B$86=1,IFERROR(AE$23/(Parameters!$B$12*1000)*EmissionLookup!AJ27,0),EmissionCalcs!AJ287) -> -0.0007788549863 | AF77: =IF($B$86=1,IFERROR(AF$23/(Parameters!$B$12*1000)*EmissionLookup!AK27,0),EmissionCalcs!AK287) -> 0 | AG77: =IF($B$86=1,IFERROR(AG$23/(Parameters!$B$12*1000)*EmissionLookup!AL27,0),EmissionCalcs!AL287) -> 0 | AH77: =IF($B$86=1,IFERROR(AH$23/(Parameters!$B$12*1000)*EmissionLookup!AM27,0),EmissionCalcs!AM287) -> 0 | AI77: =IF($B$86=1,IFERROR(AI$23/(Parameters!$B$12*1000)*EmissionLookup!AN27,0),EmissionCalcs!AN287) -> 0 | AJ77: =IF($B$86=1,IFERROR(AJ$23/(Parameters!$B$12*1000)*EmissionLookup!AO27,0),EmissionCalcs!AO287) -> 0
A78: SO2, tons (short) | C78: =SUM(D78:AJ78) -> -0.004023087849 | D78: =IF($B$86=1,IFERROR(D$23/(Parameters!$B$12*1000)*EmissionLookup!I28,0),EmissionCalcs!I288) -> 0 | E78: =IF($B$86=1,IFERROR(E$23/(Parameters!$B$12*1000)*EmissionLookup!J28,0),EmissionCalcs!J288) -> 0 | F78: =IF($B$86=1,IFERROR(F$23/(Parameters!$B$12*1000)*EmissionLookup!K28,0),EmissionCalcs!K288) -> 0 | G78: =IF($B$86=1,IFERROR(G$23/(Parameters!$B$12*1000)*EmissionLookup!L28,0),EmissionCalcs!L288) -> 0 | H78: =IF($B$86=1,IFERROR(H$23/(Parameters!$B$12*1000)*EmissionLookup!M28,0),EmissionCalcs!M288) -> 0 | I78: =IF($B$86=1,IFERROR(I$23/(Parameters!$B$12*1000)*EmissionLookup!N28,0),EmissionCalcs!N288) -> 0 | J78: =IF($B$86=1,IFERROR(J$23/(Parameters!$B$12*1000)*EmissionLookup!O28,0),EmissionCalcs!O288) -> 0 | K78: =IF($B$86=1,IFERROR(K$23/(Parameters!$B$12*1000)*EmissionLookup!P28,0),EmissionCalcs!P288) -> -5.407571956e-05 | L78: =IF($B$86=1,IFERROR(L$23/(Parameters!$B$12*1000)*EmissionLookup!Q28,0),EmissionCalcs!Q288) -> -0.0001647196834 | M78: =IF($B$86=1,IFERROR(M$23/(Parameters!$B$12*1000)*EmissionLookup!R28,0),EmissionCalcs!R288) -> -0.00016853667 | N78: =IF($B$86=1,IFERROR(N$23/(Parameters!$B$12*1000)*EmissionLookup!S28,0),EmissionCalcs!S288) -> -0.0001723076069 | O78: =IF($B$86=1,IFERROR(O$23/(Parameters!$B$12*1000)*EmissionLookup!T28,0),EmissionCalcs!T288) -> -0.0001760328935 | P78: =IF($B$86=1,IFERROR(P$23/(Parameters!$B$12*1000)*EmissionLookup!U28,0),EmissionCalcs!U288) -> -0.000179712926 | Q78: =IF($B$86=1,IFERROR(Q$23/(Parameters!$B$12*1000)*EmissionLookup!V28,0),EmissionCalcs!V288) -> -0.0001833480978 | R78: =IF($B$86=1,IFERROR(R$23/(Parameters!$B$12*1000)*EmissionLookup!W28,0),EmissionCalcs!W288) -> -0.0001869387988 | S78: =IF($B$86=1,IFERROR(S$23/(Parameters!$B$12*1000)*EmissionLookup!X28,0),EmissionCalcs!X288) -> -0.0001904854162 | T78: =IF($B$86=1,IFERROR(T$23/(Parameters!$B$12*1000)*EmissionLookup!Y28,0),EmissionCalcs!Y288) -> -0.0001939883341 | U78: =IF($B$86=1,IFERROR(U$23/(Parameters!$B$12*1000)*EmissionLookup!Z28,0),EmissionCalcs!Z288) -> -0.0001974479333 | V78: =IF($B$86=1,IFERROR(V$23/(Parameters!$B$12*1000)*EmissionLookup!AA28,0),EmissionCalcs!AA288) -> -0.0002008645922 | W78: =IF($B$86=1,IFERROR(W$23/(Parameters!$B$12*1000)*EmissionLookup!AB28,0),EmissionCalcs!AB288) -> -0.0002042386856 | X78: =IF($B$86=1,IFERROR(X$23/(Parameters!$B$12*1000)*EmissionLookup!AC28,0),EmissionCalcs!AC288) -> -0.0002075705859 | Y78: =IF($B$86=1,IFERROR(Y$23/(Parameters!$B$12*1000)*EmissionLookup!AD28,0),EmissionCalcs!AD288) -> -0.0002108606623 | Z78: =IF($B$86=1,IFERROR(Z$23/(Parameters!$B$12*1000)*EmissionLookup!AE28,0),EmissionCalcs!AE288) -> -0.0002141092812 | AA78: =IF($B$86=1,IFERROR(AA$23/(Parameters!$B$12*1000)*EmissionLookup!AF28,0),EmissionCalcs!AF288) -> -0.000217316806 | AB78: =IF($B$86=1,IFERROR(AB$23/(Parameters!$B$12*1000)*EmissionLookup!AG28,0),EmissionCalcs!AG288) -> -0.0002204835975 | AC78: =IF($B$86=1,IFERROR(AC$23/(Parameters!$B$12*1000)*EmissionLookup!AH28,0),EmissionCalcs!AH288) -> -0.0002236100134 | AD78: =IF($B$86=1,IFERROR(AD$23/(Parameters!$B$12*1000)*EmissionLookup!AI28,0),EmissionCalcs!AI288) -> -0.0002266964088 | AE78: =IF($B$86=1,IFERROR(AE$23/(Parameters!$B$12*1000)*EmissionLookup!AJ28,0),EmissionCalcs!AJ288) -> -0.000229743136 | AF78: =IF($B$86=1,IFERROR(AF$23/(Parameters!$B$12*1000)*EmissionLookup!AK28,0),EmissionCalcs!AK288) -> 0 | AG78: =IF($B$86=1,IFERROR(AG$23/(Parameters!$B$12*1000)*EmissionLookup!AL28,0),EmissionCalcs!AL288) -> 0 | AH78: =IF($B$86=1,IFERROR(AH$23/(Parameters!$B$12*1000)*EmissionLookup!AM28,0),EmissionCalcs!AM288) -> 0 | AI78: =IF($B$86=1,IFERROR(AI$23/(Parameters!$B$12*1000)*EmissionLookup!AN28,0),EmissionCalcs!AN288) -> 0 | AJ78: =IF($B$86=1,IFERROR(AJ$23/(Parameters!$B$12*1000)*EmissionLookup!AO28,0),EmissionCalcs!AO288) -> 0
A80: Total Emission Cost Savings | B80: In PV
A81: NOX, $ | B81: =SUMPRODUCT(D81:AJ81,D$5:AJ$5) -> 2594.998717 | C81: =SUM(D81:AJ81) -> 8074.856014 | D81: =-(D69+D75)*IF(E$2< 2050,VLOOKUP(F$2,EmissionCosts!$B$5:$F$34,2,FALSE),EmissionCosts!$C$34)/Parameters!$B$12/1000 -> 0 | E81: =-(E69+E75)*IF(F$2< 2050,VLOOKUP(F$2,EmissionCosts!$B$5:$F$34,2,FALSE),EmissionCosts!$C$34)*Parameters!$B$12/1000 -> 0 | F81: =-(F69+F75)*IF(F$2< 2050,VLOOKUP(F$2,EmissionCosts!$B$5:$F$34,2,FALSE),EmissionCosts!$C$34)*Parameters!$B$12/1000 -> 0 | G81: =-(G69+G75)*IF(G$2< 2050,VLOOKUP(G$2,EmissionCosts!$B$5:$F$34,2,FALSE),EmissionCosts!$C$34)*Parameters!$B$12/1000 -> 0 | H81: =-(H69+H75)*IF(H$2< 2050,VLOOKUP(H$2,EmissionCosts!$B$5:$F$34,2,FALSE),EmissionCosts!$C$34)*Parameters!$B$12/1000 -> 0 | I81: =-(I69+I75)*IF(I$2< 2050,VLOOKUP(I$2,EmissionCosts!$B$5:$F$34,2,FALSE),EmissionCosts!$C$34)*Parameters!$B$12/1000 -> 0 | J81: =-(J69+J75)*IF(J$2< 2050,VLOOKUP(J$2,EmissionCosts!$B$5:$F$34,2,FALSE),EmissionCosts!$C$34)*Parameters!$B$12/1000 -> 0 | K81: =-(K69+K75)*IF(K$2< 2050,VLOOKUP(K$2,EmissionCosts!$B$5:$F$34,2,FALSE),EmissionCosts!$C$34)*Parameters!$B$12/1000 -> 123.8461258 | L81: =-(L69+L75)*IF(L$2< 2050,VLOOKUP(L$2,EmissionCosts!$B$5:$F$34,2,FALSE),EmissionCosts!$C$34)*Parameters!$B$12/1000 -> 327.0618791 | M81: =-(M69+M75)*IF(M$2< 2050,VLOOKUP(M$2,EmissionCosts!$B$5:$F$34,2,FALSE),EmissionCosts!$C$34)*Parameters!$B$12/1000 -> 334.819299 | N81: =-(N69+N75)*IF(N$2< 2050,VLOOKUP(N$2,EmissionCosts!$B$5:$F$34,2,FALSE),EmissionCosts!$C$34)*Parameters!$B$12/1000 -> 342.5148846 | O81: =-(O69+O75)*IF(O$2< 2050,VLOOKUP(O$2,EmissionCosts!$B$5:$F$34,2,FALSE),EmissionCosts!$C$34)*Parameters!$B$12/1000 -> 350.1499187 | P81: =-(P69+P75)*IF(P$2< 2050,VLOOKUP(P$2,EmissionCosts!$B$5:$F$34,2,FALSE),EmissionCosts!$C$34)*Parameters!$B$12/1000 -> 357.7256922 | Q81: =-(Q69+Q75)*IF(Q$2< 2050,VLOOKUP(Q$2,EmissionCosts!$B$5:$F$34,2,FALSE),EmissionCosts!$C$34)*Parameters!$B$12/1000 -> 365.2435042 | R81: =-(R69+R75)*IF(R$2< 2050,VLOOKUP(R$2,EmissionCosts!$B$5:$F$34,2,FALSE),EmissionCosts!$C$34)*Parameters!$B$12/1000 -> 372.7046626 | S81: =-(S69+S75)*IF(S$2< 2050,VLOOKUP(S$2,EmissionCosts!$B$5:$F$34,2,FALSE),EmissionCosts!$C$34)*Parameters!$B$12/1000 -> 380.1104843 | T81: =-(T69+T75)*IF(T$2< 2050,VLOOKUP(T$2,EmissionCosts!$B$5:$F$34,2,FALSE),EmissionCosts!$C$34)*Parameters!$B$12/1000 -> 387.4622957 | U81: =-(U69+U75)*IF(U$2< 2050,VLOOKUP(U$2,EmissionCosts!$B$5:$F$34,2,FALSE),EmissionCosts!$C$34)*Parameters!$B$12/1000 -> 394.761433 | V81: =-(V69+V75)*IF(V$2< 2050,VLOOKUP(V$2,EmissionCosts!$B$5:$F$34,2,FALSE),EmissionCosts!$C$34)*Parameters!$B$12/1000 -> 402.0092428 | W81: =-(W69+W75)*IF(W$2< 2050,VLOOKUP(W$2,EmissionCosts!$B$5:$F$34,2,FALSE),EmissionCosts!$C$34)*Parameters!$B$12/1000 -> 409.2070822 | X81: =-(X69+X75)*IF(X$2< 2050,VLOOKUP(X$2,EmissionCosts!$B$5:$F$34,2,FALSE),EmissionCosts!$C$34)*Parameters!$B$12/1000 -> 416.3563195 | Y81: =-(Y69+Y75)*IF(Y$2< 2050,VLOOKUP(Y$2,EmissionCosts!$B$5:$F$34,2,FALSE),EmissionCosts!$C$34)*Parameters!$B$12/1000 -> 423.4583347 | Z81: =-(Z69+Z75)*IF(Z$2< 2050,VLOOKUP(Z$2,EmissionCosts!$B$5:$F$34,2,FALSE),EmissionCosts!$C$34)*Parameters!$B$12/1000 -> 430.5145194 | AA81: =-(AA69+AA75)*IF(AA$2< 2050,VLOOKUP(AA$2,EmissionCosts!$B$5:$F$34,2,FALSE),EmissionCosts!$C$34)*Parameters!$B$12/1000 -> 437.526278 | AB81: =-(AB69+AB75)*IF(AB$2< 2050,VLOOKUP(AB$2,EmissionCosts!$B$5:$F$34,2,FALSE),EmissionCosts!$C$34)*Parameters!$B$12/1000 -> 444.4950276 | AC81: =-(AC69+AC75)*IF(AC$2< 2050,VLOOKUP(AC$2,EmissionCosts!$B$5:$F$34,2,FALSE),EmissionCosts!$C$34)*Parameters!$B$12/1000 -> 451.4221986 | AD81: =-(AD69+AD75)*IF(AD$2< 2050,VLOOKUP(AD$2,EmissionCosts!$B$5:$F$34,2,FALSE),EmissionCosts!$C$34)*Parameters!$B$12/1000 -> 458.3092354 | AE81: =-(AE69+AE75)*IF(AE$2< 2050,VLOOKUP(AE$2,EmissionCosts!$B$5:$F$34,2,FALSE),EmissionCosts!$C$34)*Parameters!$B$12/1000 -> 465.1575965 | AF81: =-(AF69+AF75)*IF(AF$2< 2050,VLOOKUP(AF$2,EmissionCosts!$B$5:$F$34,2,FALSE),EmissionCosts!$C$34)*Parameters!$B$12/1000 -> 0 | AG81: =-(AG69+AG75)*IF(AG$2< 2050,VLOOKUP(AG$2,EmissionCosts!$B$5:$F$34,2,FALSE),EmissionCosts!$C$34)*Parameters!$B$12/1000 -> 0 | AH81: =-(AH69+AH75)*IF(AH$2< 2050,VLOOKUP(AH$2,EmissionCosts!$B$5:$F$34,2,FALSE),EmissionCosts!$C$34)*Parameters!$B$12/1000 -> 0 | AI81: =-(AI69+AI75)*IF(AI$2< 2050,VLOOKUP(AI$2,EmissionCosts!$B$5:$F$34,2,FALSE),EmissionCosts!$C$34)*Parameters!$B$12/1000 -> 0 | AJ81: =-(AJ69+AJ75)*IF(AJ$2< 2050,VLOOKUP(AJ$2,EmissionCosts!$B$5:$F$34,2,FALSE),EmissionCosts!$C$34)*Parameters!$B$12/1000 -> 0
A82: CO2, $ | B82: =SUMPRODUCT(D82:AJ82,D$6:AJ$6) -> 31713.12784 | C82: 54170.69047 | D82: =-(D70+D76)*IF(D2< 2050,VLOOKUP(F$2,EmissionCosts!$B$5:$F$34,5,FALSE),EmissionCosts!$F$34)*Parameters!B12/1000 -> 0 | E82: =-(E70+E76)*IF(E2< 2050,VLOOKUP(F$2,EmissionCosts!$B$5:$F$34,5,FALSE),EmissionCosts!$F$34)*Parameters!$B$12/1000 -> 0 | F82: =-(F70+F76)*IF(F$2< 2050,VLOOKUP(F$2,EmissionCosts!$B$5:$F$34,5,FALSE),EmissionCosts!$F$34)*Parameters!$B$12/1000 -> 0 | G82: =-(G70+G76)*IF(G$2< 2050,VLOOKUP(G$2,EmissionCosts!$B$5:$F$34,5,FALSE),EmissionCosts!$F$34)*Parameters!$B$12/1000 -> 0 | H82: =-(H70+H76)*IF(H$2< 2050,VLOOKUP(H$2,EmissionCosts!$B$5:$F$34,5,FALSE),EmissionCosts!$F$34)*Parameters!$B$12/1000 -> 0 | I82: =-(I70+I76)*IF(I$2< 2050,VLOOKUP(I$2,EmissionCosts!$B$5:$F$34,5,FALSE),EmissionCosts!$F$34)*Parameters!$B$12/1000 -> 0 | J82: =-(J70+J76)*IF(J$2< 2050,VLOOKUP(J$2,EmissionCosts!$B$5:$F$34,5,FALSE),EmissionCosts!$F$34)*Parameters!$B$12/1000 -> 0 | K82: =-(K70+K76)*IF(K$2< 2050,VLOOKUP(K$2,EmissionCosts!$B$5:$F$34,5,FALSE),EmissionCosts!$F$34)*Parameters!$B$12/1000 -> 587.5710469 | L82: =-(L70+L76)*IF(L$2< 2050,VLOOKUP(L$2,EmissionCosts!$B$5:$F$34,5,FALSE),EmissionCosts!$F$34)*Parameters!$B$12/1000 -> 1801.735383 | M82: =-(M70+M76)*IF(M$2< 2050,VLOOKUP(M$2,EmissionCosts!$B$5:$F$34,5,FALSE),EmissionCosts!$F$34)*Parameters!$B$12/1000 -> 1878.022897 | N82: =-(N70+N76)*IF(N$2< 2050,VLOOKUP(N$2,EmissionCosts!$B$5:$F$34,5,FALSE),EmissionCosts!$F$34)*Parameters!$B$12/1000 -> 1956.09867 | O82: =-(O70+O76)*IF(O$2< 2050,VLOOKUP(O$2,EmissionCosts!$B$5:$F$34,5,FALSE),EmissionCosts!$F$34)*Parameters!$B$12/1000 -> 2035.994422 | P82: =-(P70+P76)*IF(P$2< 2050,VLOOKUP(P$2,EmissionCosts!$B$5:$F$34,5,FALSE),EmissionCosts!$F$34)*Parameters!$B$12/1000 -> 2117.743356 | Q82: =-(Q70+Q76)*IF(Q$2< 2050,VLOOKUP(Q$2,EmissionCosts!$B$5:$F$34,5,FALSE),EmissionCosts!$F$34)*Parameters!$B$12/1000 -> 2201.380192 | R82: =-(R70+R76)*IF(R$2< 2050,VLOOKUP(R$2,EmissionCosts!$B$5:$F$34,5,FALSE),EmissionCosts!$F$34)*Parameters!$B$12/1000 -> 2320.572695 | S82: =-(S70+S76)*IF(S$2< 2050,VLOOKUP(S$2,EmissionCosts!$B$5:$F$34,5,FALSE),EmissionCosts!$F$34)*Parameters!$B$12/1000 -> 2408.876794 | T82: =-(T70+T76)*IF(T$2< 2050,VLOOKUP(T$2,EmissionCosts!$B$5:$F$34,5,FALSE),EmissionCosts!$F$34)*Parameters!$B$12/1000 -> 2499.188725 | U82: =-(U70+U76)*IF(U$2< 2050,VLOOKUP(U$2,EmissionCosts!$B$5:$F$34,5,FALSE),EmissionCosts!$F$34)*Parameters!$B$12/1000 -> 2591.549984 | V82: =-(V70+V76)*IF(V$2< 2050,VLOOKUP(V$2,EmissionCosts!$B$5:$F$34,5,FALSE),EmissionCosts!$F$34)*Parameters!$B$12/1000 -> 2686.003791 | W82: =-(W70+W76)*IF(W$2< 2050,VLOOKUP(W$2,EmissionCosts!$B$5:$F$34,5,FALSE),EmissionCosts!$F$34)*Parameters!$B$12/1000 -> 2782.595137 | X82: =-(X70+X76)*IF(X$2< 2050,VLOOKUP(X$2,EmissionCosts!$B$5:$F$34,5,FALSE),EmissionCosts!$F$34)*Parameters!$B$12/1000 -> 2881.370825 | Y82: =-(Y70+Y76)*IF(Y$2< 2050,VLOOKUP(Y$2,EmissionCosts!$B$5:$F$34,5,FALSE),EmissionCosts!$F$34)*Parameters!$B$12/1000 -> 3021.621357 | Z82: =-(Z70+Z76)*IF(Z$2< 2050,VLOOKUP(Z$2,EmissionCosts!$B$5:$F$34,5,FALSE),EmissionCosts!$F$34)*Parameters!$B$12/1000 -> 3125.745457 | AA82: =-(AA70+AA76)*IF(AA$2< 2050,VLOOKUP(AA$2,EmissionCosts!$B$5:$F$34,5,FALSE),EmissionCosts!$F$34)*Parameters!$B$12/1000 -> 3232.214289 | AB82: =-(AB70+AB76)*IF(AB$2< 2050,VLOOKUP(AB$2,EmissionCosts!$B$5:$F$34,5,FALSE),EmissionCosts!$F$34)*Parameters!$B$12/1000 -> 3341.082754 | AC82: =-(AC70+AC76)*IF(AC$2< 2050,VLOOKUP(AC$2,EmissionCosts!$B$5:$F$34,5,FALSE),EmissionCosts!$F$34)*Parameters!$B$12/1000 -> 3452.407821 | AD82: =-(AD70+AD76)*IF(AD$2< 2050,VLOOKUP(AD$2,EmissionCosts!$B$5:$F$34,5,FALSE),EmissionCosts!$F$34)*Parameters!$B$12/1000 -> 3566.248578 | AE82: =-(AE70+AE76)*IF(AE$2< 2050,VLOOKUP(AE$2,EmissionCosts!$B$5:$F$34,5,FALSE),EmissionCosts!$F$34)*Parameters!$B$12/1000 -> 3682.666291 | AF82: =-(AF70+AF76)*IF(AF$2< 2050,VLOOKUP(AF$2,EmissionCosts!$B$5:$F$34,5,FALSE),EmissionCosts!$F$34)*Parameters!$B$12/1000 -> 0 | AG82: =-(AG70+AG76)*IF(AG$2< 2050,VLOOKUP(AG$2,EmissionCosts!$B$5:$F$34,5,FALSE),EmissionCosts!$F$34)*Parameters!$B$12/1000 -> 0 | AH82: =-(AH70+AH76)*IF(AH$2< 2050,VLOOKUP(AH$2,EmissionCosts!$B$5:$F$34,5,FALSE),EmissionCosts!$F$34)*Parameters!$B$12/1000 -> 0 | AI82: =-(AI70+AI76)*IF(AI$2< 2050,VLOOKUP(AI$2,EmissionCosts!$B$5:$F$34,5,FALSE),EmissionCosts!$F$34)*Parameters!$B$12/1000 -> 0 | AJ82: =-(AJ70+AJ76)*IF(AJ$2< 2050,VLOOKUP(AJ$2,EmissionCosts!$B$5:$F$34,5,FALSE),EmissionCosts!$F$34)*Parameters!$B$12/1000 -> 0
A83: PM, $ | B83: =SUMPRODUCT(D83:AJ83,D$5:AJ$5) -> 4315.782091 | C83: 13456.46852 | D83: =-(D71+D77)*IF(D$2< 2050,VLOOKUP(F$2,EmissionCosts!$B$5:$F$34,4,FALSE),EmissionCosts!$E$34)*Parameters!$B$12/1000 -> 0 | E83: =-(E71+E77)*IF(E$2< 2050,VLOOKUP(F$2,EmissionCosts!$B$5:$F$34,4,FALSE),EmissionCosts!$E$34)*Parameters!$B$12/1000 -> 0 | F83: =-(F71+F77)*IF(F$2< 2050,VLOOKUP(F$2,EmissionCosts!$B$5:$F$34,4,FALSE),EmissionCosts!$E$34)*Parameters!$B$12/1000 -> 0 | G83: =-(G71+G77)*IF(G$2< 2050,VLOOKUP(G$2,EmissionCosts!$B$5:$F$34,4,FALSE),EmissionCosts!$E$34)*Parameters!$B$12/1000 -> 0 | H83: =-(H71+H77)*IF(H$2< 2050,VLOOKUP(H$2,EmissionCosts!$B$5:$F$34,4,FALSE),EmissionCosts!$E$34)*Parameters!$B$12/1000 -> 0 | I83: =-(I71+I77)*IF(I$2< 2050,VLOOKUP(I$2,EmissionCosts!$B$5:$F$34,4,FALSE),EmissionCosts!$E$34)*Parameters!$B$12/1000 -> 0 | J83: =-(J71+J77)*IF(J$2< 2050,VLOOKUP(J$2,EmissionCosts!$B$5:$F$34,4,FALSE),EmissionCosts!$E$34)*Parameters!$B$12/1000 -> 0 | K83: =-(K71+K77)*IF(K$2< 2050,VLOOKUP(K$2,EmissionCosts!$B$5:$F$34,4,FALSE),EmissionCosts!$E$34)*Parameters!$B$12/1000 -> 214.2138201 | L83: =-(L71+L77)*IF(L$2< 2050,VLOOKUP(L$2,EmissionCosts!$B$5:$F$34,4,FALSE),EmissionCosts!$E$34)*Parameters!$B$12/1000 -> 539.0159968 | M83: =-(M71+M77)*IF(M$2< 2050,VLOOKUP(M$2,EmissionCosts!$B$5:$F$34,4,FALSE),EmissionCosts!$E$34)*Parameters!$B$12/1000 -> 552.152668 | N83: =-(N71+N77)*IF(N$2< 2050,VLOOKUP(N$2,EmissionCosts!$B$5:$F$34,4,FALSE),EmissionCosts!$E$34)*Parameters!$B$12/1000 -> 565.2457943 | O83: =-(O71+O77)*IF(O$2< 2050,VLOOKUP(O$2,EmissionCosts!$B$5:$F$34,4,FALSE),EmissionCosts!$E$34)*Parameters!$B$12/1000 -> 578.2984557 | P83: =-(P71+P77)*IF(P$2< 2050,VLOOKUP(P$2,EmissionCosts!$B$5:$F$34,4,FALSE),EmissionCosts!$E$34)*Parameters!$B$12/1000 -> 591.3137734 | Q83: =-(Q71+Q77)*IF(Q$2< 2050,VLOOKUP(Q$2,EmissionCosts!$B$5:$F$34,4,FALSE),EmissionCosts!$E$34)*Parameters!$B$12/1000 -> 604.2949105 | R83: =-(R71+R77)*IF(R$2< 2050,VLOOKUP(R$2,EmissionCosts!$B$5:$F$34,4,FALSE),EmissionCosts!$E$34)*Parameters!$B$12/1000 -> 617.2450737 | S83: =-(S71+S77)*IF(S$2< 2050,VLOOKUP(S$2,EmissionCosts!$B$5:$F$34,4,FALSE),EmissionCosts!$E$34)*Parameters!$B$12/1000 -> 630.1675147 | T83: =-(T71+T77)*IF(T$2< 2050,VLOOKUP(T$2,EmissionCosts!$B$5:$F$34,4,FALSE),EmissionCosts!$E$34)*Parameters!$B$12/1000 -> 643.0655309 | U83: =-(U71+U77)*IF(U$2< 2050,VLOOKUP(U$2,EmissionCosts!$B$5:$F$34,4,FALSE),EmissionCosts!$E$34)*Parameters!$B$12/1000 -> 655.9424675 | V83: =-(V71+V77)*IF(V$2< 2050,VLOOKUP(V$2,EmissionCosts!$B$5:$F$34,4,FALSE),EmissionCosts!$E$34)*Parameters!$B$12/1000 -> 668.8017184 | W83: =-(W71+W77)*IF(W$2< 2050,VLOOKUP(W$2,EmissionCosts!$B$5:$F$34,4,FALSE),EmissionCosts!$E$34)*Parameters!$B$12/1000 -> 681.6467278 | X83: =-(X71+X77)*IF(X$2< 2050,VLOOKUP(X$2,EmissionCosts!$B$5:$F$34,4,FALSE),EmissionCosts!$E$34)*Parameters!$B$12/1000 -> 694.4809914 | Y83: =-(Y71+Y77)*IF(Y$2< 2050,VLOOKUP(Y$2,EmissionCosts!$B$5:$F$34,4,FALSE),EmissionCosts!$E$34)*Parameters!$B$12/1000 -> 707.3080583 | Z83: =-(Z71+Z77)*IF(Z$2< 2050,VLOOKUP(Z$2,EmissionCosts!$B$5:$F$34,4,FALSE),EmissionCosts!$E$34)*Parameters!$B$12/1000 -> 720.1315322 | AA83: =-(AA71+AA77)*IF(AA$2< 2050,VLOOKUP(AA$2,EmissionCosts!$B$5:$F$34,4,FALSE),EmissionCosts!$E$34)*Parameters!$B$12/1000 -> 732.9550729 | AB83: =-(AB71+AB77)*IF(AB$2< 2050,VLOOKUP(AB$2,EmissionCosts!$B$5:$F$34,4,FALSE),EmissionCosts!$E$34)*Parameters!$B$12/1000 -> 745.7823981 | AC83: =-(AC71+AC77)*IF(AC$2< 2050,VLOOKUP(AC$2,EmissionCosts!$B$5:$F$34,4,FALSE),EmissionCosts!$E$34)*Parameters!$B$12/1000 -> 758.6172847 | AD83: =-(AD71+AD77)*IF(AD$2< 2050,VLOOKUP(AD$2,EmissionCosts!$B$5:$F$34,4,FALSE),EmissionCosts!$E$34)*Parameters!$B$12/1000 -> 771.4635709 | AE83: =-(AE71+AE77)*IF(AE$2< 2050,VLOOKUP(AE$2,EmissionCosts!$B$5:$F$34,4,FALSE),EmissionCosts!$E$34)*Parameters!$B$12/1000 -> 784.3251574 | AF83: =-(AF71+AF77)*IF(AF$2< 2050,VLOOKUP(AF$2,EmissionCosts!$B$5:$F$34,4,FALSE),EmissionCosts!$E$34)*Parameters!$B$12/1000 -> 0 | AG83: =-(AG71+AG77)*IF(AG$2< 2050,VLOOKUP(AG$2,EmissionCosts!$B$5:$F$34,4,FALSE),EmissionCosts!$E$34)*Parameters!$B$12/1000 -> 0 | AH83: =-(AH71+AH77)*IF(AH$2< 2050,VLOOKUP(AH$2,EmissionCosts!$B$5:$F$34,4,FALSE),EmissionCosts!$E$34)*Parameters!$B$12/1000 -> 0 | AI83: =-(AI71+AI77)*IF(AI$2< 2050,VLOOKUP(AI$2,EmissionCosts!$B$5:$F$34,4,FALSE),EmissionCosts!$E$34)*Parameters!$B$12/1000 -> 0 | AJ83: =-(AJ71+AJ77)*IF(AJ$2< 2050,VLOOKUP(AJ$2,EmissionCosts!$B$5:$F$34,4,FALSE),EmissionCosts!$E$34)*Parameters!$B$12/1000 -> 0
A84: SO2, $ | B84: 90.08668844 | C84: 282.8404946 | D84: =-(D72+D78)*IF(D$2< 2050,VLOOKUP(F$2,EmissionCosts!$B$5:$F$34,3,FALSE),EmissionCosts!$D$34)*Parameters!$B$12/1000 -> 0 | E84: =-(E72+E78)*IF(E$2< 2050,VLOOKUP(F$2,EmissionCosts!$B$5:$F$34,3,FALSE),EmissionCosts!$D$34)*Parameters!$B$12/1000 -> 0 | F84: =-(F72+F78)*IF(F$2< 2050,VLOOKUP(F$2,EmissionCosts!$B$5:$F$34,3,FALSE),EmissionCosts!$D$34)*Parameters!$B$12/1000 -> 0 | G84: =-(G72+G78)*IF(G$2< 2050,VLOOKUP(G$2,EmissionCosts!$B$5:$F$34,3,FALSE),EmissionCosts!$D$34)*Parameters!$B$12/1000 -> 0 | H84: =-(H72+H78)*IF(H$2< 2050,VLOOKUP(H$2,EmissionCosts!$B$5:$F$34,3,FALSE),EmissionCosts!$D$34)*Parameters!$B$12/1000 -> 0 | I84: =-(I72+I78)*IF(I$2< 2050,VLOOKUP(I$2,EmissionCosts!$B$5:$F$34,3,FALSE),EmissionCosts!$D$34)*Parameters!$B$12/1000 -> 0 | J84: =-(J72+J78)*IF(J$2< 2050,VLOOKUP(J$2,EmissionCosts!$B$5:$F$34,3,FALSE),EmissionCosts!$D$34)*Parameters!$B$12/1000 -> 0 | K84: =-(K72+K78)*IF(K$2< 2050,VLOOKUP(K$2,EmissionCosts!$B$5:$F$34,3,FALSE),EmissionCosts!$D$34)*Parameters!$B$12/1000 -> 3.635146142 | L84: =-(L72+L78)*IF(L$2< 2050,VLOOKUP(L$2,EmissionCosts!$B$5:$F$34,3,FALSE),EmissionCosts!$D$34)*Parameters!$B$12/1000 -> 11.17973086 | M84: =-(M72+M78)*IF(M$2< 2050,VLOOKUP(M$2,EmissionCosts!$B$5:$F$34,3,FALSE),EmissionCosts!$D$34)*Parameters!$B$12/1000 -> 11.46375287 | N84: =-(N72+N78)*IF(N$2< 2050,VLOOKUP(N$2,EmissionCosts!$B$5:$F$34,3,FALSE),EmissionCosts!$D$34)*Parameters!$B$12/1000 -> 11.74878733 | O84: =-(O72+O78)*IF(O$2< 2050,VLOOKUP(O$2,EmissionCosts!$B$5:$F$34,3,FALSE),EmissionCosts!$D$34)*Parameters!$B$12/1000 -> 12.03492983 | P84: =-(P72+P78)*IF(P$2< 2050,VLOOKUP(P$2,EmissionCosts!$B$5:$F$34,3,FALSE),EmissionCosts!$D$34)*Parameters!$B$12/1000 -> 12.32227771 | Q84: =-(Q72+Q78)*IF(Q$2< 2050,VLOOKUP(Q$2,EmissionCosts!$B$5:$F$34,3,FALSE),EmissionCosts!$D$34)*Parameters!$B$12/1000 -> 12.61093014 | R84: =-(R72+R78)*IF(R$2< 2050,VLOOKUP(R$2,EmissionCosts!$B$5:$F$34,3,FALSE),EmissionCosts!$D$34)*Parameters!$B$12/1000 -> 12.90098813 | S84: =-(S72+S78)*IF(S$2< 2050,VLOOKUP(S$2,EmissionCosts!$B$5:$F$34,3,FALSE),EmissionCosts!$D$34)*Parameters!$B$12/1000 -> 13.19255461 | T84: =-(T72+T78)*IF(T$2< 2050,VLOOKUP(T$2,EmissionCosts!$B$5:$F$34,3,FALSE),EmissionCosts!$D$34)*Parameters!$B$12/1000 -> 13.48573446 | U84: =-(U72+U78)*IF(U$2< 2050,VLOOKUP(U$2,EmissionCosts!$B$5:$F$34,3,FALSE),EmissionCosts!$D$34)*Parameters!$B$12/1000 -> 13.78063458 | V84: =-(V72+V78)*IF(V$2< 2050,VLOOKUP(V$2,EmissionCosts!$B$5:$F$34,3,FALSE),EmissionCosts!$D$34)*Parameters!$B$12/1000 -> 14.07736392 | W84: =-(W72+W78)*IF(W$2< 2050,VLOOKUP(W$2,EmissionCosts!$B$5:$F$34,3,FALSE),EmissionCosts!$D$34)*Parameters!$B$12/1000 -> 14.37603354 | X84: =-(X72+X78)*IF(X$2< 2050,VLOOKUP(X$2,EmissionCosts!$B$5:$F$34,3,FALSE),EmissionCosts!$D$34)*Parameters!$B$12/1000 -> 14.67675669 | Y84: =-(Y72+Y78)*IF(Y$2< 2050,VLOOKUP(Y$2,EmissionCosts!$B$5:$F$34,3,FALSE),EmissionCosts!$D$34)*Parameters!$B$12/1000 -> 14.97964882 | Z84: =-(Z72+Z78)*IF(Z$2< 2050,VLOOKUP(Z$2,EmissionCosts!$B$5:$F$34,3,FALSE),EmissionCosts!$D$34)*Parameters!$B$12/1000 -> 15.28482766 | AA84: =-(AA72+AA78)*IF(AA$2< 2050,VLOOKUP(AA$2,EmissionCosts!$B$5:$F$34,3,FALSE),EmissionCosts!$D$34)*Parameters!$B$12/1000 -> 15.59241329 | AB84: =-(AB72+AB78)*IF(AB$2< 2050,VLOOKUP(AB$2,EmissionCosts!$B$5:$F$34,3,FALSE),EmissionCosts!$D$34)*Parameters!$B$12/1000 -> 15.90252819 | AC84: =-(AC72+AC78)*IF(AC$2< 2050,VLOOKUP(AC$2,EmissionCosts!$B$5:$F$34,3,FALSE),EmissionCosts!$D$34)*Parameters!$B$12/1000 -> 16.2152973 | AD84: =-(AD72+AD78)*IF(AD$2< 2050,VLOOKUP(AD$2,EmissionCosts!$B$5:$F$34,3,FALSE),EmissionCosts!$D$34)*Parameters!$B$12/1000 -> 16.53084805 | AE84: =-(AE72+AE78)*IF(AE$2< 2050,VLOOKUP(AE$2,EmissionCosts!$B$5:$F$34,3,FALSE),EmissionCosts!$D$34)*Parameters!$B$12/1000 -> 16.8493105 | AF84: =-(AF72+AF78)*IF(AF$2< 2050,VLOOKUP(AF$2,EmissionCosts!$B$5:$F$34,3,FALSE),EmissionCosts!$D$34)*Parameters!$B$12/1000 -> 0 | AG84: =-(AG72+AG78)*IF(AG$2< 2050,VLOOKUP(AG$2,EmissionCosts!$B$5:$F$34,3,FALSE),EmissionCosts!$D$34)*Parameters!$B$12/1000 -> 0 | AH84: =-(AH72+AH78)*IF(AH$2< 2050,VLOOKUP(AH$2,EmissionCosts!$B$5:$F$34,3,FALSE),EmissionCosts!$D$34)*Parameters!$B$12/1000 -> 0 | AI84: =-(AI72+AI78)*IF(AI$2< 2050,VLOOKUP(AI$2,EmissionCosts!$B$5:$F$34,3,FALSE),EmissionCosts!$D$34)*Parameters!$B$12/1000 -> 0 | AJ84: =-(AJ72+AJ78)*IF(AJ$2< 2050,VLOOKUP(AJ$2,EmissionCosts!$B$5:$F$34,3,FALSE),EmissionCosts!$D$34)*Parameters!$B$12/1000 -> 0
A85: Total | B85: =SUM(B81:B84) -> 38713.99533 | C85: 75984.85549 | D85: =SUM(D81:D84) -> 0 | E85: 0 | F85: 0 | G85: 0 | H85: 0 | I85: 0 | J85: 0 | K85: 929.2661389 | L85: 2678.99299 | M85: 2776.458617 | N85: 2875.608136 | O85: 2976.477726 | P85: 3079.105099 | Q85: 3183.529537 | R85: 3323.423419 | S85: 3432.347348 | T85: 3543.202286 | U85: 3656.034519 | V85: 3770.892116 | W85: 3887.82498 | X85: 4006.884893 | Y85: 4167.367399 | Z85: 4291.676336 | AA85: 4418.288053 | AB85: 4547.262708 | AC85: 4678.662602 | AD85: 4812.552233 | AE85: 4948.998356 | AF85: 0 | AG85: 0 | AH85: 0 | AI85: 0 | AJ85: 0
A86: Use simplified approach (1) or speed-bins (0) >>> | B86: 1
A87: =IF(SUM(BCAInputs!B204:C204,BCAInputs!B224:C224,BCAInputs!B244:C244)=0,"No speed-bin data. Use simplified approach.","") -> No speed-bin data. Use simplified approach.
A89: Crash Cost Savings
A90: From External SAFETY ANALYSIS
A91: Number of Fatalities/Injuries/PDO AVOIDED
A92: Fatality | B92: =BCAInputs!B174 -> 0 | C92: =SUM(D92:AJ92) -> 7.010933333 | D92: =SafetyCalcs!D7 -> 0 | E92: =SafetyCalcs!E7 -> 0 | F92: =SafetyCalcs!F7 -> 0 | G92: =SafetyCalcs!G7 -> 0 | H92: =SafetyCalcs!H7 -> 0 | I92: =SafetyCalcs!I7 -> 0 | J92: =SafetyCalcs!J7 -> 0 | K92: =SafetyCalcs!K7 -> 0.1149333333 | L92: =SafetyCalcs!L7 -> 0.3448 | M92: =SafetyCalcs!M7 -> 0.3448 | N92: =SafetyCalcs!N7 -> 0.3448 | O92: =SafetyCalcs!O7 -> 0.3448 | P92: =SafetyCalcs!P7 -> 0.3448 | Q92: =SafetyCalcs!Q7 -> 0.3448 | R92: =SafetyCalcs!R7 -> 0.3448 | S92: =SafetyCalcs!S7 -> 0.3448 | T92: =SafetyCalcs!T7 -> 0.3448 | U92: =SafetyCalcs!U7 -> 0.3448 | V92: =SafetyCalcs!V7 -> 0.3448 | W92: =SafetyCalcs!W7 -> 0.3448 | X92: =SafetyCalcs!X7 -> 0.3448 | Y92: =SafetyCalcs!Y7 -> 0.3448 | Z92: =SafetyCalcs!Z7 -> 0.3448 | AA92: =SafetyCalcs!AA7 -> 0.3448 | AB92: =SafetyCalcs!AB7 -> 0.3448 | AC92: =SafetyCalcs!AC7 -> 0.3448 | AD92: =SafetyCalcs!AD7 -> 0.3448 | AE92: =SafetyCalcs!AE7 -> 0.3448 | AF92: =SafetyCalcs!AF7 -> 0 | AG92: =AF92 -> 0 | AH92: =AG92 -> 0 | AI92: 0 | AJ92: 0
A93: Injured (Severity Unknown) | B93: =BCAInputs!B178 -> 0 | C93: =SUM(D93:AJ93) -> 16.04706667 | D93: =SafetyCalcs!D8 -> 0 | E93: =SafetyCalcs!E8 -> 0 | F93: =SafetyCalcs!F8 -> 0 | G93: =SafetyCalcs!G8 -> 0 | H93: =SafetyCalcs!H8 -> 0 | I93: =SafetyCalcs!I8 -> 0 | J93: =SafetyCalcs!J8 -> 0 | K93: =SafetyCalcs!K8 -> 0.2630666667 | L93: =SafetyCalcs!L8 -> 0.7892 | M93: =SafetyCalcs!M8 -> 0.7892 | N93: =SafetyCalcs!N8 -> 0.7892 | O93: =SafetyCalcs!O8 -> 0.7892 | P93: =SafetyCalcs!P8 -> 0.7892 | Q93: =SafetyCalcs!Q8 -> 0.7892 | R93: =SafetyCalcs!R8 -> 0.7892 | S93: =SafetyCalcs!S8 -> 0.7892 | T93: =SafetyCalcs!T8 -> 0.7892 | U93: =SafetyCalcs!U8 -> 0.7892 | V93: =SafetyCalcs!V8 -> 0.7892 | W93: =SafetyCalcs!W8 -> 0.7892 | X93: =SafetyCalcs!X8 -> 0.7892 | Y93: =SafetyCalcs!Y8 -> 0.7892 | Z93: =SafetyCalcs!Z8 -> 0.7892 | AA93: =SafetyCalcs!AA8 -> 0.7892 | AB93: =SafetyCalcs!AB8 -> 0.7892 | AC93: =SafetyCalcs!AC8 -> 0.7892 | AD93: =SafetyCalcs!AD8 -> 0.7892 | AE93: =SafetyCalcs!AE8 -> 0.7892 | AF93: =SafetyCalcs!AF8 -> 0 | AG93: =AF93 -> 0 | AH93: 0 | AI93: 0 | AJ93: 0
A94: PDO | B94: =C94 -> 31.7932 | C94: =SUM(D94:AJ94) -> 31.7932 | D94: =SafetyCalcs!D9 -> 0 | E94: =SafetyCalcs!E9 -> 0 | F94: =SafetyCalcs!F9 -> 0 | G94: =SafetyCalcs!G9 -> 0 | H94: =SafetyCalcs!H9 -> 0 | I94: =SafetyCalcs!I9 -> 0 | J94: =SafetyCalcs!J9 -> 0 | K94: =SafetyCalcs!K9 -> 0.5212 | L94: =SafetyCalcs!L9 -> 1.5636 | M94: =SafetyCalcs!M9 -> 1.5636 | N94: =SafetyCalcs!N9 -> 1.5636 | O94: =SafetyCalcs!O9 -> 1.5636 | P94: =SafetyCalcs!P9 -> 1.5636 | Q94: =SafetyCalcs!Q9 -> 1.5636 | R94: =SafetyCalcs!R9 -> 1.5636 | S94: =SafetyCalcs!S9 -> 1.5636 | T94: =SafetyCalcs!T9 -> 1.5636 | U94: =SafetyCalcs!U9 -> 1.5636 | V94: =SafetyCalcs!V9 -> 1.5636 | W94: =SafetyCalcs!W9 -> 1.5636 | X94: =SafetyCalcs!X9 -> 1.5636 | Y94: =SafetyCalcs!Y9 -> 1.5636 | Z94: =SafetyCalcs!Z9 -> 1.5636 | AA94: =SafetyCalcs!AA9 -> 1.5636 | AB94: =SafetyCalcs!AB9 -> 1.5636 | AC94: =SafetyCalcs!AC9 -> 1.5636 | AD94: =SafetyCalcs!AD9 -> 1.5636 | AE94: =SafetyCalcs!AE9 -> 1.5636 | AF94: =SafetyCalcs!AF9 -> 0 | AG94: 0 | AH94: 0 | AI94: 0 | AJ94: 0
A96: Injury/Fatality/PDO Cost Savings in Dollars | AN96: In PV
A97: Fatality | B97: =Parameters!B46 -> 10900000 | C97: =SUM(D97:AJ97) -> 76419173.33 | D97: =D92*$B97*(1+Parameters!$B$58)^(D$2-Parameters!$B$57) -> 0 | E97: =E92*$B97*(1+Parameters!$B$58)^(E$2-Parameters!$B$57) -> 0 | F97: =F92*$B97*(1+Parameters!$B$58)^(F$2-Parameters!$B$57) -> 0 | G97: =G92*$B97*(1+Parameters!$B$58)^(G$2-Parameters!$B$57) -> 0 | H97: =H92*$B97*(1+Parameters!$B$58)^(H$2-Parameters!$B$57) -> 0 | I97: =I92*$B97*(1+Parameters!$B$58)^(I$2-Parameters!$B$57) -> 0 | J97: =J92*$B97*(1+Parameters!$B$58)^(J$2-Parameters!$B$57) -> 0 | K97: =K92*$B97*(1+Parameters!$B$58)^(K$2-Parameters!$B$57) -> 1252773.333 | L97: =L92*$B97*(1+Parameters!$B$58)^(L$2-Parameters!$B$57) -> 3758320 | M97: =M92*$B97*(1+Parameters!$B$58)^(M$2-Parameters!$B$57) -> 3758320 | N97: =N92*$B97*(1+Parameters!$B$58)^(N$2-Parameters!$B$57) -> 3758320 | O97: =O92*$B97*(1+Parameters!$B$58)^(O$2-Parameters!$B$57) -> 3758320 | P97: =P92*$B97*(1+Parameters!$B$58)^(P$2-Parameters!$B$57) -> 3758320 | Q97: =Q92*$B97*(1+Parameters!$B$58)^(Q$2-Parameters!$B$57) -> 3758320 | R97: =R92*$B97*(1+Parameters!$B$58)^(R$2-Parameters!$B$57) -> 3758320 | S97: =S92*$B97*(1+Parameters!$B$58)^(S$2-Parameters!$B$57) -> 3758320 | T97: =T92*$B97*(1+Parameters!$B$58)^(T$2-Parameters!$B$57) -> 3758320 | U97: =U92*$B97*(1+Parameters!$B$58)^(U$2-Parameters!$B$57) -> 3758320 | V97: =V92*$B97*(1+Parameters!$B$58)^(V$2-Parameters!$B$57) -> 3758320 | W97: =W92*$B97*(1+Parameters!$B$58)^(W$2-Parameters!$B$57) -> 3758320 | X97: =X92*$B97*(1+Parameters!$B$58)^(X$2-Parameters!$B$57) -> 3758320 | Y97: =Y92*$B97*(1+Parameters!$B$58)^(Y$2-Parameters!$B$57) -> 3758320 | Z97: =Z92*$B97*(1+Parameters!$B$58)^(Z$2-Parameters!$B$57) -> 3758320 | AA97: =AA92*$B97*(1+Parameters!$B$58)^(AA$2-Parameters!$B$57) -> 3758320 | AB97: =AB92*$B97*(1+Parameters!$B$58)^(AB$2-Parameters!$B$57) -> 3758320 | AC97: =AC92*$B97*(1+Parameters!$B$58)^(AC$2-Parameters!$B$57) -> 3758320 | AD97: =AD92*$B97*(1+Parameters!$B$58)^(AD$2-Parameters!$B$57) -> 3758320 | AE97: =AE92*$B97*(1+Parameters!$B$58)^(AE$2-Parameters!$B$57) -> 3758320 | AF97: =AF92*$B97*(1+Parameters!$B$58)^(AF$2-Parameters!$B$57) -> 0 | AG97: =AG92*$B97*(1+Parameters!$B$58)^(AG$2-Parameters!$B$57) -> 0 | AH97: =AH92*$B97*(1+Parameters!$B$58)^(AH$2-Parameters!$B$57) -> 0 | AI97: =AI92*$B97*(1+Parameters!$B$58)^(AI$2-Parameters!$B$57) -> 0 | AJ97: =AJ92*$B97*(1+Parameters!$B$58)^(AJ$2-Parameters!$B$57) -> 0 | AN97: =SUMPRODUCT(D97:AJ97,$D$5:$AJ$5) -> 25575378.44
A98: Injured (Severity Unknown) | B98: =Parameters!B53 -> 210300 | C98: =SUM(D98:AJ98) -> 3374698.12 | D98: =D93*$B98*(1+Parameters!$B$58)^(D$2-Parameters!$B$57) -> 0 | E98: =E93*$B98*(1+Parameters!$B$58)^(E$2-Parameters!$B$57) -> 0 | F98: =F93*$B98*(1+Parameters!$B$58)^(F$2-Parameters!$B$57) -> 0 | G98: =G93*$B98*(1+Parameters!$B$58)^(G$2-Parameters!$B$57) -> 0 | H98: =H93*$B98*(1+Parameters!$B$58)^(H$2-Parameters!$B$57) -> 0 | I98: =I93*$B98*(1+Parameters!$B$58)^(I$2-Parameters!$B$57) -> 0 | J98: =J93*$B98*(1+Parameters!$B$58)^(J$2-Parameters!$B$57) -> 0 | K98: =K93*$B98*(1+Parameters!$B$58)^(K$2-Parameters!$B$57) -> 55322.92 | L98: =L93*$B98*(1+Parameters!$B$58)^(L$2-Parameters!$B$57) -> 165968.76 | M98: =M93*$B98*(1+Parameters!$B$58)^(M$2-Parameters!$B$57) -> 165968.76 | N98: =N93*$B98*(1+Parameters!$B$58)^(N$2-Parameters!$B$57) -> 165968.76 | O98: =O93*$B98*(1+Parameters!$B$58)^(O$2-Parameters!$B$57) -> 165968.76 | P98: =P93*$B98*(1+Parameters!$B$58)^(P$2-Parameters!$B$57) -> 165968.76 | Q98: =Q93*$B98*(1+Parameters!$B$58)^(Q$2-Parameters!$B$57) -> 165968.76 | R98: =R93*$B98*(1+Parameters!$B$58)^(R$2-Parameters!$B$57) -> 165968.76 | S98: =S93*$B98*(1+Parameters!$B$58)^(S$2-Parameters!$B$57) -> 165968.76 | T98: =T93*$B98*(1+Parameters!$B$58)^(T$2-Parameters!$B$57) -> 165968.76 | U98: =U93*$B98*(1+Parameters!$B$58)^(U$2-Parameters!$B$57) -> 165968.76 | V98: =V93*$B98*(1+Parameters!$B$58)^(V$2-Parameters!$B$57) -> 165968.76 | W98: =W93*$B98*(1+Parameters!$B$58)^(W$2-Parameters!$B$57) -> 165968.76 | X98: =X93*$B98*(1+Parameters!$B$58)^(X$2-Parameters!$B$57) -> 165968.76 | Y98: =Y93*$B98*(1+Parameters!$B$58)^(Y$2-Parameters!$B$57) -> 165968.76 | Z98: =Z93*$B98*(1+Parameters!$B$58)^(Z$2-Parameters!$B$57) -> 165968.76 | AA98: =AA93*$B98*(1+Parameters!$B$58)^(AA$2-Parameters!$B$57) -> 165968.76 | AB98: =AB93*$B98*(1+Parameters!$B$58)^(AB$2-Parameters!$B$57) -> 165968.76 | AC98: =AC93*$B98*(1+Parameters!$B$58)^(AC$2-Parameters!$B$57) -> 165968.76 | AD98: =AD93*$B98*(1+Parameters!$B$58)^(AD$2-Parameters!$B$57) -> 165968.76 | AE98: =AE93*$B98*(1+Parameters!$B$58)^(AE$2-Parameters!$B$57) -> 165968.76 | AF98: =AF93*$B98*(1+Parameters!$B$58)^(AF$2-Parameters!$B$57) -> 0 | AG98: =AG93*$B98*(1+Parameters!$B$58)^(AG$2-Parameters!$B$57) -> 0 | AH98: =AH93*$B98*(1+Parameters!$B$58)^(AH$2-Parameters!$B$57) -> 0 | AI98: =AI93*$B98*(1+Parameters!$B$58)^(AI$2-Parameters!$B$57) -> 0 | AJ98: =AJ93*$B98*(1+Parameters!$B$58)^(AJ$2-Parameters!$B$57) -> 0 | AN98: =SUMPRODUCT(D98:AJ98,$D$5:$AJ$5) -> 1129417.89
A99: PDO | B99: =Parameters!B55 -> 4600 | C99: 146248.72 | D99: =D94*$B99*(1+Parameters!$B$58)^(D$2-Parameters!$B$57) -> 0 | E99: =E94*$B99*(1+Parameters!$B$58)^(E$2-Parameters!$B$57) -> 0 | F99: =F94*$B99*(1+Parameters!$B$58)^(F$2-Parameters!$B$57) -> 0 | G99: =G94*$B99*(1+Parameters!$B$58)^(G$2-Parameters!$B$57) -> 0 | H99: =H94*$B99*(1+Parameters!$B$58)^(H$2-Parameters!$B$57) -> 0 | I99: =I94*$B99*(1+Parameters!$B$58)^(I$2-Parameters!$B$57) -> 0 | J99: =J94*$B99*(1+Parameters!$B$58)^(J$2-Parameters!$B$57) -> 0 | K99: =K94*$B99*(1+Parameters!$B$58)^(K$2-Parameters!$B$57) -> 2397.52 | L99: =L94*$B99*(1+Parameters!$B$58)^(L$2-Parameters!$B$57) -> 7192.56 | M99: =M94*$B99*(1+Parameters!$B$58)^(M$2-Parameters!$B$57) -> 7192.56 | N99: =N94*$B99*(1+Parameters!$B$58)^(N$2-Parameters!$B$57) -> 7192.56 | O99: =O94*$B99*(1+Parameters!$B$58)^(O$2-Parameters!$B$57) -> 7192.56 | P99: =P94*$B99*(1+Parameters!$B$58)^(P$2-Parameters!$B$57) -> 7192.56 | Q99: =Q94*$B99*(1+Parameters!$B$58)^(Q$2-Parameters!$B$57) -> 7192.56 | R99: =R94*$B99*(1+Parameters!$B$58)^(R$2-Parameters!$B$57) -> 7192.56 | S99: =S94*$B99*(1+Parameters!$B$58)^(S$2-Parameters!$B$57) -> 7192.56 | T99: =T94*$B99*(1+Parameters!$B$58)^(T$2-Parameters!$B$57) -> 7192.56 | U99: =U94*$B99*(1+Parameters!$B$58)^(U$2-Parameters!$B$57) -> 7192.56 | V99: =V94*$B99*(1+Parameters!$B$58)^(V$2-Parameters!$B$57) -> 7192.56 | W99: =W94*$B99*(1+Parameters!$B$58)^(W$2-Parameters!$B$57) -> 7192.56 | X99: =X94*$B99*(1+Parameters!$B$58)^(X$2-Parameters!$B$57) -> 7192.56 | Y99: =Y94*$B99*(1+Parameters!$B$58)^(Y$2-Parameters!$B$57) -> 7192.56 | Z99: =Z94*$B99*(1+Parameters!$B$58)^(Z$2-Parameters!$B$57) -> 7192.56 | AA99: =AA94*$B99*(1+Parameters!$B$58)^(AA$2-Parameters!$B$57) -> 7192.56 | AB99: =AB94*$B99*(1+Parameters!$B$58)^(AB$2-Parameters!$B$57) -> 7192.56 | AC99: =AC94*$B99*(1+Parameters!$B$58)^(AC$2-Parameters!$B$57) -> 7192.56 | AD99: =AD94*$B99*(1+Parameters!$B$58)^(AD$2-Parameters!$B$57) -> 7192.56 | AE99: =AE94*$B99*(1+Parameters!$B$58)^(AE$2-Parameters!$B$57) -> 7192.56 | AF99: =AF94*$B99*(1+Parameters!$B$58)^(AF$2-Parameters!$B$57) -> 0 | AG99: =AG94*$B99*(1+Parameters!$B$58)^(AG$2-Parameters!$B$57) -> 0 | AH99: =AH94*$B99*(1+Parameters!$B$58)^(AH$2-Parameters!$B$57) -> 0 | AI99: =AI94*$B99*(1+Parameters!$B$58)^(AI$2-Parameters!$B$57) -> 0 | AJ99: =AJ94*$B99*(1+Parameters!$B$58)^(AJ$2-Parameters!$B$57) -> 0 | AN99: =SUMPRODUCT(D99:AJ99,$D$5:$AJ$5) -> 48945.39154
A100: Total | C100: =SUM(D100:AJ100) -> 79940120.17 | D100: =SUM(D97:D99) -> 0 | E100: 0 | F100: 0 | G100: 0 | H100: 0 | I100: 0 | J100: 0 | K100: 1310493.773 | L100: 3931481.32 | M100: 3931481.32 | N100: 3931481.32 | O100: 3931481.32 | P100: 3931481.32 | Q100: 3931481.32 | R100: 3931481.32 | S100: 3931481.32 | T100: 3931481.32 | U100: 3931481.32 | V100: 3931481.32 | W100: 3931481.32 | X100: 3931481.32 | Y100: 3931481.32 | Z100: 3931481.32 | AA100: 3931481.32 | AB100: 3931481.32 | AC100: =SUM(AC97:AC99) -> 3931481.32 | AD100: 3931481.32 | AE100: 3931481.32 | AF100: 0 | AG100: 0 | AH100: 0 | AI100: 0 | AJ100: 0 | AN100: =SUMPRODUCT(D100:AJ100,$D$5:$AJ$5) -> 26753741.72
A102: Total Crash Cost Savings | C102: =SUM(D102:AJ102) -> 79940120.17 | D102: =D100 -> 0 | E102: =E100 -> 0 | F102: 0 | G102: 0 | H102: 0 | I102: =I100 -> 0 | J102: 0 | K102: 1310493.773 | L102: 3931481.32 | M102: 3931481.32 | N102: 3931481.32 | O102: 3931481.32 | P102: 3931481.32 | Q102: 3931481.32 | R102: 3931481.32 | S102: 3931481.32 | T102: 3931481.32 | U102: 3931481.32 | V102: 3931481.32 | W102: 3931481.32 | X102: 3931481.32 | Y102: 3931481.32 | Z102: 3931481.32 | AA102: 3931481.32 | AB102: =AB100 -> 3931481.32 | AC102: =AC100 -> 3931481.32 | AD102: 3931481.32 | AE102: 3931481.32 | AF102: 0 | AG102: 0 | AH102: 0 | AI102: 0 | AJ102: 0
A104: Investment Residual Value
A105: Residual Value, $ | C105: =SUM(D105:AJ105) -> 2706121.57 | D105: =IF(D2=CapExResidualValue!$F$17,CapExResidualValue!$B$22,0) -> 0 | E105: =IF(E2=CapExResidualValue!$F$17,CapExResidualValue!$B$22,0) -> 0 | F105: =IF(F2=CapExResidualValue!$F$17,CapExResidualValue!$B$22,0) -> 0 | G105: =IF(G2=CapExResidualValue!$F$17,CapExResidualValue!$B$22,0) -> 0 | H105: =IF(H2=CapExResidualValue!$F$17,CapExResidualValue!$B$22,0) -> 0 | I105: =IF(I2=CapExResidualValue!$F$17,CapExResidualValue!$B$22,0) -> 0 | J105: =IF(J2=CapExResidualValue!$F$17,CapExResidualValue!$B$22,0) -> 0 | K105: =IF(K2=CapExResidualValue!$F$17,CapExResidualValue!$B$22,0) -> 0 | L105: =IF(L2=CapExResidualValue!$F$17,CapExResidualValue!$B$22,0) -> 0 | M105: =IF(M2=CapExResidualValue!$F$17,CapExResidualValue!$B$22,0) -> 0 | N105: =IF(N2=CapExResidualValue!$F$17,CapExResidualValue!$B$22,0) -> 0 | O105: =IF(O2=CapExResidualValue!$F$17,CapExResidualValue!$B$22,0) -> 0 | P105: =IF(P2=CapExResidualValue!$F$17,CapExResidualValue!$B$22,0) -> 0 | Q105: =IF(Q2=CapExResidualValue!$F$17,CapExResidualValue!$B$22,0) -> 0 | R105: =IF(R2=CapExResidualValue!$F$17,CapExResidualValue!$B$22,0) -> 0 | S105: =IF(S2=CapExResidualValue!$F$17,CapExResidualValue!$B$22,0) -> 0 | T105: =IF(T2=CapExResidualValue!$F$17,CapExResidualValue!$B$22,0) -> 0 | U105: =IF(U2=CapExResidualValue!$F$17,CapExResidualValue!$B$22,0) -> 0 | V105: =IF(V2=CapExResidualValue!$F$17,CapExResidualValue!$B$22,0) -> 0 | W105: =IF(W2=CapExResidualValue!$F$17,CapExResidualValue!$B$22,0) -> 0 | X105: =IF(X2=CapExResidualValue!$F$17,CapExResidualValue!$B$22,0) -> 0 | Y105: =IF(Y2=CapExResidualValue!$F$17,CapExResidualValue!$B$22,0) -> 0 | Z105: =IF(Z2=CapExResidualValue!$F$17,CapExResidualValue!$B$22,0) -> 0 | AA105: =IF(AA2=CapExResidualValue!$F$17,CapExResidualValue!$B$22,0) -> 0 | AB105: =IF(AB2=CapExResidualValue!$F$17,CapExResidualValue!$B$22,0) -> 0 | AC105: =IF(AC2=CapExResidualValue!$F$17,CapExResidualValue!$B$22,0) -> 0 | AD105: =IF(AD2=CapExResidualValue!$F$17,CapExResidualValue!$B$22,0) -> 0 | AE105: =IF(AE2=CapExResidualValue!$F$17,CapExResidualValue!$B$22,0) -> 2706121.57 | AF105: =IF(AF2=CapExResidualValue!$F$17,CapExResidualValue!$B$22,0) -> 0 | AG105: =IF(AG2=CapExResidualValue!$F$17,CapExResidualValue!$B$22,0) -> 0 | AH105: =IF(AH2=CapExResidualValue!$F$17,CapExResidualValue!$B$22,0) -> 0 | AI105: =IF(AI2=CapExResidualValue!$F$17,CapExResidualValue!$B$22,0) -> 0 | AJ105: =IF(AJ2=CapExResidualValue!$F$17,CapExResidualValue!$B$22,0) -> 0
A106: Total Residual Value in PV | C106: =SUM(D106:AJ106) -> 435497.1383 | D106: =D105*D5 -> 0 | E106: 0 | F106: 0 | G106: 0 | H106: 0 | I106: 0 | J106: 0 | K106: 0 | L106: 0 | M106: 0 | N106: 0 | O106: 0 | P106: 0 | Q106: 0 | R106: 0 | S106: 0 | T106: 0 | U106: 0 | V106: 0 | W106: 0 | X106: 0 | Y106: 0 | Z106: 0 | AA106: 0 | AB106: 0 | AC106: 0 | AD106: 0 | AE106: 435497.1383 | AF106: 0 | AG106: 0 | AH106: 0 | AI106: 0 | AJ106: 0
A109: BENEFIT-COST ANALYSIS RESULTS
A111: Total Project Costs | C111: Before Discounting
A112: Capital costs | C112: =SUM(D112:AJ112) -> 33389792.02 | D112: =D16 -> 168017.5043 | E112: 288030.0073 | F112: 279512.991 | G112: 278738.7168 | H112: 1857772.87 | I112: 12792115.57 | J112: 10367806.32 | K112: 7357798.036 | L112: 0 | M112: 0 | N112: 0 | O112: 0 | P112: 0 | Q112: 0 | R112: 0 | S112: 0 | T112: 0 | U112: 0 | V112: 0 | W112: 0 | X112: 0 | Y112: 0 | Z112: 0 | AA112: 0 | AB112: 0 | AC112: 0 | AD112: =AD16 -> 0 | AE112: 0 | AF112: 0 | AG112: 0 | AH112: 0 | AI112: 0 | AJ112: 0
A113: O&M costs | C113: =SUM(D113:AJ113) -> -2400456.923 | D113: =D17 -> 0 | E113: 0 | F113: 0 | G113: 0 | H113: 0 | I113: 0 | J113: 0 | K113: -39351.75284 | L113: -118055.2585 | M113: -118055.2585 | N113: -118055.2585 | O113: -118055.2585 | P113: -118055.2585 | Q113: -118055.2585 | R113: -118055.2585 | S113: -118055.2585 | T113: -118055.2585 | U113: -118055.2585 | V113: -118055.2585 | W113: -118055.2585 | X113: -118055.2585 | Y113: -118055.2585 | Z113: -118055.2585 | AA113: -118055.2585 | AB113: -118055.2585 | AC113: -118055.2585 | AD113: =AD17 -> -118055.2585 | AE113: -118055.2585 | AF113: 0 | AG113: 0 | AH113: 0 | AI113: 0 | AJ113: 0
A114: Total project costs | C114: =SUM(D114:AJ114) -> 30989335.1 | D114: =D112+D113 -> 168017.5043 | E114: 288030.0073 | F114: 279512.991 | G114: 278738.7168 | H114: 1857772.87 | I114: 12792115.57 | J114: 10367806.32 | K114: =K112+K113 -> 7318446.284 | L114: -118055.2585 | M114: -118055.2585 | N114: -118055.2585 | O114: -118055.2585 | P114: -118055.2585 | Q114: -118055.2585 | R114: -118055.2585 | S114: -118055.2585 | T114: -118055.2585 | U114: -118055.2585 | V114: -118055.2585 | W114: -118055.2585 | X114: -118055.2585 | Y114: -118055.2585 | Z114: -118055.2585 | AA114: -118055.2585 | AB114: -118055.2585 | AC114: =AC112+AC113 -> -118055.2585 | AD114: =AD112+AD113 -> -118055.2585 | AE114: -118055.2585 | AF114: 0 | AG114: 0 | AH114: 0 | AI114: 0 | AJ114: =AJ112+AJ113 -> 0
A115: Total project costs in PV | C115: =SUM(D115:AJ115) -> 22133970.93 | D115: =D114*D5 -> 168017.5043 | E115: 269186.9228 | F115: 244137.4714 | G115: 227533.8227 | H115: 1417286.027 | I115: 9120601.608 | J115: 6908507.122 | K115: 4557560.534 | L115: -68709.2353 | M115: -64214.2386 | N115: -60013.3071 | O115: -56087.2029 | P115: -52417.94663 | Q115: -48988.73517 | R115: -45783.86464 | S115: -42788.65855 | T115: -39989.40051 | U115: -37373.27151 | V115: -34928.29113 | W115: -32643.26273 | X115: -30507.72218 | Y115: -28511.88989 | Z115: -26646.62607 | AA115: -24903.38885 | AB115: -23274.19518 | AC115: -21751.58428 | AD115: =AD114*AD5 -> -20328.58344 | AE115: -18998.67611 | AF115: 0 | AG115: 0 | AH115: 0 | AI115: 0 | AJ115: 0
A117: Total Project Costs | C117: ="Discounted at "&C5*100&"%" -> Discounted at 7%
A118: Capital costs | C118: =SUM(D118:AJ118) -> 22937337.31 | D118: =D112*D5 -> 168017.5043 | E118: =E112*E5 -> 269186.9228 | F118: 244137.4714 | G118: 227533.8227 | H118: 1417286.027 | I118: 9120601.608 | J118: 6908507.122 | K118: 4582066.828 | L118: 0 | M118: 0 | N118: 0 | O118: 0 | P118: 0 | Q118: 0 | R118: 0 | S118: 0 | T118: 0 | U118: 0 | V118: 0 | W118: 0 | X118: 0 | Y118: 0 | Z118: 0 | AA118: 0 | AB118: 0 | AC118: 0 | AD118: 0 | AE118: 0 | AF118: 0 | AG118: 0 | AH118: 0 | AI118: 0 | AJ118: 0
A119: O&M costs | C119: =SUM(D119:AJ119) -> -803366.3747 | D119: =D113*D5 -> 0 | E119: 0 | F119: 0 | G119: 0 | H119: 0 | I119: 0 | J119: 0 | K119: -24506.29392 | L119: =L113*L5 -> -68709.2353 | M119: -64214.2386 | N119: -60013.3071 | O119: -56087.2029 | P119: -52417.94663 | Q119: -48988.73517 | R119: -45783.86464 | S119: -42788.65855 | T119: -39989.40051 | U119: -37373.27151 | V119: -34928.29113 | W119: -32643.26273 | X119: -30507.72218 | Y119: -28511.88989 | Z119: -26646.62607 | AA119: -24903.38885 | AB119: -23274.19518 | AC119: -21751.58428 | AD119: -20328.58344 | AE119: -18998.67611 | AF119: 0 | AG119: 0 | AH119: 0 | AI119: 0 | AJ119: 0
A120: Total project costs in PV | C120: =SUM(D120:AJ120) -> 22133970.93 | D120: =SUM(D118:D119) -> 168017.5043 | E120: =SUM(E118:E119) -> 269186.9228 | F120: 244137.4714 | G120: 227533.8227 | H120: 1417286.027 | I120: 9120601.608 | J120: 6908507.122 | K120: 4557560.534 | L120: -68709.2353 | M120: -64214.2386 | N120: -60013.3071 | O120: -56087.2029 | P120: -52417.94663 | Q120: -48988.73517 | R120: -45783.86464 | S120: -42788.65855 | T120: -39989.40051 | U120: -37373.27151 | V120: -34928.29113 | W120: -32643.26273 | X120: -30507.72218 | Y120: -28511.88989 | Z120: -26646.62607 | AA120: -24903.38885 | AB120: -23274.19518 | AC120: -21751.58428 | AD120: -20328.58344 | AE120: -18998.67611 | AF120: 0 | AG120: 0 | AH120: 0 | AI120: 0 | AJ120: 0
A122: Total Project Benefits | C122: Before Discounting
A123: Travel time savings | C123: =SUM(D123:AJ123) -> 1350694.866 | D123: =SUM(D48:D49,D50:D51) -> 0 | E123: 0 | F123: 0 | G123: 0 | H123: 0 | I123: 0 | J123: 0 | K123: 16699.0536 | L123: 51476.6256 | M123: 52884.43162 | N123: 54321.30028 | O123: 55787.96931 | P123: 57285.19318 | Q123: 58813.74345 | R123: 60374.40914 | S123: 61967.99715 | T123: 63595.33264 | U123: 65257.25946 | V123: 66954.64053 | W123: 68688.35832 | X123: 70459.31524 | Y123: 72268.43411 | Z123: 74116.65862 | AA123: 76004.95377 | AB123: 77934.30639 | AC123: 79905.72557 | AD123: 81920.24322 | AE123: 83978.91452 | AF123: 0 | AG123: 0 | AH123: 0 | AI123: 0 | AJ123: 0
A124: Vehicle Operating Cost Savings | C124: 959241.8344 | D124: =D65 -> 0 | E124: 0 | F124: 0 | G124: 0 | H124: 0 | I124: 0 | J124: 0 | K124: 11855.91935 | L124: 36566.37471 | M124: 37582.15691 | N124: 38615.64309 | O124: 39667.38404 | P124: 40737.94324 | Q124: 41827.89707 | R124: 42937.83523 | S124: 44068.361 | T124: 45220.09156 | U124: 46393.65839 | V124: 47589.70756 | W124: 48808.9001 | X124: 50051.91237 | Y124: 51319.43641 | Z124: 52612.18034 | AA124: 53930.86875 | AB124: 55276.24307 | AC124: 56649.062 | AD124: 58050.10192 | AE124: 59480.1573 | AF124: 0 | AG124: 0 | AH124: 0 | AI124: 0 | AJ124: 0
A125: Emission cost savings, Carbon Dioxide | C125: 54170.69047 | D125: =D82 -> 0 | E125: 0 | F125: 0 | G125: 0 | H125: 0 | I125: 0 | J125: 0 | K125: 587.5710469 | L125: 1801.735383 | M125: 1878.022897 | N125: 1956.09867 | O125: 2035.994422 | P125: 2117.743356 | Q125: 2201.380192 | R125: 2320.572695 | S125: 2408.876794 | T125: 2499.188725 | U125: 2591.549984 | V125: 2686.003791 | W125: 2782.595137 | X125: 2881.370825 | Y125: 3021.621357 | Z125: 3125.745457 | AA125: 3232.214289 | AB125: 3341.082754 | AC125: 3452.407821 | AD125: 3566.248578 | AE125: 3682.666291 | AF125: 0 | AG125: 0 | AH125: 0 | AI125: 0 | AJ125: 0
A126: Emission cost savings, Other Pollutants | C126: 21814.16503 | D126: =SUM(D81,D83:D84) -> 0 | E126: 0 | F126: 0 | G126: 0 | H126: 0 | I126: 0 | J126: 0 | K126: 341.695092 | L126: 877.2576068 | M126: 898.4357198 | N126: 919.5094662 | O126: 940.4833043 | P126: 961.3617433 | Q126: 982.1493449 | R126: 1002.850725 | S126: 1023.470554 | T126: 1044.013561 | U126: 1064.484535 | V126: 1084.888325 | W126: 1105.229843 | X126: 1125.514068 | Y126: 1145.746042 | Z126: 1165.930879 | AA126: 1186.073764 | AB126: 1206.179954 | AC126: 1226.254781 | AD126: 1246.303654 | AE126: 1266.332064 | AF126: 0 | AG126: 0 | AH126: 0 | AI126: 0 | AJ126: 0
A127: Safety benefits | C127: =SUM(D127:AJ127) -> 79940120.17 | D127: =D102 -> 0 | E127: 0 | F127: 0 | G127: 0 | H127: 0 | I127: 0 | J127: 0 | K127: 1310493.773 | L127: 3931481.32 | M127: 3931481.32 | N127: 3931481.32 | O127: 3931481.32 | P127: 3931481.32 | Q127: 3931481.32 | R127: 3931481.32 | S127: 3931481.32 | T127: 3931481.32 | U127: 3931481.32 | V127: 3931481.32 | W127: 3931481.32 | X127: 3931481.32 | Y127: 3931481.32 | Z127: 3931481.32 | AA127: 3931481.32 | AB127: 3931481.32 | AC127: 3931481.32 | AD127: 3931481.32 | AE127: 3931481.32 | AF127: 0 | AG127: 0 | AH127: 0 | AI127: 0 | AJ127: 0
A128: Residual value | C128: 2706121.57 | D128: =D105 -> 0 | E128: 0 | F128: 0 | G128: 0 | H128: 0 | I128: 0 | J128: 0 | K128: 0 | L128: 0 | M128: 0 | N128: 0 | O128: 0 | P128: 0 | Q128: 0 | R128: 0 | S128: 0 | T128: 0 | U128: 0 | V128: 0 | W128: 0 | X128: 0 | Y128: 0 | Z128: 0 | AA128: 0 | AB128: 0 | AC128: 0 | AD128: 0 | AE128: 2706121.57 | AF128: 0 | AG128: 0 | AH128: 0 | AI128: 0 | AJ128: =AJ105 -> 0
A129: Total project benefits | C129: 85032163.3 | D129: =SUM(D123:D128) -> 0 | E129: 0 | F129: 0 | G129: 0 | H129: 0 | I129: 0 | J129: 0 | K129: 1339978.012 | L129: 4022203.313 | M129: 4024724.367 | N129: 4027293.872 | O129: 4029913.151 | P129: 4032583.562 | Q129: 4035306.49 | R129: 4038116.988 | S129: 4040950.025 | T129: 4043839.946 | U129: 4046788.272 | V129: 4049796.56 | W129: 4052866.403 | X129: 4055999.433 | Y129: 4059236.558 | Z129: 4062501.835 | AA129: 4065835.431 | AB129: 4069239.132 | AC129: 4072714.77 | AD129: 4076264.217 | AE129: 6786010.96 | AF129: 0 | AG129: 0 | AH129: 0 | AI129: 0 | AJ129: =SUM(AJ123:AJ128) -> 0
A130: Total project benefits in PV | C130: 27956764.15 | D130: =SUM(D123:D124,D126:D128)*D5+D125*D6 -> 0 | E130: 0 | F130: 0 | G130: 0 | H130: 0 | I130: 0 | J130: 0 | K130: 834582.8007 | L130: 2341332.629 | M130: 2189601.216 | N130: 2047733.129 | O130: 1915086.268 | P130: 1791060.367 | Q130: 1675094.268 | R130: 1566685.603 | S130: 1465299.331 | T130: 1370499.348 | U130: 1281857.043 | V130: 1198971.723 | W130: 1121468.798 | X130: 1048998.073 | Y130: 981253.2602 | Z130: 917885.929 | AA130: 858631.2231 | AB130: 803221.6488 | AC130: 751407.1326 | AD130: 702953.8853 | AE130: 1093140.48 | AF130: 0 | AG130: 0 | AH130: 0 | AI130: 0 | AJ130: 0
A132: Total Project Benefits | C132: ="Discounted at "&C5*100&"%" -> Discounted at 7%
A133: Travel time savings | C133: =SUM(D133:AJ133) -> 426093.7919 | D133: =D123*D$5 -> 0 | E133: =E123*E$5 -> 0 | F133: 0 | G133: 0 | H133: 0 | I133: 0 | J133: =J123*J$5 -> 0 | K133: 10399.33132 | L133: 29959.86477 | M133: 28765.62682 | N133: 27614.19454 | O133: 26504.46234 | P133: 25435.31086 | Q133: 24405.61258 | R133: 23414.23678 | S133: 22460.05391 | T133: 21541.93942 | U133: 20658.77714 | V133: 19809.46216 | W133: 18992.90346 | X133: 18208.02598 | Y133: 17453.7726 | Z133: 16729.10561 | AA133: 16033.00812 | AB133: 15364.48508 | AC133: 14722.56422 | AD133: 14106.29667 | AE133: 13514.75756 | AF133: 0 | AG133: 0 | AH133: 0 | AI133: 0 | AJ133: 0
A134: Vehicle Operating Cost Savings | C134: 302717.506 | D134: =D124*D$5 -> 0 | E134: 0 | F134: 0 | G134: 0 | H134: 0 | I134: 0 | J134: =J124*J$5 -> 0 | K134: 7383.270713 | L134: 21281.963 | M134: 20442.20326 | N134: 19630.23483 | O134: 18845.68841 | P134: 18088.13399 | Q134: 17357.09021 | R134: 16652.0328 | S134: 15972.40204 | T134: 15317.60953 | U134: 14687.04413 | V134: 14080.07726 | W134: 13496.0676 | X134: 12934.36528 | Y134: 12394.3155 | Z134: 11875.26175 | AA134: 11376.54868 | AB134: =AB124*AB$5 -> 10897.52449 | AC134: 10437.54308 | AD134: 9995.965919 | AE134: 9572.163561 | AF134: 0 | AG134: 0 | AH134: 0 | AI134: 0 | AJ134: 0
A135: Emission cost savings, Carbon Dioxide | B135: ="(Discounted at "&C6*100&"%)" -> (Discounted at 3%) | C135: 31713.12784 | D135: =D125*D$6 -> 0 | E135: =E125*E$6 -> 0 | F135: =F125*F$6 -> 0 | G135: 0 | H135: 0 | I135: 0 | J135: =J125*J$6 -> 0 | K135: =K125*K$6 -> 477.7490306 | L135: =L125*L$6 -> 1422.306549 | M135: 1439.348172 | N135: 1455.521117 | O135: 1470.845689 | P135: 1485.342581 | Q135: 1499.032792 | R135: 1534.171928 | S135: 1546.16635 | T135: 1557.411789 | U135: 1567.930361 | V135: 1577.744143 | W135: 1586.875125 | X135: 1595.345165 | Y135: 1624.270372 | Z135: 1631.303114 | AA135: 1637.736309 | AB135: =AB125*AB$6 -> 1643.591323 | AC135: 1648.889203 | AD135: 1653.650663 | AE135: 1657.89606 | AF135: 0 | AG135: 0 | AH135: 0 | AI135: 0 | AJ135: 0
A136: Emission cost savings, Other Pollutants | C136: 7000.867497 | D136: =D126*D$5 -> 0 | E136: 0 | F136: 0 | G136: 0 | H136: 0 | I136: 0 | J136: =J126*J$5 -> 0 | K136: 212.7905304 | L136: 510.5719142 | M136: 488.6895036 | N136: 467.4319862 | O136: 446.816843 | P136: 426.8561112 | Q136: 407.5570606 | R136: 388.9228011 | S136: 370.9528284 | T136: 353.6435137 | U136: 336.9885429 | V136: 320.9793086 | W136: 305.6052616 | X136: 290.854223 | Y136: 276.7126632 | Z136: 263.1659491 | AA136: 250.198564 | AB136: 237.794301 | AC136: 225.9364348 | AD136: 214.6078722 | AE136: 203.7912843 | AF136: 0 | AG136: 0 | AH136: 0 | AI136: 0 | AJ136: 0
A137: Safety benefits | C137: 26753741.72 | D137: 0 | E137: 0 | F137: 0 | G137: 0 | H137: 0 | I137: 0 | J137: =J127*J$5 -> 0 | K137: 816109.6591 | L137: 2288157.923 | M137: 2138465.348 | N137: 1998565.746 | O137: 1867818.454 | P137: 1745624.724 | Q137: 1631424.975 | R137: 1524696.239 | S137: 1424949.756 | T137: 1331728.744 | U137: 1244606.303 | V137: 1163183.46 | W137: 1087087.346 | X137: 1015969.482 | Y137: 949504.1891 | Z137: 887387.0926 | AA137: 829333.7314 | AB137: 775078.2536 | AC137: 724372.1997 | AD137: 676983.3642 | AE137: 632694.7329 | AF137: 0 | AG137: 0 | AH137: 0 | AI137: 0 | AJ137: 0
A138: Residual value | C138: 435497.1383 | D138: 0 | E138: 0 | F138: 0 | G138: 0 | H138: 0 | I138: 0 | J138: =J128*J$5 -> 0 | K138: 0 | L138: 0 | M138: 0 | N138: 0 | O138: 0 | P138: 0 | Q138: 0 | R138: 0 | S138: 0 | T138: 0 | U138: 0 | V138: 0 | W138: 0 | X138: 0 | Y138: 0 | Z138: 0 | AA138: 0 | AB138: 0 | AC138: 0 | AD138: 0 | AE138: 435497.1383 | AF138: 0 | AG138: 0 | AH138: 0 | AI138: 0 | AJ138: 0
A139: Total project benefits in PV | C139: 27956764.15 | D139: =SUM(D133:D138) -> 0 | E139: =SUM(E133:E138) -> 0 | F139: 0 | G139: 0 | H139: 0 | I139: 0 | J139: =SUM(J133:J138) -> 0 | K139: =SUM(K133:K138) -> 834582.8007 | L139: =SUM(L133:L138) -> 2341332.629 | M139: =SUM(M133:M138) -> 2189601.216 | N139: =SUM(N133:N138) -> 2047733.129 | O139: =SUM(O133:O138) -> 1915086.268 | P139: =SUM(P133:P138) -> 1791060.367 | Q139: =SUM(Q133:Q138) -> 1675094.268 | R139: =SUM(R133:R138) -> 1566685.603 | S139: =SUM(S133:S138) -> 1465299.331 | T139: =SUM(T133:T138) -> 1370499.348 | U139: =SUM(U133:U138) -> 1281857.043 | V139: =SUM(V133:V138) -> 1198971.723 | W139: =SUM(W133:W138) -> 1121468.798 | X139: =SUM(X133:X138) -> 1048998.073 | Y139: =SUM(Y133:Y138) -> 981253.2602 | Z139: =SUM(Z133:Z138) -> 917885.929 | AA139: =SUM(AA133:AA138) -> 858631.2231 | AB139: =SUM(AB133:AB138) -> 803221.6488 | AC139: =SUM(AC133:AC138) -> 751407.1326 | AD139: =SUM(AD133:AD138) -> 702953.8853 | AE139: =SUM(AE133:AE138) -> 1093140.48 | AF139: =SUM(AF133:AF138) -> 0 | AG139: =SUM(AG133:AG138) -> 0 | AH139: =SUM(AH133:AH138) -> 0 | AI139: =SUM(AI133:AI138) -> 0 | AJ139: =SUM(AJ133:AJ138) -> 0
A141: Comparison of Benefits and Costs
A142: Benefit-Cost Ratio | C142: =IFERROR((C130-C119)/C118,"N/A") -> 1.253856546
A143: Net monetized benefits and costs | C143: =SUM(D143:AJ143) -> 54042828.2 | D143: =-D114+D129 -> -168017.5043 | E143: =-E114+E129 -> -288030.0073 | F143: -279512.991 | G143: -278738.7168 | H143: -1857772.87 | I143: -12792115.57 | J143: -10367806.32 | K143: -5978468.271 | L143: 4140258.572 | M143: 4142779.626 | N143: 4145349.13 | O143: 4147968.41 | P143: 4150638.82 | Q143: 4153361.749 | R143: 4156172.246 | S143: 4159005.284 | T143: 4161895.205 | U143: 4164843.531 | V143: 4167851.819 | W143: 4170921.662 | X143: 4174054.691 | Y143: 4177291.816 | Z143: 4180557.094 | AA143: 4183890.689 | AB143: 4187294.391 | AC143: 4190770.029 | AD143: 4194319.476 | AE143: 6904066.219 | AF143: 0 | AG143: 0 | AH143: 0 | AI143: 0 | AJ143: =-AJ114+AJ129 -> 0
A144: Net monetized benefits and costs in PV (NPV) | C144: =SUM(D144:AJ144) -> 5822793.221 | D144: =-D115+D130 -> -168017.5043 | E144: =-E115+E130 -> -269186.9228 | F144: -244137.4714 | G144: -227533.8227 | H144: -1417286.027 | I144: -9120601.608 | J144: -6908507.122 | K144: -3722977.733 | L144: 2410041.864 | M144: 2253815.455 | N144: 2107746.436 | O144: 1971173.47 | P144: 1843478.314 | Q144: 1724083.003 | R144: 1612469.468 | S144: 1508087.989 | T144: 1410488.748 | U144: 1319230.314 | V144: 1233900.014 | W144: 1154112.06 | X144: 1079505.795 | Y144: 1009765.15 | Z144: 944532.5551 | AA144: 883534.6119 | AB144: 826495.844 | AC144: 773158.7169 | AD144: 723282.4687 | AE144: 1112139.156 | AF144: 0 | AG144: 0 | AH144: 0 | AI144: 0 | AJ144: =-AJ115+AJ130 -> 0
A145: Cumulative net monetized benefits and costs in PV | C145: =SUM(D145:AJ145) -> -149820675.8 | D145: =D144 -> -168017.5043 | E145: =IF(E2<=BCAInputs!$B$13+BCAInputs!$B$9-1,D145+E144,0) -> -437204.427 | F145: =IF(F2<=BCAInputs!$B$13+BCAInputs!$B$9-1,E145+F144,0) -> -681341.8984 | G145: =IF(G2<=BCAInputs!$B$13+BCAInputs!$B$9-1,F145+G144,0) -> -908875.7212 | H145: =IF(H2<=BCAInputs!$B$13+BCAInputs!$B$9-1,G145+H144,0) -> -2326161.749 | I145: =IF(I2<=BCAInputs!$B$13+BCAInputs!$B$9-1,H145+I144,0) -> -11446763.36 | J145: =IF(J2<=BCAInputs!$B$13+BCAInputs!$B$9-1,I145+J144,0) -> -18355270.48 | K145: =IF(K2<=BCAInputs!$B$13+BCAInputs!$B$9-1,J145+K144,0) -> -22078248.21 | L145: =IF(L2<=BCAInputs!$B$13+BCAInputs!$B$9-1,K145+L144,0) -> -19668206.35 | M145: =IF(M2<=BCAInputs!$B$13+BCAInputs!$B$9-1,L145+M144,0) -> -17414390.89 | N145: =IF(N2<=BCAInputs!$B$13+BCAInputs!$B$9-1,M145+N144,0) -> -15306644.46 | O145: =IF(O2<=BCAInputs!$B$13+BCAInputs!$B$9-1,N145+O144,0) -> -13335470.99 | P145: =IF(P2<=BCAInputs!$B$13+BCAInputs!$B$9-1,O145+P144,0) -> -11491992.67 | Q145: =IF(Q2<=BCAInputs!$B$13+BCAInputs!$B$9-1,P145+Q144,0) -> -9767909.67 | R145: =IF(R2<=BCAInputs!$B$13+BCAInputs!$B$9-1,Q145+R144,0) -> -8155440.203 | S145: =IF(S2<=BCAInputs!$B$13+BCAInputs!$B$9-1,R145+S144,0) -> -6647352.213 | T145: =IF(T2<=BCAInputs!$B$13+BCAInputs!$B$9-1,S145+T144,0) -> -5236863.465 | U145: =IF(U2<=BCAInputs!$B$13+BCAInputs!$B$9-1,T145+U144,0) -> -3917633.151 | V145: =IF(V2<=BCAInputs!$B$13+BCAInputs!$B$9-1,U145+V144,0) -> -2683733.136 | W145: =IF(W2<=BCAInputs!$B$13+BCAInputs!$B$9-1,V145+W144,0) -> -1529621.076 | X145: =IF(X2<=BCAInputs!$B$13+BCAInputs!$B$9-1,W145+X144,0) -> -450115.2811 | Y145: =IF(Y2<=BCAInputs!$B$13+BCAInputs!$B$9-1,X145+Y144,0) -> 559649.869 | Z145: =IF(Z2<=BCAInputs!$B$13+BCAInputs!$B$9-1,Y145+Z144,0) -> 1504182.424 | AA145: =IF(AA2<=BCAInputs!$B$13+BCAInputs!$B$9-1,Z145+AA144,0) -> 2387717.036 | AB145: =IF(AB2<=BCAInputs!$B$13+BCAInputs!$B$9-1,AA145+AB144,0) -> 3214212.88 | AC145: =IF(AC2<=BCAInputs!$B$13+BCAInputs!$B$9-1,AB145+AC144,0) -> 3987371.597 | AD145: =IF(AD2<=BCAInputs!$B$13+BCAInputs!$B$9-1,AC145+AD144,0) -> 4710654.066 | AE145: =IF(AE2<=BCAInputs!$B$13+BCAInputs!$B$9-1,AD145+AE144,0) -> 5822793.221 | AF145: =IF(AF2<=BCAInputs!$B$13+BCAInputs!$B$9-1,AE145+AF144,0) -> 0 | AG145: =IF(AG2<=BCAInputs!$B$13+BCAInputs!$B$9-1,AF145+AG144,0) -> 0 | AH145: =IF(AH2<=BCAInputs!$B$13+BCAInputs!$B$9-1,AG145+AH144,0) -> 0 | AI145: =IF(AI2<=BCAInputs!$B$13+BCAInputs!$B$9-1,AH145+AI144,0) -> 0 | AJ145: =IF(AJ2<=BCAInputs!$B$13+BCAInputs!$B$9-1,AI145+AJ144,0) -> 0
A146: Breakeven year, based on discounted values | C146: =IF(SUM(D146:AJ146)>0,SUM(D146:AJ146),"Doesn't Payback") -> 2043 | D146: =IF(C145>0," ",IF(D145>0,D$2," ")) ->  | Y146: 2043 | AJ146: =IF(AI145>0," ",IF(AJ145>0,AJ$2," ")) -> 
A147: Internal Rate of Return | C147: =IFERROR(IRR(D143:AJ143),"N/A") -> 0.09603342287

Sheet VMTVHT
A1: VEHICLE MILES TRAVELED, VEHICLE HOURS TRAVELED
E2: Year | F2: =BCACalculations!D2 -> 2022 | G2: =BCACalculations!E2 -> 2023 | H2: =BCACalculations!F2 -> 2024 | I2: =BCACalculations!G2 -> 2025 | J2: =BCACalculations!H2 -> 2026 | K2: =BCACalculations!I2 -> 2027 | L2: =BCACalculations!J2 -> 2028 | M2: =BCACalculations!K2 -> 2029 | N2: =BCACalculations!L2 -> 2030 | O2: =BCACalculations!M2 -> 2031 | P2: =BCACalculations!N2 -> 2032 | Q2: =BCACalculations!O2 -> 2033 | R2: =BCACalculations!P2 -> 2034 | S2: =BCACalculations!Q2 -> 2035 | T2: =BCACalculations!R2 -> 2036 | U2: =BCACalculations!S2 -> 2037 | V2: =BCACalculations!T2 -> 2038 | W2: =BCACalculations!U2 -> 2039 | X2: =BCACalculations!V2 -> 2040 | Y2: =BCACalculations!W2 -> 2041 | Z2: =BCACalculations!X2 -> 2042 | AA2: =BCACalculations!Y2 -> 2043 | AB2: =BCACalculations!Z2 -> 2044 | AC2: =BCACalculations!AA2 -> 2045 | AD2: =BCACalculations!AB2 -> 2046 | AE2: =BCACalculations!AC2 -> 2047 | AF2: =BCACalculations!AD2 -> 2048 | AG2: =BCACalculations!AE2 -> 2049 | AH2: =BCACalculations!AF2 -> 2050 | AI2: =BCACalculations!AG2 -> 2051 | AJ2: =BCACalculations!AH2 -> 2052 | AK2: =BCACalculations!AI2 -> 2053 | AL2: =BCACalculations!AJ2 -> 2054
E3: Year Index | F3: =BCACalculations!D3 -> 1 | G3: =BCACalculations!E3 -> 2 | H3: =BCACalculations!F3 -> 3 | I3: =BCACalculations!G3 -> 4 | J3: =BCACalculations!H3 -> 5 | K3: =BCACalculations!I3 -> 6 | L3: =BCACalculations!J3 -> 7 | M3: =BCACalculations!K3 -> 8 | N3: =BCACalculations!L3 -> 9 | O3: =BCACalculations!M3 -> 10 | P3: =BCACalculations!N3 -> 11 | Q3: =BCACalculations!O3 -> 12 | R3: =BCACalculations!P3 -> 13 | S3: =BCACalculations!Q3 -> 14 | T3: =BCACalculations!R3 -> 15 | U3: =BCACalculations!S3 -> 16 | V3: =BCACalculations!T3 -> 17 | W3: =BCACalculations!U3 -> 18 | X3: =BCACalculations!V3 -> 19 | Y3: =BCACalculations!W3 -> 20 | Z3: =BCACalculations!X3 -> 21 | AA3: =BCACalculations!Y3 -> 22 | AB3: =BCACalculations!Z3 -> 23 | AC3: =BCACalculations!AA3 -> 24 | AD3: =BCACalculations!AB3 -> 25 | AE3: =BCACalculations!AC3 -> 26 | AF3: =BCACalculations!AD3 -> 27 | AG3: =BCACalculations!AE3 -> 28 | AH3: =BCACalculations!AF3 -> 29 | AI3: =BCACalculations!AG3 -> 30 | AJ3: =BCACalculations!AH3 -> 31 | AK3: =BCACalculations!AI3 -> 32 | AL3: =BCACalculations!AJ3 -> 33
E4: Analysis Index | F4: =BCACalculations!D4 -> 0 | G4: =BCACalculations!E4 -> 0 | H4: =BCACalculations!F4 -> 0 | I4: =BCACalculations!G4 -> 0 | J4: =BCACalculations!H4 -> 0 | K4: =BCACalculations!I4 -> 0 | L4: =BCACalculations!J4 -> 0 | M4: =BCACalculations!K4 -> 0 | N4: =BCACalculations!L4 -> 1 | O4: =BCACalculations!M4 -> 1 | P4: =BCACalculations!N4 -> 1 | Q4: =BCACalculations!O4 -> 1 | R4: =BCACalculations!P4 -> 1 | S4: =BCACalculations!Q4 -> 1 | T4: =BCACalculations!R4 -> 1 | U4: =BCACalculations!S4 -> 1 | V4: =BCACalculations!T4 -> 1 | W4: =BCACalculations!U4 -> 1 | X4: =BCACalculations!V4 -> 1 | Y4: =BCACalculations!W4 -> 1 | Z4: =BCACalculations!X4 -> 1 | AA4: =BCACalculations!Y4 -> 1 | AB4: =BCACalculations!Z4 -> 1 | AC4: =BCACalculations!AA4 -> 1 | AD4: =BCACalculations!AB4 -> 1 | AE4: =BCACalculations!AC4 -> 1 | AF4: =BCACalculations!AD4 -> 1 | AG4: =BCACalculations!AE4 -> 1 | AH4: =BCACalculations!AF4 -> 0 | AI4: =BCACalculations!AG4 -> 0 | AJ4: =BCACalculations!AH4 -> 0 | AK4: =BCACalculations!AI4 -> 0 | AL4: =BCACalculations!AJ4 -> 0
A6: Vehicle MILES Traveled in BASE CASE | B6: =BCAInputs!$B$29 -> 2015 | C6: =BCAInputs!$D$29 -> 2045 | D6: ="Growth "&B6&"-"&C6 -> Growth 2015-2045 | E6: ="Growth After "&C6 -> Growth After 2045
A7: Automobiles | B7: =BCAInputs!B$31*Parameters!$B$9 -> 663070.067 | C7: =BCAInputs!D$31*Parameters!$B$9 -> 1231730.225 | D7: =IFERROR((C7/B7)^(1/(C6-B6))-1,0) -> 0.0208576929 | E7: =D7 -> 0.0208576929 | F7: =$B7*(1+$D7)^(F$2-$B$6) -> 766153.6306 | G7: =F7*(1+IF(G$2<=$C$6,$D7,$E7)) -> 782133.8278 | H7: =G7*(1+IF(H$2<=$C$6,$D7,$E7)) -> 798447.335 | I7: 815101.1043 | J7: 832102.2328 | K7: 849457.9656 | L7: 867175.699 | M7: 885262.9834 | N7: 903727.5269 | O7: 922577.1981 | P7: 941820.03 | Q7: 961464.2229 | R7: 981518.1484 | S7: 1001990.353 | T7: 1022889.56 | U7: 1044224.676 | V7: 1066004.794 | W7: 1088239.194 | X7: 1110937.353 | Y7: 1134108.943 | Z7: 1157763.839 | AA7: 1181912.122 | AB7: 1206564.082 | AC7: 1231730.225 | AD7: 1257421.276 | AE7: 1283648.183 | AF7: 1310422.122 | AG7: 1337754.504 | AH7: 1365656.977 | AI7: 1394141.431 | AJ7: 1423220.005 | AK7: 1452905.09 | AL7: 1483209.339
A8: Trucks | B8: =BCAInputs!B$34*Parameters!$B$9 -> 108093.194 | C8: =BCAInputs!D$34*Parameters!$B$9 -> 96502.406 | D8: =IFERROR((C8/B8)^(1/(C6-B6))-1,0) -> -0.003773722271 | E8: =D8 -> -0.003773722271 | F8: =$B8*(1+$D8)^(F$2-$B$6) -> 105269.922 | G8: =F8*(1+IF(G$2<=$C$6,$D8,$E8)) -> 104872.6626 | H8: =G8*(1+IF(H$2<=$C$6,$D8,$E8)) -> 104476.9023 | I8: 104082.6354 | J8: 103689.8565 | K8: 103298.5598 | L8: 102908.7397 | M8: 102520.3907 | N8: 102133.5072 | O8: 101748.0837 | P8: 101364.1147 | Q8: 100981.5947 | R8: 100600.5182 | S8: 100220.8798 | T8: 99842.67401 | U8: 99465.89549 | V8: 99090.53882 | W8: 98716.59865 | X8: 98344.06962 | Y8: 97972.94642 | Z8: 97603.22373 | AA8: 97234.89627 | AB8: 96867.95877 | AC8: 96502.406 | AD8: 96138.23272 | AE8: 95775.43373 | AF8: 95414.00384 | AG8: 95053.93789 | AH8: 94695.23073 | AI8: 94337.87723 | AJ8: 93981.87228 | AK8: 93627.2108 | AL8: 93273.88771
A9: Total | B9: =SUM(B7:B8) -> 771163.261 | C9: =SUM(C7:C8) -> 1328232.631 | D9: =IFERROR((C9/B9)^(1/(C6-B6))-1,0) -> 0.01828870642 | F9: =SUM(F7:F8) -> 871423.5526 | G9: =SUM(G7:G8) -> 887006.4903 | H9: 902924.2372 | I9: 919183.7397 | J9: 935792.0893 | K9: 952756.5254 | L9: 970084.4387 | M9: 987783.3741 | N9: 1005861.034 | O9: 1024325.282 | P9: 1043184.145 | Q9: 1062445.818 | R9: 1082118.667 | S9: 1102211.232 | T9: 1122732.234 | U9: 1143690.571 | V9: 1165095.332 | W9: 1186955.793 | X9: 1209281.423 | Y9: 1232081.89 | Z9: 1255367.063 | AA9: 1279147.018 | AB9: 1303432.041 | AC9: 1328232.631 | AD9: 1353559.508 | AE9: 1379423.616 | AF9: 1405836.126 | AG9: 1432808.442
A10: Intermediate Calculations for PROJECT CASE | B10: =B6 -> 2015 | C10: =BCAInputs!$E$29 -> 2045
A11: =A$7 -> Automobiles | B11: =BCAInputs!$C$31*Parameters!$B$9 -> 626285.286 | C11: =BCAInputs!E$31*Parameters!$B$9 -> 1143055.848 | D11: =IFERROR((C11/B11)^(1/(C10-B10))-1,0) -> 0.02025760663 | E11: =D11 -> 0.02025760663 | F11: =$B11*(1+$D11)^(F$2-$B$6) -> 720677.7237 | G11: =F11*(1+IF(G$2<=$C$6,$D11,$E11)) -> 735276.9295 | H11: 750171.8803 | I11: 765368.5672 | J11: 780873.1025 | K11: 796691.7227 | L11: 812830.7902 | M11: 829296.7966 | N11: 846096.3649 | O11: 863236.2522 | P11: 880723.3526 | Q11: 898564.6999 | R11: 916767.4701 | S11: 935338.9849 | T11: 954286.7141 | U11: 973618.2789 | V11: 993341.455 | W11: 1013464.175 | X11: 1033994.534 | Y11: 1054940.789 | Z11: 1076311.364 | AA11: 1098114.856 | AB11: 1120360.035 | AC11: 1143055.848 | AD11: 1166211.424 | AE11: 1189836.076 | AF11: 1213939.307 | AG11: 1238530.812 | AH11: 1263620.482 | AI11: 1289218.409 | AJ11: 1315334.888 | AK11: 1341980.425 | AL11: 1369165.736
A12: =A$8 -> Trucks | B12: =BCAInputs!$C$34*Parameters!$B$9 -> 101112.55 | C12: =BCAInputs!E$34*Parameters!$B$9 -> 81579.641 | D12: =IFERROR((C12/B12)^(1/(C10-B10))-1,0) -> -0.007129613505 | E12: =D12 -> -0.007129613505 | F12: =$B12*(1+$D12)^(F$2-$B$6) -> 96172.95627 | G12: =F12*(1+IF(G$2<=$C$6,$D12,$E12)) -> 95487.28026 | H12: 94806.49286 | I12: 94130.55921 | J12: 93459.4447 | K12: 92793.11498 | L12: 92131.53594 | M12: 91474.67369 | N12: 90822.49462 | O12: 90174.96534 | P12: 89532.05269 | Q12: 88893.72376 | R12: 88259.94586 | S12: 87630.68656 | T12: 87005.91363 | U12: 86385.5951 | V12: 85769.69919 | W12: 85158.19439 | X12: 84551.04937 | Y12: 83948.23307 | Z12: 83349.71461 | AA12: 82755.46336 | AB12: 82165.44889 | AC12: 81579.641 | AD12: 80998.00969 | AE12: 80420.52519 | AF12: 79847.15792 | AG12: 79277.87855 | AH12: 78712.65791 | AI12: 78151.46709 | AJ12: 77594.27733 | AK12: 77041.06012 | AL12: 76491.78714
A14: Vehicle MILES Traveled in PROJECT CASE | B14: 2029
A15: =A$7 -> Automobiles | F15: =IF(F$2<$B$14,F7,F11) -> 766153.6306 | G15: =IF(G$2<$B$14,G7,G11) -> 782133.8278 | H15: 798447.335 | I15: 815101.1043 | J15: 832102.2328 | K15: 849457.9656 | L15: 867175.699 | M15: 829296.7966 | N15: 846096.3649 | O15: 863236.2522 | P15: 880723.3526 | Q15: 898564.6999 | R15: 916767.4701 | S15: 935338.9849 | T15: 954286.7141 | U15: 973618.2789 | V15: 993341.455 | W15: 1013464.175 | X15: 1033994.534 | Y15: 1054940.789 | Z15: 1076311.364 | AA15: 1098114.856 | AB15: 1120360.035 | AC15: 1143055.848 | AD15: 1166211.424 | AE15: 1189836.076 | AF15: 1213939.307 | AG15: 1238530.812 | AH15: 1263620.482 | AI15: 1289218.409 | AJ15: 1315334.888 | AK15: 1341980.425 | AL15: 1369165.736
A16: =A$8 -> Trucks | F16: =IF(F$2<$B$14,F8,F12) -> 105269.922 | G16: 104872.6626 | H16: 104476.9023 | I16: 104082.6354 | J16: 103689.8565 | K16: 103298.5598 | L16: 102908.7397 | M16: 91474.67369 | N16: 90822.49462 | O16: 90174.96534 | P16: 89532.05269 | Q16: 88893.72376 | R16: 88259.94586 | S16: 87630.68656 | T16: 87005.91363 | U16: 86385.5951 | V16: 85769.69919 | W16: 85158.19439 | X16: 84551.04937 | Y16: 83948.23307 | Z16: 83349.71461 | AA16: 82755.46336 | AB16: 82165.44889 | AC16: 81579.641 | AD16: 80998.00969 | AE16: 80420.52519 | AF16: 79847.15792 | AG16: 79277.87855 | AH16: 78712.65791 | AI16: 78151.46709 | AJ16: 77594.27733 | AK16: 77041.06012 | AL16: 76491.78714
A18: CHANGE in Vehicle MILES Traveled
A19: =A$7 -> Automobiles | E19: =SUMPRODUCT($F$4:$AE$4,F19:AE19) -> -1340279.05 | F19: =F15-F7 -> 0 | G19: 0 | H19: 0 | I19: 0 | J19: 0 | K19: =K15-K7 -> 0 | L19: 0 | M19: =M15-M7 -> -55966.18682 | N19: =N15-N7 -> -57631.16198 | O19: -59340.94587 | P19: -61096.67732 | Q19: -62899.52305 | R19: -64750.67833 | S19: -66651.36767 | T19: -68602.84551 | U19: -70606.39696 | V19: -72663.33847 | W19: -74775.01864 | X19: -76942.81896 | Y19: -79168.15457 | Z19: -81452.47511 | AA19: -83797.2655 | AB19: -86204.04679 | AC19: -88674.377 | AD19: -91209.85205 | AE19: -93812.1066 | AF19: -96482.81501 | AG19: -99223.69225 | AH19: -102036.4949 | AI19: -104923.0221 | AJ19: -107885.1165 | AK19: -110924.6656 | AL19: -114043.6022
A20: =A$8 -> Trucks | E20: =SUMPRODUCT($F$4:$AE$4,F20:AE20) -> -241202.2162 | F20: =F16-F8 -> 0 | G20: 0 | H20: 0 | I20: 0 | J20: 0 | K20: 0 | L20: 0 | M20: -11045.71699 | N20: -11311.01258 | O20: -11573.11837 | P20: -11832.06201 | Q20: -12087.87093 | R20: -12340.57233 | S20: -12590.19321 | T20: -12836.76037 | U20: -13080.30039 | V20: -13320.83963 | W20: -13558.40426 | X20: -13793.02025 | Y20: -14024.71335 | Z20: -14253.50911 | AA20: -14479.4329 | AB20: -14702.50988 | AC20: -14922.765 | AD20: -15140.22303 | AE20: -15354.90855 | AF20: -15566.84592 | AG20: -15776.05934 | AH20: -15982.57282 | AI20: -16186.41014 | AJ20: -16387.59495 | AK20: -16586.15067 | AL20: -16782.10057
A22: Vehicle HOURS Traveled in BASE CASE | B22: =BCAInputs!$B$29 -> 2015 | C22: =BCAInputs!$D$29 -> 2045 | D22: ="Growth "&B22&"-"&C22 -> Growth 2015-2045 | E22: ="Growth After "&C22 -> Growth After 2045
A23: =A$7 -> Automobiles | B23: =BCAInputs!B$32*Parameters!$B$9 -> 16268.043 | C23: =BCAInputs!D$32*Parameters!$B$9 -> 29083.604 | D23: =IFERROR((C23/B23)^(1/(C22-B22))-1,0) -> 0.01955446371 | E23: =D23 -> 0.01955446371 | F23: =$B23*(1+$D23)^(F$2-$B$6) -> 18629.80565 | G23: =F23*(1+IF(G$2<=$C$6,$D23,$E23)) -> 18994.10151 | H23: 19365.52098 | I23: 19744.20335 | J23: 20130.29066 | K23: 20523.9277 | L23: 20925.2621 | M23: =L23*(1+IF(M$2<=$C$6,$D23,$E23)) -> 21334.44438 | N23: =M23*(1+IF(N$2<=$C$6,$D23,$E23)) -> 21751.628 | O23: 22176.96942 | P23: 22610.62816 | Q23: 23052.76687 | R23: 23503.55136 | S23: 23963.1507 | T23: 24431.73726 | U23: 24909.48678 | V23: 25396.57844 | W23: 25893.19491 | X23: 26399.52245 | Y23: 26915.75095 | Z23: 27442.07403 | AA23: 27978.68907 | AB23: 28525.79733 | AC23: 29083.604 | AD23: 29652.31828 | AE23: 30232.15346 | AF23: 30823.32701 | AG23: 31426.06064 | AH23: 32040.5804 | AI23: 32667.11677 | AJ23: 33305.90472 | AK23: 33957.18382 | AL23: 34621.19834
A24: =A$8 -> Trucks | B24: =BCAInputs!B$35*Parameters!$B$9 -> 2271.742 | C24: =BCAInputs!D$35*Parameters!$B$9 -> 2156.814 | D24: =IFERROR((C24/B24)^(1/(C22-B22))-1,0) -> -0.001728997068 | E24: =D24 -> -0.001728997068 | F24: =$B24*(1+$D24)^(F$2-$B$6) -> 2244.389358 | G24: =F24*(1+IF(G$2<=$C$6,$D24,$E24)) -> 2240.508816 | H24: 2236.634983 | I24: 2232.767847 | J24: 2228.907398 | K24: 2225.053624 | L24: 2221.206513 | M24: 2217.366053 | N24: 2213.532234 | O24: 2209.705043 | P24: 2205.884469 | Q24: 2202.070502 | R24: 2198.263128 | S24: 2194.462338 | T24: 2190.668119 | U24: 2186.88046 | V24: 2183.09935 | W24: 2179.324778 | X24: 2175.556732 | Y24: 2171.7952 | Z24: 2168.040173 | AA24: 2164.291638 | AB24: 2160.549584 | AC24: 2156.814 | AD24: 2153.084875 | AE24: 2149.362197 | AF24: 2145.645957 | AG24: 2141.936141 | AH24: 2138.23274 | AI24: 2134.535742 | AJ24: 2130.845135 | AK24: 2127.16091 | AL24: 2123.483056
A26: Intermediate Calculations for PROJECT CASE | B26: =B22 -> 2015 | C26: =BCAInputs!$E$29 -> 2045
A27: =A$7 -> Automobiles | B27: =BCAInputs!$C$32*Parameters!$B$9 -> 15324.54 | C27: =BCAInputs!E$32*Parameters!$B$9 -> 26908.706 | D27: =IFERROR((C27/B27)^(1/(C26-B26))-1,0) -> 0.01894367752 | E27: =D27 -> 0.01894367752 | F27: =$B27*(1+$D27)^(F$2-$B$6) -> 17475.86573 | G27: =F27*(1+IF(G$2<=$C$6,$D27,$E27)) -> 17806.92289 | H27: 18144.2515 | I27: 18487.97035 | J27: 18838.2005 | K27: =J27*(1+IF(K$2<=$C$6,$D27,$E27)) -> 19195.06529 | L27: 19558.69042 | M27: 19929.20394 | N27: 20306.73636 | O27: 20691.42062 | P27: 21083.39222 | Q27: 21482.7892 | R27: 21889.75224 | S27: 22304.42464 | T27: 22726.95247 | U27: 23157.48453 | V27: 23596.17245 | W27: 24043.17073 | X27: 24498.6368 | Y27: 24962.73108 | Z27: 25435.61701 | AA27: 25917.46113 | AB27: 26408.43316 | AC27: 26908.706 | AD27: 27418.45585 | AE27: 27937.86223 | AF27: 28467.10809 | AG27: 29006.3798 | AH27: 29555.86731 | AI27: 30115.76413 | AJ27: 30686.26745 | AK27: 31267.57821 | AL27: 31859.90113
A28: =A$8 -> Trucks | B28: =BCAInputs!$C$35*Parameters!$B$9 -> 2102.595 | C28: =BCAInputs!E$35*Parameters!$B$9 -> 1797.191 | D28: =IFERROR((C28/B28)^(1/(C26-B26))-1,0) -> -0.005217919309 | E28: =D28 -> -0.005217919309 | F28: =$B28*(1+$D28)^(F$2-$B$6) -> 2026.988583 | G28: =F28*(1+IF(G$2<=$C$6,$D28,$E28)) -> 2016.41192 | H28: 2005.890445 | I28: 1995.423871 | J28: 1985.01191 | K28: 1974.654278 | L28: 1964.350691 | M28: 1954.100868 | N28: 1943.904527 | O28: 1933.76139 | P28: 1923.671179 | Q28: 1913.633618 | R28: 1903.648432 | S28: 1893.715349 | T28: 1883.834095 | U28: 1874.0044 | V28: 1864.225997 | W28: 1854.498616 | X28: 1844.821992 | Y28: 1835.195859 | Z28: 1825.619955 | AA28: 1816.094018 | AB28: 1806.617786 | AC28: 1797.191 | AD28: 1787.813402 | AE28: 1778.484736 | AF28: 1769.204746 | AG28: 1759.973179 | AH28: 1750.789781 | AI28: 1741.654301 | AJ28: 1732.566489 | AK28: 1723.526097 | AL28: 1714.532877
A30: Vehicle HOURS Traveled in PROJECT CASE
A31: =A$7 -> Automobiles | F31: =IF(F$2<$B$14,F23,F27) -> 18629.80565 | G31: =IF(G$2<$B$14,G23,G27) -> 18994.10151 | H31: 19365.52098 | I31: 19744.20335 | J31: 20130.29066 | K31: =IF(K$2<$B$14,K23,K27) -> 20523.9277 | L31: 20925.2621 | M31: 19929.20394 | N31: 20306.73636 | O31: 20691.42062 | P31: 21083.39222 | Q31: 21482.7892 | R31: 21889.75224 | S31: 22304.42464 | T31: 22726.95247 | U31: 23157.48453 | V31: 23596.17245 | W31: 24043.17073 | X31: 24498.6368 | Y31: 24962.73108 | Z31: 25435.61701 | AA31: 25917.46113 | AB31: 26408.43316 | AC31: 26908.706 | AD31: 27418.45585 | AE31: 27937.86223 | AF31: 28467.10809 | AG31: 29006.3798 | AH31: 29555.86731 | AI31: 30115.76413 | AJ31: 30686.26745 | AK31: 31267.57821 | AL31: 31859.90113
A32: =A$8 -> Trucks | F32: =IF(F$2<$B$14,F24,F28) -> 2244.389358 | G32: 2240.508816 | H32: 2236.634983 | I32: 2232.767847 | J32: 2228.907398 | K32: 2225.053624 | L32: 2221.206513 | M32: 1954.100868 | N32: 1943.904527 | O32: 1933.76139 | P32: 1923.671179 | Q32: 1913.633618 | R32: 1903.648432 | S32: 1893.715349 | T32: 1883.834095 | U32: 1874.0044 | V32: 1864.225997 | W32: 1854.498616 | X32: 1844.821992 | Y32: 1835.195859 | Z32: 1825.619955 | AA32: 1816.094018 | AB32: 1806.617786 | AC32: 1797.191 | AD32: 1787.813402 | AE32: 1778.484736 | AF32: 1769.204746 | AG32: 1759.973179 | AH32: 1750.789781 | AI32: 1741.654301 | AJ32: 1732.566489 | AK32: 1723.526097 | AL32: 1714.532877
A34: CHANGE in Vehicle HOURS Traveled
A35: =A$7 -> Automobiles | E35: =SUMPRODUCT($F$4:$AE$4,F35:AE35) -> -33149.40276 | F35: =F31-F23 -> 0 | G35: 0 | H35: 0 | I35: 0 | J35: 0 | K35: =K31-K23 -> 0 | L35: 0 | M35: =M31-M23 -> -1405.240434 | N35: =N31-N23 -> -1444.891639 | O35: -1485.548795 | P35: -1527.235939 | Q35: -1569.977663 | R35: -1613.799125 | S35: -1658.72606 | T35: -1704.784793 | U35: -1752.002254 | V35: -1800.405991 | W35: -1850.02418 | X35: -1900.885648 | Y35: -1953.019876 | Z35: -2006.457024 | AA35: -2061.227939 | AB35: -2117.364173 | AC35: -2174.898 | AD35: -2233.86243 | AE35: -2294.291226 | AF35: =AF31-AF23 -> -2356.218921 | AG35: -2419.680835 | AH35: -2484.713092 | AI35: -2551.35264 | AJ35: -2619.637265 | AK35: -2689.605615 | AL35: -2761.297216
A36: =A$8 -> Trucks | E36: =SUMPRODUCT($F$4:$AE$4,F36:AE36) -> -5782.648468 | F36: =F32-F24 -> 0 | G36: 0 | H36: 0 | I36: 0 | J36: 0 | K36: =K32-K24 -> 0 | L36: 0 | M36: -263.2651854 | N36: -269.6277066 | O36: -275.9436529 | P36: -282.2132902 | Q36: -288.4368834 | R36: -294.6146958 | S36: -300.7469892 | T36: -306.8340241 | U36: -312.8760597 | V36: -318.8733535 | W36: -324.826162 | X36: -330.73474 | Y36: -336.599341 | Z36: -342.4202174 | AA36: -348.1976199 | AB36: -353.9317981 | AC36: -359.623 | AD36: -365.2714725 | AE36: -370.8774612 | AF36: -376.4412101 | AG36: -381.9629621 | AH36: -387.4429588 | AI36: -392.8814405 | AJ36: -398.2786461 | AK36: -403.6348132 | AL36: -408.9501783
A38: Average Vehicle SPEED in BASE CASE, mph
A39: =A$7 -> Automobiles | F39: =IFERROR(F7/F23,0) -> 41.12515423 | G39: 41.1777218 | H39: 41.23035657 | I39: 41.28305861 | J39: 41.33582802 | K39: 41.38866488 | L39: 41.44156928 | M39: 41.4945413 | N39: 41.54758104 | O39: 41.60068857 | P39: 41.65386398 | Q39: 41.70710737 | R39: 41.76041881 | S39: 41.8137984 | T39: 41.86724622 | U39: 41.92076236 | V39: 41.9743469 | W39: 42.02799994 | X39: 42.08172156 | Y39: 42.13551185 | Z39: 42.18937089 | AA39: 42.24329878 | AB39: 42.2972956 | AC39: 42.35136144 | AD39: 42.40549639 | AE39: 42.45970054 | AF39: 42.51397397 | AG39: 42.56831678 | AH39: 42.62272905 | AI39: 42.67721087 | AJ39: 42.73176233 | AK39: 42.78638353 | AL39: 42.84107454
A40: =A$8 -> Trucks | F40: =IFERROR(F8/F24,0) -> 46.90359166 | G40: 46.8075206 | H40: 46.71164632 | I40: 46.61596841 | J40: 46.52048648 | K40: 46.42520012 | L40: 46.33010893 | M40: 46.23521251 | N40: 46.14051047 | O40: 46.0460024 | P40: 45.95168791 | Q40: 45.8575666 | R40: 45.76363807 | S40: 45.66990194 | T40: 45.5763578 | U40: 45.48300527 | V40: 45.38984395 | W40: 45.29687344 | X40: 45.20409337 | Y40: 45.11150333 | Z40: 45.01910294 | AA40: 44.92689181 | AB40: 44.83486956 | AC40: 44.74303579 | AD40: 44.65139012 | AE40: 44.55993217 | AF40: 44.46866155 | AG40: 44.37757787 | AH40: 44.28668076 | AI40: 44.19596983 | AJ40: 44.1054447 | AK40: 44.01510499 | AL40: 43.92495031
A42: Average Vehicle SPEED in PROJECT CASE, mph | E42: For Emissions Lookup >> | F42: =F2 -> 2022 | G42: 2023 | H42: 2024 | I42: 2025 | J42: 2026 | K42: 2027 | L42: 2028 | M42: 2029 | N42: 2030 | O42: 2031 | P42: 2032 | Q42: 2033 | R42: 2034 | S42: 2035 | T42: 2036 | U42: 2037 | V42: 2038 | W42: 2039 | X42: 2040 | Y42: 2041 | Z42: 2042 | AA42: 2043 | AB42: 2044 | AC42: 2045 | AD42: 2046 | AE42: 2047 | AF42: 2048 | AG42: 2049 | AH42: 2050 | AI42: 2051 | AJ42: 2052 | AK42: 2053 | AL42: 2054
A43: =A$7 -> Automobiles | F43: =IFERROR(F15/F31,0) -> 41.12515423 | G43: =IFERROR(G15/G31,0) -> 41.1777218 | H43: 41.23035657 | I43: 41.28305861 | J43: 41.33582802 | K43: 41.38866488 | L43: 41.44156928 | M43: 41.6121386 | N43: 41.6657975 | O43: 41.7195256 | P43: 41.77332297 | Q43: 41.82718972 | R43: 41.88112594 | S43: 41.9351317 | T43: 41.9892071 | U43: 42.04335223 | V43: 42.09756719 | W43: 42.15185205 | X43: 42.20620692 | Y43: 42.26063187 | Z43: 42.31512701 | AA43: 42.36969241 | AB43: 42.42432818 | AC43: 42.47903441 | AD43: 42.53381117 | AE43: 42.58865857 | AF43: 42.6435767 | AG43: 42.69856564 | AH43: 42.7536255 | AI43: 42.80875635 | AJ43: 42.86395829 | AK43: 42.91923142 | AL43: 42.97457582
A44: =A$8 -> Trucks | F44: =IFERROR(F16/F32,0) -> 46.90359166 | G44: 46.8075206 | H44: 46.71164632 | I44: 46.61596841 | J44: 46.52048648 | K44: 46.42520012 | L44: 46.33010893 | M44: 46.81164376 | N44: 46.72168481 | O44: 46.63189874 | P44: 46.54228522 | Q44: 46.4528439 | R44: 46.36357447 | S44: 46.27447659 | T44: 46.18554993 | U44: 46.09679416 | V44: 46.00820895 | W44: 45.91979399 | X44: 45.83154893 | Y44: 45.74347345 | Z44: 45.65556723 | AA44: 45.56782994 | AB44: 45.48026126 | AC44: 45.39286086 | AD44: 45.30562842 | AE44: 45.21856361 | AF44: 45.13166612 | AG44: 45.04493563 | AH44: 44.9583718 | AI44: 44.87197433 | AJ44: 44.78574289 | AK44: 44.69967716 | AL44: 44.61377682
A45: Difference in Travel Rates, hours per mile
A46: =A$7 -> Automobiles | F46: =IFERROR((1/F39)-(1/F43),0) -> 0 | G46: 0 | H46: 0 | I46: 0 | J46: 0 | K46: 0 | L46: =IFERROR((1/L39)-(1/L43),0) -> 0 | M46: 6.810614765e-05 | N46: 6.828927643e-05 | O46: 6.847182362e-05 | P46: 6.86537904e-05 | Q46: 6.883517796e-05 | R46: 6.90159875e-05 | S46: 6.919622019e-05 | T46: 6.937587722e-05 | U46: 6.955495977e-05 | V46: 6.973346901e-05 | W46: 6.991140612e-05 | X46: 7.008877228e-05 | Y46: 7.026556865e-05 | Z46: 7.044179641e-05 | AA46: 7.061745672e-05 | AB46: 7.079255075e-05 | AC46: 7.096707967e-05 | AD46: 7.114104462e-05 | AE46: 7.131444678e-05 | AF46: 7.14872873e-05 | AG46: 7.165956733e-05 | AH46: 7.183128803e-05 | AI46: 7.200245055e-05 | AJ46: 7.217305604e-05 | AK46: 7.234310565e-05 | AL46: 7.251260052e-05
A47: =A$8 -> Trucks | F47: =IFERROR((1/F40)-(1/F44),0) -> 0 | G47: 0 | H47: 0 | I47: 0 | J47: 0 | K47: 0 | L47: 0 | M47: 0.0002663304154 | N47: 0.0002695910966 | O47: 0.000272863696 | P47: 0.000276148248 | Q47: 0.0002794447873 | R47: 0.0002827533486 | S47: 0.0002860739666 | T47: 0.0002894066763 | U47: 0.0002927515126 | V47: 0.0002961085107 | W47: 0.0002994777056 | X47: 0.0003028591326 | Y47: 0.000306252827 | Z47: 0.0003096588244 | AA47: 0.0003130771601 | AB47: 0.0003165078699 | AC47: 0.0003199509895 | AD47: 0.0003234065546 | AE47: 0.0003268746012 | AF47: 0.0003303551652 | AG47: 0.0003338482828 | AH47: 0.0003373539901 | AI47: 0.0003408723234 | AJ47: 0.0003444033191 | AK47: 0.0003479470136 | AL47: 0.0003515034435
A49: Implied Volume/Capacity Ratio
A50: Updated BPR Parameters: | B50: =BCAInputs!$BW$37 -> Freeway | C50: =BCAInputs!$BX$37 -> Arterial | D50: =BCAInputs!$B$37 -> Arterial
A51: a - Coefficient | B51: 0.2 | C51: 0.05 | D51: =IF(D$50=B$50,B51,C51) -> 0.05
A52: b - Exponent | B52: 10 | C52: 10 | D52: =IF(D$50=B$50,B52,C52) -> 10
A53: Source for BPR-U: Small and Verhoef, The Economics of Urban Transportation, Routledge, 2007, page 76
A55: Implied V/C Ratio in BASE CASE
A56: =A$7 -> Automobiles | F56: =IFERROR(EXP(LN((ROUND(BCAInputs!$B$38/F$39,5)-1)/$D$51)/$D$52),0) -> 1.24818938 | G56: =IFERROR(EXP(LN((ROUND(BCAInputs!$B$38/G$39,5)-1)/$D$51)/$D$52),0) -> 1.247682609 | H56: =IFERROR(EXP(LN((ROUND(BCAInputs!$B$38/H$39,5)-1)/$D$51)/$D$52),0) -> 1.247173979 | I56: =IFERROR(EXP(LN((ROUND(BCAInputs!$B$38/I$39,5)-1)/$D$51)/$D$52),0) -> 1.246663474 | J56: =IFERROR(EXP(LN((ROUND(BCAInputs!$B$38/J$39,5)-1)/$D$51)/$D$52),0) -> 1.246153841 | K56: =IFERROR(EXP(LN((ROUND(BCAInputs!$B$38/K$39,5)-1)/$D$51)/$D$52),0) -> 1.245639556 | L56: =IFERROR(EXP(LN((ROUND(BCAInputs!$B$38/L$39,5)-1)/$D$51)/$D$52),0) -> 1.245126133 | M56: =IFERROR(EXP(LN((ROUND(BCAInputs!$B$38/M$39,5)-1)/$D$51)/$D$52),0) -> 1.244610797 | N56: =IFERROR(EXP(LN((ROUND(BCAInputs!$B$38/N$39,5)-1)/$D$51)/$D$52),0) -> 1.244096335 | O56: =IFERROR(EXP(LN((ROUND(BCAInputs!$B$38/O$39,5)-1)/$D$51)/$D$52),0) -> 1.243577139 | P56: =IFERROR(EXP(LN((ROUND(BCAInputs!$B$38/P$39,5)-1)/$D$51)/$D$52),0) -> 1.243058807 | Q56: =IFERROR(EXP(LN((ROUND(BCAInputs!$B$38/Q$39,5)-1)/$D$51)/$D$52),0) -> 1.242538523 | R56: =IFERROR(EXP(LN((ROUND(BCAInputs!$B$38/R$39,5)-1)/$D$51)/$D$52),0) -> 1.242019115 | S56: =IFERROR(EXP(LN((ROUND(BCAInputs!$B$38/S$39,5)-1)/$D$51)/$D$52),0) -> 1.241494889 | T56: =IFERROR(EXP(LN((ROUND(BCAInputs!$B$38/T$39,5)-1)/$D$51)/$D$52),0) -> 1.240971529 | U56: =IFERROR(EXP(LN((ROUND(BCAInputs!$B$38/U$39,5)-1)/$D$51)/$D$52),0) -> 1.240446176 | V56: =IFERROR(EXP(LN((ROUND(BCAInputs!$B$38/V$39,5)-1)/$D$51)/$D$52),0) -> 1.239918812 | W56: =IFERROR(EXP(LN((ROUND(BCAInputs!$B$38/W$39,5)-1)/$D$51)/$D$52),0) -> 1.239392319 | X56: =IFERROR(EXP(LN((ROUND(BCAInputs!$B$38/X$39,5)-1)/$D$51)/$D$52),0) -> 1.238863807 | Y56: =IFERROR(EXP(LN((ROUND(BCAInputs!$B$38/Y$39,5)-1)/$D$51)/$D$52),0) -> 1.238333257 | Z56: =IFERROR(EXP(LN((ROUND(BCAInputs!$B$38/Z$39,5)-1)/$D$51)/$D$52),0) -> 1.237800654 | AA56: =IFERROR(EXP(LN((ROUND(BCAInputs!$B$38/AA$39,5)-1)/$D$51)/$D$52),0) -> 1.23726598 | AB56: =IFERROR(EXP(LN((ROUND(BCAInputs!$B$38/AB$39,5)-1)/$D$51)/$D$52),0) -> 1.236732173 | AC56: =IFERROR(EXP(LN((ROUND(BCAInputs!$B$38/AC$39,5)-1)/$D$51)/$D$52),0) -> 1.236196285 | AD56: =IFERROR(EXP(LN((ROUND(BCAInputs!$B$38/AD$39,5)-1)/$D$51)/$D$52),0) -> 1.235658297 | AE56: =IFERROR(EXP(LN((ROUND(BCAInputs!$B$38/AE$39,5)-1)/$D$51)/$D$52),0) -> 1.235118194 | AF56: =IFERROR(EXP(LN((ROUND(BCAInputs!$B$38/AF$39,5)-1)/$D$51)/$D$52),0) -> 1.234578958 | AG56: =IFERROR(EXP(LN((ROUND(BCAInputs!$B$38/AG$39,5)-1)/$D$51)/$D$52),0) -> 1.234037594 | AH56: =IFERROR(EXP(LN((ROUND(BCAInputs!$B$38/AH$39,5)-1)/$D$51)/$D$52),0) -> 1.233494083 | AI56: =IFERROR(EXP(LN((ROUND(BCAInputs!$B$38/AI$39,5)-1)/$D$51)/$D$52),0) -> 1.232948409 | AJ56: =IFERROR(EXP(LN((ROUND(BCAInputs!$B$38/AJ$39,5)-1)/$D$51)/$D$52),0) -> 1.232403603 | AK56: =IFERROR(EXP(LN((ROUND(BCAInputs!$B$38/AK$39,5)-1)/$D$51)/$D$52),0) -> 1.23185662 | AL56: =IFERROR(EXP(LN((ROUND(BCAInputs!$B$38/AL$39,5)-1)/$D$51)/$D$52),0) -> 1.231307443
A57: =A$8 -> Trucks | F57: =IFERROR(EXP(LN((ROUND(BCAInputs!$B$38/F$40,5)-1)/$D$51)/$D$52),0) -> 1.187675101 | G57: =IFERROR(EXP(LN((ROUND(BCAInputs!$B$38/G$40,5)-1)/$D$51)/$D$52),0) -> 1.18878907 | H57: =IFERROR(EXP(LN((ROUND(BCAInputs!$B$38/H$40,5)-1)/$D$51)/$D$52),0) -> 1.189893723 | I57: =IFERROR(EXP(LN((ROUND(BCAInputs!$B$38/I$40,5)-1)/$D$51)/$D$52),0) -> 1.190989223 | J57: =IFERROR(EXP(LN((ROUND(BCAInputs!$B$38/J$40,5)-1)/$D$51)/$D$52),0) -> 1.192079842 | K57: =IFERROR(EXP(LN((ROUND(BCAInputs!$B$38/K$40,5)-1)/$D$51)/$D$52),0) -> 1.193165635 | L57: =IFERROR(EXP(LN((ROUND(BCAInputs!$B$38/L$40,5)-1)/$D$51)/$D$52),0) -> 1.194242607 | M57: =IFERROR(EXP(LN((ROUND(BCAInputs!$B$38/M$40,5)-1)/$D$51)/$D$52),0) -> 1.195314924 | N57: =IFERROR(EXP(LN((ROUND(BCAInputs!$B$38/N$40,5)-1)/$D$51)/$D$52),0) -> 1.196382635 | O57: =IFERROR(EXP(LN((ROUND(BCAInputs!$B$38/O$40,5)-1)/$D$51)/$D$52),0) -> 1.197437887 | P57: =IFERROR(EXP(LN((ROUND(BCAInputs!$B$38/P$40,5)-1)/$D$51)/$D$52),0) -> 1.198492677 | Q57: =IFERROR(EXP(LN((ROUND(BCAInputs!$B$38/Q$40,5)-1)/$D$51)/$D$52),0) -> 1.199539177 | R57: =IFERROR(EXP(LN((ROUND(BCAInputs!$B$38/R$40,5)-1)/$D$51)/$D$52),0) -> 1.200577524 | S57: =IFERROR(EXP(LN((ROUND(BCAInputs!$B$38/S$40,5)-1)/$D$51)/$D$52),0) -> 1.20161551 | T57: =IFERROR(EXP(LN((ROUND(BCAInputs!$B$38/T$40,5)-1)/$D$51)/$D$52),0) -> 1.202641689 | U57: =IFERROR(EXP(LN((ROUND(BCAInputs!$B$38/U$40,5)-1)/$D$51)/$D$52),0) -> 1.203663818 | V57: =IFERROR(EXP(LN((ROUND(BCAInputs!$B$38/V$40,5)-1)/$D$51)/$D$52),0) -> 1.204681938 | W57: =IFERROR(EXP(LN((ROUND(BCAInputs!$B$38/W$40,5)-1)/$D$51)/$D$52),0) -> 1.205692372 | X57: =IFERROR(EXP(LN((ROUND(BCAInputs!$B$38/X$40,5)-1)/$D$51)/$D$52),0) -> 1.206698928 | Y57: =IFERROR(EXP(LN((ROUND(BCAInputs!$B$38/Y$40,5)-1)/$D$51)/$D$52),0) -> 1.207701644 | Z57: =IFERROR(EXP(LN((ROUND(BCAInputs!$B$38/Z$40,5)-1)/$D$51)/$D$52),0) -> 1.208696922 | AA57: =IFERROR(EXP(LN((ROUND(BCAInputs!$B$38/AA$40,5)-1)/$D$51)/$D$52),0) -> 1.209684879 | AB57: =IFERROR(EXP(LN((ROUND(BCAInputs!$B$38/AB$40,5)-1)/$D$51)/$D$52),0) -> 1.210669206 | AC57: =IFERROR(EXP(LN((ROUND(BCAInputs!$B$38/AC$40,5)-1)/$D$51)/$D$52),0) -> 1.211649936 | AD57: =IFERROR(EXP(LN((ROUND(BCAInputs!$B$38/AD$40,5)-1)/$D$51)/$D$52),0) -> 1.212623574 | AE57: =IFERROR(EXP(LN((ROUND(BCAInputs!$B$38/AE$40,5)-1)/$D$51)/$D$52),0) -> 1.213593728 | AF57: =IFERROR(EXP(LN((ROUND(BCAInputs!$B$38/AF$40,5)-1)/$D$51)/$D$52),0) -> 1.214556953 | AG57: =IFERROR(EXP(LN((ROUND(BCAInputs!$B$38/AG$40,5)-1)/$D$51)/$D$52),0) -> 1.215516804 | AH57: =IFERROR(EXP(LN((ROUND(BCAInputs!$B$38/AH$40,5)-1)/$D$51)/$D$52),0) -> 1.21647331 | AI57: =IFERROR(EXP(LN((ROUND(BCAInputs!$B$38/AI$40,5)-1)/$D$51)/$D$52),0) -> 1.217423095 | AJ57: =IFERROR(EXP(LN((ROUND(BCAInputs!$B$38/AJ$40,5)-1)/$D$51)/$D$52),0) -> 1.218369638 | AK57: =IFERROR(EXP(LN((ROUND(BCAInputs!$B$38/AK$40,5)-1)/$D$51)/$D$52),0) -> 1.219309608 | AL57: =IFERROR(EXP(LN((ROUND(BCAInputs!$B$38/AL$40,5)-1)/$D$51)/$D$52),0) -> 1.220246437
A59: Implied V/C Ratio in PROJECT CASE
A60: =A$7 -> Automobiles | F60: =IFERROR(EXP(LN((ROUND(BCAInputs!$B$38/F$43,5)-1)/$D$51)/$D$52),0) -> 1.24818938 | G60: =IFERROR(EXP(LN((ROUND(BCAInputs!$B$38/G$43,5)-1)/$D$51)/$D$52),0) -> 1.247682609 | H60: =IFERROR(EXP(LN((ROUND(BCAInputs!$B$38/H$43,5)-1)/$D$51)/$D$52),0) -> 1.247173979 | I60: =IFERROR(EXP(LN((ROUND(BCAInputs!$B$38/I$43,5)-1)/$D$51)/$D$52),0) -> 1.246663474 | J60: =IFERROR(EXP(LN((ROUND(BCAInputs!$B$38/J$43,5)-1)/$D$51)/$D$52),0) -> 1.246153841 | K60: =IFERROR(EXP(LN((ROUND(BCAInputs!$B$38/K$43,5)-1)/$D$51)/$D$52),0) -> 1.245639556 | L60: =IFERROR(EXP(LN((ROUND(BCAInputs!$B$38/L$43,5)-1)/$D$51)/$D$52),0) -> 1.245126133 | M60: =IFERROR(EXP(LN((ROUND(BCAInputs!$B$38/M$43,5)-1)/$D$51)/$D$52),0) -> 1.243467437 | N60: =IFERROR(EXP(LN((ROUND(BCAInputs!$B$38/N$43,5)-1)/$D$51)/$D$52),0) -> 1.242943044 | O60: =IFERROR(EXP(LN((ROUND(BCAInputs!$B$38/O$43,5)-1)/$D$51)/$D$52),0) -> 1.242419487 | P60: =IFERROR(EXP(LN((ROUND(BCAInputs!$B$38/P$43,5)-1)/$D$51)/$D$52),0) -> 1.241891091 | Q60: =IFERROR(EXP(LN((ROUND(BCAInputs!$B$38/Q$43,5)-1)/$D$51)/$D$52),0) -> 1.241363521 | R60: =IFERROR(EXP(LN((ROUND(BCAInputs!$B$38/R$43,5)-1)/$D$51)/$D$52),0) -> 1.240836793 | S60: =IFERROR(EXP(LN((ROUND(BCAInputs!$B$38/S$43,5)-1)/$D$51)/$D$52),0) -> 1.240305166 | T60: =IFERROR(EXP(LN((ROUND(BCAInputs!$B$38/T$43,5)-1)/$D$51)/$D$52),0) -> 1.239774371 | U60: =IFERROR(EXP(LN((ROUND(BCAInputs!$B$38/U$43,5)-1)/$D$51)/$D$52),0) -> 1.239241523 | V60: =IFERROR(EXP(LN((ROUND(BCAInputs!$B$38/V$43,5)-1)/$D$51)/$D$52),0) -> 1.238706604 | W60: =IFERROR(EXP(LN((ROUND(BCAInputs!$B$38/W$43,5)-1)/$D$51)/$D$52),0) -> 1.238169599 | X60: =IFERROR(EXP(LN((ROUND(BCAInputs!$B$38/X$43,5)-1)/$D$51)/$D$52),0) -> 1.237633424 | Y60: =IFERROR(EXP(LN((ROUND(BCAInputs!$B$38/Y$43,5)-1)/$D$51)/$D$52),0) -> 1.237095151 | Z60: =IFERROR(EXP(LN((ROUND(BCAInputs!$B$38/Z$43,5)-1)/$D$51)/$D$52),0) -> 1.236554762 | AA60: =IFERROR(EXP(LN((ROUND(BCAInputs!$B$38/AA$43,5)-1)/$D$51)/$D$52),0) -> 1.236015209 | AB60: =IFERROR(EXP(LN((ROUND(BCAInputs!$B$38/AB$43,5)-1)/$D$51)/$D$52),0) -> 1.235470547 | AC60: =IFERROR(EXP(LN((ROUND(BCAInputs!$B$38/AC$43,5)-1)/$D$51)/$D$52),0) -> 1.234926708 | AD60: =IFERROR(EXP(LN((ROUND(BCAInputs!$B$38/AD$43,5)-1)/$D$51)/$D$52),0) -> 1.234380706 | AE60: =IFERROR(EXP(LN((ROUND(BCAInputs!$B$38/AE$43,5)-1)/$D$51)/$D$52),0) -> 1.233835539 | AF60: =IFERROR(EXP(LN((ROUND(BCAInputs!$B$38/AF$43,5)-1)/$D$51)/$D$52),0) -> 1.233285165 | AG60: =IFERROR(EXP(LN((ROUND(BCAInputs!$B$38/AG$43,5)-1)/$D$51)/$D$52),0) -> 1.232735615 | AH60: =IFERROR(EXP(LN((ROUND(BCAInputs!$B$38/AH$43,5)-1)/$D$51)/$D$52),0) -> 1.23218385 | AI60: =IFERROR(EXP(LN((ROUND(BCAInputs!$B$38/AI$43,5)-1)/$D$51)/$D$52),0) -> 1.231629853 | AJ60: =IFERROR(EXP(LN((ROUND(BCAInputs!$B$38/AJ$43,5)-1)/$D$51)/$D$52),0) -> 1.231076684 | AK60: =IFERROR(EXP(LN((ROUND(BCAInputs!$B$38/AK$43,5)-1)/$D$51)/$D$52),0) -> 1.230518176 | AL60: =IFERROR(EXP(LN((ROUND(BCAInputs!$B$38/AL$43,5)-1)/$D$51)/$D$52),0) -> 1.229960482
A61: =A$8 -> Trucks | F61: =IFERROR(EXP(LN((ROUND(BCAInputs!$B$38/F$44,5)-1)/$D$51)/$D$52),0) -> 1.187675101 | G61: =IFERROR(EXP(LN((ROUND(BCAInputs!$B$38/G$44,5)-1)/$D$51)/$D$52),0) -> 1.18878907 | H61: =IFERROR(EXP(LN((ROUND(BCAInputs!$B$38/H$44,5)-1)/$D$51)/$D$52),0) -> 1.189893723 | I61: =IFERROR(EXP(LN((ROUND(BCAInputs!$B$38/I$44,5)-1)/$D$51)/$D$52),0) -> 1.190989223 | J61: =IFERROR(EXP(LN((ROUND(BCAInputs!$B$38/J$44,5)-1)/$D$51)/$D$52),0) -> 1.192079842 | K61: =IFERROR(EXP(LN((ROUND(BCAInputs!$B$38/K$44,5)-1)/$D$51)/$D$52),0) -> 1.193165635 | L61: =IFERROR(EXP(LN((ROUND(BCAInputs!$B$38/L$44,5)-1)/$D$51)/$D$52),0) -> 1.194242607 | M61: =IFERROR(EXP(LN((ROUND(BCAInputs!$B$38/M$44,5)-1)/$D$51)/$D$52),0) -> 1.188738447 | N61: =IFERROR(EXP(LN((ROUND(BCAInputs!$B$38/N$44,5)-1)/$D$51)/$D$52),0) -> 1.189776556 | O61: =IFERROR(EXP(LN((ROUND(BCAInputs!$B$38/O$44,5)-1)/$D$51)/$D$52),0) -> 1.190806576 | P61: =IFERROR(EXP(LN((ROUND(BCAInputs!$B$38/P$44,5)-1)/$D$51)/$D$52),0) -> 1.191832761 | Q61: =IFERROR(EXP(LN((ROUND(BCAInputs!$B$38/Q$44,5)-1)/$D$51)/$D$52),0) -> 1.192851056 | R61: =IFERROR(EXP(LN((ROUND(BCAInputs!$B$38/R$44,5)-1)/$D$51)/$D$52),0) -> 1.193865646 | S61: =IFERROR(EXP(LN((ROUND(BCAInputs!$B$38/S$44,5)-1)/$D$51)/$D$52),0) -> 1.194872534 | T61: =IFERROR(EXP(LN((ROUND(BCAInputs!$B$38/T$44,5)-1)/$D$51)/$D$52),0) -> 1.195875842 | U61: =IFERROR(EXP(LN((ROUND(BCAInputs!$B$38/U$44,5)-1)/$D$51)/$D$52),0) -> 1.196871631 | V61: =IFERROR(EXP(LN((ROUND(BCAInputs!$B$38/V$44,5)-1)/$D$51)/$D$52),0) -> 1.197863958 | W61: =IFERROR(EXP(LN((ROUND(BCAInputs!$B$38/W$44,5)-1)/$D$51)/$D$52),0) -> 1.198848941 | X61: =IFERROR(EXP(LN((ROUND(BCAInputs!$B$38/X$44,5)-1)/$D$51)/$D$52),0) -> 1.199826694 | Y61: =IFERROR(EXP(LN((ROUND(BCAInputs!$B$38/Y$44,5)-1)/$D$51)/$D$52),0) -> 1.200801181 | Z61: =IFERROR(EXP(LN((ROUND(BCAInputs!$B$38/Z$44,5)-1)/$D$51)/$D$52),0) -> 1.201772427 | AA61: =IFERROR(EXP(LN((ROUND(BCAInputs!$B$38/AA$44,5)-1)/$D$51)/$D$52),0) -> 1.202736659 | AB61: =IFERROR(EXP(LN((ROUND(BCAInputs!$B$38/AB$44,5)-1)/$D$51)/$D$52),0) -> 1.203693985 | AC61: =IFERROR(EXP(LN((ROUND(BCAInputs!$B$38/AC$44,5)-1)/$D$51)/$D$52),0) -> 1.20464825 | AD61: =IFERROR(EXP(LN((ROUND(BCAInputs!$B$38/AD$44,5)-1)/$D$51)/$D$52),0) -> 1.205599477 | AE61: =IFERROR(EXP(LN((ROUND(BCAInputs!$B$38/AE$44,5)-1)/$D$51)/$D$52),0) -> 1.206543997 | AF61: =IFERROR(EXP(LN((ROUND(BCAInputs!$B$38/AF$44,5)-1)/$D$51)/$D$52),0) -> 1.207481908 | AG61: =IFERROR(EXP(LN((ROUND(BCAInputs!$B$38/AG$44,5)-1)/$D$51)/$D$52),0) -> 1.208416949 | AH61: =IFERROR(EXP(LN((ROUND(BCAInputs!$B$38/AH$44,5)-1)/$D$51)/$D$52),0) -> 1.209349137 | AI61: =IFERROR(EXP(LN((ROUND(BCAInputs!$B$38/AI$44,5)-1)/$D$51)/$D$52),0) -> 1.210274904 | AJ61: =IFERROR(EXP(LN((ROUND(BCAInputs!$B$38/AJ$44,5)-1)/$D$51)/$D$52),0) -> 1.21119434 | AK61: =IFERROR(EXP(LN((ROUND(BCAInputs!$B$38/AK$44,5)-1)/$D$51)/$D$52),0) -> 1.212111079 | AL61: =IFERROR(EXP(LN((ROUND(BCAInputs!$B$38/AL$44,5)-1)/$D$51)/$D$52),0) -> 1.213025137

Sheet SafetyCalcs
A1: Safety Savings - Calculations
A4: On SR 29 (between US 27 and SR 78) | K4: To be Opened from September 2029 onwards (4/12 months) - part of the year | L4: First Full Year of Operations/Benefits (2030)
A5: Savings: Number of Avoided (No-Build - Build) | K5: =BCAInputs!$I$19 -> 0.3333333333 | AG5: 2030-2049
D6: 2022 | E6: 2023 | F6: 2024 | G6: 2025 | H6: 2026 | I6: 2027 | J6: 2028 | K6: 2029 | L6: 2030 | M6: 2031 | N6: 2032 | O6: 2033 | P6: 2034 | Q6: 2035 | R6: 2036 | S6: 2037 | T6: 2038 | U6: 2039 | V6: 2040 | W6: 2041 | X6: 2042 | Y6: 2043 | Z6: 2044 | AA6: 2045 | AB6: 2046 | AC6: 2047 | AD6: 2048 | AE6: 2049
A7: Fatalities | D7: =(D23-D16+D88)*D$11 -> 0 | E7: =(E23-E16+E88)*E$11 -> 0 | F7: 0 | G7: 0 | H7: 0 | I7: 0 | J7: =(J23-J16+J88)*J$11 -> 0 | K7: =(K23-K16+K88)*$K$5 -> 0.1149333333 | L7: =(L23-L16+L88)*L$11 -> 0.3448 | M7: =(M23-M16+M88)*M$11 -> 0.3448 | N7: =(N23-N16+N88)*N$11 -> 0.3448 | O7: 0.3448 | P7: 0.3448 | Q7: 0.3448 | R7: 0.3448 | S7: 0.3448 | T7: 0.3448 | U7: 0.3448 | V7: 0.3448 | W7: 0.3448 | X7: 0.3448 | Y7: 0.3448 | Z7: 0.3448 | AA7: 0.3448 | AB7: 0.3448 | AC7: 0.3448 | AD7: 0.3448 | AE7: 0.3448 | AG7: =SUM(K7:AE7) -> 7.010933333 | AH7: =AG7*Parameters!B52 -> 81326826.67
A8: Injuries | D8: =(D24-D17+D89)*D$11 -> 0 | E8: =(E24-E17+E89)*E$11 -> 0 | F8: 0 | G8: 0 | H8: 0 | I8: 0 | J8: 0 | K8: =(K24-K17+K89)*$K$5 -> 0.2630666667 | L8: =(L24-L17+L89)*L$11 -> 0.7892 | M8: =(M24-M17+M89)*M$11 -> 0.7892 | N8: 0.7892 | O8: 0.7892 | P8: 0.7892 | Q8: 0.7892 | R8: 0.7892 | S8: 0.7892 | T8: 0.7892 | U8: 0.7892 | V8: 0.7892 | W8: 0.7892 | X8: 0.7892 | Y8: 0.7892 | Z8: 0.7892 | AA8: 0.7892 | AB8: 0.7892 | AC8: 0.7892 | AD8: 0.7892 | AE8: 0.7892 | AG8: =SUM(K8:AE8) -> 16.04706667 | AH8: =AG8*Parameters!B53 -> 3374698.12
A9: PDO | D9: =(D25-D18)*D$11 -> 0 | E9: 0 | F9: 0 | G9: 0 | H9: 0 | I9: 0 | J9: 0 | K9: =(K25-K18)*$K$5 -> 0.5212 | L9: =(L25-L18)*L$11 -> 1.5636 | M9: 1.5636 | N9: 1.5636 | O9: 1.5636 | P9: 1.5636 | Q9: 1.5636 | R9: 1.5636 | S9: 1.5636 | T9: 1.5636 | U9: 1.5636 | V9: 1.5636 | W9: 1.5636 | X9: 1.5636 | Y9: 1.5636 | Z9: 1.5636 | AA9: 1.5636 | AB9: 1.5636 | AC9: 1.5636 | AD9: 1.5636 | AE9: 1.5636 | AG9: 31.7932 | AH9: =AG9*Parameters!B55 -> 146248.72
AH10: =SUM(AH7:AH9) -> 84847773.51
A11: Operations Index | D11: =BCACalculations!D4 -> 0 | E11: =BCACalculations!E4 -> 0 | F11: =BCACalculations!F4 -> 0 | G11: =BCACalculations!G4 -> 0 | H11: =BCACalculations!H4 -> 0 | I11: =BCACalculations!I4 -> 0 | J11: =BCACalculations!J4 -> 0 | K11: =BCACalculations!K4 -> 0 | L11: =BCACalculations!L4 -> 1 | M11: =BCACalculations!M4 -> 1 | N11: =BCACalculations!N4 -> 1 | O11: =BCACalculations!O4 -> 1 | P11: =BCACalculations!P4 -> 1 | Q11: =BCACalculations!Q4 -> 1 | R11: =BCACalculations!R4 -> 1 | S11: =BCACalculations!S4 -> 1 | T11: =BCACalculations!T4 -> 1 | U11: =BCACalculations!U4 -> 1 | V11: =BCACalculations!V4 -> 1 | W11: =BCACalculations!W4 -> 1 | X11: =BCACalculations!X4 -> 1 | Y11: =BCACalculations!Y4 -> 1 | Z11: =BCACalculations!Z4 -> 1 | AA11: =BCACalculations!AA4 -> 1 | AB11: =BCACalculations!AB4 -> 1 | AC11: =BCACalculations!AC4 -> 1 | AD11: =BCACalculations!AD4 -> 1 | AE11: =BCACalculations!AE4 -> 1
A14: Build Scenario (with the improvements)
D15: 2022 | E15: 2023 | F15: 2024 | G15: 2025 | H15: 2026 | I15: 2027 | J15: 2028 | K15: 2029 | L15: 2030 | M15: 2031 | N15: 2032 | O15: 2033 | P15: 2034 | Q15: 2035 | R15: 2036 | S15: 2037 | T15: 2038 | U15: 2039 | V15: 2040 | W15: 2041 | X15: 2042 | Y15: 2043 | Z15: 2044 | AA15: 2045 | AB15: 2046 | AC15: 2047 | AD15: 2048 | AE15: 2049
A16: Fatalities | K16: =J35+J45+J55+J65 -> 1.0552 | L16: =J35+J45+J55+J65 -> 1.0552 | M16: =L16 -> 1.0552 | N16: 1.0552 | O16: 1.0552 | P16: 1.0552 | Q16: 1.0552 | R16: 1.0552 | S16: 1.0552 | T16: 1.0552 | U16: 1.0552 | V16: 1.0552 | W16: 1.0552 | X16: 1.0552 | Y16: 1.0552 | Z16: 1.0552 | AA16: 1.0552 | AB16: 1.0552 | AC16: 1.0552 | AD16: 1.0552 | AE16: 1.0552
A17: Injuries | K17: =K35+K45+K55+K65 -> 3.4108 | L17: =K35+K45+K55+K65 -> 3.4108 | M17: =L17 -> 3.4108 | N17: 3.4108 | O17: 3.4108 | P17: 3.4108 | Q17: 3.4108 | R17: 3.4108 | S17: 3.4108 | T17: 3.4108 | U17: 3.4108 | V17: 3.4108 | W17: 3.4108 | X17: 3.4108 | Y17: 3.4108 | Z17: 3.4108 | AA17: 3.4108 | AB17: 3.4108 | AC17: 3.4108 | AD17: 3.4108 | AE17: 3.4108
A18: PDO | K18: =L35+L45+L55+L65 -> 8.0364 | L18: =L35+L45+L55+L65 -> 8.0364 | M18: =L18 -> 8.0364 | N18: 8.0364 | O18: 8.0364 | P18: 8.0364 | Q18: 8.0364 | R18: 8.0364 | S18: 8.0364 | T18: 8.0364 | U18: 8.0364 | V18: 8.0364 | W18: 8.0364 | X18: 8.0364 | Y18: 8.0364 | Z18: 8.0364 | AA18: 8.0364 | AB18: 8.0364 | AC18: 8.0364 | AD18: 8.0364 | AE18: 8.0364
A21: No-Build Scenario (without the improvements) | D21: Assumed to conservatively continue at the average levels in the corridor segment over the last 5 years
D22: 2022 | E22: 2023 | F22: 2024 | G22: 2025 | H22: 2026 | I22: 2027 | J22: 2028 | K22: 2029 | L22: 2030 | M22: 2031 | N22: 2032 | O22: 2033 | P22: 2034 | Q22: 2035 | R22: 2036 | S22: 2037 | T22: 2038 | U22: 2039 | V22: 2040 | W22: 2041 | X22: 2042 | Y22: 2043 | Z22: 2044 | AA22: 2045 | AB22: 2046 | AC22: 2047 | AD22: 2048 | AE22: 2049
A23: Fatalities | D23: =J34+J44+J54+J64 -> 1.4 | E23: =D23 -> 1.4 | F23: =E23 -> 1.4 | G23: =F23 -> 1.4 | H23: =G23 -> 1.4 | I23: =H23 -> 1.4 | J23: 1.4 | K23: 1.4 | L23: 1.4 | M23: 1.4 | N23: =M23 -> 1.4 | O23: =N23 -> 1.4 | P23: =O23 -> 1.4 | Q23: =P23 -> 1.4 | R23: =Q23 -> 1.4 | S23: =R23 -> 1.4 | T23: =S23 -> 1.4 | U23: =T23 -> 1.4 | V23: =U23 -> 1.4 | W23: =V23 -> 1.4 | X23: =W23 -> 1.4 | Y23: =X23 -> 1.4 | Z23: =Y23 -> 1.4 | AA23: =Z23 -> 1.4 | AB23: =AA23 -> 1.4 | AC23: =AB23 -> 1.4 | AD23: =AC23 -> 1.4 | AE23: =AD23 -> 1.4
A24: Injuries | D24: =K34+K44+K54+K64 -> 4.2 | E24: =D24 -> 4.2 | F24: =E24 -> 4.2 | G24: 4.2 | H24: 4.2 | I24: 4.2 | J24: 4.2 | K24: 4.2 | L24: 4.2 | M24: 4.2 | N24: 4.2 | O24: 4.2 | P24: 4.2 | Q24: 4.2 | R24: 4.2 | S24: 4.2 | T24: 4.2 | U24: 4.2 | V24: 4.2 | W24: 4.2 | X24: 4.2 | Y24: 4.2 | Z24: 4.2 | AA24: 4.2 | AB24: 4.2 | AC24: 4.2 | AD24: 4.2 | AE24: 4.2
A25: PDO | D25: =L34+L44+L54+L64 -> 9.6 | E25: 9.6 | F25: 9.6 | G25: 9.6 | H25: 9.6 | I25: 9.6 | J25: 9.6 | K25: 9.6 | L25: 9.6 | M25: 9.6 | N25: 9.6 | O25: 9.6 | P25: 9.6 | Q25: 9.6 | R25: 9.6 | S25: 9.6 | T25: 9.6 | U25: 9.6 | V25: 9.6 | W25: 9.6 | X25: 9.6 | Y25: 9.6 | Z25: 9.6 | AA25: 9.6 | AB25: 9.6 | AC25: 9.6 | AD25: 9.6 | AE25: 9.6
A30: Crashes History on SR 29 (between US 27 and SR 78) | H30: Predicted Crashes by Severity on SR 29 (between US 27 and SR 78)
A31: LANE DEPARTURE CRASHES PER YEAR BY SEVERITY; For roadway departure crashes consistent with CMF (refer to table below) | H31: Projected lane departure crashes per year by severity* | J31: longitudinal safety improvements; center and edge line rumble strip
A32: Year | B32: # ofFatalities | C32: # of Injuries | D32: Property Damage Only | F32: CMF Application: | J32: # ofFatalities | K32: # of Injuries | L32: Property Damage Only | M32: Notes
A33: 2017 | B33: 1 | C33: 1 | D33: 2 | F33: a. | H33: Annual average (2017-2021) | I33: - | J33: =+B38/5 -> 0.6 | K33: =+C38/5 -> 2 | L33: =+D38/5 -> 3.6 | M33: used average 2017-2021 for each value
A34: 2018 | B34: 2 | C34: 3 | D34: 6 | F34: =+I73 -> 0.86 | H34: Horizon (without project) | I34: 2045 | J34: =J33 -> 0.6 | K34: 2 | L34: 3.6
A35: 2019 | B35: 0 | C35: 0 | D35: 2 | H35: Horizon (with project) | I35: 2045 | J35: =J34*$F34 -> 0.516 | K35: =K34*$F34 -> 1.72 | L35: 3.096
A36: 2020 | B36: 0 | C36: 4 | D36: 3
A37: 2021 | B37: 0 | C37: 2 | D37: 5
B38: =SUM(B33:B37) -> 3 | C38: =SUM(C33:C37) -> 10 | D38: 18 | H38: *meeting conditions of crash as specified in the CMF (refer to table below)
A41: ROADWAY DEPARTURE CRASHES PER YEAR BY SEVERITY; For roadway departure crashes consistent with CMF (refer to table below) | H41: Projected roadway departure crashes per year by severity* | J41: longitudinal safety improvements; edge treatment
A42: Year | B42: # ofFatalities | C42: # of Injuries | D42: Property Damage Only | F42: CMF Application: | J42: # ofFatalities | K42: # of Injuries | L42: Property Damage Only | M42: Notes
A43: 2017 | B43: 0 | C43: 1 | D43: 2 | F43: b. | H43: Annual average (2017-2021) | I43: - | J43: =+B48/5 -> 0.2 | K43: =+C48/5 -> 1.2 | L43: =+D48/5 -> 3.6 | M43: used average 2017-2021 for each value
A44: 2018 | B44: 1 | C44: 2 | D44: 6 | F44: =+I74 -> 0.892 | H44: Horizon (without project) | I44: 2045 | J44: =J43 -> 0.2 | K44: 1.2 | L44: 3.6
A45: 2019 | B45: 0 | C45: 0 | D45: 2 | H45: Horizon (with project) | I45: 2045 | J45: =J44*$F44 -> 0.1784 | K45: =K44*$F44 -> 1.0704 | L45: =L44*$F44 -> 3.2112
A46: 2020 | B46: 0 | C46: 2 | D46: 3
A47: 2021 | B47: 0 | C47: 1 | D47: 5
B48: =SUM(B43:B47) -> 1 | C48: =SUM(C43:C47) -> 6 | D48: =SUM(D43:D47) -> 18 | H48: *meeting conditions of crash as specified in the CMF (refer to table below)
A51: WET-WEATHER RELATED CRASHES AT NIGHT PER YEAR BY SEVERITY; For wet weather crashes consistent with CMF (refer to table below) | H51: Projected wet-weather crashes per year by severity* | J51: longitudinal safety improvements; pavement friction
A52: Year | B52: # ofFatalities | C52: # of Injuries | D52: Property Damage Only | F52: CMF Application: | J52: # ofFatalities | K52: # of Injuries | L52: Property Damage Only | M52: Notes
A53: 2017 | B53: 0 | C53: 0 | D53: 1 | F53: c. | H53: Annual average (2017-2021) | I53: - | J53: =+B58/5 -> 0.4 | K53: =+C58/5 -> 0.6 | L53: =+D58/5 -> 0.6 | M53: used average 2017-2021 for each value
A54: 2018 | B54: 2 | C54: 1 | D54: 0 | F54: =+I75 -> 0.506 | H54: Horizon (without project) | I54: 2045 | J54: =J53 -> 0.4 | K54: 0.6 | L54: 0.6
A55: 2019 | B55: 0 | C55: 0 | D55: 0 | H55: Horizon (with project) | I55: 2045 | J55: =J54*$F54 -> 0.2024 | K55: =K54*$F54 -> 0.3036 | L55: 0.3036
A56: 2020 | B56: 0 | C56: 1 | D56: 1
A57: 2021 | B57: 0 | C57: 1 | D57: 1
B58: =SUM(B53:B57) -> 2 | C58: =SUM(C53:C57) -> 3 | D58: =SUM(D53:D57) -> 3 | H58: *meeting conditions of crash as specified in the CMF (refer to table below)
A61: INTERSECTION CRASHES PER YEAR BY SEVERITY; For intersection crashes consistent with CMF (refer to table below) | H61: Projected intersection crashes per year by severity* | J61: Intersections, Nightime safety improvements
A62: Year | B62: # ofFatalities | C62: # of Injuries | D62: Property Damage Only | F62: CMF Application: | J62: # ofFatalities | K62: # of Injuries | L62: Property Damage Only | M62: Notes
A63: 2017 | B63: 0 | C63: 0 | D63: 1 | F63: d. | H63: Annual average (2017-2021) | I63: - | J63: =+B68/5 -> 0.2 | K63: =+C68/5 -> 0.4 | L63: =+D68/5 -> 1.8 | M63: used average 2017-2021 for each value
A64: 2018 | B64: 1 | C64: 1 | D64: 4 | F64: =+I76 -> 0.792 | H64: Horizon (without project) | I64: 2045 | J64: =+J63 -> 0.2 | K64: =+K63 -> 0.4 | L64: 1.8
A65: 2019 | B65: 0 | C65: 1 | D65: 0 | H65: Horizon (with project) | I65: 2045 | J65: =J64*$F64 -> 0.1584 | K65: =K64*$F64 -> 0.3168 | L65: =L64*$F64 -> 1.4256
A66: 2020 | B66: 0 | C66: 0 | D66: 1
A67: 2021 | B67: 0 | C67: 0 | D67: 3
B68: =SUM(B63:B67) -> 1 | C68: =SUM(C63:C67) -> 2 | D68: =SUM(D63:D67) -> 9 | H68: *no crash types specified in the crash modification factors for intersection lighting improvement were met
A69: Note: value is null as there were no crashes meeting the specifications of the intersection lighting improvement.
F72: Crash Modification Factors | H72: limits | I72: value | J72: Reference # Crash Clearinghouse | K72: Comments
E73: a. | F73: Centerline and shoulder rumble strip | H73: area of resurfacing and grade increase | I73: 0.86 | J73: 10394 | K73: CMF specifically cites tangent roadway; rural, undivided, two lane.
E74: b | F74: Install safety edge treatment | H74: area of resurfacing and grade increase | I74: 0.892 | J74: 9730
E75: c. | F75: Improve pavement friction | H75: area of resurfacing and grade increase | I75: 0.506 | J75: 7467
E76: d | F76: Install intersection lighting | H76: rural 2-lane intersection with no lighting | I76: 0.792 | J76: 10993 | K76: Crash type: all.
A77: Notes.
A78: 1. | B78: Estimate relies on current trends and does no consider increase in crashes as a result of increased traffic.
A79: 2. | B79: No crash types specified in the crash modification factors for intersection lighting improvement were met.
A85: On the Alternative Route (US 27 and SR 78) | C85: Based on Changes in VMT & Crash Rates | K85: To be Opened from September 2029 onwards (4/12 months) - part of the year | L85: First Full Year of Operations/Benefits (2030)
A86: Savings: Number of Avoided (No-Build - Build) | K86: =BCAInputs!$I$19 -> 0.3333333333
D87: 2022 | E87: 2023 | F87: 2024 | G87: 2025 | H87: 2026 | I87: 2027 | J87: 2028 | K87: 2029 | L87: 2030 | M87: 2031 | N87: 2032 | O87: 2033 | P87: 2034 | Q87: 2035 | R87: 2036 | S87: 2037 | T87: 2038 | U87: 2039 | V87: 2040 | W87: 2041 | X87: 2042 | Y87: 2043 | Z87: 2044 | AA87: 2045 | AB87: 2046 | AC87: 2047 | AD87: 2048 | AE87: 2049
A88: Fatalities | D88: =-(SUM(VMTVHT!F$19:F$20)/$D$92)*SafetyCalcs!$B$95 -> 0 | E88: =-(SUM(VMTVHT!G$19:G$20)/$D$92)*SafetyCalcs!$B$95 -> 0 | F88: =-(SUM(VMTVHT!H$19:H$20)/$D$92)*SafetyCalcs!$B$95 -> 0 | G88: =-(SUM(VMTVHT!I$19:I$20)/$D$92)*SafetyCalcs!$B$95 -> 0 | H88: =-(SUM(VMTVHT!J$19:J$20)/$D$92)*SafetyCalcs!$B$95 -> 0 | I88: =-(SUM(VMTVHT!K$19:K$20)/$D$92)*SafetyCalcs!$B$95 -> 0 | J88: =-(SUM(VMTVHT!L$19:L$20)/$D$92)*SafetyCalcs!$B$95 -> 0 | K88: =-(SUM(VMTVHT!M$19:M$20)/10^6)*SafetyCalcs!$B$95*$K$86 -> 1.269567631e-12 | L88: =-(SUM(VMTVHT!N$19:N$20)/$D$92)*SafetyCalcs!$B$95 -> 3.918412175e-14 | M88: =-(SUM(VMTVHT!O$19:O$20)/$D$92)*SafetyCalcs!$B$95 -> 4.030486919e-14 | N88: =-(SUM(VMTVHT!P$19:P$20)/$D$92)*SafetyCalcs!$B$95 -> 4.144993423e-14 | O88: =-(SUM(VMTVHT!Q$19:Q$20)/$D$92)*SafetyCalcs!$B$95 -> 4.261999559e-14 | P88: =-(SUM(VMTVHT!R$19:R$20)/$D$92)*SafetyCalcs!$B$95 -> 4.381574807e-14 | Q88: =-(SUM(VMTVHT!S$19:S$20)/$D$92)*SafetyCalcs!$B$95 -> 4.503790299e-14 | R88: =-(SUM(VMTVHT!T$19:T$20)/$D$92)*SafetyCalcs!$B$95 -> 4.628718854e-14 | S88: =-(SUM(VMTVHT!U$19:U$20)/$D$92)*SafetyCalcs!$B$95 -> 4.756435025e-14 | T88: =-(SUM(VMTVHT!V$19:V$20)/$D$92)*SafetyCalcs!$B$95 -> 4.887015132e-14 | U88: =-(SUM(VMTVHT!W$19:W$20)/$D$92)*SafetyCalcs!$B$95 -> 5.020537312e-14 | V88: =-(SUM(VMTVHT!X$19:X$20)/$D$92)*SafetyCalcs!$B$95 -> 5.157081559e-14 | W88: =-(SUM(VMTVHT!Y$19:Y$20)/$D$92)*SafetyCalcs!$B$95 -> 5.296729768e-14 | X88: =-(SUM(VMTVHT!Z$19:Z$20)/$D$92)*SafetyCalcs!$B$95 -> 5.439565784e-14 | Y88: =-(SUM(VMTVHT!AA$19:AA$20)/$D$92)*SafetyCalcs!$B$95 -> 5.585675445e-14 | Z88: =-(SUM(VMTVHT!AB$19:AB$20)/$D$92)*SafetyCalcs!$B$95 -> 5.735146631e-14 | AA88: =-(SUM(VMTVHT!AC$19:AC$20)/$D$92)*SafetyCalcs!$B$95 -> 5.888069315e-14 | AB88: =-(SUM(VMTVHT!AD$19:AD$20)/$D$92)*SafetyCalcs!$B$95 -> 6.044535608e-14 | AC88: =-(SUM(VMTVHT!AE$19:AE$20)/$D$92)*SafetyCalcs!$B$95 -> 6.204639816e-14 | AD88: =-(SUM(VMTVHT!AF$19:AF$20)/$D$92)*SafetyCalcs!$B$95 -> 6.368478488e-14 | AE88: =-(SUM(VMTVHT!AG$19:AG$20)/$D$92)*SafetyCalcs!$B$95 -> 6.536150472e-14
A89: Injuries | D89: =-(SUM(VMTVHT!F$19:F$20)/$D$92)*SafetyCalcs!$B$96 -> 0 | E89: =-(SUM(VMTVHT!G$19:G$20)/$D$92)*SafetyCalcs!$B$96 -> 0 | F89: =-(SUM(VMTVHT!H$19:H$20)/$D$92)*SafetyCalcs!$B$96 -> 0 | G89: =-(SUM(VMTVHT!I$19:I$20)/$D$92)*SafetyCalcs!$B$96 -> 0 | H89: =-(SUM(VMTVHT!J$19:J$20)/$D$92)*SafetyCalcs!$B$96 -> 0 | I89: =-(SUM(VMTVHT!K$19:K$20)/$D$92)*SafetyCalcs!$B$96 -> 0 | J89: =-(SUM(VMTVHT!L$19:L$20)/$D$92)*SafetyCalcs!$B$96 -> 0 | K89: =-(SUM(VMTVHT!M$19:M$20)/10^6)*SafetyCalcs!$B$96*$K$86 -> 3.385513683e-12 | L89: =-(SUM(VMTVHT!N$19:N$20)/$D$92)*SafetyCalcs!$B$96 -> 1.044909913e-13 | M89: =-(SUM(VMTVHT!O$19:O$20)/$D$92)*SafetyCalcs!$B$96 -> 1.074796512e-13 | N89: =-(SUM(VMTVHT!P$19:P$20)/$D$92)*SafetyCalcs!$B$96 -> 1.10533158e-13 | O89: =-(SUM(VMTVHT!Q$19:Q$20)/$D$92)*SafetyCalcs!$B$96 -> 1.136533216e-13 | P89: =-(SUM(VMTVHT!R$19:R$20)/$D$92)*SafetyCalcs!$B$96 -> 1.168419948e-13 | Q89: =-(SUM(VMTVHT!S$19:S$20)/$D$92)*SafetyCalcs!$B$96 -> 1.201010746e-13 | R89: =-(SUM(VMTVHT!T$19:T$20)/$D$92)*SafetyCalcs!$B$96 -> 1.234325028e-13 | S89: =-(SUM(VMTVHT!U$19:U$20)/$D$92)*SafetyCalcs!$B$96 -> 1.268382673e-13 | T89: =-(SUM(VMTVHT!V$19:V$20)/$D$92)*SafetyCalcs!$B$96 -> 1.303204035e-13 | U89: =-(SUM(VMTVHT!W$19:W$20)/$D$92)*SafetyCalcs!$B$96 -> 1.33880995e-13 | V89: =-(SUM(VMTVHT!X$19:X$20)/$D$92)*SafetyCalcs!$B$96 -> 1.375221749e-13 | W89: =-(SUM(VMTVHT!Y$19:Y$20)/$D$92)*SafetyCalcs!$B$96 -> 1.412461272e-13 | X89: =-(SUM(VMTVHT!Z$19:Z$20)/$D$92)*SafetyCalcs!$B$96 -> 1.450550876e-13 | Y89: =-(SUM(VMTVHT!AA$19:AA$20)/$D$92)*SafetyCalcs!$B$96 -> 1.489513452e-13 | Z89: =-(SUM(VMTVHT!AB$19:AB$20)/$D$92)*SafetyCalcs!$B$96 -> 1.529372435e-13 | AA89: =-(SUM(VMTVHT!AC$19:AC$20)/$D$92)*SafetyCalcs!$B$96 -> 1.570151817e-13 | AB89: =-(SUM(VMTVHT!AD$19:AD$20)/$D$92)*SafetyCalcs!$B$96 -> 1.611876162e-13 | AC89: =-(SUM(VMTVHT!AE$19:AE$20)/$D$92)*SafetyCalcs!$B$96 -> 1.654570618e-13 | AD89: =-(SUM(VMTVHT!AF$19:AF$20)/$D$92)*SafetyCalcs!$B$96 -> 1.69826093e-13 | AE89: =-(SUM(VMTVHT!AG$19:AG$20)/$D$92)*SafetyCalcs!$B$96 -> 1.742973459e-13
D92: 100000000
A93: No-Build Scenario (without the improvements) per 100M VMT
B94: 2015
A95: Fatalities | B95: =$B$100/VMTVHT!B9*365.25/SafetyCalcs!$D$92 -> 5.683621383e-11
A96: Injuries | B96: =$B$101/VMTVHT!B9*365.25/SafetyCalcs!$D$92 -> 1.515632369e-10
A98: No-Build Scenario (without the improvements)
B99: 2015
A100: Fatalities | B100: 12 | AG100: =SUM(K100:AE100) -> 0
A101: Injuries | B101: 32 | AG101: =SUM(K101:AE101) -> 0

Sheet MEC (hidden)
A1: MARGINAL EXTERNAL COSTS
B3: Marginal External Costs in CENTS OF 2000, from FHWA Cost Allocation Study
B5: Table 13. 2000 Pavement, Congestion, Crash, Air Pollution, and Noise Costs for Illustrative Vehicles Under Specific Conditions
B6: Vehicle Class/Highway Class | C6: Cents per Mile
C7: Pavement | D7: Congestion | E7: Crash | F7: Air Pollution | G7: Noise | H7: Total
B8: Autos/Rural Interstate | C8: 0 | D8: 0.78 | E8: 0.98 | F8: 1.14 | G8: 0.01 | H8: =SUM(C8:G8) -> 2.91
B9: Autos/Urban Interstate | C9: 0.1 | D9: 7.7 | E9: 1.19 | F9: 1.33 | G9: 0.09 | H9: 10.41
B10: 40 kip 4-axle S.U. Truck/Rural Interstate | C10: 1 | D10: 2.45 | E10: 0.47 | F10: 3.85 | G10: 0.09 | H10: 7.86
B11: 40 kip 4-axle S.U. Truck/Urban Interstate | C11: 3.1 | D11: 24.48 | E11: 0.86 | F11: 4.49 | G11: 1.5 | H11: 34.43
B12: 60 kip 4-axle S.U. Truck/Rural Interstate | C12: 5.6 | D12: 3.27 | E12: 0.47 | F12: 3.85 | G12: 0.11 | H12: 13.3
B13: 60 kip 4-axle S.U. Truck/Urban Interstate | C13: 18.1 | D13: 32.64 | E13: 0.86 | F13: 4.49 | G13: 1.68 | H13: 57.77
B14: 60 kip 5-axle Comb/Rural Interstate | C14: 3.3 | D14: 1.88 | E14: 0.88 | F14: 3.85 | G14: 0.17 | H14: 10.08
B15: 60 kip 5-axle Comb/Urban Interstate | C15: 10.5 | D15: 18.39 | E15: 1.15 | F15: 4.49 | G15: 2.75 | H15: 37.28
B16: 80 kip 5-axle Comb/Rural Interstate | C16: 12.7 | D16: 2.23 | E16: 0.88 | F16: 3.85 | G16: 0.19 | H16: 19.85
B17: 80 kip 5-axle Comb/Urban Interstate | C17: 40.9 | D17: 20.06 | E17: 1.15 | F17: 4.49 | G17: 3.04 | H17: 69.64
B18: Source: Addendum to the 1997 Federal Highway Cost Allocation Study Final Report, May 2000
B19: NOTE: S.U. = Single Unit, Comb. = Combination; Air pollution costs are averages of costs of travel on all rural and urban highway classes, not just Interstate. Available data do not allow differences in air pollution costs for heavy truck classes to be distinguished.
B20: http://www.fhwa.dot.gov/policy/hcas/addendum.htm
B22: Table V-22. 2000 Marginal External Costs for NOISE, cents per mile
C23: Rural Highways | F23: Urban Highways | I23: All Highways
C24: High | D24: Middle | E24: Low | F24: High | G24: Middle | H24: Low | I24: High | J24: Middle | K24: Low
B25: Automobiles | C25: 0.03 | D25: 0.01 | E25: 0 | F25: 0.3 | G25: 0.11 | H25: 0.03 | I25: 0.2 | J25: 0.06 | K25: 0.02
B26: Pickups and Vans | C26: 0.03 | D26: 0.01 | E26: 0 | F26: 0.27 | G26: 0.1 | H26: 0.03 | I26: 0.17 | J26: 0.06 | K26: 0.02
B27: Buses | C27: 0.35 | D27: 0.13 | E27: 0.04 | F27: 4.55 | G27: 1.72 | H27: 0.48 | I27: 2.79 | J27: 1.06 | K27: 0.3
B28: Single Unit Trucks | C28: 0.27 | D28: 0.1 | E28: 0.03 | F28: 3.14 | G28: 1.19 | H28: 0.33 | I28: 1.85 | J28: 0.7 | K28: 0.2
B29: Combination Trucks | C29: 0.68 | D29: 0.26 | E29: 0.07 | F29: 9.86 | G29: 3.73 | H29: 1.05 | I29: 4.24 | J29: 1.61 | K29: 0.45
B30: All Vehicles | C30: 0.08 | D30: 0.03 | E30: 0.01 | F30: 0.64 | G30: 0.24 | H30: 0.07 | I30: 0.42 | J30: 0.16 | K30: 0.05 | M30: =SUMPRODUCT(D25:D29,$F$77:$F$81)/D30 -> 0.7946428494 | N30: =SUMPRODUCT(G25:G29,$F$77:$F$81)/G30 -> 1.25278694 | O30: =SUMPRODUCT(J25:J29,$F$77:$F$81)/J30 -> 0.9314848989
B32: Table V-23. 2000 Marginal External Costs for CONGESTION, cents per mile
C33: Rural Highways | F33: Urban Highways | I33: All Highways
C34: High | D34: Middle | E34: Low | F34: High | G34: Middle | H34: Low | I34: High | J34: Middle | K34: Low
B35: Automobiles | C35: 3.76 | D35: 1.28 | E35: 0.34 | F35: 18.27 | G35: 6.21 | H35: 1.64 | I35: 13.17 | J35: 4.48 | K35: 1.19
B36: Pickups and Vans | C36: 3.8 | D36: 1.29 | E36: 0.34 | F36: 17.78 | G36: 6.04 | H36: 1.6 | I36: 11.75 | J36: 4 | K36: 1.06
B37: Buses | C37: 6.96 | D37: 2.37 | E37: 0.63 | F37: 37.59 | G37: 12.78 | H37: 3.38 | I37: 24.79 | J37: 8.43 | K37: 2.23
B38: Single Unit Trucks | C38: 7.43 | D38: 2.53 | E38: 0.67 | F38: 42.65 | G38: 14.5 | H38: 3.84 | I38: 26.81 | J38: 9.11 | K38: 2.41
B39: Combination Trucks | C39: 10.87 | D39: 3.7 | E39: 0.98 | F39: 49.34 | G39: 16.78 | H39: 4.44 | I39: 25.81 | J39: 8.78 | K39: 2.32
B40: All Vehicles | C40: 4.4 | D40: 1.5 | E40: 0.4 | F40: 19.72 | G40: 6.71 | H40: 1.78 | I40: 13.81 | J40: 4.7 | K40: 1.24 | M40: =SUMPRODUCT(D35:D39,$F$77:$F$81)/D40 -> 0.951962762 | N40: =SUMPRODUCT(G35:G39,$F$77:$F$81)/G40 -> 1.027635437 | O40: =SUMPRODUCT(J35:J39,$F$77:$F$81)/J40 -> 0.9998096062
B42: Table V-24. 2000 Marginal External Costs for CRASHES, cents per mile
C43: Rural Highways | F43: Urban Highways | I43: All Highways
C44: High | D44: Middle | E44: Low | F44: High | G44: Middle | H44: Low | I44: High | J44: Middle | K44: Low
B45: Automobiles | C45: 9.68 | D45: 3.15 | E45: 1.76 | F45: 4.03 | G45: 1.28 | H45: 0.78 | I45: 6.02 | J45: 1.94 | K45: 1.13
B46: Pickups and Vans | C46: 10.21 | D46: 3.31 | E46: 1.75 | F46: 4.05 | G46: 1.27 | H46: 0.74 | I46: 6.7 | J46: 2.15 | K46: 1.17
B47: Buses | C47: 14.15 | D47: 4.4 | E47: 2.36 | F47: 6.25 | G47: 1.89 | H47: 1.08 | I47: 9.55 | J47: 2.94 | K47: 1.62
B48: Single Unit Trucks | C48: 5.97 | D48: 2 | E48: 0.97 | F48: 2.21 | G48: 0.71 | H48: 0.4 | I48: 3.9 | J48: 1.29 | K48: 0.65
B49: Combination Trucks | C49: 6.9 | D49: 2.2 | E49: 1.02 | F49: 3.67 | G49: 1.16 | H49: 0.56 | I49: 5.65 | J49: 1.79 | K49: 0.84
B50: All Vehicles | C50: 9.52 | D50: 3.09 | E50: 1.68 | F50: 3.98 | G50: 1.26 | H50: 0.76 | I50: 6.12 | J50: 1.97 | K50: 1.11 | M50: =SUMPRODUCT(D45:D49,$F$77:$F$81)/D50 -> 1.00870606 | N50: =SUMPRODUCT(G45:G49,$F$77:$F$81)/G50 -> 0.9971790219 | O50: =SUMPRODUCT(J45:J49,$F$77:$F$81)/J50 -> 0.9991934763
B51: Source: Federal Highway Administration, 1997 Federal Highway Cost Allocation Study, Tables V-22, V-23, and V-24
B52: http://www.fhwa.dot.gov/policy/hcas/final/index.htm
B54: DERIVED FROM TABLE 13. 2000 Marginal External Costs for AIR POLLUTION, cents per mile
C55: Rural Highways | F55: Urban Highways | I55: All Highways (simple average)
C56: High | D56: Middle | E56: Low | F56: High | G56: Middle | H56: Low | I56: High | J56: Middle | K56: Low
B57: Automobiles | D57: =F8 -> 1.14 | G57: =F9 -> 1.33 | J57: =AVERAGE(D57,G57) -> 1.235
B58: Pickups and Vans* | D58: =F8 -> 1.14 | G58: =F9 -> 1.33 | J58: =AVERAGE(D58,G58) -> 1.235
B59: Buses** | D59: =F12 -> 3.85 | G59: =F13 -> 4.49 | J59: =AVERAGE(D59,G59) -> 4.17
B60: Single Unit Trucks | D60: =AVERAGE(F10,F12) -> 3.85 | G60: =AVERAGE(F11,F13) -> 4.49 | J60: =AVERAGE(D60,G60) -> 4.17
B61: Combination Trucks | D61: =AVERAGE(F14,F16) -> 3.85 | G61: =AVERAGE(F15,F17) -> 4.49 | J61: =AVERAGE(D61,G61) -> 4.17
B62: All Vehicles*** | D62: =SUMPRODUCT(D57:D61,$F$77:$F$81) -> 1.347422498 | G62: =SUMPRODUCT(G57:G61,$F$77:$F$81) -> 1.571865349 | J62: =SUMPRODUCT(J57:J61,$F$77:$F$81) -> 1.459643923
B64: DERIVED FROM TABLE 13. 2000 Marginal External Costs for PAVEMENT MAINTENANCE, cents per mile
C65: Rural Highways | F65: Urban Highways | I65: All Highways (simple average)
C66: High | D66: Middle | E66: Low | F66: High | G66: Middle | H66: Low | I66: High | J66: Middle | K66: Low
B67: Automobiles | D67: =C8 -> 0 | G67: =C9 -> 0.1 | J67: =AVERAGE(D67,G67) -> 0.05
B68: Pickups and Vans* | D68: =C8 -> 0 | G68: =C9 -> 0.1 | J68: =AVERAGE(D68,G68) -> 0.05
B69: Buses** | D69: =C12 -> 5.6 | G69: =C13 -> 18.1 | J69: =AVERAGE(D69,G69) -> 11.85
B70: Single Unit Trucks | D70: =AVERAGE(C10,C12) -> 3.3 | G70: =AVERAGE(C11,C13) -> 10.6 | J70: =AVERAGE(D70,G70) -> 6.95
B71: Combination Trucks | D71: =AVERAGE(C14,C16) -> 8 | G71: =AVERAGE(C15,C17) -> 25.7 | J71: =AVERAGE(D71,G71) -> 16.85
B72: All Vehicles*** | D72: =SUMPRODUCT(D67:D71,$F$77:$F$81) -> 0.4606538981 | G72: =SUMPRODUCT(G67:G71,$F$77:$F$81) -> 1.572460145 | J72: =SUMPRODUCT(J67:J71,$F$77:$F$81) -> 1.016557022
B73: Notes: * Set equal to Automobiles; ** Set equal to 60 kip 4-axle Trucks; *** Weighted average, where weights = 2000 VMT distribution by vehicle type
B75: Table II-11. Trends and Projections of VMT by Vehicle Class (millions)
C76: 1990 | D76: 1994 | E76: 2000 | F76: 2000 perc.
B77: Autos | C77: 1997283 | D77: 1595869 | E77: 1818461 | F77: =E77/$E$82 -> 0.6750429219
B78: Pickups and Vans | D78: 587284 | E78: 669198 | F78: 0.2484174108
B79: Buses | C79: 5822 | D79: 6416 | E79: 7397 | F79: 0.00274588924
B80: Single Unit Trucks | C80: 64114 | D80: 71239 | E80: 83150 | F80: 0.03086666085
B81: Combination Trucks | C81: 89257 | D81: 99176 | E81: 115639 | F81: 0.04292711719
B82: TOTAL | C82: =SUM(C77:C81) -> 2156476 | D82: =SUM(D77:D81) -> 2359984 | E82: =SUM(E77:E81) -> 2693845 | F82: 1
B83: Source: Federal Highway Administration, 1997 Federal Highway Cost Allocation Study, Table II-11
B85: Marginal External Costs in DOLLARS OF 2015, Middle Estimates
N86: IN USE
D87: UNITS | E87: IN DOLLARS OF | F87: RURAL | G87: URBAN | H87: ALL HIGHWAYS | K87: RURAL | L87: URBAN | M87: ALL HIGHWAYS | N87: RURAL | O87: URBAN
B88: External Costs of Additional AUTOMOBILE Use | J88: AUTOMOBILE & LIGHT-TRUCKS
C89: Noise | D89: $ per vmt | E89: =$C$121 -> 2020 | F89: =$D$25*$D$122/100 -> 0.000150296748 | G89: =$G$25*$D$122/100 -> 0.001653264228 | H89: =$J$25*$D$122/100 -> 0.0009017804878 | J89: =C89 -> Noise | K89: =(F89*$F$77+F95*$F$78)/SUM($F$77:$F$78) -> 0.000150296748 | L89: 0.001612833331 | M89: 0.0009017804878 | N89: =K89 -> 0.000150296748 | O89: 0.001612833331 | P89: *
C90: Congestion | D90: $ per vmt | E90: =$C$121 -> 2020 | F90: =$D$35*$D$122/100 -> 0.01923798374 | G90: =$G$35*$D$122/100 -> 0.09333428049 | H90: =$J$35*$D$122/100 -> 0.06733294309 | J90: =C90 -> Congestion | K90: 0.01927841464 | L90: 0.09264695525 | M90: 0.06539226007 | N90: 0.01927841464 | O90: 0.09264695525
C91: Accidents | D91: $ per vmt | E91: =$C$121 -> 2020 | F91: =$D$45*$D$122/100 -> 0.04734347561 | G91: =$G$45*$D$122/100 -> 0.01923798374 | H91: =$J$45*$D$122/100 -> 0.02915756911 | J91: =C91 -> Accidents | K91: 0.04799036995 | L91: 0.01919755284 | M91: 0.03000661793 | N91: 0.04799036995 | O91: 0.01919755284
C92: Air Pollution | D92: $ per vmt | E92: =$C$121 -> 2020 | F92: =D57*$D$122/100 -> 0.01713382927 | G92: =G57*$D$122/100 -> 0.01998946748 | H92: =J57*$D$122/100 -> 0.01856164837 | J92: =C92 -> Air Pollution | K92: 0.01713382927 | L92: 0.01998946748 | M92: 0.01856164837 | N92: 0.01713382927 | O92: 0.01998946748
C93: Pavement | D93: $ per vmt | E93: =$C$121 -> 2020 | F93: =D67*$D$122/100 -> 0 | G93: =G67*$D$122/100 -> 0.00150296748 | H93: =J67*$D$122/100 -> 0.0007514837398 | J93: =C93 -> Pavement | K93: 0 | L93: 0.00150296748 | M93: 0.0007514837398 | N93: 0 | O93: 0.00150296748 | P93: *
B94: External Costs of Additional LIGHT-TRUCK Use | J94: BUSES
C95: Noise | D95: $ per vmt | E95: =$C$121 -> 2020 | F95: =$D$26*$D$122/100 -> 0.000150296748 | G95: =$G$26*$D$122/100 -> 0.00150296748 | H95: =$J$26*$D$122/100 -> 0.0009017804878 | J95: =C95 -> Noise | K95: =F101 -> 0.001953857724 | L95: 0.02585104065 | M95: 0.01593145528 | N95: =K95 -> 0.001953857724 | O95: 0.02585104065
C96: Congestion | D96: $ per vmt | E96: =$C$121 -> 2020 | F96: =$D$36*$D$122/100 -> 0.01938828049 | G96: =$G$36*$D$122/100 -> 0.09077923577 | H96: =$J$36*$D$122/100 -> 0.06011869919 | J96: =C96 -> Congestion | K96: 0.03562032927 | L96: 0.1920792439 | M96: 0.1267001585 | N96: 0.03562032927 | O96: 0.1920792439
C97: Accidents | D97: $ per vmt | E97: =$C$121 -> 2020 | F97: =$D$46*$D$122/100 -> 0.04974822358 | G97: =$G$46*$D$122/100 -> 0.01908768699 | H97: =$J$46*$D$122/100 -> 0.03231380081 | J97: =C97 -> Accidents | K97: 0.06613056911 | L97: 0.02840608537 | M97: 0.0441872439 | N97: 0.06613056911 | O97: 0.02840608537
C98: Air Pollution | D98: $ per vmt | E98: =$C$121 -> 2020 | F98: =D58*$D$122/100 -> 0.01713382927 | G98: =G58*$D$122/100 -> 0.01998946748 | H98: =J58*$D$122/100 -> 0.01856164837 | J98: =C98 -> Air Pollution | K98: 0.05786424797 | L98: 0.06748323984 | M98: 0.0626737439 | N98: 0.05786424797 | O98: 0.06748323984
C99: Pavement | D99: $ per vmt | E99: =$C$121 -> 2020 | F99: =D68*$D$122/100 -> 0 | G99: =G68*$D$122/100 -> 0.00150296748 | H99: =J68*$D$122/100 -> 0.0007514837398 | J99: =C99 -> Pavement | K99: 0.08416617886 | L99: 0.2720371138 | M99: 0.1781016463 | N99: 0.08416617886 | O99: 0.2720371138
B100: External Costs of Additional BUS Use | J100: TRUCKS - WEIGHTED AVERAGE
C101: Noise | D101: $ per vmt | E101: =$C$121 -> 2020 | F101: =D27*$D$122/100 -> 0.001953857724 | G101: =G27*$D$122/100 -> 0.02585104065 | H101: =J27*$D$122/100 -> 0.01593145528 | J101: =C101 -> Noise | K101: =(F107*$F$80+F113*$F$81)/SUM($F$80,$F$81) -> 0.00290185097 | L101: 0.04009258842 | M101: 0.01847692221 | N101: =K101 -> 0.00290185097 | O101: 0.04009258842 | P101: *
C102: Congestion | D102: $ per vmt | E102: =$C$121 -> 2020 | F102: =D37*$D$122/100 -> 0.03562032927 | G102: =G37*$D$122/100 -> 0.1920792439 | H102: =J37*$D$122/100 -> 0.1267001585 | J102: =C102 -> Congestion | K102: 0.04825441276 | L102: 0.2378643743 | M102: 0.1340351402 | N102: 0.04825441276 | O102: 0.2378643743 | P102: *
C103: Accidents | D103: $ per vmt | E103: =$C$121 -> 2020 | F103: =D47*$D$122/100 -> 0.06613056911 | G103: =G47*$D$122/100 -> 0.02840608537 | H103: =J47*$D$122/100 -> 0.0441872439 | J103: =C103 -> Accidents | K103: 0.03180795396 | L103: 0.01460542892 | M103: 0.0237597914 | N103: 0.03180795396 | O103: 0.01460542892
C104: Air Pollution | D104: $ per vmt | E104: =$C$121 -> 2020 | F104: =D59*$D$122/100 -> 0.05786424797 | G104: =G59*$D$122/100 -> 0.06748323984 | H104: =J59*$D$122/100 -> 0.0626737439 | J104: =C104 -> Air Pollution | K104: 0.05786424797 | L104: 0.06748323984 | M104: 0.0626737439 | N104: 0.05786424797 | O104: 0.06748323984
C105: Pavement | D105: $ per vmt | E105: =$C$121 -> 2020 | F105: =D69*$D$122/100 -> 0.08416617886 | G105: =G69*$D$122/100 -> 0.2720371138 | H105: =J69*$D$122/100 -> 0.1781016463 | J105: =C105 -> Pavement | K105: 0.09069012937 | L105: 0.2913341823 | M105: 0.1910121558 | N105: 0.09069012937 | O105: 0.2913341823 | P105: *
B106: External Costs of Additional SINGLE UNIT TRUCK Use
C107: Noise | D107: $ per vmt | E107: =$C$121 -> 2020 | F107: =$D$28*$D$122/100 -> 0.00150296748 | G107: =$G$28*$D$122/100 -> 0.01788531301 | H107: =$J$28*$D$122/100 -> 0.01052077236
C108: Congestion | D108: $ per vmt | E108: =$C$121 -> 2020 | F108: =$D$38*$D$122/100 -> 0.03802507724 | G108: =$G$38*$D$122/100 -> 0.2179302846 | H108: =$J$38*$D$122/100 -> 0.1369203374
C109: Accidents | D109: $ per vmt | E109: =$C$121 -> 2020 | F109: =$D$48*$D$122/100 -> 0.03005934959 | G109: =$G$48*$D$122/100 -> 0.01067106911 | H109: =$J$48*$D$122/100 -> 0.01938828049
C110: Air Pollution | D110: $ per vmt | E110: =$C$121 -> 2020 | F110: =D60*$D$122/100 -> 0.05786424797 | G110: =G60*$D$122/100 -> 0.06748323984 | H110: =J60*$D$122/100 -> 0.0626737439
C111: Pavement | D111: $ per vmt | E111: =$C$121 -> 2020 | F111: =D70*$D$122/100 -> 0.04959792683 | G111: =G70*$D$122/100 -> 0.1593145528 | H111: =J70*$D$122/100 -> 0.1044562398
B112: External Costs of Additional COMBINATION TRUCK Use
C113: Noise | D113: $ per vmt | E113: =$C$121 -> 2020 | F113: =$D$29*$D$122/100 -> 0.003907715447 | G113: =$G$29*$D$122/100 -> 0.05606068699 | H113: =$J$29*$D$122/100 -> 0.02419777642
C114: Congestion | D114: $ per vmt | E114: =$C$121 -> 2020 | F114: =$D$39*$D$122/100 -> 0.05560979675 | G114: =$G$39*$D$122/100 -> 0.2521979431 | H114: =$J$39*$D$122/100 -> 0.1319605447
C115: Accidents | D115: $ per vmt | E115: =$C$121 -> 2020 | F115: =$D$49*$D$122/100 -> 0.03306528455 | G115: =$G$49*$D$122/100 -> 0.01743442276 | H115: =$J$49*$D$122/100 -> 0.02690311789
C116: Air Pollution | D116: $ per vmt | E116: =$C$121 -> 2020 | F116: =D61*$D$122/100 -> 0.05786424797 | G116: =G61*$D$122/100 -> 0.06748323984 | H116: =J61*$D$122/100 -> 0.0626737439
C117: Pavement | D117: $ per vmt | E117: =$C$121 -> 2020 | F117: =D71*$D$122/100 -> 0.1202373984 | G117: =G71*$D$122/100 -> 0.3862626423 | H117: =J71*$D$122/100 -> 0.2532500203
B119: Consumer Price Index (CPI), annual average
C120: 2000 | D120: =HLOOKUP(C120,PriceIndices!$B$2:$AC$5,4,FALSE) -> 172.2
C121: =Parameters!$B$6 -> 2020 | D121: =HLOOKUP(C121,PriceIndices!$B$2:$AF$5,4,FALSE) -> 258.811
B122: Inflation Adjustment | D122: =D121/D120 -> 1.50296748
A125: Unit Values for Marginal Costs of Noise Pollution, in EURO CENTS PER VEHICLE KILOMETER (2000) | H125: in US DOLLARS PER VEHICLE MILES TRAVELED, AT 2000 EXCHANGE RATE
H127: 0.923498 | I127: EUR/US Dollars in 2000 | K127: http://www.canadianforex.ca/forex-tools/historical-rate-tools/yearly-average-rates
H128: 1.60934 | I128: km/mile | L128: 2000 | M128: =Parameters!$B$6 -> 2020
H129: =M129/L129 -> 1.50296748 | I129: Price adjustment | K129: CPI | L129: =HLOOKUP(L128,PriceIndices!$B$2:$AC$5,4,FALSE) -> 172.2 | M129: =HLOOKUP(M128,PriceIndices!$B$2:$AF$5,4,FALSE) -> 258.811
C131: Time of day | D131: Urban | E131: Suburban | F131: Rural | H131: =D131 -> Urban | I131: =E131 -> Suburban | J131: Rural
B132: Car | C132: Day | D132: 0.76 | E132: 0.12 | F132: 0.01 | H132: =D132*$H$127*$H$128*$H$129/100 -> 0.01697645243 | I132: =E132*$H$127*$H$128*$H$129/100 -> 0.00268049249 | J132: =F132*$H$127*$H$128*$H$129/100 -> 0.0002233743741
D133: (0.76 – 1.85) | E133: (0.04 – 0.12) | F133: (0.01 – 0.014)
C134: Night | D134: 1.39 | E134: 0.22 | F134: 0.03 | H134: =D134*$H$127*$H$128*$H$129/100 -> 0.031049038 | I134: =E134*$H$127*$H$128*$H$129/100 -> 0.004914236231 | J134: =F134*$H$127*$H$128*$H$129/100 -> 0.0006701231224
D135: (1.39 – 3.37) | E135: (0.08 – 0.22) | F135: 0.01 – 0.03
B136: MC | C136: Day | D136: 1.53 | E136: 0.24 | F136: 0.03 | H136: =D136*$H$127*$H$128*$H$129/100 -> 0.03417627924 | I136: =E136*$H$127*$H$128*$H$129/100 -> 0.005360984979 | J136: =F136*$H$127*$H$128*$H$129/100 -> 0.0006701231224
D137: (1.53 – 3.70) | E137: (0.09 – 0.24) | F137: (0.01 – 0.03)
C138: Night | D138: 2.78 | E138: 0.44 | F138: 0.05 | H138: =D138*$H$127*$H$128*$H$129/100 -> 0.06209807601 | I138: =E138*$H$127*$H$128*$H$129/100 -> 0.009828472462 | J138: =F138*$H$127*$H$128*$H$129/100 -> 0.001116871871
D139: (2.78 – 6.74) | E139: (0.16 – 0.44) | F139: (0.02 – 0.05)
B140: Bus | C140: Day | D140: 3.81 | E140: 0.59 | F140: 0.07 | H140: =D140*$H$127*$H$128*$H$129/100 -> 0.08510563655 | I140: =E140*$H$127*$H$128*$H$129/100 -> 0.01317908807 | J140: =F140*$H$127*$H$128*$H$129/100 -> 0.001563620619
D141: (3.81 – 9.25) | E141: (0.21 – 0.59) | F141: (0.03 – 0.07)
C142: Night | D142: 6.95 | E142: 1.1 | F142: 0.13 | H142: =D142*$H$127*$H$128*$H$129/100 -> 0.15524519 | I142: =E142*$H$127*$H$128*$H$129/100 -> 0.02457118115 | J142: =F142*$H$127*$H$128*$H$129/100 -> 0.002903866864
D143: (6.95 – 16.84) | E143: (0.39 – 1.10) | F143: (0.06 – 0.13)
B144: LGV | C144: Day | D144: 3.81 | E144: 0.59 | F144: 0.07 | H144: =D144*$H$127*$H$128*$H$129/100 -> 0.08510563655 | I144: =E144*$H$127*$H$128*$H$129/100 -> 0.01317908807 | J144: =F144*$H$127*$H$128*$H$129/100 -> 0.001563620619
D145: (3.81 – 9.25) | E145: (0.21 – 0.59) | F145: (0.03 – 0.07)
C146: Night | D146: 6.95 | E146: 1.1 | F146: 0.13 | H146: =D146*$H$127*$H$128*$H$129/100 -> 0.15524519 | I146: =E146*$H$127*$H$128*$H$129/100 -> 0.02457118115 | J146: =F146*$H$127*$H$128*$H$129/100 -> 0.002903866864
D147: (6.95 – 16.84) | E147: (0.39 – 1.10) | F147: (0.06 - 0.13)
B148: HGV | C148: Day | D148: 7.01 | E148: 1.1 | F148: 0.13 | H148: =D148*$H$127*$H$128*$H$129/100 -> 0.1565854363 | I148: =E148*$H$127*$H$128*$H$129/100 -> 0.02457118115 | J148: =F148*$H$127*$H$128*$H$129/100 -> 0.002903866864
D149: (7.01 – 17.00) | E149: 0.39 – 1.10 | F149: (0.06 – 0.13)
C150: Night | D150: 12.78 | E150: 2 | F150: 0.23 | H150: =D150*$H$127*$H$128*$H$129/100 -> 0.2854724501 | I150: =E150*$H$127*$H$128*$H$129/100 -> 0.04467487483 | J150: =F150*$H$127*$H$128*$H$129/100 -> 0.005137610605
D151: (12.78-30.98) | E151: 0.72 – 2.00 | F151: (0.11 – 0.23)
B152: Passenger Train | C152: Day | D152: 23.65 | E152: 20.61 | F152: 2.57 | H152: =D152*$H$127*$H$128*$H$129/100 -> 0.5282803948 | I152: =E152*$H$127*$H$128*$H$129/100 -> 0.4603745851 | J152: =F152*$H$127*$H$128*$H$129/100 -> 0.05740721415
D153: (23.65 – 46.73) | E153: 10.43 – 20.61 | F153: (1.30 – 2.57)
C154: Night | D154: 77.99 | E154: 34.4 | F154: 4.29 | H154: =D154*$H$127*$H$128*$H$129/100 -> 1.742096744 | I154: 0.768407847 | J154: 0.0958276065
B155: Freight Train | C155: Day | D155: 41.93 | E155: 40.06 | F155: 5 | H155: 0.9366087508 | I155: 0.8948377428 | J155: 0.1116871871
D156: (41.93 – 101.17) | E156: 20.68 – 40.06 | F156: (2.58 – 5.00)
C157: Night | D157: 171.06 | E157: 67.71 | F157: 8.45 | H157: =D157*$H$127*$H$128*$H$129/100 -> 3.821042044 | I157: =E157*$H$127*$H$128*$H$129/100 -> 1.512467887 | J157: =F157*$H$127*$H$128*$H$129/100 -> 0.1887513461
B158: Source: CE DEFT, Handbook on estimation of external cost in the transport sector, page 69
A161: Estimates of Noise Damage Costs by Mode
C162: Freight Rail | D162: Truck | F162: 2006 | G162: =HLOOKUP(F162,PriceIndices!$B$2:$AC$5,4,FALSE) -> 201.5916667
B163: $ per ton-mile, $2006 | C163: =0.05/100 -> 0.0005 | D163: =0.05/100 -> 0.0005 | F163: =Parameters!$B$6 -> 2020 | G163: =HLOOKUP(F163,PriceIndices!$B$2:$AF$5,4,FALSE) -> 258.811
B164: $ per ton-mile, $2016 | C164: =C163*$F$164 -> 0.0006419188955 | D164: =D163*$F$164 -> 0.0006419188955 | F164: =G163/G162 -> 1.283837791 | G164: Price adjustment
B166: Sources: | C166: Delucchi Mark et al., External Costs of Transport in the U.S., Handbook of Transport Economics, Edward Elgar Publishing Ltd., 2010, page 18
C167: Forkenbrock, David J., External costs of intercity truck freight transportation, Transportation Research Part A, 33, 505-526, 1999
C168: Forkenbrock, David J., Comparison of external costs of rail and truck freight transportation, Transport Research Part A, 35, 321-337, 2001
B169: Notes -- from Delucchi et al. | C169: Forkenbrock (2001) looked at the external costs of freight rail in rural areas in US. He argued that in sparsely settled rural areas, exposure to rail noise is similar to exposure to noise from trucks operating on highways, and that both are small.
C170: Accordingly, he assumed for rail noise the same cost per ton-mile he estimated for trucks in Forkenbrock (1999, p. 518).

Sheet FloodingEvents
A1: Flooding Events
B4: Future Flooding Events (Avg. Annual, Days of Road Closure) | C4: =C14 -> 1.1
B7: History
B9: Flooding Event | C9: Days of Road Closure
B10: September 2021 | C10: 3
B11: September 2017 (Hurricane Irma) | C11: 2.5
B13: Average Annual
B14: 5-year | C14: =SUM(C10:C11)/5 -> 1.1

Sheet PriceIndices
A1: PRICE INDICES & COST ESCALATION
B2: 1990 | C2: 1991 | D2: 1992 | E2: 1993 | F2: 1994 | G2: 1995 | H2: 1996 | I2: 1997 | J2: 1998 | K2: 1999 | L2: 2000 | M2: 2001 | N2: 2002 | O2: 2003 | P2: 2004 | Q2: 2005 | R2: 2006 | S2: 2007 | T2: 2008 | U2: 2009 | V2: 2010 | W2: 2011 | X2: 2012 | Y2: 2013 | Z2: 2014 | AA2: 2015 | AB2: 2016 | AC2: 2017 | AD2: 2018 | AE2: 2019 | AF2: 2020 | AG2: 2021
A3: Updated March 2022
A5: CPI - All Urban Consumers, U.S. City Average, All Items, ANNUAL AVERAGE, CUUR0000SA0 | B5: 130.6583333 | C5: 136.1916667 | D5: 140.3166667 | E5: 144.4583333 | F5: 148.225 | G5: 152.3833333 | H5: 156.85 | I5: 160.5166667 | J5: 163.0083333 | K5: 166.575 | L5: 172.2 | M5: 177.0666667 | N5: 179.875 | O5: 183.9583333 | P5: 188.8833333 | Q5: 195.2916667 | R5: 201.5916667 | S5: 207.3424167 | T5: 215.3025 | U5: 214.537 | V5: 218.0555 | W5: 224.9391667 | X5: 229.5939167 | Y5: 232.9570833 | Z5: 236.7361667 | AA5: 237.017 | AB5: 240.007 | AC5: 245.12 | AD5: 251.107 | AE5: 255.657 | AF5: 258.811 | AG5: 270.97
A6: http://www.bls.gov/data/ | B6: n/a | C6: =C5/B5-1 -> 0.04234963965 | D6: =D5/C5-1 -> 0.03028819678 | E6: =E5/D5-1 -> 0.02951656966 | F6: =F5/E5-1 -> 0.02607441592 | G6: =G5/F5-1 -> 0.02805419689 | H6: =H5/G5-1 -> 0.029312042 | I6: =I5/H5-1 -> 0.02337689937 | J6: =J5/I5-1 -> 0.01552279099 | K6: =K5/J5-1 -> 0.02188027197 | L6: =L5/K5-1 -> 0.03376857271 | M6: =M5/L5-1 -> 0.02826171119 | N6: =N5/M5-1 -> 0.01586031627 | O6: =O5/N5-1 -> 0.02270094973 | P6: =P5/O5-1 -> 0.02677236693 | Q6: =Q5/P5-1 -> 0.03392746845 | R6: =R5/Q5-1 -> 0.03225944101 | S6: =S5/R5-1 -> 0.02852672482 | T6: =T5/S5-1 -> 0.03839100297 | U6: =U5/T5-1 -> -0.003555462663 | V6: =V5/U5-1 -> 0.01640043442 | W6: =W5/V5-1 -> 0.03156841569 | X6: =X5/W5-1 -> 0.02069337265 | Y6: =Y5/X5-1 -> 0.01464832656 | Z6: =Z5/Y5-1 -> 0.01622222977 | AA6: =AA5/Z5-1 -> 0.001186271356 | AB6: =AB5/AA5-1 -> 0.01261512887 | AC6: =AC5/AB5-1 -> 0.02130354531 | AD6: 0.02442477154 | AE6: 0.01811976568 | AF6: 0.01233684194 | AG6: 0.04698022882
A9: Table 1.1.9. Implicit Price Deflators for Gross Domestic Product
A10: Index numbers, 2012=100
A11: BEA
A12: Last Revised on: December 22, 2021
A13: Gross domestic product | B13: 63.671 | C13: 65.825 | D13: 67.325 | E13: 68.92 | F13: 70.392 | G13: 71.868 | H13: 73.183 | I13: 74.445 | J13: 75.283 | K13: 76.37 | L13: 78.078 | M13: 79.79 | N13: 81.052 | O13: 82.557 | P13: 84.78 | Q13: 87.421 | R13: 90.066 | S13: 92.486 | T13: 94.285 | U13: 95.004 | V13: 96.111 | W13: 98.118 | X13: 100 | Y13: 101.751 | Z13: 103.654 | AA13: 104.691 | AB13: 105.74 | AC13: 107.747 | AD13: 110.321 | AE13: 112.294 | AF13: 113.648 | AG13: 118.371
A14: Personal consumption expenditures | B14: 63.355 | C14: 65.473 | D14: 67.218 | E14: 68.892 | F14: 70.33 | G14: 71.811 | H14: 73.346 | I14: 74.623 | J14: 75.216 | K14: 76.338 | L14: 78.235 | M14: 79.738 | N14: 80.789 | O14: 82.358 | P14: 84.411 | Q14: 86.812 | R14: 89.174 | S14: 91.438 | T14: 94.18 | U14: 94.094 | V14: 95.705 | W14: 98.131 | X14: 100 | Y14: 101.354 | Z14: 102.887 | AA14: 103.116 | AB14: 104.148 | AC14: 106.051 | AD14: 108.318 | AE14: 109.922 | AF14: 111.225 | AG14: 115.536
A15: Goods | B15: 81.927 | C15: 83.93 | D15: 84.943 | E15: 85.681 | F15: 86.552 | G15: 87.361 | H15: 88.321 | I15: 88.219 | J15: 86.893 | K15: 87.349 | L15: 89.082 | M15: 89.015 | N15: 88.166 | O15: 88.054 | P15: 89.292 | Q15: 91.084 | R15: 92.306 | S15: 93.331 | T15: 96.122 | U15: 93.812 | V15: 95.183 | W15: 98.773 | X15: 100 | Y15: 99.407 | Z15: 98.92 | AA15: 95.896 | AB15: 94.332 | AC15: 94.615 | AD15: 95.281 | AE15: 94.832 | AF15: 94.16 | AG15: 98.876
A16: Durable goods | B16: 131.935 | C16: 133.868 | D16: 134.793 | E16: 136.12 | F16: 138.784 | G16: 139.797 | H16: 138.386 | I16: 135.364 | J16: 131.538 | K16: 127.994 | L16: 125.717 | M16: 123.254 | N16: 120.143 | O16: 115.752 | P16: 113.488 | Q16: 112.309 | R16: 110.388 | S16: 108.038 | T16: 106.012 | U16: 104.02 | V16: 102.107 | W16: 101.28 | X16: 100 | Y16: 97.968 | Z16: 95.429 | AA16: 93.358 | AB16: 91.141 | AC16: 89.05 | AD16: 87.544 | AE16: 86.488 | AF16: 85.784 | AG16: 91.069
A17: Nondurable goods | B17: 63.112 | C17: 64.955 | D17: 65.898 | E17: 66.434 | F17: 66.788 | G17: 67.486 | H17: 69.014 | I17: 69.735 | J17: 69.223 | K17: 70.943 | L17: 73.99 | M17: 74.776 | N17: 74.781 | O17: 76.327 | P17: 78.97 | Q17: 81.998 | R17: 84.553 | S17: 87.041 | T17: 91.904 | U17: 89.467 | V17: 92.182 | W17: 97.652 | X17: 100 | Y17: 100.082 | Z17: 100.599 | AA17: 97.092 | AB17: 95.876 | AC17: 97.451 | AD17: 99.343 | AE17: 99.249 | AF17: 98.602 | AG17: 102.852
A18: Services | B18: 54.846 | C18: 56.992 | D18: 59.018 | E18: 61.059 | F18: 62.719 | G18: 64.471 | H18: 66.24 | I18: 68.107 | J18: 69.549 | K18: 70.97 | L18: 72.938 | M18: 75.171 | N18: 77.123 | O18: 79.506 | P18: 81.965 | Q18: 84.673 | R18: 87.616 | S18: 90.516 | T18: 93.235 | U18: 94.231 | V18: 95.957 | W18: 97.814 | X18: 100 | Y18: 102.322 | Z18: 104.88 | AA18: 106.796 | AB18: 109.197 | AC18: 111.965 | AD18: 115.1 | AE18: 117.836 | AF18: 120.302 | AG18: 124.241
A19: Gross private domestic investment | B19: 81.228 | C19: 82.684 | D19: 82.672 | E19: 83.641 | F19: 84.908 | G19: 86.263 | H19: 86.227 | I19: 86.239 | J19: 85.706 | K19: 85.826 | L19: 86.862 | M19: 87.367 | N19: 87.927 | O19: 88.503 | P19: 91.157 | Q19: 94.913 | R19: 98.13 | S19: 99.585 | T19: 100.597 | U19: 99.366 | V19: 97.699 | W19: 98.748 | X19: 100 | Y19: 100.876 | Z19: 102.872 | AA19: 103.697 | AB19: 103.726 | AC19: 105.258 | AD19: 107.156 | AE19: 108.991 | AF19: 109.698 | AG19: 113.184
A20: Fixed investment | B20: 80.278 | C20: 81.683 | D20: 81.728 | E20: 82.711 | F20: 83.983 | G20: 85.378 | H20: 85.45 | I20: 85.599 | J20: 85.133 | K20: 85.277 | L20: 86.486 | M20: 87.241 | N20: 87.5 | O20: 88.265 | P20: 90.843 | Q20: 94.597 | R20: 97.958 | S20: 99.456 | T20: 100.296 | U20: 99.076 | V20: 97.568 | W20: 98.641 | X20: 100 | Y20: 101.091 | Z20: 103.172 | AA20: 104.075 | AB20: 104.202 | AC20: 105.928 | AD20: 107.925 | AE20: 109.684 | AF20: 111.052 | AG20: 115.384
A21: Nonresidential | B21: 92.516 | C21: 94.267 | D21: 93.96 | E21: 94.161 | F21: 94.904 | G21: 95.849 | H21: 95.267 | I21: 94.735 | J21: 93.248 | K21: 92.314 | L21: 92.718 | M21: 92.346 | N21: 91.863 | O21: 91.156 | P21: 92.055 | Q21: 94.443 | R21: 96.745 | S21: 98.31 | T21: 99.832 | U21: 99.184 | V21: 97.416 | W21: 98.559 | X21: 100 | Y21: 100.251 | Z21: 101.469 | AA21: 101.909 | AB21: 101.119 | AC21: 101.977 | AD21: 102.815 | AE21: 104.137 | AF21: 104.813 | AG21: 106.45
A22: Structures | B22: 40.948 | C22: 41.689 | D22: 41.699 | E22: 42.922 | F22: 44.437 | G22: 46.362 | H22: 47.54 | I22: 49.355 | J22: 51.612 | K22: 53.198 | L22: 55.283 | M22: 58.178 | N22: 60.603 | O22: 62.769 | P22: 67.416 | Q22: 75.733 | R22: 84.749 | S22: 89.748 | T22: 94.335 | U22: 92.613 | V22: 92.006 | W22: 95.362 | X22: 100 | Y22: 101.455 | Z22: 107.198 | AA22: 109.403 | AB22: 109.67 | AC22: 112.545 | AD22: 114.391 | AE22: 119.058 | AF22: 120.852 | AG22: 127.592
A23: Equipment | B23: 135.042 | C23: 137.33 | D23: 137.121 | E23: 135.518 | F23: 135.277 | G23: 133.796 | H23: 130.762 | I23: 127.156 | J23: 121.451 | K23: 116.763 | L23: 114.224 | M23: 110.858 | N23: 108.531 | O23: 105.725 | P23: 104.841 | Q23: 104.598 | R23: 103.56 | S23: 103.191 | T23: 102.542 | U23: 103.168 | V23: 99.471 | W23: 99.447 | X23: 100 | Y23: 99.787 | Z23: 99.169 | AA23: 98.671 | AB23: 97.593 | AC23: 97.543 | AD23: 97.683 | AE23: 97.816 | AF23: 97.388 | AG23: 97.708
A24: Intellectual property products | B24: 88.147 | C24: 90.271 | D24: 89.373 | E24: 89.998 | F24: 90.468 | G24: 93.134 | H24: 93.544 | I24: 94.052 | J24: 93.595 | K24: 95.105 | L24: 97.814 | M24: 97.684 | N24: 96.376 | O24: 95.647 | P24: 95.335 | Q24: 95.952 | R24: 97.088 | S24: 98.284 | T24: 99.834 | U24: 98.589 | V24: 98.306 | W24: 99.517 | X24: 100 | Y24: 100.081 | Z24: 100.791 | AA24: 101.374 | AB24: 100.302 | AC24: 101.125 | AD24: 102.266 | AE24: 103.172 | AF24: 104.574 | AG24: 105.595
A25: Residential | B25: 56.288 | C25: 57.021 | D25: 57.723 | E25: 60.074 | F25: 62.247 | G25: 64.473 | H25: 65.856 | I25: 67.444 | J25: 69.223 | K25: 71.816 | L25: 75.004 | M25: 78.564 | N25: 80.51 | O25: 84.325 | P25: 90.243 | Q25: 96.706 | R25: 102.355 | S25: 103.708 | T25: 102.249 | U25: 98.671 | V25: 98.317 | W25: 99.049 | X25: 100 | Y25: 105.054 | Z25: 111.118 | AA25: 114.114 | AB25: 118.127 | AC25: 123.454 | AD25: 130.417 | AE25: 134.145 | AF25: 138.541 | AG25: 153.48
A26: Change in private inventories | B26: --- | C26: --- | D26: --- | E26: --- | F26: --- | G26: --- | H26: --- | I26: --- | J26: --- | K26: --- | L26: --- | M26: --- | N26: --- | O26: --- | P26: --- | Q26: --- | R26: --- | S26: --- | T26: --- | U26: --- | V26: --- | W26: --- | X26: --- | Y26: --- | Z26: --- | AA26: --- | AB26: --- | AC26: --- | AD26: --- | AE26: --- | AF26: --- | AG26: ---
A27: Net exports of goods and services | B27: --- | C27: --- | D27: --- | E27: --- | F27: --- | G27: --- | H27: --- | I27: --- | J27: --- | K27: --- | L27: --- | M27: --- | N27: --- | O27: --- | P27: --- | Q27: --- | R27: --- | S27: --- | T27: --- | U27: --- | V27: --- | W27: --- | X27: --- | Y27: --- | Z27: --- | AA27: --- | AB27: --- | AC27: --- | AD27: --- | AE27: --- | AF27: --- | AG27: ---
A28: Exports | B28: 79.657 | C28: 80.545 | D28: 80.153 | E28: 80.277 | F28: 81.21 | G28: 83.025 | H28: 81.923 | I28: 80.479 | J28: 78.574 | K28: 77.971 | L28: 79.467 | M28: 78.835 | N28: 78.201 | O28: 79.4 | P28: 82.284 | Q28: 85.131 | R28: 87.842 | S28: 91.139 | T28: 95.41 | U28: 89.694 | V28: 93.348 | W28: 99.242 | X28: 100 | Y28: 100.148 | Z28: 100.216 | AA28: 95.373 | AB28: 93.458 | AC28: 95.897 | AD28: 99.135 | AE28: 98.66 | AF28: 96.188 | AG28: 107.402
A29: Goods | B29: 85.713 | C29: 85.674 | D29: 84.338 | E29: 83.914 | F29: 84.873 | G29: 86.887 | H29: 84.684 | I29: 82.336 | J29: 79.74 | K29: 78.661 | L29: 80.024 | M29: 79.557 | N29: 78.729 | O29: 79.506 | P29: 82.315 | Q29: 84.934 | R29: 87.586 | S29: 91.002 | T29: 95.713 | U29: 88.921 | V29: 92.967 | W29: 99.793 | X29: 100 | Y29: 99.32 | Z29: 98.312 | AA29: 91.323 | AB29: 87.772 | AC29: 90.058 | AD29: 93.274 | AE29: 91.792 | AF29: 88.162 | AG29: 100.687
A30: Services | B30: 65.748 | C30: 68.555 | D30: 70.165 | E30: 71.456 | F30: 72.323 | G30: 73.683 | H30: 75.137 | I30: 75.898 | J30: 75.74 | K30: 76.325 | L30: 78.159 | M30: 77.107 | N30: 76.952 | O30: 79.172 | P30: 82.236 | Q30: 85.634 | R30: 88.49 | S30: 91.504 | T30: 94.746 | U30: 91.386 | V30: 94.197 | W30: 97.999 | X30: 100 | Y30: 101.987 | Z30: 104.466 | AA30: 104.431 | AB30: 106.155 | AC30: 108.934 | AD30: 112.212 | AE30: 114.082 | AF30: 114.517 | AG30: 121.411
A31: Imports | B31: 79.233 | C31: 78.573 | D31: 78.636 | E31: 78.033 | F31: 78.766 | G31: 80.924 | H31: 79.514 | I31: 76.75 | J31: 72.618 | K31: 73.019 | L31: 76.221 | M31: 74.223 | N31: 73.242 | O31: 75.454 | P31: 79.06 | Q31: 83.703 | R31: 86.909 | S31: 89.921 | T31: 98.96 | U31: 87.987 | V31: 92.783 | W31: 99.826 | X31: 100 | Y31: 98.697 | Z31: 97.961 | AA31: 90.144 | AB31: 87.058 | AC31: 88.996 | AD31: 91.515 | AE31: 90.078 | AF31: 88.075 | AG31: 94.557
A32: Goods | B32: 83.056 | C32: 81.486 | D32: 81.04 | E32: 80.134 | F32: 80.718 | G32: 82.87 | H32: 80.77 | I32: 77.434 | J32: 72.757 | K32: 72.8 | L32: 76.641 | M32: 74.464 | N32: 73.097 | O32: 74.687 | P32: 78.232 | Q32: 83.183 | R32: 86.528 | S32: 89.429 | T32: 99.234 | U32: 86.628 | V32: 92.052 | W32: 99.913 | X32: 100 | Y32: 98.059 | Z32: 96.752 | AA32: 87.644 | AB32: 83.999 | AC32: 85.883 | AD32: 88.267 | AE32: 86.389 | AF32: 83.963 | AG32: 90.472
A33: Services | B33: 63.655 | C33: 65.983 | D33: 67.836 | E33: 68.411 | F33: 69.753 | G33: 71.931 | H33: 73.726 | I33: 73.724 | J33: 72.282 | K33: 74.537 | L33: 74.259 | M33: 73.214 | N33: 74.271 | O33: 79.866 | P33: 83.818 | Q33: 86.721 | R33: 89.134 | S33: 92.77 | T33: 97.798 | U33: 94.511 | V33: 96.416 | W33: 99.392 | X33: 100 | Y33: 101.841 | Z33: 104.018 | AA33: 102.981 | AB33: 102.856 | AC33: 105.069 | AD33: 108.3 | AE33: 109.262 | AF33: 109.82 | AG33: 115.605
A34: Government consumption expenditures and gross investment | B34: 52.113 | C34: 54.005 | D34: 55.642 | E34: 56.953 | F34: 58.463 | G34: 60.123 | H34: 61.355 | I34: 62.56 | J34: 63.624 | K34: 65.778 | L34: 68.601 | M34: 70.567 | N34: 72.393 | O34: 75.028 | P34: 78.153 | Q34: 82.11 | R34: 85.661 | S34: 89.492 | T34: 93.317 | U34: 92.931 | V34: 95.386 | W34: 98.285 | X34: 100 | Y34: 102.363 | Z34: 104.47 | AA34: 104.638 | AB34: 104.899 | AC34: 107.389 | AD34: 111.319 | AE34: 113.246 | AF34: 114.861 | AG34: 120.037
A35: Federal | B35: 57.25 | C35: 59.309 | D35: 60.824 | E35: 62.151 | F35: 63.861 | G35: 65.838 | H35: 66.937 | I35: 67.972 | J35: 68.841 | K35: 70.519 | L35: 72.886 | M35: 74.236 | N35: 76.631 | O35: 80.008 | P35: 82.76 | Q35: 86.204 | R35: 88.949 | S35: 91.59 | T35: 94.404 | U35: 94.214 | V35: 96.421 | W35: 99.07 | X35: 100 | Y35: 100.933 | Z35: 102.643 | AA35: 103.143 | AB35: 103.695 | AC35: 105.702 | AD35: 108.776 | AE35: 110.781 | AF35: 112.018 | AG35: 116.033
A36: National defense | B36: 57.162 | C36: 58.964 | D36: 60.678 | E36: 61.615 | F36: 63.229 | G36: 65.027 | H36: 66.114 | I36: 67.035 | J36: 67.871 | K36: 69.559 | L36: 71.908 | M36: 73.27 | N36: 75.714 | O36: 79.505 | P36: 82.263 | Q36: 86.011 | R36: 89.022 | S36: 91.75 | T36: 94.801 | U36: 94.126 | V36: 96.128 | W36: 98.946 | X36: 100 | Y36: 100.609 | Z36: 102.056 | AA36: 102.334 | AB36: 102.65 | AC36: 104.306 | AD36: 107.149 | AE36: 108.865 | AF36: 110.039 | AG36: 114.088
A37: Nondefense | B37: 57.093 | C37: 59.787 | D37: 60.825 | E37: 62.994 | F37: 64.898 | G37: 67.223 | H37: 68.344 | I37: 69.591 | J37: 70.518 | K37: 72.178 | L37: 74.578 | M37: 75.906 | N37: 78.222 | O37: 80.895 | P37: 83.637 | Q37: 86.531 | R37: 88.799 | S37: 91.282 | T37: 93.664 | U37: 94.364 | V37: 96.942 | W37: 99.289 | X37: 100 | Y37: 101.481 | Z37: 103.621 | AA37: 104.466 | AB37: 105.37 | AC37: 107.902 | AD37: 111.325 | AE37: 113.775 | AF37: 115.108 | AG37: 119.079
A38: State and local | B38: 49.153 | C38: 50.953 | D38: 52.69 | E38: 54.002 | F38: 55.394 | G38: 56.871 | H38: 58.177 | I38: 59.471 | J38: 60.63 | K38: 63.008 | L38: 66.032 | M38: 68.281 | N38: 69.815 | O38: 72.05 | P38: 75.369 | Q38: 79.609 | R38: 83.617 | S38: 88.133 | T38: 92.558 | U38: 92.048 | V38: 94.669 | W38: 97.739 | X38: 100 | Y38: 103.332 | Z38: 105.698 | AA38: 105.656 | AB38: 105.739 | AC38: 108.524 | AD38: 112.984 | AE38: 114.863 | AF38: 116.725 | AG38: 122.682
A40: Annual Inflation based on GDP Deflator | B40: n/a | C40: =C13/B13-1 -> 0.03383015816 | D40: =D13/C13-1 -> 0.02278769464 | E40: 0.02369105087 | F40: 0.02135809634 | G40: 0.02096829185 | H40: 0.01829743418 | I40: 0.01724444202 | J40: 0.01125663241 | K40: 0.01443885074 | L40: 0.02236480293 | M40: 0.02192679116 | N40: 0.01581651836 | O40: 0.01856832651 | P40: 0.02692685054 | Q40: 0.03115121491 | R40: 0.03025588817 | S40: 0.02686918482 | T40: 0.01945159267 | U40: 0.007625815347 | V40: 0.01165214096 | W40: 0.02088210507 | X40: 0.01918098616 | Y40: 0.01751 | Z40: 0.01870251889 | AA40: 0.01000443784 | AB40: 0.01001996351 | AC40: 0.01898051825 | AD40: 0.02388929622 | AE40: 0.01788417436 | AF40: 0.01205763442 | AG40: 0.04155814445
A41: https://apps.bea.gov/iTable/iTable.cfm?reqid=19&step=2#reqid=19&step=2&isuri=1&1921=survey
A42: BEA
A44: US DOT Guidance on Inflation Adjustments
A45: Adjustment multipliers, 2020 = 1.0000 | O45: 1.38 | P45: 1.34 | Q45: 1.3 | R45: 1.26 | S45: 1.23 | T45: 1.2 | U45: 1.2 | V45: 1.18 | W45: 1.16 | X45: 1.14 | Y45: 1.12 | Z45: 1.1 | AA45: 1.09 | AB45: 1.07 | AC45: 1.05 | AD45: 1.03 | AE45: 1.01 | AF45: 1
A46: Source: US DOT Benefit-Cost Analysis Guidance for Discrentionary Grant Programs. March 2022.
AG49: 2021
AD50: Costs Escalation Rate | AG50: =(AG13-AF13)/AF13 -> 0.04155814445
AD51: Adjustment Factor (to 2020$) | AG51: =AF13/AG13 -> 0.9601000245

Sheet EmissionCosts
A1: Damage Costs for Emissions per metric ton - Recommended Monetized Values
C3: $/Metric Ton (in 2020$)
B4: Year | C4: NOX | D4: SO2 | E4: PM2.5 | F4: CO2
B5: 2021 | C5: 15600 | D5: 41500 | E5: 748600 | F5: 52
B6: =B5+1 -> 2022 | C6: 15800 | D6: 42300 | E6: 761600 | F6: 53
B7: 2023 | C7: 16000 | D7: 43100 | E7: 774700 | F7: 54
B8: 2024 | C8: 16200 | D8: 44000 | E8: 788100 | F8: 55
B9: 2025 | C9: 16500 | D9: 44900 | E9: 801700 | F9: 56
B10: 2026 | C10: 16800 | D10: 45700 | E10: 814500 | F10: 57
B11: 2027 | C11: 17100 | D11: 46500 | E11: 827400 | F11: 58
B12: 2028 | C12: 17400 | D12: 47300 | E12: 840600 | F12: 60
B13: 2029 | C13: 17700 | D13: 48200 | E13: 854000 | F13: 61
B14: 2030 | C14: 18100 | D14: 49100 | E14: 867600 | F14: 62
B15: 2031 | C15: 18100 | D15: 49100 | E15: 867600 | F15: 63
B16: 2032 | C16: 18100 | D16: 49100 | E16: 867600 | F16: 64
B17: 2033 | C17: 18100 | D17: 49100 | E17: 867600 | F17: 65
B18: 2034 | C18: 18100 | D18: 49100 | E18: 867600 | F18: 66
B19: 2035 | C19: 18100 | D19: 49100 | E19: 867600 | F19: 67
B20: 2036 | C20: 18100 | D20: 49100 | E20: 867600 | F20: 69
B21: 2037 | C21: 18100 | D21: 49100 | E21: 867600 | F21: 70
B22: 2038 | C22: 18100 | D22: 49100 | E22: 867600 | F22: 71
B23: 2039 | C23: 18100 | D23: 49100 | E23: 867600 | F23: 72
B24: 2040 | C24: 18100 | D24: 49100 | E24: 867600 | F24: 73
B25: 2041 | C25: 18100 | D25: 49100 | E25: 867600 | F25: 74
B26: 2042 | C26: 18100 | D26: 49100 | E26: 867600 | F26: 75
B27: 2043 | C27: 18100 | D27: 49100 | E27: 867600 | F27: 77
B28: 2044 | C28: 18100 | D28: 49100 | E28: 867600 | F28: 78
B29: 2045 | C29: 18100 | D29: 49100 | E29: 867600 | F29: 79
B30: 2046 | C30: 18100 | D30: 49100 | E30: 867600 | F30: 80
B31: 2047 | C31: 18100 | D31: 49100 | E31: 867600 | F31: 81
B32: 2048 | C32: 18100 | D32: 49100 | E32: 867600 | F32: 82
B33: 2049 | C33: 18100 | D33: 49100 | E33: 867600 | F33: 83
B34: 2050 | C34: 18100 | D34: 49100 | E34: 867600 | F34: 85
A36: Source: | B36: US DOT Benefit-Cost Analysis Guidance for Discretionary Grant Programs, March 2022

Sheet HERSLookup
A1: Lookup Tables for Vehicle Operating Cost Calculations -- Constant Speed Consumption Rates from HERS
B3: Fuel Consumption (mpg)
B4: Vehicle Type / Speed | C4: 0.1 | D4: 0.2 | E4: 0.3 | F4: 0.4 | G4: 0.5 | H4: 0.6 | I4: 0.7 | J4: 0.8 | K4: 0.9 | L4: 1 | M4: 1.1 | N4: 1.2 | O4: 1.3 | P4: 1.4 | Q4: 1.5 | R4: 1.6 | S4: 1.7 | T4: 1.8 | U4: 1.9 | V4: 2 | W4: 2.1 | X4: 2.2 | Y4: 2.3 | Z4: 2.4 | AA4: 2.5 | AB4: 2.6 | AC4: 2.7 | AD4: 2.8 | AE4: 2.9 | AF4: 3 | AG4: 3.1 | AH4: 3.2 | AI4: 3.3 | AJ4: 3.4 | AK4: 3.5 | AL4: 3.6 | AM4: 3.7 | AN4: 3.8 | AO4: 3.9 | AP4: 4 | AQ4: 4.1 | AR4: 4.2 | AS4: 4.3 | AT4: 4.4 | AU4: 4.5 | AV4: 4.6 | AW4: 4.7 | AX4: 4.8 | AY4: 4.9 | AZ4: 5 | BA4: 5.1 | BB4: 5.2 | BC4: 5.3 | BD4: 5.4 | BE4: 5.5 | BF4: 5.6 | BG4: 5.7 | BH4: 5.8 | BI4: 5.9 | BJ4: 6 | BK4: 6.1 | BL4: 6.2 | BM4: 6.3 | BN4: 6.4 | BO4: 6.5 | BP4: 6.6 | BQ4: 6.7 | BR4: 6.8 | BS4: 6.9 | BT4: 7 | BU4: 7.1 | BV4: 7.2 | BW4: 7.3 | BX4: 7.4 | BY4: 7.5 | BZ4: 7.6 | CA4: 7.7 | CB4: 7.8 | CC4: 7.9 | CD4: 8 | CE4: 8.1 | CF4: 8.2 | CG4: 8.3 | CH4: 8.4 | CI4: 8.5 | CJ4: 8.6 | CK4: 8.7 | CL4: 8.8 | CM4: 8.9 | CN4: 9 | CO4: 9.1 | CP4: 9.2 | CQ4: 9.3 | CR4: 9.4 | CS4: 9.5 | CT4: 9.6 | CU4: 9.7 | CV4: 9.8 | CW4: 9.9 | CX4: 10 | CY4: 10.1 | CZ4: 10.2 | DA4: 10.3 | DB4: 10.4 | DC4: 10.5 | DD4: 10.6 | DE4: 10.7 | DF4: 10.8 | DG4: 10.9 | DH4: 11 | DI4: 11.1 | DJ4: 11.2 | DK4: 11.3 | DL4: 11.4 | DM4: 11.5 | DN4: 11.6 | DO4: 11.7 | DP4: 11.8 | DQ4: 11.9 | DR4: 12 | DS4: 12.1 | DT4: 12.2 | DU4: 12.3 | DV4: 12.4 | DW4: 12.5 | DX4: 12.6 | DY4: 12.7 | DZ4: 12.8 | EA4: 12.9 | EB4: 13 | EC4: 13.1 | ED4: 13.2 | EE4: 13.3 | EF4: 13.4 | EG4: 13.5 | EH4: 13.6 | EI4: 13.7 | EJ4: 13.8 | EK4: 13.9 | EL4: 14 | EM4: 14.1 | EN4: 14.2 | EO4: 14.3 | EP4: 14.4 | EQ4: 14.5 | ER4: 14.6 | ES4: 14.7 | ET4: 14.8 | EU4: 14.9 | EV4: 15 | EW4: 15.1 | EX4: 15.2 | EY4: 15.3 | EZ4: 15.4 | FA4: 15.5 | FB4: 15.6 | FC4: 15.7 | FD4: 15.8 | FE4: 15.9 | FF4: 16 | FG4: 16.1 | FH4: 16.2 | FI4: 16.3 | FJ4: 16.4 | FK4: 16.5 | FL4: 16.6 | FM4: 16.7 | FN4: 16.8 | FO4: 16.9 | FP4: 17 | FQ4: 17.1 | FR4: 17.2 | FS4: 17.3 | FT4: 17.4 | FU4: 17.5 | FV4: 17.6 | FW4: 17.7 | FX4: 17.8 | FY4: 17.9 | FZ4: 18 | GA4: 18.1 | GB4: 18.2 | GC4: 18.3 | GD4: 18.4 | GE4: 18.5 | GF4: 18.6 | GG4: 18.7 | GH4: 18.8 | GI4: 18.9 | GJ4: 19 | GK4: 19.1 | GL4: 19.2 | GM4: 19.3 | GN4: 19.4 | GO4: 19.5 | GP4: 19.6 | GQ4: 19.7 | GR4: 19.8 | GS4: 19.9 | GT4: 20 | GU4: 20.1 | GV4: 20.2 | GW4: 20.3 | GX4: 20.4 | GY4: 20.5 | GZ4: 20.6 | HA4: 20.7 | HB4: 20.8 | HC4: 20.9 | HD4: 21 | HE4: 21.1 | HF4: 21.2 | HG4: 21.3 | HH4: 21.4 | HI4: 21.5 | HJ4: 21.6 | HK4: 21.7 | HL4: 21.8 | HM4: 21.9 | HN4: 22 | HO4: 22.1 | HP4: 22.2 | HQ4: 22.3 | HR4: 22.4 | HS4: 22.5 | HT4: 22.6 | HU4: 22.7 | HV4: 22.8 | HW4: 22.9 | HX4: 23 | HY4: 23.1 | HZ4: 23.2 | IA4: 23.3 | IB4: 23.4 | IC4: 23.5 | ID4: 23.6 | IE4: 23.7 | IF4: 23.8 | IG4: 23.9 | IH4: 24 | II4: 24.1 | IJ4: 24.2 | IK4: 24.3 | IL4: 24.4 | IM4: 24.5 | IN4: 24.6 | IO4: 24.7 | IP4: 24.8 | IQ4: 24.9 | IR4: 25 | IS4: 25.1 | IT4: 25.2 | IU4: 25.3 | IV4: 25.4 | IW4: 25.5 | IX4: 25.6 | IY4: 25.7 | IZ4: 25.8 | JA4: 25.9 | JB4: 26 | JC4: 26.1 | JD4: 26.2 | JE4: 26.3 | JF4: 26.4 | JG4: 26.5 | JH4: 26.6 | JI4: 26.7 | JJ4: 26.8 | JK4: 26.9 | JL4: 27 | JM4: 27.1 | JN4: 27.2 | JO4: 27.3 | JP4: 27.4 | JQ4: 27.5 | JR4: 27.6 | JS4: 27.7 | JT4: 27.8 | JU4: 27.9 | JV4: 28 | JW4: 28.1 | JX4: 28.2 | JY4: 28.3 | JZ4: 28.4 | KA4: 28.5 | KB4: 28.6 | KC4: 28.7 | KD4: 28.8 | KE4: 28.9 | KF4: 29 | KG4: 29.1 | KH4: 29.2 | KI4: 29.3 | KJ4: 29.4 | KK4: 29.5 | KL4: 29.6 | KM4: 29.7 | KN4: 29.8 | KO4: 29.9 | KP4: 30 | KQ4: 30.1 | KR4: 30.2 | KS4: 30.3 | KT4: 30.4 | KU4: 30.5 | KV4: 30.6 | KW4: 30.7 | KX4: 30.8 | KY4: 30.9 | KZ4: 31 | LA4: 31.1 | LB4: 31.2 | LC4: 31.3 | LD4: 31.4 | LE4: 31.5 | LF4: 31.6 | LG4: 31.7 | LH4: 31.8 | LI4: 31.9 | LJ4: 32 | LK4: 32.1 | LL4: 32.2 | LM4: 32.3 | LN4: 32.4 | LO4: 32.5 | LP4: 32.6 | LQ4: 32.7 | LR4: 32.8 | LS4: 32.9 | LT4: 33 | LU4: 33.1 | LV4: 33.2 | LW4: 33.3 | LX4: 33.4 | LY4: 33.5 | LZ4: 33.6 | MA4: 33.7 | MB4: 33.8 | MC4: 33.9 | MD4: 34 | ME4: 34.1 | MF4: 34.2 | MG4: 34.3 | MH4: 34.4 | MI4: 34.5 | MJ4: 34.6 | MK4: 34.7 | ML4: 34.8 | MM4: 34.9 | MN4: 35 | MO4: 35.1 | MP4: 35.2 | MQ4: 35.3 | MR4: 35.4 | MS4: 35.5 | MT4: 35.6 | MU4: 35.7 | MV4: 35.8 | MW4: 35.9 | MX4: 36 | MY4: 36.1 | MZ4: 36.2 | NA4: 36.3 | NB4: 36.4 | NC4: 36.5 | ND4: 36.6 | NE4: 36.7 | NF4: 36.8 | NG4: 36.9 | NH4: 37 | NI4: 37.1 | NJ4: 37.2 | NK4: 37.3 | NL4: 37.4 | NM4: 37.5 | NN4: 37.6 | NO4: 37.7 | NP4: 37.8 | NQ4: 37.9 | NR4: 38 | NS4: 38.1 | NT4: 38.2 | NU4: 38.3 | NV4: 38.4 | NW4: 38.5 | NX4: 38.6 | NY4: 38.7 | NZ4: 38.8 | OA4: 38.9 | OB4: 39 | OC4: 39.1 | OD4: 39.2 | OE4: 39.3 | OF4: 39.4 | OG4: 39.5 | OH4: 39.6 | OI4: 39.7 | OJ4: 39.8 | OK4: 39.9 | OL4: 40 | OM4: 40.1 | ON4: 40.2 | OO4: 40.3 | OP4: 40.4 | OQ4: 40.5 | OR4: 40.6 | OS4: 40.7 | OT4: 40.8 | OU4: 40.9 | OV4: 41 | OW4: 41.1 | OX4: 41.2 | OY4: 41.3 | OZ4: 41.4 | PA4: 41.5 | PB4: 41.6 | PC4: 41.7 | PD4: 41.8 | PE4: 41.9 | PF4: 42 | PG4: 42.1 | PH4: 42.2 | PI4: 42.3 | PJ4: 42.4 | PK4: 42.5 | PL4: 42.6 | PM4: 42.7 | PN4: 42.8 | PO4: 42.9 | PP4: 43 | PQ4: 43.1 | PR4: 43.2 | PS4: 43.3 | PT4: 43.4 | PU4: 43.5 | PV4: 43.6 | PW4: 43.7 | PX4: 43.8 | PY4: 43.9 | PZ4: 44 | QA4: 44.1 | QB4: 44.2 | QC4: 44.3 | QD4: 44.4 | QE4: 44.5 | QF4: 44.6 | QG4: 44.7 | QH4: 44.8 | QI4: 44.9 | QJ4: 45 | QK4: 45.1 | QL4: 45.2 | QM4: 45.3 | QN4: 45.4 | QO4: 45.5 | QP4: 45.6 | QQ4: 45.7 | QR4: 45.8 | QS4: 45.9 | QT4: 46 | QU4: 46.1 | QV4: 46.2 | QW4: 46.3 | QX4: 46.4 | QY4: 46.5 | QZ4: 46.6 | RA4: 46.7 | RB4: 46.8 | RC4: 46.9 | RD4: 47 | RE4: 47.1 | RF4: 47.2 | RG4: 47.3 | RH4: 47.4 | RI4: 47.5 | RJ4: 47.6 | RK4: 47.7 | RL4: 47.8 | RM4: 47.9 | RN4: 48 | RO4: 48.1 | RP4: 48.2 | RQ4: 48.3 | RR4: 48.4 | RS4: 48.5 | RT4: 48.6 | RU4: 48.7 | RV4: 48.8 | RW4: 48.9 | RX4: 49 | RY4: 49.1 | RZ4: 49.2 | SA4: 49.3 | SB4: 49.4 | SC4: 49.5 | SD4: 49.6 | SE4: 49.7 | SF4: 49.8 | SG4: 49.9 | SH4: 50 | SI4: 50.1 | SJ4: 50.2 | SK4: 50.3 | SL4: 50.4 | SM4: 50.5 | SN4: 50.6 | SO4: 50.7 | SP4: 50.8 | SQ4: 50.9 | SR4: 51 | SS4: 51.1 | ST4: 51.2 | SU4: 51.3 | SV4: 51.4 | SW4: 51.5 | SX4: 51.6 | SY4: 51.7 | SZ4: 51.8 | TA4: 51.9 | TB4: 52 | TC4: 52.1 | TD4: 52.2 | TE4: 52.3 | TF4: 52.4 | TG4: 52.5 | TH4: 52.6 | TI4: 52.7 | TJ4: 52.8 | TK4: 52.9 | TL4: 53 | TM4: 53.1 | TN4: 53.2 | TO4: 53.3 | TP4: 53.4 | TQ4: 53.5 | TR4: 53.6 | TS4: 53.7 | TT4: 53.8 | TU4: 53.9 | TV4: 54 | TW4: 54.1 | TX4: 54.2 | TY4: 54.3 | TZ4: 54.4 | UA4: 54.5 | UB4: 54.6 | UC4: 54.7 | UD4: 54.8 | UE4: 54.9 | UF4: 55 | UG4: 55.1 | UH4: 55.2 | UI4: 55.3 | UJ4: 55.4 | UK4: 55.5 | UL4: 55.6 | UM4: 55.7 | UN4: 55.8 | UO4: 55.9 | UP4: 56 | UQ4: 56.1 | UR4: 56.2 | US4: 56.3 | UT4: 56.4 | UU4: 56.5 | UV4: 56.6 | UW4: 56.7 | UX4: 56.8 | UY4: 56.9 | UZ4: 57 | VA4: 57.1 | VB4: 57.2 | VC4: 57.3 | VD4: 57.4 | VE4: 57.5 | VF4: 57.6 | VG4: 57.7 | VH4: 57.8 | VI4: 57.9 | VJ4: 58 | VK4: 58.1 | VL4: 58.2 | VM4: 58.3 | VN4: 58.4 | VO4: 58.5 | VP4: 58.6 | VQ4: 58.7 | VR4: 58.8 | VS4: 58.9 | VT4: 59 | VU4: 59.1 | VV4: 59.2 | VW4: 59.3 | VX4: 59.4 | VY4: 59.5 | VZ4: 59.6 | WA4: 59.7 | WB4: 59.8 | WC4: 59.9 | WD4: 60 | WE4: 60.1 | WF4: 60.2 | WG4: 60.3 | WH4: 60.4 | WI4: 60.5 | WJ4: 60.6 | WK4: 60.7 | WL4: 60.8 | WM4: 60.9 | WN4: 61 | WO4: 61.1 | WP4: 61.2 | WQ4: 61.3 | WR4: 61.4 | WS4: 61.5 | WT4: 61.6 | WU4: 61.7 | WV4: 61.8 | WW4: 61.9 | WX4: 62 | WY4: 62.1 | WZ4: 62.2 | XA4: 62.3 | XB4: 62.4 | XC4: 62.5 | XD4: 62.6 | XE4: 62.7 | XF4: 62.8 | XG4: 62.9 | XH4: 63 | XI4: 63.1 | XJ4: 63.2 | XK4: 63.3 | XL4: 63.4 | XM4: 63.5 | XN4: 63.6 | XO4: 63.7 | XP4: 63.8 | XQ4: 63.9 | XR4: 64 | XS4: 64.1 | XT4: 64.2 | XU4: 64.3 | XV4: 64.4 | XW4: 64.5 | XX4: 64.6 | XY4: 64.7 | XZ4: 64.8 | YA4: 64.9 | YB4: 65 | YC4: 65.1 | YD4: 65.2 | YE4: 65.3 | YF4: 65.4 | YG4: 65.5 | YH4: 65.6 | YI4: 65.7 | YJ4: 65.8 | YK4: 65.9 | YL4: 66 | YM4: 66.1 | YN4: 66.2 | YO4: 66.3 | YP4: 66.4 | YQ4: 66.5 | YR4: 66.6 | YS4: 66.7 | YT4: 66.8 | YU4: 66.9 | YV4: 67 | YW4: 67.1 | YX4: 67.2 | YY4: 67.3 | YZ4: 67.4 | ZA4: 67.5 | ZB4: 67.6 | ZC4: 67.7 | ZD4: 67.8 | ZE4: 67.9 | ZF4: 68 | ZG4: 68.1 | ZH4: 68.2 | ZI4: 68.3 | ZJ4: 68.4 | ZK4: 68.5 | ZL4: 68.6 | ZM4: 68.7 | ZN4: 68.8 | ZO4: 68.9 | ZP4: 69 | ZQ4: 69.1 | ZR4: 69.2 | ZS4: 69.3 | ZT4: 69.4 | ZU4: 69.5 | ZV4: 69.6 | ZW4: 69.7 | ZX4: 69.8 | ZY4: 69.9 | ZZ4: 70 | AAA4: 70.1 | AAB4: 70.2 | AAC4: 70.3 | AAD4: 70.4 | AAE4: 70.5 | AAF4: 70.6 | AAG4: 70.7 | AAH4: 70.8 | AAI4: 70.9 | AAJ4: 71 | AAK4: 71.1 | AAL4: 71.2 | AAM4: 71.3 | AAN4: 71.4 | AAO4: 71.5 | AAP4: 71.6 | AAQ4: 71.7 | AAR4: 71.8 | AAS4: 71.9 | AAT4: 72 | AAU4: 72.1 | AAV4: 72.2 | AAW4: 72.3 | AAX4: 72.4 | AAY4: 72.5 | AAZ4: 72.6 | ABA4: 72.7 | ABB4: 72.8 | ABC4: 72.9 | ABD4: 73 | ABE4: 73.1 | ABF4: 73.2 | ABG4: 73.3 | ABH4: 73.4 | ABI4: 73.5 | ABJ4: 73.6 | ABK4: 73.7 | ABL4: 73.8 | ABM4: 73.9 | ABN4: 74 | ABO4: 74.1 | ABP4: 74.2 | ABQ4: 74.3 | ABR4: 74.4 | ABS4: 74.5 | ABT4: 74.6 | ABU4: 74.7 | ABV4: 74.8 | ABW4: 74.9 | ABX4: 75 | ABY4: 75.1 | ABZ4: 75.2 | ACA4: 75.3 | ACB4: 75.4 | ACC4: 75.5 | ACD4: 75.6 | ACE4: 75.7 | ACF4: 75.8 | ACG4: 75.9 | ACH4: 76 | ACI4: 76.1 | ACJ4: 76.2 | ACK4: 76.3 | ACL4: 76.4 | ACM4: 76.5 | ACN4: 76.6 | ACO4: 76.7 | ACP4: 76.8 | ACQ4: 76.9 | ACR4: 77 | ACS4: 77.1 | ACT4: 77.2 | ACU4: 77.3 | ACV4: 77.4 | ACW4: 77.5 | ACX4: 77.6 | ACY4: 77.7 | ACZ4: 77.8 | ADA4: 77.9 | ADB4: 78 | ADC4: 78.1 | ADD4: 78.2 | ADE4: 78.3 | ADF4: 78.4 | ADG4: 78.5 | ADH4: 78.6 | ADI4: 78.7 | ADJ4: 78.8 | ADK4: 78.9 | ADL4: 79 | ADM4: 79.1 | ADN4: 79.2 | ADO4: 79.3 | ADP4: 79.4 | ADQ4: 79.5 | ADR4: 79.6 | ADS4: 79.7 | ADT4: 79.8 | ADU4: 79.9 | ADV4: 80
